Workbook

Sheet Revision Notes (hidden)
B1: Revisions made in model since sending initial draft to Enoch.
A3: 1 | B3: Calculations worksheet, cell H143: formula revised.
A4: =A3+1 -> 2 | B4: ProjectData worksheet, cells Q797 to Y810, added section on Regions - states included in each region. This is currently not referenced in model but probably will be used a some time for reference.
A5: =A4+1 -> 3 | B5: ProjectData worksheet, cells O809-O816, added region names to state list (this is referenced in th Project location control box drop down list in cell B12.
A6: 4 | B6: FAQ worksheet, cell A31, revised/corrected the spelling of the word "consumption."
A7: 5 | B7: ProjectData worksheet, cells P750 and T749, revised/corrected spelling of word "silicon."
A8: 6 | B8: ProjectData worksheet, cells X753 and X754, revised formula.
A9: 7 | B9: ProjectData worksheet, cell X757, revise formula.
A10: 8 | B10: Multipliers worksheet, after column AR (Pennsylvania), add in 8 additional columns for region name and data.
A11: 9 | B11: Household Exp worksheet, after column AQ (Pennsylvania) add in 8 columns for Region names and data.
A12: 10 | B12: Calculation worksheet, cell L145, revised formula.
A13: 11 | B13: DefaultData worksheet, cells AM66-AM68 (California), revised values (property tax exemptions) to 100%.
B15: Revisions made in model since sending second draft to Enoch.
A16: 1 | B16: User Add-in location worksheet inserted complete list of industry sectors (names) into each multiplier type (direct, indirect and induced or jobs, earnings, and output)
A17: 2 | B17: DefaultData cell D32 inserted formula
A18: 3 | B18: SummaryResults moved formula in cell C1 to D2
A19: 4 | B19: SummaryResults inserted formulas in cells AD40, AD41, and AD42
A20: 5 | B20: SummaryResults cell A1 inserted formula
A21: 6 | B21: SummaryResults deleted formula in cell BC1
A22: 7 | B22: SummaryResults inserted formula in cell BA1
A23: 8 | B23: SummaryResults inserted formula in cell BG1
A24: 9 | B24: ProjectData cell A12 revised comment.
A25: 10 | B25: FAQ, revised the answer to question on line 30.
A26: 11 | B26: FAQ, inserted a new question (line 59 - before final question) and 8 additional lines for answer (states in defined regions).
A27: 12 | B27: User Add-in location worksheet cells C6 and C7, revised wording in formulas.
B29: Revisions made in model since sending third draft (4 25 11) to Enoch.
A30: 1 | B30: ProjectData worksheet, revised formula in cell T48.
A31: =A30+1 -> 2 | B31: ProjectData worksheet, blued out cell E48 and locked cell (no longer accepts editting/revision). Also added comment to cell.
A32: 3 | B32: ProjectData worksheet, revised macro for "Restore Default Values", no longer restores cell E48 with AB48 (this cut and paste function was deleted)
A33: 4 | B33: Calculations worksheet, revised formulas in E152, E160, and G15
A34: 5 | B34: Deflator worksheet, inserted (revised) new deflator data, text note below table and table below note (cells B11..AL43). These updated and expanded deflators have the same format, although more years are added, with a new source and new data in the ref. table below source.
A35: 6 | B35: Deflator worksheet, revised formulas in cells E7 and E8.
A36: 7 | B36: ProjectData worksheet, revised text in A26…A28.
A37: 8 | B37: ProjectData worksheet, added conditional formating related to cell B26 (Y or N - using default values in analysis). Default data/costs are greyed out if Y is chosen, available for viewing and editting if N is choosen. To do this I saved the file in Excel 2007 version instead of the previous 2003.
B39: Revisions made in model since sending fourth draft (Draft JEDI…..5 25 11) to Enoch.
A40: 1 | B40: DefaultData worksheet, delete data in cells BE:2:BD8.
A41: =A40+1 -> 2 | B41: DefaultData worksheet, delete data in cells BH:14:BW16.
A42: 3 | B42: DefaultData worksheet, delete data in cells AH16:BG16
A43: 4 | B43: DefaultData worksheet, delete data in cells AH11:AH13.
A44: 5 | B44: DefaultData worksheet, delete data in cell AH33.
A45: 6 | B45: DefaultData worksheet, insert new values in cells AE51:CI54.
A46: 7 | B46: DefaultData worksheet, revise formulas in cells AI59, AI61, and AI62.
A47: 8 | B47: DefaultData worksheet, insert new values in cells AJ14:BF43
A48: 9 | B48: ProjectData worksheet, insert comment in cell A24.
A49: 10 | B49: ProjectData worksheet, insert and/or revise comments in cells A18, A22, A23, A31, E31, A71, A75, A77, A78..
A50: 11 | B50: ProjectData worksheet, revise formulas in cells C26, B22, X753.
A51: 12 | B51: ProjectData worksheet, insert new value in cell B24.
A52: 13 | B52: Calculations worksheet, revise formula in cell E27.
A53: 14 | B53: SummaryResults worksheet, format (center) cell C2.
A54: 15 | B54: SummaryResults worksheet, revise formula in cell AD42.
A55: 16 | B55: SummaryResults worksheet, delete cells AD40 and AD41.
A56: 17 | B56: User Add-in Location worksheet, insert comment in cell C9.
A57: 18 | B57: FAQ worksheet, revise answer to security settings question, cells C14:C17.
B59: Revisions made in model since sending fifth draft (Draft JEDI…..6 28 11) to Enoch.
A60: =A59+1 -> 1 | B60: DefaultData worksheet, insert new values in cells C52, C53, and C54.
A61: 2 | B61: DefaultData worksheet, insert new values in cells AJ14:BF43
A62: 3 | B62: ProjectData worksheet, insert text in cells B82 and D82.
A63: 4 | B63: ProjectData worksheet, format cells B71:B73 to 1 decimal place.
A64: 5 | B64: ProjectData worksheet, delete cell T37
A65: 6 | B65: Calculations worksheet, insert new formulas (used to be values only) in cells H7:H10.
A66: 7 | B66: Calculations worksheet, insert new formulas in cells I7:I10.
A67: 8 | B67: FAQ worksheet, insert an additional question and answer in cells A70:A77.
A68: 9
B70: Revisions made in model since sending sixth draft (Draft JEDI…..7 5 11) to Enoch.
A71: =A70+1 -> 1 | B71: DefaultData worksheet, delete data in cells CR50:CV59.
A72: 2 | B72: DefaultData worksheet, insert 8 columns after Pennsylvania (BW50) - move Rhode Island to Wyoming (names and data below down to row 76, then add location names (for Regions 1-8) and data into columns (BX50:CE76) in lookup area.
A73: 3 | B73: DefaultData worksheet, insert new formulas in cells AI61, AI69, AI72, and AI77 (these reference the expanded lookup area).
A74: 4
B76: Revisions made in model since sending seventh draft (Draft JEDI…..7 7 11) to Enoch.
A77: =A76+1 -> 1 | B77: User Add-in Location worksheet, revise formula in E3 and E4.
A78: 2 | B78: Calculations worksheet, revise format in cell H27.
A79: 3 | B79: Calculations worksheet, revise formula in cell E27 and replace value in E29 with formula.
A80: 4 | B80: Calculations worksheet, insert additional sectors, revise formulas in whole section AG37:AJ57.
A81: 5 | B81: ProjectData worksheet, revise comment in A45.
A82: 6 | B82: FAQ worksheet, insert an additional question and answer in cells A79:A83.
A83: 7 | B83: SummaryResults worksheet, insert additional sectors, revise formulas in whole section A27:D40 and BA27:BD40.
B86: New Revisions
A87: =A86+1 -> 1 | B87: Calculations worksheet, revise value in cell H71
A88: 2 | B88: Calculations worksheet, revise values in cells AJ43 and AJ44
A89: 3 | B89: DefaultData worksheet, revise formula in cell AI73
A90: 4 | B90: DefaultData worksheet, revise values in cells AJ14:BF32
A91: 5 | B91: DefaultData worksheet, revise values in cells AI51:CQ54
A92: 6 | B92: DefaultData worksheet, delete text/values in cells CR50:CV59
A93: 7 | B93: DefaultData worksheet, revise formula in cell AI59
A94: 8 | B94: DefaultData worksheet, revise text in cells AH53:AH54
A95: 9 | B95: ProjectData worksheet, add comment to cell A43
A96: 10 | B96: ProjectData worksheet, added values (for years list) in cells N755-N776
B99: New Revisions 12/23/16
A100: =A99+1 -> 1 | B100: Multipliers worksheet, all values for states (direct, indirect and induced) through row 302 updated to 2014 values.
A101: 2 | B101: Household Exp worksheet, all values updated to 2014
A102: 3 | B102: Deflators all values updated C11:AL39, added 10 rows at row 30,updated values B12:AL39, updates source B43:B45, updated C51:C52, added M51:Q53.

Sheet About JEDI
A2: JEDI - PHOTOVOLTAICS
A4: Jobs and Economic Development Impact Model (JEDI)
A6: Release Number: PV05.20.21

Sheet FAQ
A2: JEDI - PHOTOVOLTAICS
A4: Jobs and Economic Development Impact Model (JEDI)
A6: Frequently Asked Questions (FAQ)

Sheet Start
A2: JEDI - PHOTOVOLTAICS
A3: Jobs and Economic Development Impact Model

Sheet ProjectData
A1: Photovoltaic Project Data
A2: Please read instructions before getting started
A4: INSTRUCTIONS:
A5: 1. Begin by entering Project Location (from pull-down list) and other Project Descriptive Data relevant to your particular project. After inputting Descriptive Data press enter (or cursor to the next cell) to continue.
A6: 2. Once Descriptive Data is complete, you may choose to utilize the detailed model default values for Project Cost (based on your Descriptive Data) by choosing "Y" on line 26 OR you may choose to use your own values entered (modified) under Project Cost Data by choosing "N" on line 26. Choose "Y" to accept Project Cost default values or "N" to over-ride Project Cost default values and use your own inputs.
A7: 3. Press 'Go To Summary Impacts' Button
A8: NOTES: Additional information is available by pointing to the red triangles located in cell corners. Only those cells with a white background can accept new values.
A11: Project Descriptive Data | T11: =IF(B12="MYCOUNTY",IF(B13="",2,1),IF(B12="MYREGION",IF(B13="",2,1),0)) -> 0
A12: Project Location | B12: ARIZONA | D12: =IF(B12="MYREGION",IF('User Add-in Location'!F33=0,"Error - No Regional multiplier data in User Add-in Location",""),IF(B12="MYCOUNTY",IF('User Add-in Location'!E33=0,"Error - No County multiplier data in User Add-in Location",""),"")) -> 
A13: Population (only required for County/Region analysis) | D13: =IF(B12="MYREGION",IF('User Add-in Location'!F33=0,"",IF(B12="MYREGION","Enter Region Population","")),IF(B12="MYCOUNTY",IF('User Add-in Location'!E33=0,"",IF(B12="MYCOUNTY","Enter County Population","")),"")) -> 
A14: Year of Construction or Installation | B14: 2012 | C14: =IF(D13="","",IF(B13<1,"**Error - Population Data Missing**","")) -> 
A15: System Application | B15: Residential
A16: Solar Cell/Module Material | B16: Crystalline Silicon
A17: System Tracking (Utility - Defaults always assume fixed mount for commercial and residential) | B17: Fixed Mount
A18: Average System Size - DC Nameplate Capacity (kW) | B18: =DefaultData!AI15 -> 5 | D18: =DefaultData!AI14 -> Typically less than 10 kW
A19: Number of Systems Installed | B19: 100
A20: Total Project Size - DC Nameplate Capacity (kW) | B20: =B18*B19 -> 500
A22: Base Installed System Cost ($/kWDC) | B22: =DefaultData!AJ62 -> 2690.045743 | C22: =IF(B26="N"," User Revised System Cost ($/kW)","") -> User Revised System Cost ($/kW) | F22: =IF(B26="N",C47,"") -> 2690.045743 | Q22: Y
A23: Annual Direct Operations and Maintenance Cost ($/kW) | B23: =DefaultData!AI43 -> 32.8 | C23: =IF(B26="N"," User Revised O&M Cost ($/kW)","") -> User Revised O&M Cost ($/kW) | F23: =IF(B26="N",(C62-C61),"") -> 32.8 | Q23: N
A24: Money Value (Dollar Year) | B24: 2010
A26: Utilize Project Cost Data default values? Choose "Y" to accept model default values or "N" to view the default values and utilize new user defined values (entered below). | B26: N | C26: =IF(B26="y"," Press 'Go To Summary Impacts' Button",IF(B26="N","Modify System Cost Data (below).","Error - Re-enter 'Y' or 'N'")) -> Modify System Cost Data (below).
A29: If desired, default values (in cells below - based on Project Descriptive Data entered above) may be restored by pressing the 'Restore Default Values' button. Note: it is not necessary to restore defaults to incorporate default Project Cost Data in system analysis (simply enter a "Y" in cell B26 above).
A30: Project Cost Data
A31: =DefaultData!C14 -> Installation Costs | B31: Cost | C31: Cost | D31: Percent of | E31: Purchased | F31: Manufactured
A32: =DefaultData!C15 -> Materials & Equipment | C32: Per kW | D32: Total Cost | E32: Locally (%) | F32: Locally (Y or N)
A33: =DefaultData!C16 -> Mounting (rails, clamps, fittings, etc.) | B33: =C33*$B$20 -> 49153.65975 | C33: =DefaultData!$E16 -> 98.3073195 | D33: =B33/(B$49) -> 0.0365448505 | E33: =$T33 -> 1 | F33: =DefaultData!$AH17 -> N | T33: =IF(T$11=0,DefaultData!$G16,IF(T$11=2,"Pop. Data Missing",IF($B$13<DefaultData!$H$13,DefaultData!$H16,IF($B$13<DefaultData!$I$13,DefaultData!$O16,IF($B$13<DefaultData!$J$13,DefaultData!$R16,DefaultData!$U16))))) -> 1 | Y33: =Z33*$B$20 -> 49153.65975 | Z33: =DefaultData!$E16 -> 98.3073195 | AA33: =Y33/(Y$47) -> 0.0365448505 | AB33: =$T33 -> 1 | AC33: =DefaultData!$AH17 -> N
A34: =DefaultData!C17 -> Modules | B34: =C34*$B$20 -> 156398.0083 | C34: =DefaultData!$E17 -> 312.7960166 | D34: =B34/(B$49) -> 0.1162790698 | E34: =$T34 -> 1 | F34: =DefaultData!$AH18 -> N | T34: =IF(T$11=0,DefaultData!$G17,IF(T$11=2,"Pop. Data Missing",IF($B$13<DefaultData!$H$13,DefaultData!$H17,IF($B$13<DefaultData!$I$13,DefaultData!$O17,IF($B$13<DefaultData!$J$13,DefaultData!$R17,DefaultData!$U17))))) -> 1 | Y34: =Z34*$B$20 -> 156398.0083 | Z34: =DefaultData!$E17 -> 312.7960166 | AA34: =Y34/(Y$47) -> 0.1162790698 | AB34: =$T34 -> 1 | AC34: =DefaultData!$AH18 -> N
A35: =DefaultData!C18 -> Electrical (wire, connectors, breakers, etc.) | B35: =C35*$B$20 -> 107244.3485 | C35: =DefaultData!$E18 -> 214.4886971 | D35: =B35/(B$49) -> 0.07973421927 | E35: =$T35 -> 1 | F35: =DefaultData!$AH19 -> N | T35: =IF(T$11=0,DefaultData!$G18,IF(T$11=2,"Pop. Data Missing",IF($B$13<DefaultData!$H$13,DefaultData!$H18,IF($B$13<DefaultData!$I$13,DefaultData!$O18,IF($B$13<DefaultData!$J$13,DefaultData!$R18,DefaultData!$U18))))) -> 1 | Y35: =Z35*$B$20 -> 107244.3485 | Z35: =DefaultData!$E18 -> 214.4886971 | AA35: =Y35/(Y$47) -> 0.07973421927 | AB35: =$T35 -> 1 | AC35: =DefaultData!$AH19 -> N
A36: =DefaultData!C19 -> Inverter | B36: =C36*$B$20 -> 84901.77594 | C36: =DefaultData!$E19 -> 169.8035519 | D36: =B36/(B$49) -> 0.06312292359 | E36: =$T36 -> 1 | F36: =DefaultData!$AH20 -> N | T36: =IF(T$11=0,DefaultData!$G19,IF(T$11=2,"Pop. Data Missing",IF($B$13<DefaultData!$H$13,DefaultData!$H19,IF($B$13<DefaultData!$I$13,DefaultData!$O19,IF($B$13<DefaultData!$J$13,DefaultData!$R19,DefaultData!$U19))))) -> 1 | Y36: =Z36*$B$20 -> 84901.77594 | Z36: =DefaultData!$E19 -> 169.8035519 | AA36: =Y36/(Y$47) -> 0.06312292359 | AB36: =$T36 -> 1 | AC36: =DefaultData!$AH20 -> N
A37: =DefaultData!C20 -> Subtotal | B37: =SUM(B33:B36) -> 397697.7925 | C37: =SUM(C33:C36) -> 795.3955851 | D37: =SUM(D33:D36) -> 0.2956810631 | Y37: =SUM(Y33:Y36) -> 397697.7925 | Z37: =SUM(Z33:Z36) -> 795.3955851 | AA37: =SUM(AA33:AA36) -> 0.2956810631
A38: =DefaultData!C21 -> Labor
A39: =DefaultData!C22 -> Installation | B39: =C39*$B$20 -> 134055.4357 | C39: =DefaultData!$E22 -> 268.1108714 | D39: =B39/(B$49) -> 0.09966777409 | E39: =$T39 -> 1 | T39: =IF(T$11=0,DefaultData!$G22,IF(T$11=2,"Pop. Data Missing",IF($B$13<DefaultData!$H$13,DefaultData!$H22,IF($B$13<DefaultData!$I$13,DefaultData!$O22,IF($B$13<DefaultData!$J$13,DefaultData!$R22,DefaultData!$U22))))) -> 1 | Y39: =Z39*$B$20 -> 134055.4357 | Z39: =DefaultData!$E22 -> 268.1108714 | AA39: =Y39/(Y$47) -> 0.09966777409 | AB39: =$T39 -> 1
A40: =DefaultData!C23 -> Subtotal | B40: =SUM(B39:B39) -> 134055.4357 | C40: =C39 -> 268.1108714 | D40: =D39 -> 0.09966777409 | Y40: =SUM(Y39:Y39) -> 134055.4357 | Z40: =Z39 -> 268.1108714 | AA40: =AA39 -> 0.09966777409
A41: =DefaultData!C24 -> Total | B41: =+B40+B37 -> 531753.2282 | C41: =+C40+C37 -> 1063.506456 | D41: =D40+D37 -> 0.3953488372 | Y41: =+Y40+Y37 -> 531753.2282 | Z41: =+Z40+Z37 -> 1063.506456 | AA41: =AA40+AA37 -> 0.3953488372
A42: =DefaultData!C25 -> Other Costs
A43: =DefaultData!C26 -> Permitting, Fees, and Taxes | B43: =C43*$B$20 -> 178740.5809 | C43: =DefaultData!$E26 -> 357.4811618 | D43: =B43/(B$49) -> 0.1328903654 | E43: =$T43 -> 1 | T43: =IF(T$11=0,DefaultData!$G26,IF(T$11=2,"Pop. Data Missing",IF($B$13<DefaultData!$H$13,DefaultData!$H26,IF($B$13<DefaultData!$I$13,DefaultData!$O26,IF($B$13<DefaultData!$J$13,DefaultData!$R26,DefaultData!$U26))))) -> 1 | Y43: =Z43*$B$20 -> 178740.5809 | Z43: =DefaultData!$E26 -> 357.4811618 | AA43: =Y43/(Y$47) -> 0.1328903654 | AB43: =$T43 -> 1
A44: =DefaultData!C27 -> Other Costs | B44: =C44*$B$20 -> 339607.1037 | C44: =DefaultData!$E27 -> 679.2142075 | D44: =B44/(B$49) -> 0.2524916944 | E44: =$T44 -> 1 | T44: =IF(T$11=0,DefaultData!$G27,IF(T$11=2,"Pop. Data Missing",IF($B$13<DefaultData!$H$13,DefaultData!$H27,IF($B$13<DefaultData!$I$13,DefaultData!$O27,IF($B$13<DefaultData!$J$13,DefaultData!$R27,DefaultData!$U27))))) -> 1 | Y44: =Z44*$B$20 -> 339607.1037 | Z44: =DefaultData!$E27 -> 679.2142075 | AA44: 0.2524916944 | AB44: =$T44 -> 1
A45: =DefaultData!C28 -> Business Overhead | B45: =C45*$B$20 -> 294921.9585 | C45: =DefaultData!$E28 -> 589.843917 | D45: =B45/(B$49) -> 0.219269103 | E45: =$T45 -> 1 | T45: =IF(T$11=0,DefaultData!$G28,IF(T$11=2,"Pop. Data Missing",IF($B$13<DefaultData!$H$13,DefaultData!$H28,IF($B$13<DefaultData!$I$13,DefaultData!$O28,IF($B$13<DefaultData!$J$13,DefaultData!$R28,DefaultData!$U28))))) -> 1 | Y45: =Z45*$B$20 -> 294921.9585 | Z45: =DefaultData!$E28 -> 589.843917 | AA45: 0.219269103 | AB45: =$T45 -> 1
A46: =DefaultData!C29 -> Subtotal | B46: =SUM(B43:B45) -> 813269.6432 | C46: =SUM(C43:C45) -> 1626.539286 | D46: =B46/(B$49) -> 0.6046511628 | Y46: =SUM(Y43:Y45) -> 813269.6432 | Z46: =SUM(Z43:Z45) -> 1626.539286 | AA46: 0.6046511628
A47: Subtotal | B47: =B46+B41 -> 1345022.871 | C47: =C46+C41 -> 2690.045743 | D47: =D46+D41 -> 1 | Y47: =Y46+Y41 -> 1345022.871 | Z47: =Z46+Z41 -> 2690.045743 | AA47: 1
A48: Sales Tax (Materials & Equipment Purchases) | B48: =B37*(B77*(1-B78)) -> 0 | C48: =B48/B$20 -> 0 | D48: =B48/(B$49) -> 0 | E48: =$T48 -> 1 | T48: =D$77 -> 1 | Y48: =Y37*(Y77*(1-Y78)) -> 0 | Z48: =DefaultData!$E31 -> 0 | AA48: 0 | AB48: =$T48 -> 1
A49: Total | B49: =B48+B47 -> 1345022.871 | C49: =B49/B$20 -> 2690.045743 | D49: =D48+D47 -> 1
A51: =DefaultData!C33 -> PV System Annual Operating and Maintenance Costs
B52: Cost | C52: Cost | D52: Percent of | E52: Local
A53: =DefaultData!C34 -> Labor | C53: Per kW | D53: Total Cost | E53: Share (%)
A54: =DefaultData!C35 -> Technicians | B54: =C54*$B$20 -> 8965.333333 | C54: =DefaultData!$E35 -> 17.93066667 | D54: =B54/B$62 -> 0.5466666667 | E54: =$T54 -> 1 | T54: =IF(T$11=0,DefaultData!$G35,IF(T$11=2,"Pop. Data Missing",IF($B$13<DefaultData!$H$13,DefaultData!$H35,IF($B$13<DefaultData!$I$13,DefaultData!$O35,IF($B$13<DefaultData!$J$13,DefaultData!$R35,DefaultData!$U35))))) -> 1 | Y54: =Z54*$B$20 -> 8965.333333 | Z54: =DefaultData!$E35 -> 17.93066667 | AA54: =Y54/Y$62 -> 0.5466666667 | AB54: =$T54 -> 1
A55: =DefaultData!C36 -> Subtotal | B55: =SUM(B54:B54) -> 8965.333333 | C55: =C54 -> 17.93066667 | D55: =SUM(D54:D54) -> 0.5466666667 | Y55: =SUM(Y54:Y54) -> 8965.333333 | Z55: =Z54 -> 17.93066667 | AA55: =SUM(AA54:AA54) -> 0.5466666667
E56: Purchased | F56: Manufactured
A57: =DefaultData!C37 -> Materials and Services | E57: Locally (%) | F57: Locally (Y or N)
A58: =DefaultData!C38 -> Materials & Equipment | B58: =C58*$B$20 -> 7434.666667 | C58: =DefaultData!$E38 -> 14.86933333 | D58: =B58/B$62 -> 0.4533333333 | E58: =$T58 -> 1 | F58: =DefaultData!$AH38 -> N | T58: =IF(T$11=0,DefaultData!$G38,IF(T$11=2,"Pop. Data Missing",IF($B$13<DefaultData!$H$13,DefaultData!$H38,IF($B$13<DefaultData!$I$13,DefaultData!$O38,IF($B$13<DefaultData!$J$13,DefaultData!$R38,DefaultData!$U38))))) -> 1 | Y58: =Z58*$B$20 -> 7434.666667 | Z58: =DefaultData!$E38 -> 14.86933333 | AA58: =Y58/Y$62 -> 0.4533333333 | AB58: =$T58 -> 1 | AC58: =DefaultData!$AH38 -> N
A59: =DefaultData!C39 -> Services | B59: =C59*$B$20 -> 0 | C59: =DefaultData!$E39 -> 0 | D59: =B59/B$62 -> 0 | E59: =$T59 -> 1 | T59: =IF(T$11=0,DefaultData!$G39,IF(T$11=2,"Pop. Data Missing",IF($B$13<DefaultData!$H$13,DefaultData!$H39,IF($B$13<DefaultData!$I$13,DefaultData!$O39,IF($B$13<DefaultData!$J$13,DefaultData!$R39,DefaultData!$U39))))) -> 1 | Y59: =Z59*$B$20 -> 0 | Z59: =DefaultData!$E39 -> 0 | AA59: =Y59/Y$62 -> 0 | AB59: =$T59 -> 1
A60: =DefaultData!C40 -> Subtotal | B60: =SUM(B58:B59) -> 7434.666667 | C60: =C59+C58 -> 14.86933333 | D60: =SUM(D58:D59) -> 0.4533333333 | Y60: =SUM(Y58:Y59) -> 7434.666667 | Z60: =Z59+Z58 -> 14.86933333 | AA60: =SUM(AA58:AA59) -> 0.4533333333
A61: Sales Tax (Materials & Equipment Purchases) | B61: 0 | C61: =B61/B$20 -> 0 | D61: =B61/(B$62) -> 0 | E61: =$T61 -> 1 | T61: =D$77 -> 1 | Y61: =Y58*(Y$77*(1-Y$78)) -> 0
A62: Total | B62: =B61+B60+B55 -> 16400 | C62: =C61+C60+C55 -> 32.8 | D62: =D61+D60+D55 -> 1 | Y62: =Y60+Y55 -> 16400 | Z62: =Z60+Z55 -> 32.8 | AA62: =AA60+AA55 -> 1
A64: =DefaultData!C44 -> Other Parameters
A65: =DefaultData!C45 -> Financial Parameters | D65: Local Share
A66: =DefaultData!C46 -> Debt Financing
A67: =DefaultData!C47 -> Percentage financed | B67: =DefaultData!$D47 -> 0.8 | D67: =DefaultData!$F47 -> 0 | Y67: =DefaultData!$D47 -> 0.8 | AA67: =DefaultData!$F47 -> 0
A68: =DefaultData!C48 -> Years financed (term) | B68: =DefaultData!$D48 -> 10 | Y68: =DefaultData!$D48 -> 10
A69: =DefaultData!C49 -> Interest rate | B69: =DefaultData!$D49 -> 0.1 | Y69: =DefaultData!$D49 -> 0.1
A70: =DefaultData!C51 -> Tax Parameters
A71: =DefaultData!C52 -> Local Property Tax (percent of taxable value) | B71: =DefaultData!$D52 -> 0 | Y71: =DefaultData!$D52 -> 0
A72: =DefaultData!C53 -> Assessed Value (percent of construction cost) | B72: =DefaultData!$D53 -> 0 | Y72: =DefaultData!$D53 -> 0
A73: =DefaultData!C54 -> Taxable Value (percent of assessed value) | B73: =DefaultData!$D54 -> 0 | Y73: =DefaultData!$D54 -> 0
A74: =DefaultData!C55 -> Taxable Value | B74: =+B73*B72*B47 -> 0 | Y74: =+Y73*Y72*Y47 -> 0
A75: Property Tax Exemption (percent of local taxes) | B75: =DefaultData!$D56 -> 1 | Y75: =DefaultData!$D56 -> 1
A76: Local Property Taxes | B76: =B74*B71*(1-B75) -> 0 | D76: =DefaultData!$F57 -> 1 | Y76: =Y74*Y71*(1-Y75) -> 0 | AA76: =DefaultData!$F57 -> 1
A77: Local Sales Tax Rate | B77: =DefaultData!$D58 -> 0.056 | D77: =DefaultData!$F58 -> 1 | Y77: =DefaultData!$D58 -> 0.056 | AA77: =DefaultData!$F58 -> 1
A78: Sales Tax Exemption (percent of local taxes) | B78: =DefaultData!$D59 -> 1 | Y78: =DefaultData!$D59 -> 1
A79: Payroll Parameters
A80: Construction and Installation Labor | B80: Wage per hour | D80: Employer Payroll Overhead
A81: Construction Workers / Installers | B81: =Calculations!$E27 -> 20.55002801 | D81: =Calculations!$K24 -> 0.4557 | Y81: =Calculations!$E27 -> 20.55002801 | AA81: =Calculations!$K24 -> 0.4557
A82: O & M Labor | B82: Wage per hour | D82: Employer Payroll Overhead
A83: Technicians | B83: =Calculations!$E29 -> 20.55002801 | D83: =Calculations!$K24 -> 0.4557 | Y83: =Calculations!$E29 -> 20.55002801 | AA83: =Calculations!$K24 -> 0.4557
P742: Residential New Construction | S742: Large Commercial | T742: Residential New Construction | U742: Residential Retrofit | V742: Small Commercial | W742: Utility
P743: Residential | S743: LC | T743: RN | U743: RR | V743: SC | W743: UT | X743: =IF(B15="Residential","RR",IF(B15="Commercial","CL","UT")) -> RR
P744: Commercial
P745: Utility
P746: Utility
P749: Thin Film | S749: Crystalline Silicon | T749: Thin Film | X749: =B16 -> Crystalline Silicon
P750: Crystalline Silicon | S750: CS | T750: TF | X750: =HLOOKUP(B$16,S749:U750,2) -> CS
P752: Commercial | Q752: Residential New Construction | R752: Residential Retrofit | S752: Small Commercial | T752: Utility | W752: =B15 -> Residential
P753: Fixed Mount | Q753: Fixed Mount | R753: Fixed Mount | S753: Fixed Mount | T753: Fixed Mount | W753: =HLOOKUP(B15,P$752:T$755,2) -> Fixed Mount | X753: =IF(X$750="TF",W753,IF(W753=0,"",W753)) -> Fixed Mount
P754: Single Axis | Q754: Single Axis | R754: Single Axis | S754: Single Axis | T754: Single Axis | W754: =HLOOKUP(B$15,P$752:T$755,3) -> Single Axis | X754: =IF(X$750="TF","",IF(W754=0,"",W754)) -> Single Axis
N755: Years | W755: =HLOOKUP(B$15,P$752:T$755,4) -> 0 | X755: =IF(W755=0,"",W755) -> 
N756: 2010 | O756: =UPPER('User Add-in Location'!B10) -> MYCOUNTY | S756: Fixed Mount | T756: Single Axis | U756: Double Axis
N757: =N756+1 -> 2011 | O757: =UPPER('User Add-in Location'!C10) -> MYREGION | S757: FM | T757: SA | U757: DA | X757: =IF(X750="TF","FM",HLOOKUP(B17,S756:U757,2)) -> FM
N758: =N757+1 -> 2012 | O758: ALABAMA
N759: 2013 | O759: ALASKA | X759: =CONCATENATE(X743,X750,X757) -> RRCSFM
N760: 2014 | O760: ARIZONA
N761: 2015 | O761: ARKANSAS
N762: 2016 | O762: CALIFORNIA
N763: 2017 | O763: COLORADO
N764: 2018 | O764: CONNECTICUT
N765: 2019 | O765: DELAWARE
N766: 2020 | O766: DISTRICT OF COLUMBIA
N767: 2021 | O767: FLORIDA
N768: 2022 | O768: GEORGIA
N769: 2023 | O769: HAWAII
N770: 2024 | O770: IDAHO
N771: 2025 | O771: ILLINOIS
N772: 2026 | O772: INDIANA
N773: 2027 | O773: IOWA
N774: 2028 | O774: KANSAS
N775: 2029 | O775: KENTUCKY
N776: =N775+1 -> 2030 | O776: LOUISIANA
O777: MAINE
O778: MARYLAND
O779: MASSACHUSETTS
O780: MICHIGAN
O781: MINNESOTA
O782: MISSISSIPPI
O783: MISSOURI
O784: MONTANA
O785: NEBRASKA
O786: NEVADA
O787: NEW HAMPSHIRE
O788: NEW JERSEY
O789: NEW MEXICO
O790: NEW YORK
O791: NORTH CAROLINA
O792: NORTH DAKOTA
O793: OHIO
O794: OKLAHOMA
O795: OREGON
O796: PENNSYLVANIA
O797: RHODE ISLAND | Q797: 1 | R797: REGION1 | S797: REGION2 | T797: REGION3 | U797: REGION4 | V797: REGION5 | W797: REGION6 | X797: REGION7 | Y797: REGION8
O798: SOUTH CAROLINA | Q798: 2 | R798: Connecticut | S798: Delaware | T798: District of Columbia | U798: Alabama | V798: Illinois | W798: Arkansas | X798: Alaska | Y798: California
O799: SOUTH DAKOTA | Q799: 3 | R799: Maine | S799: New Jersy | T799: Maryland | U799: Florida | V799: Indiana | W799: Louisiana | X799: Arizona | Y799: Hawaii
O800: TENNESSEE | Q800: 4 | R800: Massachusetts | S800: Pennsylvania | T800: North Carolina | U800: Georgia | V800: Iowa | W800: Missouri | X800: Colorado
O801: TEXAS | Q801: 5 | R801: New Hampshire | S801: West Virginia | T801: Virginia | U801: Kentucky | V801: Michigan | W801: New Mexico | X801: Idaho
O802: UNITED STATES | Q802: 6 | R802: New York | U802: Mississippi | V802: Minnesota | W802: Oklahoma | X802: Kansas
O803: UTAH | Q803: 7 | R803: Rhode Island | U803: Tenessee | V803: Ohio | W803: Texan | X803: Montana
O804: VERMONT | Q804: 8 | R804: Vermont | V804: Wisconsin | X804: Nebraska
O805: VIRGINIA | Q805: =Q804+1 -> 9 | X805: Nevada
O806: WASHINGTON | Q806: =Q805+1 -> 10 | X806: North Dakota
O807: WEST VIRGINIA | Q807: 11 | X807: Oregon
O808: WISCONSIN | Q808: 12 | X808: South Dakota
O809: WYOMING | Q809: 13 | X809: Utah
O810: REGION1 | Q810: 14 | X810: Washington
O811: REGION2 | Q811: 15
O812: REGION3
O813: REGION4
O814: REGION5
O815: REGION6
O816: REGION7
O817: REGION8

Sheet SummaryResults
A1: =CONCATENATE("Photovoltaic - Project Data Summary based on ",$AE$48, " values") -> Photovoltaic - Project Data Summary based on User modifications to default values | BB1: =Summary_Results -> Photovoltaic - Project Data Summary based on User modifications to default values | BH1: =Summary_Results -> Photovoltaic - Project Data Summary based on User modifications to default values
A2: Project Location | C2: =IF(ProjectData!B12="MyCounty",'User Add-in Location'!B3,IF(ProjectData!B12="MyRegion",'User Add-in Location'!B4,ProjectData!B12)) -> ARIZONA | D2: =ProjectData!C14 ->  | BB2: Project Location | BD2: =C2 -> ARIZONA | BH2: Project Location | BI2: =ProjectData!B12 -> ARIZONA | BK2: =IF(BI2="MYREGION",IF('User Add-in Location'!BL14=0,"Error - No Regional multiplier data in User Add-in Location",""),IF(BI2="MYCOUNTY",IF('User Add-in Location'!BK14=0,"Error - No County multiplier data in User Add-in Location",""),"")) -> 
A3: Year of Construction or Installation | C3: =ProjectData!B14 -> 2012 | BB3: Year of Construction or Installation | BD3: 2012 | BH3: =IF(ProjectData!$B13>0,"Population","") ->  | BI3: =IF(ProjectData!$B13>0,ProjectData!B13,"") -> 
A4: Average System Size - DC Nameplate Capacity (KW) | C4: =ProjectData!B18 -> 5 | D4: =ProjectData!D12 ->  | BB4: Average System Size - DC Nameplate Capacity (KW) | BD4: 5 | BH4: Year of Construction or Installation | BI4: =ProjectData!B14 -> 2012 | BJ4: =IF(BK3="","",IF(BI3<1,"**Error - Population Data Missing**","")) -> 
A5: Number of Systems Installed | C5: =ProjectData!B19 -> 100 | BB5: Number of Systems Installed | BD5: 100 | BH5: System Type | BI5: =ProjectData!B15 -> Residential
A6: Project Size - DC Nameplate Capacity (KW) | C6: =ProjectData!B20 -> 500 | BB6: Total Project Size - DC Nameplate Capacity (KW) | BD6: 500 | BH6: System Application | BI6: =ProjectData!B16 -> Crystalline Silicon
A7: System Application | C7: =ProjectData!B15 -> Residential | BB7: System Application | BD7: Residential | BH7: Solar Cell/Module Material | BI7: =ProjectData!B17 -> Fixed Mount
A8: Solar Cell/Module Material | C8: =ProjectData!B16 -> Crystalline Silicon | BB8: Solar Cell/Module Material | BD8: Crystalline Silicon | BH8: System Tracking | BI8: =ProjectData!B18 -> 5
A9: System Tracking | C9: =ProjectData!B17 -> Fixed Mount | BB9: System Tracking | BD9: Fixed Mount | BH9: Number of Systems Installed | BI9: =ProjectData!B19 -> 100
A10: Total System Base Cost ($/KWDC) | C10: =C13/C6 -> 2690.045743 | BB10: Base Installed System Cost ($/KWDC) | BD10: =C10 -> 2690.045743 | BH10: Total Project Size - DC Nameplate Capacity (KW) | BI10: =ProjectData!B20 -> 500
A11: Annual Direct Operations and Maintenance Cost ($/kW) | C11: =C16/C6 -> 32.8 | BB11: Annual Direct Operations and Maintenance Cost ($/kW) | BD11: 32.8 | BH11: Base Installed System Cost ($/KWDC) | BI11: =BD10 -> 2690.045743
A12: Money Value - Current or Constant (Dollar Year) | C12: =ProjectData!B24 -> 2010 | BB12: Money Value - Current or Constant (Dollar Year) | BD12: 2010 | BH12: Annual Direct Operations and Maintenance Cost ($/kW) | BI12: =BD11 -> 32.8
A13: Project Construction or Installation Cost | C13: =Calculations!D23 -> 1345022.871 | BB13: Project Construction or Installation Cost | BD13: 1345022.871 | BH13: Money Value - Current or Constant (Dollar Year) | BI13: =ProjectData!B24 -> 2010
A14: Local Spending | C14: =+Calculations!F61 -> 1026864.637 | BB14: Local Spending | BD14: 1026864.637
A15: Total Annual Operational Expenses | C15: =C16+C18 -> 172422.6531 | BB15: Total Annual Operational Expenses | BD15: 172422.6531 | BH15: Project Cost Data
A16: Direct Operating and Maintenance Costs | C16: =Calculations!D78 -> 16400 | BB16: Direct Operating and Maintenance Costs | BD16: 16400 | BH16: =ProjectData!A31 -> Installation Costs | BI16: =ProjectData!B31 -> Cost | BJ16: =ProjectData!C31 -> Cost | BK16: =ProjectData!D31 -> Percent of | BL16: =ProjectData!E31 -> Purchased | BM16: =ProjectData!F31 -> Manufactured
A17: Local Spending | C17: =Calculations!G78 -> 14913.06667 | BB17: Local Spending | BD17: 14913.06667 | BH17: =ProjectData!A32 -> Materials & Equipment | BJ17: =ProjectData!C32 -> Per kW | BK17: =ProjectData!D32 -> Total Cost | BL17: =ProjectData!E32 -> Locally (%) | BM17: =ProjectData!F32 -> Locally (Y or N)
A18: Other Annual Costs | C18: =Calculations!E78 -> 156022.6531 | BB18: Other Annual Costs | BD18: 156022.6531 | BH18: =ProjectData!A33 -> Mounting (rails, clamps, fittings, etc.) | BI18: =BC59 -> 49153.65975 | BJ18: =BI18/BI$10 -> 98.3073195 | BK18: =BI18/BI$34 -> 0.0365448505 | BL18: =BD59 -> 1 | BM18: N
A19: Local Spending | C19: =Calculations!H78 -> 0 | BB19: Local Spending | BD19: 0 | BH19: =ProjectData!A34 -> Modules | BI19: =BC60 -> 156398.0083 | BJ19: =BI19/BI$10 -> 312.7960166 | BK19: =BI19/BI$34 -> 0.1162790698 | BL19: 1 | BM19: N
A20: Debt Payments | C20: =SUM(Calculations!G75:G75) -> 0 | BB20: Debt Payments | BD20: 0 | BH20: =ProjectData!A35 -> Electrical (wire, connectors, breakers, etc.) | BI20: =BC61 -> 107244.3485 | BJ20: 214.4886971 | BK20: =BI20/BI$34 -> 0.07973421927 | BL20: 1 | BM20: N
A21: Property Taxes | C21: =Calculations!G76 -> 0 | BB21: Property Taxes | BD21: 0 | BH21: =ProjectData!A36 -> Inverter | BI21: =BC62 -> 84901.77594 | BJ21: 169.8035519 | BK21: =BI21/BI$34 -> 0.06312292359 | BL21: 1 | BM21: N
BH22: =ProjectData!A37 -> Subtotal | BI22: =BC63 -> 397697.7925 | BJ22: 795.3955851 | BK22: =BI22/BI$34 -> 0.2956810631
BH23: =ProjectData!A38 -> Labor
A24: Local Economic Impacts - Summary Results | BB24: Local Economic Impacts - Summary Results | BH24: =ProjectData!A39 -> Installation | BI24: =BC65 -> 134055.4357 | BJ24: 268.1108714 | BK24: =BI24/BI$34 -> 0.09966777409 | BL24: =BD65 -> 1
B25: Jobs | C25: Earnings | D25: Output | E25: Value Added | BC25: Jobs | BD25: Earnings | BE25: Output | BF25: Value Added | BH25: =ProjectData!A40 -> Subtotal | BI25: =BC66 -> 134055.4357 | BJ25: =BI25/BI$10 -> 268.1108714 | BK25: =BI25/BI$34 -> 0.09966777409
A26: During construction and installation period | C26: =CONCATENATE("$000 (",$C12,")") -> $000 (2010) | D26: =CONCATENATE("$000 (",$C12,")") -> $000 (2010) | E26: =CONCATENATE("$000 (",$C12,")") -> $000 (2010) | BB26: During construction and installation period | BD26: =C26 -> $000 (2010) | BE26: =D26 -> $000 (2010) | BF26: =E26 -> $000 (2010) | BH26: =ProjectData!A41 -> Total | BI26: =BC67 -> 531753.2282 | BJ26: =BI26/BI$10 -> 1063.506456 | BK26: =BI26/BI$34 -> 0.3953488372
A27: Project Development and Onsite Labor Impacts | BB27: Project Development and Onsite Labor Impacts | BH27: =ProjectData!A42 -> Other Costs
A28: Construction and Installation Labor | B28: =Calculations!AH38 -> 2.154451854 | C28: =Calculations!AI38 -> 134.0629347 | BB28: Construction and Installation Labor | BC28: =B28 -> 2.154451854 | BD28: =C28 -> 134.0629347 | BH28: =ProjectData!A43 -> Permitting, Fees, and Taxes | BI28: =BC69 -> 178740.5809 | BJ28: =BI28/BI$10 -> 357.4811618 | BK28: =BI28/BI$34 -> 0.1328903654 | BL28: =BD69 -> 1
A29: Construction and Installation Related Services | B29: =Calculations!AH39 -> 3.853340906 | C29: =Calculations!AI39 -> 181.6739739 | BB29: Construction and Installation Related Services | BC29: 3.853340906 | BD29: =C29 -> 181.6739739 | BH29: =ProjectData!A44 -> Other Costs | BI29: 339607.1037 | BJ29: 679.2142075 | BK29: 0.2524916944 | BL29: =BD70 -> 1
A30: Subtotal | B30: =Calculations!AH40 -> 6.00779276 | C30: =Calculations!AI40 -> 315.7369086 | D30: =Calculations!AJ40 -> 594.3456774 | E30: =Calculations!AK40 -> 426.5383736 | BB30: Subtotal | BC30: =B30 -> 6.00779276 | BD30: =C30 -> 315.7369086 | BE30: =D30 -> 594.3456774 | BF30: =E30 -> 426.5383736 | BH30: =ProjectData!A45 -> Business Overhead | BI30: 294921.9585 | BJ30: =BI30/BI$10 -> 589.843917 | BK30: 0.219269103 | BL30: =BD71 -> 1
A31: Module and Supply Chain Impacts | BB31: Module and Supply Chain Impacts | BH31: =ProjectData!A46 -> Subtotal | BI31: 813269.6432 | BJ31: =BI31/BI$10 -> 1626.539286 | BK31: 0.6046511628
A32: Manufacturing Impacts | B32: =Calculations!AH42 -> 0 | C32: =Calculations!AI42 -> 0 | D32: =Calculations!AJ42 -> 0 | E32: =Calculations!AK42 -> 0 | BB32: Manufacturing | BC32: =B32 -> 0 | BD32: =C32 -> 0 | BE32: =D32 -> 0 | BF32: =E32 -> 0 | BH32: =ProjectData!A47 -> Subtotal | BI32: 1345022.871 | BJ32: =BI32/BI$10 -> 2690.045743 | BK32: 1
A33: Trade (Wholesale and Retail) | B33: =Calculations!AH43 -> 0.9207047155 | C33: =Calculations!AI43 -> 52.00131343 | D33: =Calculations!AJ43 -> 183.2392059 | E33: =Calculations!AK43 -> 103.3382654 | BB33: Trade (Wholesale and Retail) | BC33: =B33 -> 0.9207047155 | BD33: =C33 -> 52.00131343 | BE33: =D33 -> 183.2392059 | BF33: 103.3382654 | BH33: =ProjectData!A48 -> Sales Tax (Materials & Equipment Purchases) | BI33: 0 | BJ33: =BI33/BI$10 -> 0 | BK33: 0 | BL33: =BD74 -> 1
A34: Finance, Insurance and Real Estate | B34: =Calculations!AH44 -> 0 | C34: =Calculations!AI44 -> 0 | D34: =Calculations!AJ44 -> 0 | E34: =Calculations!AK44 -> 0 | BB34: Finance, Insurance and Real Estate | BC34: 0 | BD34: 0 | BE34: 0 | BF34: 0 | BH34: =ProjectData!A49 -> Total | BI34: 1345022.871 | BJ34: =BI34/BI$10 -> 2690.045743 | BK34: 1
A35: Professional Services | B35: =Calculations!AH45 -> 1.195475251 | C35: =Calculations!AI45 -> 51.1547247 | D35: =Calculations!AJ45 -> 158.0018559 | E35: =Calculations!AK45 -> 89.84121216 | BB35: Professional Services | BC35: 1.195475251 | BD35: 51.1547247 | BE35: 158.0018559 | BF35: 89.84121216
A36: Other Services | B36: =Calculations!AH46 -> 1.467913322 | C36: =Calculations!AI46 -> 119.748538 | D36: =Calculations!AJ46 -> 328.4971894 | E36: =Calculations!AK46 -> 188.1253292 | BB36: Other Services | BC36: 1.467913322 | BD36: 119.748538 | BE36: 328.4971894 | BF36: 188.1253292 | BH36: =ProjectData!A51 -> PV System Annual Operating and Maintenance Costs
A37: Other Sectors | B37: =Calculations!AH47 -> 2.556318965 | C37: =Calculations!AI47 -> 45.69226099 | D37: =Calculations!AJ47 -> 125.4414052 | E37: =Calculations!AK47 -> 79.00388131 | BB37: Other Sectors | BC37: 2.556318965 | BD37: 45.69226099 | BE37: 125.4414052 | BF37: 79.00388131 | BI37: =ProjectData!B52 -> Cost | BJ37: =ProjectData!C52 -> Cost | BK37: =ProjectData!D52 -> Percent of | BL37: =ProjectData!E52 -> Local | BM37: =ProjectData!F56 -> Manufactured
A38: Subtotal | B38: =Calculations!AH48 -> 6.140412254 | C38: =Calculations!AI48 -> 268.5968372 | D38: =Calculations!AJ48 -> 795.1796564 | E38: =Calculations!AK48 -> 460.3086881 | BB38: Subtotal | BC38: 6.140412254 | BD38: 268.5968372 | BE38: 795.1796564 | BF38: 460.3086881 | BH38: =ProjectData!A53 -> Labor | BJ38: =ProjectData!C53 -> Per kW | BK38: =ProjectData!D53 -> Total Cost | BL38: =ProjectData!E53 -> Share (%) | BM38: =ProjectData!F57 -> Locally (Y or N)
A39: Induced Impacts | B39: =Calculations!AH49 -> 3.266665569 | C39: =Calculations!AI49 -> 123.8992887 | D39: =Calculations!AJ49 -> 427.0435686 | E39: =Calculations!AK49 -> 241.5820524 | BB39: Induced Impacts | BC39: 3.266665569 | BD39: =C39 -> 123.8992887 | BE39: 427.0435686 | BF39: 241.5820524 | BH39: =ProjectData!A54 -> Technicians | BI39: =BC79 -> 8965.333333 | BJ39: =BI39/BI$10 -> 17.93066667 | BK39: =BI39/BI$46 -> 0.5466666667 | BL39: =BD80 -> 0
A40: Total Impacts | B40: =Calculations!AH50 -> 15.41487058 | C40: =Calculations!AI50 -> 708.2330345 | D40: =Calculations!AJ50 -> 1816.568902 | E40: =Calculations!AK50 -> 1128.429114 | BB40: Total Impacts | BC40: 15.41487058 | BD40: 708.2330345 | BE40: 1816.568902 | BF40: 1128.429114 | BH40: =ProjectData!A55 -> Subtotal | BI40: =BC80 -> 8965.333333 | BJ40: =BI40/BI$10 -> 17.93066667 | BK40: =BI40/BI$46 -> 0.5466666667
BH41: =ProjectData!A57 -> Materials and Services
C42: Annual | D42: Annual | E42: Annual | BD42: =C42 -> Annual | BE42: Annual | BF42: Annual | BH42: =ProjectData!A58 -> Materials & Equipment | BI42: =BC82 -> 7434.666667 | BJ42: =BI42/BI$10 -> 14.86933333 | BK42: =BI42/BI$46 -> 0.4533333333 | BL42: =BD83 -> 1 | BM42: =ProjectData!F58 -> N
B43: Annual | C43: Earnings | D43: Output | E43: Output | BC43: =B43 -> Annual | BD43: Earnings | BE43: Output | BF43: Output | BH43: =ProjectData!A59 -> Services | BI43: =BC83 -> 0 | BJ43: =BI43/BI$10 -> 0 | BK43: =BI43/BI$46 -> 0 | BL43: =BD84 -> 0
A44: During operating years | B44: Jobs | C44: =CONCATENATE("$000 (",$C12,")") -> $000 (2010) | D44: =CONCATENATE("$000 (",$C12,")") -> $000 (2010) | E44: =CONCATENATE("$000 (",$C12,")") -> $000 (2010) | BB44: During operating years | BC44: =B44 -> Jobs | BD44: $000 (2010) | BE44: $000 (2010) | BF44: $000 (2010) | BH44: =ProjectData!A60 -> Subtotal | BI44: =BC84 -> 7434.666667 | BJ44: =BI44/BI$10 -> 14.86933333 | BK44: =BI44/BI$46 -> 0.4533333333
A45: Onsite Labor Impacts | BB45: Onsite Labor Impacts | BH45: =ProjectData!A61 -> Sales Tax (Materials & Equipment Purchases) | BI45: =BC85 -> 0 | BJ45: =BI45/BI$10 -> 0 | BK45: =BI45/BI$46 -> 0
A46: PV Project Labor Only | B46: =Calculations!AH54 -> 0.1440850117 | C46: =Calculations!AI54 -> 8.327584457 | D46: =Calculations!AJ54 -> 8.327584457 | E46: =Calculations!AK54 -> 8.327584457 | BB46: PV Project Labor Only | BC46: =B46 -> 0.1440850117 | BD46: 8.327584457 | BE46: 8.327584457 | BF46: 8.327584457 | BH46: =ProjectData!A62 -> Total | BI46: =BI45+BI44+BI40 -> 16400 | BJ46: =BJ45+BJ44+BJ40 -> 32.8 | BK46: =BK45+BK44+BK40 -> 1
A47: Local Revenue and Supply Chain Impacts | B47: =Calculations!AH55 -> 0.05468541675 | C47: =Calculations!AI55 -> 2.835556673 | D47: =Calculations!AJ55 -> 10.26629276 | E47: =Calculations!AK55 -> 5.717336214 | BB47: Local Revenue and Supply Chain Impacts | BC47: 0.05468541675 | BD47: 2.835556673 | BE47: 10.26629276 | BF47: 5.717336214
A48: Induced Impacts | B48: =Calculations!AH56 -> 0.03238158023 | C48: =Calculations!AI56 -> 1.228154601 | D48: =Calculations!AJ56 -> 4.233328871 | E48: =Calculations!AK56 -> 2.394843159 | AE48: =IF(ProjectData!B26="Y","model default","User modifications to default") -> User modifications to default | BB48: Induced Impacts | BC48: 0.03238158023 | BD48: 1.228154601 | BE48: 4.233328871 | BF48: 2.394843159 | BH48: =ProjectData!A64 -> Other Parameters
A49: Total Impacts | B49: =Calculations!AH57 -> 0.2311520087 | C49: =Calculations!AI57 -> 12.39129573 | D49: =Calculations!AJ57 -> 22.82720609 | E49: =Calculations!AK57 -> 16.43976383 | BB49: Total Impacts | BC49: 0.2311520087 | BD49: 12.39129573 | BE49: 22.82720609 | BF49: 16.43976383 | BH49: =ProjectData!A65 -> Financial Parameters | BK49: =ProjectData!D65 -> Local Share
A50: =CONCATENATE("Notes: Earnings and Output values are thousands of dollars in year ",C12, " dollars. Construction and") -> Notes: Earnings and Output values are thousands of dollars in year 2010 dollars. Construction and | BB50: =CONCATENATE("Notes: Earnings and Output values are thousands of dollars in year ",BD12, " dollars. Construction and") -> Notes: Earnings and Output values are thousands of dollars in year 2010 dollars. Construction and | BH50: =ProjectData!A66 -> Debt Financing
A51: operating period jobs are full-time equivalent for one year (1 FTE = 2,080 hours). Economic impacts "During | BB51: operating period jobs are full-time equivalent for one year (1 FTE = 2,080 hours). Economic impacts "During | BH51: =ProjectData!A67 -> Percentage financed | BI51: =BC93 -> 0.8 | BK51: =BD93 -> 0
A52: operating years" represent impacts that occur from system/plant operations/expenditures. Totals may not | BB52: operating years" represent impacts that occur from system/plant operations/expenditures. Totals may not | BH52: =ProjectData!A68 -> Years financed (term) | BI52: =BC94 -> 10
A53: add up due to independent rounding. | BB53: add up due to independent rounding. | BH53: =ProjectData!A69 -> Interest rate | BI53: =BC95 -> 0.1
BH54: =ProjectData!A70 -> Tax Parameters
A55: Detailed PV Project Data Costs | B55: =Calculations!AC3 -> ARIZONA | BB55: Detailed PV Project Data Costs | BH55: =ProjectData!A71 -> Local Property Tax (percent of taxable value) | BI55: =BC97 -> 0
C56: Purchased | D56: Manufactured | BD56: Purchased | BE56: Manufactured | BH56: =ProjectData!A72 -> Assessed Value (percent of construction cost) | BI56: 0
A57: Installation Costs | B57: =Calculations!AC5 -> Cost | C57: Locally (%) | D57: Locally (Y or N) | BB57: Installation Costs | BC57: Cost | BD57: Locally (%) | BE57: Locally (Y or N) | BH57: =ProjectData!A73 -> Taxable Value (percent of assessed value) | BI57: 0
A58: Materials & Equipment | BB58: Materials & Equipment | BH58: =ProjectData!A74 -> Taxable Value | BI58: 0
A59: Mounting (rails, clamps, fittings, etc.) | B59: =Calculations!AC7 -> 49153.65975 | C59: =Calculations!AD7 -> 1 | D59: =Calculations!AE7 -> N | BB59: Mounting (rails, clamps, fittings, etc.) | BC59: =B59 -> 49153.65975 | BD59: 1 | BE59: N | BH59: Property Tax Exemption (percent of local taxes) | BI59: 1
A60: Modules | B60: =Calculations!AC8 -> 156398.0083 | C60: =Calculations!AD8 -> 1 | D60: =Calculations!AE8 -> N | BB60: Modules | BC60: 156398.0083 | BD60: 1 | BE60: N | BH60: =ProjectData!A76 -> Local Property Taxes | BI60: 0 | BK60: =BD102 -> 1
A61: Electrical (wire, connectors, breakers, etc.) | B61: =Calculations!AC9 -> 107244.3485 | C61: =Calculations!AD9 -> 1 | D61: =Calculations!AE9 -> N | BB61: Electrical (wire, connectors, breakers, etc.) | BC61: 107244.3485 | BD61: 1 | BE61: N | BH61: =ProjectData!A77 -> Local Sales Tax Rate | BI61: 0.056 | BK61: =BD103 -> 1
A62: Inverter | B62: =Calculations!AC10 -> 84901.77594 | C62: =Calculations!AD10 -> 1 | D62: =Calculations!AE10 -> N | BB62: Inverter | BC62: 84901.77594 | BD62: 1 | BE62: N | BH62: Sales Tax Exemption (percent of local taxes)
A63: Subtotal | B63: =Calculations!AC11 -> 397697.7925 | BB63: Subtotal | BC63: =B63 -> 397697.7925 | BH63: =ProjectData!A79 -> Payroll Parameters
A64: Labor | BB64: Labor | BH64: =ProjectData!A80 -> Construction and Installation Labor | BI64: =ProjectData!B80 -> Wage per hour | BK64: =ProjectData!D80 -> Employer Payroll Overhead
A65: Installation | B65: =Calculations!AC13 -> 134055.4357 | C65: =Calculations!AD13 -> 1 | BB65: Installation | BC65: =B65 -> 134055.4357 | BD65: =C65 -> 1 | BH65: =ProjectData!A81 -> Construction Workers / Installers | BI65: =BC107 -> 20.55002801 | BK65: =BD107 -> 0.4557
A66: Subtotal | B66: =Calculations!AC14 -> 134055.4357 | BB66: Subtotal | BC66: =B66 -> 134055.4357 | BH66: =ProjectData!A82 -> O & M Labor
A67: Subtotal | B67: =Calculations!AC15 -> 531753.2282 | BB67: Subtotal | BC67: =B67 -> 531753.2282 | BH67: =ProjectData!A83 -> Technicians | BI67: =BC109 -> 20.55002801 | BK67: =BD109 -> 0.4557
A68: Other Costs | BB68: Other Costs
A69: Permitting | B69: =Calculations!AC17 -> 178740.5809 | C69: =Calculations!AD17 -> 1 | BB69: Permitting | BC69: =B69 -> 178740.5809 | BD69: 1
A70: Other Costs | B70: =Calculations!AC18 -> 339607.1037 | C70: =Calculations!AD18 -> 1 | BB70: Other Costs | BC70: 339607.1037 | BD70: 1
A71: Business Overhead | B71: =Calculations!AC19 -> 294921.9585 | C71: =Calculations!AD19 -> 1 | BB71: Business Overhead | BC71: 294921.9585 | BD71: 1
A72: Subtotal | B72: =Calculations!AC20 -> 813269.6432 | BB72: Subtotal | BC72: =B72 -> 813269.6432
A73: Subtotal | B73: =Calculations!AC21 -> 1345022.871 | BB73: Subtotal | BC73: =B73 -> 1345022.871
A74: Sales Tax (Materials & Equipment Purchases) | B74: =Calculations!AC22 -> 0 | C74: =Calculations!AD22 -> 1 | BB74: Sales Tax (Materials & Equipment Purchases) | BC74: =B74 -> 0 | BD74: =C74 -> 1
A75: Total | B75: =Calculations!AC23 -> 1345022.871 | BB75: Total | BC75: =B75 -> 1345022.871
A77: PV System Annual Operating and Maintenance Costs | D77: =D56 -> Manufactured | BB77: PV System Annual Operating and Maintenance Costs | BC77: Cost | BD77: Local Share
B78: =Calculations!AC26 -> Cost | C78: =Calculations!AD26 -> Local Share | D78: =D57 -> Locally (Y or N) | BB78: Labor
A79: Labor | BB79: Technicians | BC79: =B80 -> 8965.333333 | BD79: =C80 -> 1
A80: Technicians | B80: =Calculations!AC28 -> 8965.333333 | C80: =Calculations!AD28 -> 1 | BB80: Subtotal | BC80: =B81 -> 8965.333333
A81: Subtotal | B81: =Calculations!AC29 -> 8965.333333 | BB81: Materials and Services
A82: Materials and Services | BB82: Materials & Equipment | BC82: =B83 -> 7434.666667 | BD82: =C83 -> 1
A83: Materials & Equipment | B83: =Calculations!AC31 -> 7434.666667 | C83: =Calculations!AD31 -> 1 | D83: =Calculations!AE31 -> N | BB83: Services | BC83: =B84 -> 0 | BD83: =C84 -> 1
A84: Services | B84: =Calculations!AC32 -> 0 | C84: =Calculations!AD32 -> 1 | BB84: Subtotal | BC84: =B85 -> 7434.666667
A85: Subtotal | B85: =Calculations!AC33 -> 7434.666667 | BB85: Sales Tax (Materials & Equipment Purchases) | BC85: =B86 -> 0 | BD85: =C86 -> 1
A86: Sales Tax (Materials & Equipment Purchases) | B86: =Calculations!AC34 -> 0 | C86: =Calculations!AD34 -> 1 | BB86: Average Annual Payment (Interest and Principal) | BC86: =B87 -> 156022.6531 | BD86: =C87 -> 0
A87: Average Annual Payment (Interest and Principal) | B87: =Calculations!AC35 -> 156022.6531 | C87: =Calculations!AD35 -> 0 | BB87: Property Taxes | BC87: =B88 -> 0 | BD87: =C88 -> 1
A88: Property Taxes | B88: =Calculations!AC36 -> 0 | C88: =Calculations!AD36 -> 1 | BB88: Total | BC88: =B89 -> 172422.6531
A89: Total | B89: =Calculations!AC37 -> 172422.6531
BB90: Other Parameters
A91: Other Parameters | BB91: Financial Parameters
A92: Financial Parameters | BB92: Debt Financing
A93: Debt Financing | BB93: Percentage financed | BC93: =B94 -> 0.8 | BD93: =C94 -> 0
A94: Percentage financed | B94: =Calculations!AC43 -> 0.8 | C94: =Calculations!AD43 -> 0 | BB94: Years financed (term) | BC94: =B95 -> 10
A95: Years financed (term) | B95: =Calculations!AC44 -> 10 | BB95: Interest rate | BC95: =B96 -> 0.1
A96: Interest rate | B96: =Calculations!AC45 -> 0.1 | BB96: Tax Parameters
A97: Tax Parameters | BB97: Local Property Tax (percent of taxable value) | BC97: =B98 -> 0
A98: Local Property Tax (percent of taxable value) | B98: =Calculations!AC47 -> 0 | BB98: Assessed Value (percent of construction cost) | BC98: 0
A99: Assessed Value (percent of construction cost) | B99: =Calculations!AC48 -> 0 | BB99: Taxable Value (percent of assessed value) | BC99: 0
A100: Taxable Value (percent of assessed value) | B100: =Calculations!AC49 -> 0 | BB100: Taxable Value | BC100: 0
A101: Taxable Value | B101: =Calculations!AC50 -> 0 | BB101: Property Tax Exemption (percent of local taxes) | BC101: 1
A102: Property Tax Exemption (percent of local taxes) | B102: =Calculations!AC51 -> 1 | BB102: Local Property Taxes | BC102: 0 | BD102: =C103 -> 1
A103: Local Property Taxes | B103: =Calculations!AC52 -> 0 | C103: =Calculations!AD52 -> 1 | BB103: Local Sales Tax Rate | BC103: 0.056 | BD103: =C104 -> 1
A104: Local Sales Tax Rate | B104: =Calculations!AC53 -> 0.056 | C104: =Calculations!AD53 -> 1 | BB104: Sales Tax Exemption (percent of local taxes) | BC104: 1
A105: Sales Tax Exemption (percent of local taxes) | B105: =Calculations!AC54 -> 1 | BB105: Payroll Parameters | BC105: Wage per hour | BD105: Employer Payroll Overhead
A106: Payroll Parameters | B106: Wage per hour | C106: Employer Payroll Overhead | BB106: Construction and Installation Labor
A107: Construction and Installation Labor | BB107: Construction Workers / Installers | BC107: =B108 -> 20.55002801 | BD107: =C108 -> 0.4557
A108: Construction Workers / Installers | B108: =Calculations!E27 -> 20.55002801 | C108: =Calculations!G27 -> 0.4557 | BB108: O&M Labor
A109: O&M Labor | BB109: Technicians | BC109: =B110 -> 20.55002801 | BD109: =C110 -> 0.4557
A110: Technicians | B110: =Calculations!E29 -> 20.55002801 | C110: =Calculations!G29 -> 0.4557

Sheet User Add-in Location
A1: Multipliers For Economic Input-Output Analysis
A3: MyCounty (name) | C3: Year of Data | E3: =IF(B3="","",IF(D3=""," Enter Year of Data",IF(D3>2007,IF(D3<2016,""," ERROR - Deflators Data Not Current")," ERROR - Deflators Data Not Current"))) -> 
A4: MyRegion (includes) | C4: Year of Data | E4: =IF(B4="","",IF(D4=""," Enter Year of Data",IF(D4>2007,IF(D4<2016,""," ERROR - Deflators Data Not Current")," ERROR - Deflators Data Not Current"))) -> 
A5: Sales Tax Rate (%) | C5: =IF(B$5=""," To incorporate Sales Tax in analysis Enter Sales Tax Rate","") -> To incorporate Sales Tax in analysis Enter Sales Tax Rate
A6: Sales Tax Exemption (%) | C6: =IF(B$5=""," To incorporate Sales Tax Exemption in analysis Enter Exemption as percent of total","") -> To incorporate Sales Tax Exemption in analysis Enter Exemption as percent of total
A7: Property Tax Exemption (%) | C7: =IF(B$7=""," To incorporate Property Tax Exemption in analysis Enter Exemption as percent of total","") -> To incorporate Property Tax Exemption in analysis Enter Exemption as percent of total
A9: Jobs Per Million Dollars Change in Final Demand | D9: Personal Consumption Expenditures (PCE)
A10: Jobs Direct Multipliers | B10: MyCounty | C10: MyRegion | E10: =B10 -> MyCounty | F10: =C10 -> MyRegion
A11: Ag, Forestry, Fish & Hunting | B11: 0 | C11: 0 | E11: 0 | F11: 0
A12: Mining | B12: 0 | C12: 0 | E12: 0 | F12: 0
A13: Construction | B13: 0 | C13: 0 | E13: 0 | F13: 0
A14: Construction/Installations - Non Residential | B14: 0 | C14: 0 | E14: 0 | F14: 0
A15: Construction/Installation Residential | B15: 0 | C15: 0 | E15: 0 | F15: 0
A16: Manufacturing | B16: 0 | C16: 0 | E16: 0 | F16: 0
A17: Fabricated Metals | B17: 0 | C17: 0 | E17: 0 | F17: 0
A18: Machinery | B18: 0 | C18: 0 | E18: 0 | F18: 0
A19: Electrical Equip | B19: 0 | C19: 0 | E19: 0 | F19: 0
A20: Battery Manufacturing | B20: 0 | C20: 0 | E20: 0 | F20: 0
A21: Energy Wire Manufacturing | B21: 0 | C21: 0 | E21: 0 | F21: 0
A22: Wholesale Trade | B22: 0 | C22: 0 | E22: 0 | F22: 0
A23: Retail trade | B23: 0 | C23: 0 | E23: 0 | F23: 0
A24: TCPU | B24: 0 | C24: 0 | E24: 0 | F24: 0
A25: Insurance and Real Estate | B25: 0 | C25: 0 | E25: 0 | F25: 0
A26: Finance | B26: 0 | C26: 0 | E26: 0 | F26: 0
A27: Other Professional Services | B27: 0 | C27: 0 | E27: 0 | F27: 0
A28: Office Services | B28: 0 | C28: 0 | E28: 0 | F28: 0
A29: Architectural and Engineering Services | B29: 0 | C29: 0 | E29: 0 | F29: 0
A30: Other services | B30: 0 | C30: 0 | E30: 0 | F30: 0
A31: Government | B31: 0 | C31: 0 | E31: 0 | F31: 0
A32: Semiconductor (solar cell/module) manufacturing | B32: 0 | C32: 0 | E32: 0 | F32: 0
D33: Total | E33: =SUM(E11:E32) -> 0 | F33: =SUM(F11:F32) -> 0
A34: Jobs Per Million Dollars Change in Final Demand
A35: Jobs Indirect Multipliers | B35: =B10 -> MyCounty | C35: =C10 -> MyRegion
A36: Ag, Forestry, Fish & Hunting | B36: 0 | C36: 0
A37: Mining | B37: 0 | C37: 0
A38: Construction | B38: 0 | C38: 0
A39: Construction/Installations - Non Residential | B39: 0 | C39: 0
A40: Construction/Installation Residential | B40: 0 | C40: 0
A41: Manufacturing | B41: 0 | C41: 0
A42: Fabricated Metals | B42: 0 | C42: 0
A43: Machinery | B43: 0 | C43: 0
A44: Electrical Equip | B44: 0 | C44: 0
A45: Battery Manufacturing | B45: 0 | C45: 0
A46: Energy Wire Manufacturing | B46: 0 | C46: 0
A47: Wholesale Trade | B47: 0 | C47: 0
A48: Retail trade | B48: 0 | C48: 0
A49: TCPU | B49: 0 | C49: 0
A50: Insurance and Real Estate | B50: 0 | C50: 0
A51: Finance | B51: 0 | C51: 0
A52: Other Professional Services | B52: 0 | C52: 0
A53: Office Services | B53: 0 | C53: 0
A54: Architectural and Engineering Services | B54: 0 | C54: 0
A55: Other services | B55: 0 | C55: 0
A56: Government | B56: 0 | C56: 0
A57: Semiconductor (solar cell/module) manufacturing | B57: 0 | C57: 0
A59: Jobs Per Million Dollars Change in Final Demand
A60: Jobs Induced Multipliers | B60: =B35 -> MyCounty | C60: =C35 -> MyRegion
A61: Ag, Forestry, Fish & Hunting | B61: 0 | C61: 0
A62: Mining | B62: 0 | C62: 0
A63: Construction | B63: 0 | C63: 0
A64: Construction/Installations - Non Residential | B64: 0 | C64: 0
A65: Construction/Installation Residential | B65: 0 | C65: 0
A66: Manufacturing | B66: 0 | C66: 0
A67: Fabricated Metals | B67: 0 | C67: 0
A68: Machinery | B68: 0 | C68: 0
A69: Electrical Equip | B69: 0 | C69: 0
A70: Battery Manufacturing | B70: 0 | C70: 0
A71: Energy Wire Manufacturing | B71: 0 | C71: 0
A72: Wholesale Trade | B72: 0 | C72: 0
A73: Retail trade | B73: 0 | C73: 0
A74: TCPU | B74: 0 | C74: 0
A75: Insurance and Real Estate | B75: 0 | C75: 0
A76: Finance | B76: 0 | C76: 0
A77: Other Professional Services | B77: 0 | C77: 0
A78: Office Services | B78: 0 | C78: 0
A79: Architectural and Engineering Services | B79: 0 | C79: 0
A80: Other services | B80: 0 | C80: 0
A81: Government | B81: 0 | C81: 0
A82: Semiconductor (solar cell/module) manufacturing | B82: 0 | C82: 0
A84: Earnings Per Million Dollars Change in Final Demand
A85: Earnings Direct Multipliers | B85: =B60 -> MyCounty | C85: =C60 -> MyRegion
A86: Ag, Forestry, Fish & Hunting | B86: 0 | C86: 0
A87: Mining | B87: 0 | C87: 0
A88: Construction | B88: 0 | C88: 0
A89: Construction/Installations - Non Residential | B89: 0 | C89: 0
A90: Construction/Installation Residential | B90: 0 | C90: 0
A91: Manufacturing | B91: 0 | C91: 0
A92: Fabricated Metals | B92: 0 | C92: 0
A93: Machinery | B93: 0 | C93: 0
A94: Electrical Equip | B94: 0 | C94: 0
A95: Battery Manufacturing | B95: 0 | C95: 0
A96: Energy Wire Manufacturing | B96: 0 | C96: 0
A97: Wholesale Trade | B97: 0 | C97: 0
A98: Retail trade | B98: 0 | C98: 0
A99: TCPU | B99: 0 | C99: 0
A100: Insurance and Real Estate | B100: 0 | C100: 0
A101: Finance | B101: 0 | C101: 0
A102: Other Professional Services | B102: 0 | C102: 0
A103: Office Services | B103: 0 | C103: 0
A104: Architectural and Engineering Services | B104: 0 | C104: 0
A105: Other services | B105: 0 | C105: 0
A106: Government | B106: 0 | C106: 0
A107: Semiconductor (solar cell/module) manufacturing | B107: 0 | C107: 0
A109: Earnings Per Million Dollars Change in Final Demand
A110: Earnings Indirect Multipliers | B110: =B85 -> MyCounty | C110: =C85 -> MyRegion
A111: Ag, Forestry, Fish & Hunting | B111: 0 | C111: 0
A112: Mining | B112: 0 | C112: 0
A113: Construction | B113: 0 | C113: 0
A114: Construction/Installations - Non Residential | B114: 0 | C114: 0
A115: Construction/Installation Residential | B115: 0 | C115: 0
A116: Manufacturing | B116: 0 | C116: 0
A117: Fabricated Metals | B117: 0 | C117: 0
A118: Machinery | B118: 0 | C118: 0
A119: Electrical Equip | B119: 0 | C119: 0
A120: Battery Manufacturing | B120: 0 | C120: 0
A121: Energy Wire Manufacturing | B121: 0 | C121: 0
A122: Wholesale Trade | B122: 0 | C122: 0
A123: Retail trade | B123: 0 | C123: 0
A124: TCPU | B124: 0 | C124: 0
A125: Insurance and Real Estate | B125: 0 | C125: 0
A126: Finance | B126: 0 | C126: 0
A127: Other Professional Services | B127: 0 | C127: 0
A128: Office Services | B128: 0 | C128: 0
A129: Architectural and Engineering Services | B129: 0 | C129: 0
A130: Other services | B130: 0 | C130: 0
A131: Government | B131: 0 | C131: 0
A132: Semiconductor (solar cell/module) manufacturing | B132: 0 | C132: 0
A134: Earnings Per Million Dollars Change in Final Demand
A135: Earnings Induced Multipliers | B135: =B110 -> MyCounty | C135: =C110 -> MyRegion
A136: Ag, Forestry, Fish & Hunting | B136: 0 | C136: 0
A137: Mining | B137: 0 | C137: 0
A138: Construction | B138: 0 | C138: 0
A139: Construction/Installations - Non Residential | B139: 0 | C139: 0
A140: Construction/Installation Residential | B140: 0 | C140: 0
A141: Manufacturing | B141: 0 | C141: 0
A142: Fabricated Metals | B142: 0 | C142: 0
A143: Machinery | B143: 0 | C143: 0
A144: Electrical Equip | B144: 0 | C144: 0
A145: Battery Manufacturing | B145: 0 | C145: 0
A146: Energy Wire Manufacturing | B146: 0 | C146: 0
A147: Wholesale Trade | B147: 0 | C147: 0
A148: Retail trade | B148: 0 | C148: 0
A149: TCPU | B149: 0 | C149: 0
A150: Insurance and Real Estate | B150: 0 | C150: 0
A151: Finance | B151: 0 | C151: 0
A152: Other Professional Services | B152: 0 | C152: 0
A153: Office Services | B153: 0 | C153: 0
A154: Architectural and Engineering Services | B154: 0 | C154: 0
A155: Other services | B155: 0 | C155: 0
A156: Government | B156: 0 | C156: 0
A157: Semiconductor (solar cell/module) manufacturing | B157: 0 | C157: 0
A159: Output Per Million Dollars Change in Final Demand
A160: Output Direct Multipliers | B160: =B135 -> MyCounty | C160: =C135 -> MyRegion
A161: Ag, Forestry, Fish & Hunting | B161: 0 | C161: 0
A162: Mining | B162: 0 | C162: 0
A163: Construction | B163: 0 | C163: 0
A164: Construction/Installations - Non Residential | B164: 0 | C164: 0
A165: Construction/Installation Residential | B165: 0 | C165: 0
A166: Manufacturing | B166: 0 | C166: 0
A167: Fabricated Metals | B167: 0 | C167: 0
A168: Machinery | B168: 0 | C168: 0
A169: Electrical Equip | B169: 0 | C169: 0
A170: Battery Manufacturing | B170: 0 | C170: 0
A171: Energy Wire Manufacturing | B171: 0 | C171: 0
A172: Wholesale Trade | B172: 0 | C172: 0
A173: Retail trade | B173: 0 | C173: 0
A174: TCPU | B174: 0 | C174: 0
A175: Insurance and Real Estate | B175: 0 | C175: 0
A176: Finance | B176: 0 | C176: 0
A177: Other Professional Services | B177: 0 | C177: 0
A178: Office Services | B178: 0 | C178: 0
A179: Architectural and Engineering Services | B179: 0 | C179: 0
A180: Other services | B180: 0 | C180: 0
A181: Government | B181: 0 | C181: 0
A182: Semiconductor (solar cell/module) manufacturing | B182: 0 | C182: 0
A184: Output Per Million Dollars Change in Final Demand
A185: Output Indirect Multipliers | B185: =B160 -> MyCounty | C185: =C160 -> MyRegion
A186: Ag, Forestry, Fish & Hunting | B186: 0 | C186: 0
A187: Mining | B187: 0 | C187: 0
A188: Construction | B188: 0 | C188: 0
A189: Construction/Installations - Non Residential | B189: 0 | C189: 0
A190: Construction/Installation Residential | B190: 0 | C190: 0
A191: Manufacturing | B191: 0 | C191: 0
A192: Fabricated Metals | B192: 0 | C192: 0
A193: Machinery | B193: 0 | C193: 0
A194: Electrical Equip | B194: 0 | C194: 0
A195: Battery Manufacturing | B195: 0 | C195: 0
A196: Energy Wire Manufacturing | B196: 0 | C196: 0
A197: Wholesale Trade | B197: 0 | C197: 0
A198: Retail trade | B198: 0 | C198: 0
A199: TCPU | B199: 0 | C199: 0
A200: Insurance and Real Estate | B200: 0 | C200: 0
A201: Finance | B201: 0 | C201: 0
A202: Other Professional Services | B202: 0 | C202: 0
A203: Office Services | B203: 0 | C203: 0
A204: Architectural and Engineering Services | B204: 0 | C204: 0
A205: Other services | B205: 0 | C205: 0
A206: Government | B206: 0 | C206: 0
A207: Semiconductor (solar cell/module) manufacturing | B207: 0 | C207: 0
A209: Output Per Million Dollars Change in Final Demand
... 95 more rows

Sheet DefaultData
D1: System Type
D2: =ProjectData!B15 -> Residential | F2: =IF(D2="Residential New Construction",1,IF(D2="Residential Retrofit",1,2)) -> 2 | O2: 1 | P2: 2 | Q2: 3 | R2: 4 | S2: 5 | T2: 6 | CK2: Residential New Construction
O3: 1 | P3: 2 | Q3: 3 | R3: 4 | S3: 5 | T3: 6 | CK3: Fixed
D4: Number of Systems Installed | E4: KW | F4: Total KW Installed
A5: Warning | D5: =ProjectData!B19 -> 100 | E5: =ProjectData!B18 -> 5 | F5: =E5*D5 -> 500
A7: This Worksheet contains Data and Formulas that are an integral part of the JEDI model. | D7: Construction | F7: O&M | AK7: Large Commercial | AQ7: Residential | BE7: Utility
D8: Cost Per KW | E8: Project Cost | F8: Cost Per KW
A9: Although the data and formulas are available for review they must not be changed. | D9: =ProjectData!B22 -> 2690.045743 | E9: =+D9*F5 -> 1345022.871 | F9: =ProjectData!B23 -> 32.8 | AI9: =ProjectData!X759 -> RRCSFM | AK9: LCCSFM | AL9: LCCSSA | AM9: LCTFFM | BE9: fixed | BF9: tracker | BG9: fixed
AJ10: 1 | AK10: CLCSFM | AL10: CLCSSA | AM10: CLTFFM | AN10: LCTFSA | AQ10: RNCSFM | AR10: RNCSSA | AS10: RNTFFM | AT10: RNTFSA | AU10: RRCSFM | AV10: RRCSSA | AW10: RRTFFM | AX10: RRTFSA | AY10: SCCSFM | AZ10: SCCSSA | BA10: SCTFFM | BB10: SCTFSA | BE10: UTCSFM | BF10: UTCSSA | BG10: UTTFFM | BH10: UTTFSA
A11: Any changes to the data or formulas will impact the analysis and may invalidate the model results. | C11: Project Data | D11: Default Values - Based on Cost Per KW from Project Data sheet | AH11: Manufactured | AJ11: =AJ10+1 -> 2
H12: Very Small | I12: Small | J12: Medium | K12: Large | AJ12: 3
H13: 30000 | I13: 100000 | J13: 300000 | K13: 400000 | M13: =ProjectData!B13 -> 0 | AJ13: 4
C14: Installation Costs | D14: Cost | E14: Cost | F14: Percent | G14: State | H14: County | I14: County | J14: County | K14: County | O14: 30000 | AH14: Locally | AI14: =HLOOKUP(AI$9,AK$10:BP$43,AJ14) -> Typically less than 10 kW | AJ14: 5 | AK14: Typically 100 kW - 1 MW | AL14: Typically 100 kW - 1 MW | AM14: Typically 100 kW - 1 MW | AN14: Typically 100 kW - 1 MW | AO14: Typically 100 kW - 1 MW | AP14: Typically 100 kW - 1 MW | AQ14: Typically less than 10 kW | AR14: Typically less than 10 kW | AS14: Typically less than 10 kW | AT14: Typically less than 10 kW | AU14: Typically less than 10 kW | AV14: Typically less than 10 kW | AW14: Typically less than 10 kW | AX14: Typically less than 10 kW | AY14: Typically 10 kW - 100 kW | AZ14: Typically 10 kW - 100 kW | BA14: Typically 10 kW - 100 kW | BB14: Typically 10 kW - 100 kW | BC14: Typically 10 kW - 100 kW | BD14: Typically 10 kW - 100 kW | BE14: Typically 1 MW or larger | BF14: Typically 1 MW or larger | BG14: Typically 1 MW or larger | BH14: Typically 100 KW - 2 MW
C15: Materials & Equipment | E15: Per KW | F15: of Cost | G15: Local Share | H15: Local Share | I15: Local Share | J15: Local Share | K15: Local Share | O15: 100000 | R15: 300000 | U15: 400000 | AI15: 5 | AJ15: 6 | AK15: 150 | AL15: 150 | AM15: 150 | AN15: 150 | AQ15: 3.5 | AR15: 3.5 | AS15: 3.5 | AT15: 3.5 | AU15: 5 | AV15: 5 | AW15: 5 | AX15: 5 | AY15: 20 | AZ15: 20 | BA15: 20 | BB15: 20 | BE15: 1000 | BF15: 1000 | BG15: 1000 | BH15: 1000
C16: Mounting (rails, clamps, fittings, etc.) | D16: =E$9*F16 -> 49153.65975 | E16: =D16/F$5 -> 98.3073195 | F16: =AI17 -> 0.0365448505 | G16: 1 | H16: 0 | I16: 1 | J16: 1 | K16: =G16 -> 1 | M16: =(M$13-H$13)/(I$13-H$13) -> -0.4285714286 | N16: =+I16-H16 -> 1 | O16: =H16+(N16*M16) -> -0.4285714286 | P16: =(M$13-I$13)/(J$13-I$13) -> -0.5 | Q16: =J16-I16 -> 0 | R16: =I16+(P16*Q16) -> 1 | S16: =IF((M$13-J$13)/(K$13-J$13)>1,1,(M$13-J$13)/(K$13-J$13)) -> -3 | T16: =K16-J16 -> 0 | U16: =J16+(S16*T16) -> 1 | AJ16: 7 | BY16: Materials and Services
C17: Modules | D17: =E$9*F17 -> 156398.0083 | E17: =D17/F$5 -> 312.7960166 | F17: =AI18 -> 0.1162790698 | G17: 1 | H17: 0 | I17: 1 | J17: 1 | K17: =G17 -> 1 | M17: =(M$13-H$13)/(I$13-H$13) -> -0.4285714286 | N17: =+I17-H17 -> 1 | O17: =H17+(N17*M17) -> -0.4285714286 | P17: =(M$13-I$13)/(J$13-I$13) -> -0.5 | Q17: =J17-I17 -> 0 | R17: =I17+(P17*Q17) -> 1 | S17: =IF((M$13-J$13)/(K$13-J$13)>1,1,(M$13-J$13)/(K$13-J$13)) -> -3 | T17: =K17-J17 -> 0 | U17: =J17+(S17*T17) -> 1 | AF17: Mounting (rails, clamps, fittings, etc.) | AH17: N | AI17: 0.0365448505 | AJ17: 8 | AK17: 0.08108108108 | AL17: =AK17 -> 0.08108108108 | AM17: =AK17 -> 0.08108108108 | AQ17: 0.0365448505 | AR17: =AQ17 -> 0.0365448505 | AS17: =AQ17 -> 0.0365448505 | AU17: =AQ17 -> 0.0365448505 | AV17: =AQ17 -> 0.0365448505 | AW17: =AQ17 -> 0.0365448505 | AY17: =AK17 -> 0.08108108108 | AZ17: =AK17 -> 0.08108108108 | BA17: =AK17 -> 0.08108108108 | BE17: 0.1052631579 | BF17: 0.15625 | BG17: =BE17 -> 0.1052631579 | BY17: Mounting (rails, clamps, fittings, etc.)
A18: To view the data and formulas simply scroll over to the adjacent columns to the right. | C18: Electrical (wire, connectors, breakers, etc.) | D18: =E$9*F18 -> 107244.3485 | E18: =D18/F$5 -> 214.4886971 | F18: =AI19 -> 0.07973421927 | G18: 1 | H18: 0 | I18: 1 | J18: 1 | K18: 1 | M18: =(M$13-H$13)/(I$13-H$13) -> -0.4285714286 | N18: =+I18-H18 -> 1 | O18: =H18+(N18*M18) -> -0.4285714286 | P18: =(M$13-I$13)/(J$13-I$13) -> -0.5 | Q18: =J18-I18 -> 0 | R18: =I18+(P18*Q18) -> 1 | S18: =IF((M$13-J$13)/(K$13-J$13)>1,1,(M$13-J$13)/(K$13-J$13)) -> -3 | T18: =K18-J18 -> 0 | U18: =J18+(S18*T18) -> 1 | AF18: Modules | AH18: N | AI18: 0.1162790698 | AJ18: =AJ17+1 -> 9 | AK18: 0.1891891892 | AL18: =AK18 -> 0.1891891892 | AM18: =AK18 -> 0.1891891892 | AQ18: 0.1162790698 | AR18: =AQ18 -> 0.1162790698 | AS18: =AQ18 -> 0.1162790698 | AU18: =AQ18 -> 0.1162790698 | AV18: =AQ18 -> 0.1162790698 | AW18: =AQ18 -> 0.1162790698 | AY18: =AK18 -> 0.1891891892 | AZ18: =AK18 -> 0.1891891892 | BA18: =AK18 -> 0.1891891892 | BE18: 0.3684210526 | BF18: 0.3645833333 | BG18: =BE18 -> 0.3684210526 | BY18: Modules
C19: Inverter | D19: =E$9*F19 -> 84901.77594 | E19: =D19/F$5 -> 169.8035519 | F19: =AI20 -> 0.06312292359 | G19: 1 | H19: 0 | I19: 1 | J19: 1 | K19: 1 | M19: =(M$13-H$13)/(I$13-H$13) -> -0.4285714286 | N19: =+I19-H19 -> 1 | O19: =H19+(N19*M19) -> -0.4285714286 | P19: =(M$13-I$13)/(J$13-I$13) -> -0.5 | Q19: =J19-I19 -> 0 | R19: =I19+(P19*Q19) -> 1 | S19: =IF((M$13-J$13)/(K$13-J$13)>1,1,(M$13-J$13)/(K$13-J$13)) -> -3 | T19: =K19-J19 -> 0 | U19: =J19+(S19*T19) -> 1 | AF19: Electrical (wire, connectors, breakers, etc.) | AH19: N | AI19: 0.07973421927 | AJ19: 10 | AK19: 0.07567567568 | AL19: 0.07567567568 | AM19: 0.07567567568 | AQ19: 0.07973421927 | AR19: 0.07973421927 | AS19: 0.07973421927 | AU19: 0.07973421927 | AV19: 0.07973421927 | AW19: 0.07973421927 | AY19: 0.07567567568 | AZ19: 0.07567567568 | BA19: 0.07567567568 | BE19: 0.1052631579 | BF19: 0.1041666667 | BG19: 0.1052631579 | BY19: Electrical (wire, connectors, breakers, etc.)
C20: Subtotal | D20: =SUM(D16:D19) -> 397697.7925 | E20: =SUM(E16:E19) -> 795.3955851 | F20: =SUM(F16:F19) -> 0.2956810631 | AF20: Inverter | AH20: N | AI20: 0.06312292359 | AJ20: 11 | AK20: 0.05405405405 | AL20: 0.05405405405 | AM20: 0.05405405405 | AQ20: 0.06312292359 | AR20: 0.06312292359 | AS20: 0.06312292359 | AU20: 0.06312292359 | AV20: 0.06312292359 | AW20: 0.06312292359 | AY20: 0.05405405405 | AZ20: 0.05405405405 | BA20: 0.05405405405 | BE20: 0.06315789474 | BF20: 0.0625 | BG20: 0.06315789474 | BY20: Inverter
C21: Labor | AI21: 0.2956810631 | AJ21: 12 | AK21: =SUM(AK17:AK20) -> 0.4 | AL21: 0.4 | AM21: 0.4 | AQ21: =SUM(AQ17:AQ20) -> 0.2956810631 | AR21: 0.2956810631 | AS21: 0.2956810631 | AU21: 0.2956810631 | AV21: 0.2956810631 | AW21: 0.2956810631 | AY21: 0.4 | AZ21: 0.4 | BA21: 0.4 | BE21: =SUM(BE17:BE20) -> 0.6421052632 | BF21: =SUM(BF17:BF20) -> 0.6875 | BG21: 0.6421052632 | BY21: Subtotal
C22: Installation | D22: =E$9*F22 -> 134055.4357 | E22: =D22/F$5 -> 268.1108714 | F22: =AI23 -> 0.09966777409 | G22: 1 | H22: 0.1 | I22: 0.1 | J22: 0.5 | K22: 0.5 | M22: =(M$13-H$13)/(I$13-H$13) -> -0.4285714286 | N22: =+I22-H22 -> 0 | O22: =H22+(N22*M22) -> 0.1 | P22: =(M$13-I$13)/(J$13-I$13) -> -0.5 | Q22: =J22-I22 -> 0.4 | R22: =I22+(P22*Q22) -> -0.1 | S22: =IF((M$13-J$13)/(K$13-J$13)>1,1,(M$13-J$13)/(K$13-J$13)) -> -3 | T22: =K22-J22 -> 0 | U22: =J22+(S22*T22) -> 0.5 | AI22: 0 | AJ22: 13 | BY22: Labor
C23: Subtotal | D23: =SUM(D22:D22) -> 134055.4357 | E23: =SUM(E22:E22) -> 268.1108714 | F23: =F22 -> 0.09966777409 | AF23: Labor | AI23: =HLOOKUP(AI$9,AK$10:BP$43,AJ23) -> 0.09966777409 | AJ23: 14 | AK23: 0.07027027027 | AL23: 0.07027027027 | AM23: 0.07027027027 | AQ23: 0.09966777409 | AR23: 0.09966777409 | AS23: 0.09966777409 | AU23: 0.09966777409 | AV23: 0.09966777409 | AW23: 0.09966777409 | AY23: 0.07027027027 | AZ23: 0.07027027027 | BA23: 0.07027027027 | BE23: 0.1368421053 | BF23: 0.1458333333 | BG23: 0.1368421053 | BY23: Installation
C24: Total | D24: =+D23+D20 -> 531753.2282 | E24: =+E23+E20 -> 1063.506456 | F24: =+F23+F20 -> 0.3953488372 | AI24: =HLOOKUP(AI$9,AK$10:BP$43,AJ24) -> 0.09966777409 | AJ24: 15 | AK24: =AK23 -> 0.07027027027 | AL24: 0.07027027027 | AM24: 0.07027027027 | AQ24: =AQ23 -> 0.09966777409 | AR24: 0.09966777409 | AS24: 0.09966777409 | AU24: 0.09966777409 | AV24: 0.09966777409 | AW24: 0.09966777409 | AY24: 0.07027027027 | AZ24: 0.07027027027 | BA24: 0.07027027027 | BE24: =BE23 -> 0.1368421053 | BF24: =BF23 -> 0.1458333333 | BG24: 0.1368421053 | BY24: Subtotal
C25: Other Costs | AI25: =HLOOKUP(AI$9,AK$10:BP$43,AJ25) -> 0.3953488372 | AJ25: 16 | AK25: =AK24+AK21 -> 0.4702702703 | AL25: 0.4702702703 | AM25: 0.4702702703 | AQ25: =AQ24+AQ21 -> 0.3953488372 | AR25: 0.3953488372 | AS25: 0.3953488372 | AU25: 0.3953488372 | AV25: 0.3953488372 | AW25: 0.3953488372 | AY25: 0.4702702703 | AZ25: 0.4702702703 | BA25: 0.4702702703 | BE25: =BE24+BE21 -> 0.7789473684 | BF25: =BF24+BF21 -> 0.8333333333 | BG25: 0.7789473684 | BY25: Total
C26: Permitting, Fees, and Taxes | D26: =E$9*F26 -> 178740.5809 | E26: =D26/F$5 -> 357.4811618 | F26: =AI27 -> 0.1328903654 | G26: 1 | H26: 1 | I26: 1 | J26: 1 | K26: 1 | M26: =(M$13-H$13)/(I$13-H$13) -> -0.4285714286 | N26: =+I26-H26 -> 0 | O26: =H26+(N26*M26) -> 1 | P26: =(M$13-I$13)/(J$13-I$13) -> -0.5 | Q26: =J26-I26 -> 0 | R26: =I26+(P26*Q26) -> 1 | S26: =IF((M$13-J$13)/(K$13-J$13)>1,1,(M$13-J$13)/(K$13-J$13)) -> -3 | T26: =K26-J26 -> 0 | U26: =J26+(S26*T26) -> 1 | AJ26: 17 | BY26: Other Costs
C27: Other Costs | D27: =E$9*F27 -> 339607.1037 | E27: =D27/F$5 -> 679.2142075 | F27: =AI28 -> 0.2524916944 | G27: 1 | H27: 0 | I27: 1 | J27: 1 | K27: 1 | M27: =(M$13-H$13)/(I$13-H$13) -> -0.4285714286 | N27: =+I27-H27 -> 1 | O27: =H27+(N27*M27) -> -0.4285714286 | P27: =(M$13-I$13)/(J$13-I$13) -> -0.5 | Q27: =J27-I27 -> 0 | R27: =I27+(P27*Q27) -> 1 | S27: =IF((M$13-J$13)/(K$13-J$13)>1,1,(M$13-J$13)/(K$13-J$13)) -> -3 | T27: =K27-J27 -> 0 | U27: =J27+(S27*T27) -> 1 | AF27: Permitting | AI27: =HLOOKUP(AI$9,AK$10:BP$43,AJ27) -> 0.1328903654 | AJ27: 18 | AK27: 0.08108108108 | AL27: 0.08108108108 | AM27: 0.08108108108 | AQ27: 0.1328903654 | AR27: 0.1328903654 | AS27: 0.1328903654 | AU27: 0.1328903654 | AV27: 0.1328903654 | AW27: 0.1328903654 | AY27: 0.08108108108 | AZ27: 0.08108108108 | BA27: 0.08108108108 | BE27: 0.06315789474 | BF27: 0.05208333333 | BG27: 0.06315789474 | BY27: Permitting
C28: Business Overhead | D28: =E$9*F28 -> 294921.9585 | E28: =D28/F$5 -> 589.843917 | F28: =AI29 -> 0.219269103 | G28: 1 | H28: 0 | I28: 1 | J28: 1 | K28: 1 | M28: =(M$13-H$13)/(I$13-H$13) -> -0.4285714286 | N28: =+I28-H28 -> 1 | O28: =H28+(N28*M28) -> -0.4285714286 | P28: =(M$13-I$13)/(J$13-I$13) -> -0.5 | Q28: =J28-I28 -> 0 | R28: =I28+(P28*Q28) -> 1 | S28: =IF((M$13-J$13)/(K$13-J$13)>1,1,(M$13-J$13)/(K$13-J$13)) -> -3 | T28: =K28-J28 -> 0 | U28: =J28+(S28*T28) -> 1 | AF28: Other Costs | AI28: 0.2524916944 | AJ28: 19 | AK28: 0.08108108108 | AL28: 0.08108108108 | AM28: 0.08108108108 | AQ28: 0.2524916944 | AR28: 0.2524916944 | AS28: 0.2524916944 | AU28: 0.2524916944 | AV28: 0.2524916944 | AW28: 0.2524916944 | AY28: 0.08108108108 | AZ28: 0.08108108108 | BA28: 0.08108108108 | BE28: 0.04210526316 | BF28: 0.03125 | BG28: 0.04210526316 | BY28: Other Costs
C29: Subtotal | D29: =SUM(D26:D28) -> 813269.6432 | E29: =SUM(E26:E28) -> 1626.539286 | F29: =SUM(F26:F28) -> 0.6046511628 | AF29: Business Overhead | AI29: 0.219269103 | AJ29: 20 | AK29: 0.3675675676 | AL29: 0.3675675676 | AM29: 0.3675675676 | AQ29: 0.219269103 | AR29: 0.219269103 | AS29: 0.219269103 | AU29: 0.219269103 | AV29: 0.219269103 | AW29: 0.219269103 | AY29: 0.3675675676 | AZ29: 0.3675675676 | BA29: 0.3675675676 | BE29: 0.1157894737 | BF29: 0.08333333333 | BG29: 0.1157894737 | BY29: Business Overhead
C30: Subtotal | D30: =D29+D24 -> 1345022.871 | E30: =E29+E24 -> 2690.045743 | F30: =F29+F24 -> 1 | H30: Very Small | I30: Small | J30: Medium | K30: Large | AI30: 0.6046511628 | AJ30: 21 | AK30: =SUM(AK27:AK29) -> 0.5297297297 | AL30: 0.5297297297 | AM30: 0.5297297297 | AQ30: =SUM(AQ27:AQ29) -> 0.6046511628 | AR30: 0.6046511628 | AS30: 0.6046511628 | AU30: 0.6046511628 | AV30: 0.6046511628 | AW30: 0.6046511628 | AY30: 0.5297297297 | AZ30: 0.5297297297 | BA30: 0.5297297297 | BE30: =SUM(BE27:BE29) -> 0.2210526316 | BF30: =SUM(BF27:BF29) -> 0.1666666667 | BG30: 0.2210526316 | BY30: Subtotal
C31: Used to be taxes - no longer used | D31: 0 | E31: =D31/F$5 -> 0 | H31: 30000 | I31: 100000 | J31: 300000 | K31: 400000 | AI31: 1 | AJ31: 22 | AK31: =AK30+AK25 -> 1 | AL31: 1 | AM31: 1 | AQ31: =AQ30+AQ25 -> 1 | AR31: 1 | AS31: 1 | AU31: 1 | AV31: 1 | AW31: 1 | AY31: 1 | AZ31: 1 | BA31: 1 | BE31: =BE30+BE25 -> 1 | BF31: =BF30+BF25 -> 1 | BG31: 1 | BY31: Total
C32: Total | D32: =D31+D30 -> 1345022.871 | E32: =E31+E30 -> 2690.045743 | H32: County | I32: County | J32: County | K32: County | AI32: 2.8 | AJ32: 23 | AK32: 1.85 | AL32: 1.85 | AM32: 1.85 | AQ32: 2.8 | AR32: 2.8 | AS32: 2.8 | AU32: 2.8 | AV32: 2.8 | AW32: 2.8 | AY32: 1.85 | AZ32: 1.85 | BA32: 1.85 | BE32: 1.03 | BF32: 1.11 | BG32: 1.03 | BY32: Base system cost
C33: PV System Annual Operating and Maintenance Costs | D33: Cost | E33: Cost | F33: Percent | G33: Local Share | H33: Local Share | I33: Local Share | J33: Local Share | K33: Local Share | AI33: 0 | AJ33: 24 | BY33: Operations and Maintenance
C34: Labor | E34: Per KW | F34: of Cost | AJ34: 25 | BY34: Labor
C35: Technicians | D35: =+E35*(ProjectData!B$20) -> 8965.333333 | E35: =F35*F$9 -> 17.93066667 | F35: =AI35 -> 0.5466666667 | G35: 1 | H35: 1 | I35: 1 | J35: 1 | K35: 1 | AI35: =HLOOKUP(AI$9,AK$10:BP$43,AJ35) -> 0.5466666667 | AJ35: 26 | AK35: 0.6 | AL35: 0.6 | AM35: 0.6 | AQ35: 0.5466666667 | AR35: 0.5466666667 | AS35: 0.5466666667 | AU35: 0.5466666667 | AV35: 0.5466666667 | AW35: 0.5466666667 | AY35: 0.5466666667 | AZ35: 0.5466666667 | BA35: 0.5466666667 | BE35: 0.6 | BF35: 0.6 | BG35: 0.6 | BY35: Technicians
C36: Subtotal | D36: =SUM(D35:D35) -> 8965.333333 | E36: =SUM(E35:E35) -> 17.93066667 | F36: =SUM(F35:F35) -> 0.5466666667 | AH36: =AH11 -> Manufactured | AI36: =HLOOKUP(AI$9,AK$10:BP$43,AJ36) -> 0.5466666667 | AJ36: 27 | AK36: 0.6 | AL36: 0.6 | AM36: 0.6 | AQ36: 0.5466666667 | AR36: 0.5466666667 | AS36: 0.5466666667 | AU36: 0.5466666667 | AV36: 0.5466666667 | AW36: 0.5466666667 | AY36: 0.5466666667 | AZ36: 0.5466666667 | BA36: 0.5466666667 | BE36: 0.6 | BF36: 0.6 | BG36: 0.6 | BY36: Subtotal
C37: Materials and Services | AH37: =AH14 -> Locally | AJ37: 28 | BY37: Materials and Services
C38: Materials & Equipment | D38: =+E38*(ProjectData!B$20) -> 7434.666667 | E38: =F38*F$9 -> 14.86933333 | F38: =AI38 -> 0.4533333333 | G38: 1 | H38: 0 | I38: 1 | J38: 1 | K38: 1 | AH38: N | AI38: =HLOOKUP(AI$9,AK$10:BP$43,AJ38) -> 0.4533333333 | AJ38: 29 | AK38: 0.4 | AL38: 0.4 | AM38: 0.4 | AQ38: 0.4533333333 | AR38: 0.4533333333 | AS38: 0.4533333333 | AU38: 0.4533333333 | AV38: 0.4533333333 | AW38: 0.4533333333 | AY38: 0.4533333333 | AZ38: 0.4533333333 | BA38: 0.4533333333 | BE38: 0.4 | BF38: 0.4 | BG38: 0.4 | BY38: Materials & Equipment
C39: Services | D39: =+E39*(ProjectData!B$20) -> 0 | E39: =F39*F$9 -> 0 | F39: =AI39 -> 0 | G39: 1 | H39: 0 | I39: 1 | J39: 1 | K39: 1 | AJ39: 30 | AK39: 0 | AL39: 0 | AM39: 0 | AQ39: 0 | AR39: 0 | AS39: 0 | AU39: 0 | AV39: 0 | AW39: 0 | AY39: 0 | AZ39: 0 | BA39: 0 | BE39: 0 | BF39: 0 | BG39: 0 | BY39: Services
C40: Subtotal | D40: =SUM(D38:D39) -> 7434.666667 | E40: =SUM(E38:E39) -> 14.86933333 | F40: =SUM(F38:F39) -> 0.4533333333 | AI40: =HLOOKUP(AI$9,AK$10:BP$43,AJ40) -> 0.4533333333 | AJ40: 31 | AK40: 0.4 | AL40: 0.4 | AM40: 0.4 | AQ40: 0.4533333333 | AR40: 0.4533333333 | AS40: 0.4533333333 | AU40: 0.4533333333 | AV40: 0.4533333333 | AW40: 0.4533333333 | AY40: 0.4533333333 | AZ40: 0.4533333333 | BA40: 0.4533333333 | BE40: 0.4 | BF40: 0.4 | BG40: 0.4 | BY40: Subtotal
C41: Sales Tax (Materials & Equipment Purchases) | D41: =D38*(D$58*(1-D$59)) -> 0 | E41: =F41*F$9 -> 0 | AJ41: 32
C42: Total | D42: =D40+D41+D36 -> 16400 | E42: =E40+E41+E36 -> 32.8 | F42: =F40+F36 -> 1 | AI42: =HLOOKUP(AI$9,AK$10:BP$43,AJ42) -> 1 | AJ42: 33 | AK42: 1 | AL42: 1 | AM42: 1 | AQ42: 1 | AR42: 1 | AS42: 1 | AU42: 1 | AV42: 1 | AW42: 1 | AY42: 1 | AZ42: 1 | BA42: 1 | BE42: 1 | BF42: 1 | BG42: 1 | BY42: Total
AI43: =HLOOKUP(AI$9,AK$10:BP$43,AJ43) -> 32.8 | AJ43: 34 | AK43: 19.93 | AL43: 19.93 | AM43: 19.93 | AQ43: 32.8 | AR43: 32.8 | AS43: 32.8 | AU43: 32.8 | AV43: 32.8 | AW43: 32.8 | AY43: 23.5 | AZ43: 23.5 | BA43: 23.5 | BE43: 19.93 | BF43: 19.93 | BG43: 19.93 | BY43: O&M Cost
C44: Other Parameters
C45: Financial Parameters | F45: Local Share | H45: 23951776.02 | I45: =H45/H46 -> 0.0492606389
C46: Debt Financing | H46: 486225444.1
C47: Percentage financed | D47: 0.8 | F47: 0
C48: Years financed (term) | D48: 10
C49: Interest rate | D49: 0.1 | CN49: Simple Avg Cost
C50: Average Annual Payment (Interest and Principal) | D50: =Calculations!F211 -> 156022.6531 | AJ50: Alabama | AK50: Alaska | AL50: Arizona | AM50: Arkansas | AN50: California | AO50: Colorado | AP50: Connecticut | AQ50: Delaware | AR50: District of Columbia | AS50: Florida | AT50: Georgia | AU50: Hawaii | AV50: Idaho | AW50: Illinois | AX50: Indiana | AY50: Iowa | AZ50: Kansas | BA50: Kentucky | BB50: Louisiana | BC50: Maine | BD50: Maryland | BE50: Massachusetts | BF50: Michigan | BG50: Minnesota | BH50: Mississippi | BI50: Missouri | BJ50: Montana | BK50: MyCounty | BL50: MyRegion | BM50: Nebraska | BN50: Nevada | BO50: New Hampshire | BP50: New Jersey | BQ50: New Mexico | BR50: New York | BS50: North Carolina | BT50: North Dakota | BU50: Ohio | BV50: Oklahoma | BW50: Oregon | BX50: Pennsylvania | BY50: REGION1 | BZ50: REGION2 | CA50: REGION3 | CB50: REGION4 | CC50: REGION5 | CD50: REGION6 | CE50: REGION7 | CF50: REGION8 | CG50: Rhode Island | CH50: South Carolina | CI50: South Dakota | CJ50: Tennessee | CK50: Texas | CL50: Utah | CM50: Vermont | CN50: Virginia | CO50: Washington | CP50: West Virginia | CQ50: Wisconsin | CR50: Wyoming
C51: Tax Parameters | AF51: 0 | AH51: 2 | AI51: 0-10 kw | AJ51: 0 | AK51: 0 | AL51: 0.9607306224 | AM51: 0 | AN51: 0.9999184422 | AO51: 0 | AP51: 1.080845124 | AQ51: 0 | AR51: 0.9457909615 | AS51: 1.07821242 | AT51: 0 | AU51: 0 | AV51: 0 | AW51: 1.015263574 | AX51: 0 | AY51: 0 | AZ51: 0 | BA51: 0 | BB51: 0 | BC51: 0 | BD51: 0.9323425873 | BE51: 1.001614757 | BF51: 0 | BG51: 1.107563651 | BH51: 0 | BI51: 0 | BJ51: 0 | BK51: 0 | BL51: 0 | BM51: 0 | BN51: 0.9163031737 | BO51: 0.8406143295 | BP51: 1.051227043 | BQ51: 0 | BR51: 1.073479103 | BS51: 0 | BT51: 0 | BU51: 0 | BV51: 0 | BW51: 0 | BX51: 0.9930742697 | BY51: 0 | BZ51: 0 | CA51: 0 | CB51: 0 | CC51: 0 | CD51: 0 | CE51: 0 | CF51: 0 | CG51: 0 | CH51: 0 | CI51: 0 | CJ51: 0 | CK51: 0.9355041396 | CL51: 0 | CM51: 0.9405966612 | CN51: 0 | CO51: 0 | CP51: 0 | CQ51: 1.134623535 | CR51: 0
C52: Local Property Tax (percent of taxable value) | D52: 0 | AF52: 10 | AH52: =AH51+1 -> 3 | AI52: 10-100 kw | AJ52: 0 | AK52: 0 | AL52: 1.008272381 | AM52: 0 | AN52: 0.9839727806 | AO52: 0 | AP52: 1.065126707 | AQ52: 0 | AR52: 0 | AS52: 0.7113356392 | AT52: 0 | AU52: 0 | AV52: 0 | AW52: 0 | AX52: 0 | AY52: 0 | AZ52: 0 | BA52: 0 | BB52: 0 | BC52: 0 | BD52: 0.847151735 | BE52: 1.097185888 | BF52: 0 | BG52: 0 | BH52: 0 | BI52: 0 | BJ52: 0 | BK52: 0 | BL52: 0 | BM52: 0 | BN52: 0.8741673856 | BO52: 0 | BP52: 1.028314551 | BQ52: 0 | BR52: 1.145866243 | BS52: 0 | BT52: 0 | BU52: 1.032039996 | BV52: 0 | BW52: 0 | BX52: 0.9624592341 | BY52: 0 | BZ52: 0 | CA52: 0 | CB52: 0 | CC52: 0 | CD52: 0 | CE52: 0 | CF52: 0 | CG52: 0 | CH52: 0 | CI52: 0 | CJ52: 0 | CK52: 0.9018211975 | CL52: 0 | CM52: 0 | CN52: 0 | CO52: 0 | CP52: 0 | CQ52: 1.104013003 | CR52: 0
C53: Assessed Value (percent of construction cost) | D53: 0 | AF53: 100 | AH53: =AH52+1 -> 4 | AI53: 100-1000 kw | AJ53: 0 | AK53: 0 | AL53: 0 | AM53: 0 | AN53: 1.076993821 | AO53: 0 | AP53: 0 | AQ53: 0 | AR53: 0 | AS53: 0 | AT53: 0 | AU53: 0 | AV53: 0 | AW53: 0 | AX53: 0 | AY53: 0 | AZ53: 0 | BA53: 0 | BB53: 0 | BC53: 0 | BD53: 0 | BE53: 1.010536815 | BF53: 0 | BG53: 0 | BH53: 0 | BI53: 0 | BJ53: 0 | BK53: 0 | BL53: 0 | BM53: 0 | BN53: 0 | BO53: 0 | BP53: 0.9396749038 | BQ53: 0 | BR53: 0 | BS53: 0 | BT53: 0 | BU53: 0 | BV53: 0 | BW53: 0 | BX53: 0.9706794771 | BY53: 0 | BZ53: 0 | CA53: 0 | CB53: 0 | CC53: 0 | CD53: 0 | CE53: 0 | CF53: 0 | CG53: 0 | CH53: 0 | CI53: 0 | CJ53: 0 | CK53: 0 | CL53: 0 | CM53: 0 | CN53: 0 | CO53: 0 | CP53: 0 | CQ53: 0 | CR53: 0
C54: Taxable Value (percent of assessed value) | D54: 0 | AF54: 1000 | AH54: 5 | AI54: 1000+ kW | AJ54: 0 | AK54: 0 | AL54: 0 | AM54: 0 | AN54: 0 | AO54: 0 | AP54: 0 | AQ54: 0 | AR54: 0 | AS54: 0 | AT54: 0 | AU54: 0 | AV54: 0 | AW54: 0 | AX54: 0 | AY54: 0 | AZ54: 0 | BA54: 0 | BB54: 0 | BC54: 0 | BD54: 0 | BE54: 0 | BF54: 0 | BG54: 0 | BH54: 0 | BI54: 0 | BJ54: 0 | BK54: 0 | BL54: 0 | BM54: 0 | BN54: 0 | BO54: 0 | BP54: 0 | BQ54: 0 | BR54: 0 | BS54: 0 | BT54: 0 | BU54: 0 | BV54: 0 | BW54: 0 | BX54: 0 | BY54: 0 | BZ54: 0 | CA54: 0 | CB54: 0 | CC54: 0 | CD54: 0 | CE54: 0 | CF54: 0 | CG54: 0 | CH54: 0 | CI54: 0 | CJ54: 0 | CK54: 0 | CL54: 0 | CM54: 0 | CN54: 0 | CO54: 0 | CP54: 0 | CQ54: 0 | CR54: 0
C55: Taxable Value | D55: =+D30*D53*D54 -> 0 | AH55: 6
C56: Property Tax Exemption (percent of local taxes) | D56: =AJ69 -> 1 | AH56: 7
C57: Local Property Taxes | D57: =+D52*D55*(1-D56) -> 0 | F57: 1 | AH57: 8 | AI57: State | AJ57: =ProjectData!B12 -> ARIZONA
C58: Local Sales Tax Rate | D58: =AJ72 -> 0.056 | F58: 1 | AH58: 9 | AI58: System Size | AJ58: =ProjectData!B18 -> 5
C59: Sales Tax Exemption (percent of local taxes) | D59: =AJ77 -> 1 | F59: 1 | AH59: 10 | AI59: Offset | AJ59: =IF($AJ58<$AF52,AH51,IF($AJ58<$AF53,AH52,IF($AJ58<1000,$AH53,AH54))) -> 2
C60: Margins | AH60: 11
D61: Ag, Forestry, Fish & Hunting | E61: Mining | F61: Construction | G61: Construction/Installations - Non Residential | H61: Construction/Installation Residential | I61: Manufacturing | J61: Fabricated Metals | K61: Machinery | L61: Electrical Equip | M61: Battery Manufacturing | N61: Energy Wire Manufacturing | O61: Wholesale Trade | P61: Retail trade | Q61: TCPU | R61: Insurance and Real Estate | S61: Finance | T61: Other Professional Services | U61: Office Services | V61: Architectural and Engineering Services | W61: Other services | X61: Government | Y61: Semiconductor (solar cell/module) manufacturing | AH61: 12 | AI61: Base Cost | AJ61: =HLOOKUP(AJ57,AJ50:CR54,AJ59) -> 0.9607306224
C62: Ag, Forestry, Fish & Hunting | D62: 0.84764 | E62: 0 | F62: 0 | G62: 0 | H62: 0 | I62: 0 | J62: 0 | K62: 0 | L62: 0 | M62: 0 | N62: 0 | O62: 0.086214 | P62: 0.001213 | Q62: 0.064933 | R62: 0 | S62: 0 | T62: 0 | U62: 0 | V62: 0 | W62: 0 | X62: 0 | Y62: 0 | AH62: 13 | AI62: State Cost | AJ62: =IF(AJ61=0,AI32,AI32*AJ61)*1000 -> 2690.045743
C63: Mining | D63: 0 | E63: 0.68282 | F63: 0 | G63: 0 | H63: 0 | I63: 0 | J63: 0 | K63: 0 | L63: 0 | M63: 0 | N63: 0 | O63: 0.01289 | P63: 0.008771 | Q63: 0.295518 | R63: 0 | S63: 0 | T63: 0 | U63: 0 | V63: 0 | W63: 0 | X63: 0 | Y63: 0 | AH63: 14
C64: Construction | D64: 0 | E64: 0 | F64: 1 | G64: 0 | H64: 0 | I64: 0 | J64: 0 | K64: 0 | L64: 0 | M64: 0 | N64: 0 | O64: 0 | P64: 0 | Q64: 0 | R64: 0 | S64: 0 | T64: 0 | U64: 0 | V64: 0 | W64: 0 | X64: 0 | Y64: 0 | AH64: 15 | AI64: Sales Tax Rate - Res | AJ64: 0.04 | AK64: 0 | AL64: 0.056 | AM64: 0.065 | AN64: 0.075 | AO64: 0.029 | AP64: 0.0635 | AQ64: 0 | AR64: 0.0575 | AS64: 0.06 | AT64: 0.04 | AU64: 0.04 | AV64: 0.06 | AW64: 0.0625 | AX64: 0.07 | AY64: 0.06 | AZ64: 0.065 | BA64: 0.06 | BB64: 0.05 | BC64: 0.055 | BD64: 0.06 | BE64: 0.0625 | BF64: 0.06 | BG64: 0.06875 | BH64: 0.07 | BI64: 0.04225 | BJ64: 0 | BK64: ='User Add-in Location'!B5 -> 0 | BL64: ='User Add-in Location'!$B$5 -> 0 | BM64: 0.055 | BN64: 0.0685 | BO64: 0 | BP64: 0.07 | BQ64: 0.05125 | BR64: 0.04 | BS64: 0.0475 | BT64: 0.05 | BU64: 0.0575 | BV64: 0.045 | BW64: 0 | BX64: 0.06 | CG64: 0.07 | CH64: 0.06 | CI64: 0.045 | CJ64: 0.07 | CK64: 0.0625 | CL64: 0.06 | CM64: 0.043 | CN64: 0.065 | CO64: 0.06 | CP64: 0.05 | CQ64: 0.04 | CR64: 0.0515
C65: Construction/Installations - Non Residential | D65: 0 | E65: 0 | F65: 0 | G65: 1 | H65: 0 | I65: 0 | J65: 0 | K65: 0 | L65: 0 | M65: 0 | N65: 0 | O65: 0 | P65: 0 | Q65: 0 | R65: 0 | S65: 0 | T65: 0 | U65: 0 | V65: 0 | W65: 0 | X65: 0 | Y65: 0 | AH65: 16 | AI65: Comm | AJ65: 0.04 | AK65: 0 | AL65: 0.056 | AM65: 0.065 | AN65: 0.075 | AO65: 0.029 | AP65: 0.0635 | AQ65: 0 | AR65: 0.0575 | AS65: 0.06 | AT65: 0.04 | AU65: 0.04 | AV65: 0.06 | AW65: 0.0625 | AX65: 0.07 | AY65: 0.06 | AZ65: 0.065 | BA65: 0.06 | BB65: 0.05 | BC65: 0.055 | BD65: 0.06 | BE65: 0.0625 | BF65: 0.06 | BG65: 0.06875 | BH65: 0.07 | BI65: 0.04225 | BJ65: 0 | BK65: ='User Add-in Location'!$B$5 -> 0 | BL65: ='User Add-in Location'!$B$5 -> 0 | BM65: 0.055 | BN65: 0.0685 | BO65: 0 | BP65: 0.07 | BQ65: 0.05125 | BR65: 0.04 | BS65: 0.0475 | BT65: 0.05 | BU65: 0.0575 | BV65: 0.045 | BW65: 0 | BX65: 0.06 | CG65: 0.07 | CH65: 0.06 | CI65: 0.045 | CJ65: 0.07 | CK65: 0.0625 | CL65: 0.06 | CM65: 0.043 | CN65: 0.065 | CO65: 0.06 | CP65: 0.05 | CQ65: 0.04 | CR65: 0.0515
C66: Construction/Installation Residential | D66: 0 | E66: 0 | F66: 0 | G66: 0 | H66: 1 | I66: 0 | J66: 0 | K66: 0 | L66: 0 | M66: 0 | N66: 0 | O66: 0 | P66: 0 | Q66: 0 | R66: 0 | S66: 0 | T66: 0 | U66: 0 | V66: 0 | W66: 0 | X66: 0 | Y66: 0 | AH66: 17 | AI66: PropertyTax Exemption-Res | AL66: 1 | AN66: 1 | AO66: 1 | AP66: 1 | AX66: 1 | AY66: 1 | AZ66: 1 | BB66: 1 | BD66: 1 | BE66: 1 | BG66: 1 | BJ66: 1 | BK66: ='User Add-in Location'!$B$7 -> 0 | BL66: ='User Add-in Location'!$B$7 -> 0 | BN66: 1 | BP66: 1 | BQ66: 1 | BR66: 1 | BS66: 0.8 | BT66: 1 | BU66: 1 | BW66: 1 | CI66: 0.7 | CK66: 1 | CQ66: 1
C67: Manufacturing | D67: 0 | E67: 0 | F67: 0 | G67: 0 | H67: 0 | I67: 0.841996 | J67: 0 | K67: 0 | L67: 0 | M67: 0 | N67: 0 | O67: 0.107789 | P67: 0.018333 | Q67: 0.031882 | R67: 0 | S67: 0 | T67: 0 | U67: 0 | V67: 0 | W67: 0 | X67: 0 | Y67: 0 | AH67: 18 | AI67: Comm | AL67: 1 | AN67: 1 | AP67: 1 | AV67: 1 | AX67: 1 | AY67: 1 | AZ67: 1 | BD67: 1 | BE67: 1 | BF67: 1 | BG67: 1 | BJ67: 1 | BK67: ='User Add-in Location'!$B$7 -> 0 | BL67: ='User Add-in Location'!$B$7 -> 0 | BN67: 1 | BP67: 1 | BR67: 1 | BS67: 0.8 | BT67: 1 | BU67: 1 | BW67: 1 | CI67: 0.7 | CK67: 1 | CQ67: 1
C68: Fabricated Metals | D68: 0 | E68: 0 | F68: 0 | G68: 0 | H68: 0 | I68: 0 | J68: 0.720028 | K68: 0 | L68: 0 | M68: 0 | N68: 0 | O68: 0.170125 | P68: 0.098636 | Q68: 0.011211 | R68: 0 | S68: 0 | T68: 0 | U68: 0 | V68: 0 | W68: 0 | X68: 0 | Y68: 0 | AH68: 19 | AI68: Indus | AL68: 1 | AN68: 1 | AP68: 1 | AX68: 1 | AY68: 1 | AZ68: 1 | BD68: 1 | BE68: 1 | BF68: 1 | BG68: 1 | BJ68: 1 | BK68: ='User Add-in Location'!$B$7 -> 0 | BL68: ='User Add-in Location'!$B$7 -> 0 | BN68: 1 | BP68: 1 | BR68: 1 | BS68: 0.8 | BT68: 1 | BU68: 1 | BW68: 1 | CI68: 0.7 | CK68: 1 | CQ68: 1
C69: Machinery | D69: 0 | E69: 0 | F69: 0 | G69: 0 | H69: 0 | I69: 0 | J69: 0 | K69: 0.833286 | L69: 0 | M69: 0 | N69: 0 | O69: 0.111651 | P69: 0.023139 | Q69: 0.031925 | R69: 0 | S69: 0 | T69: 0 | U69: 0 | V69: 0 | W69: 0 | X69: 0 | Y69: 0 | AH69: 20 | AI69: Prop Tax Exemption | AJ69: =HLOOKUP(AJ$57,AJ$50:CR$68,AJ70) -> 1 | AK69: Tax Rate | AL69: =1-AJ69 -> 0
C70: Electrical Equip | D70: 0 | E70: 0 | F70: 0 | G70: 0 | H70: 0 | I70: 0 | J70: 0 | K70: 0 | L70: 0.821259 | M70: 0 | N70: 0 | O70: 0.144205 | P70: 0.019375 | Q70: 0.01516 | R70: 0 | S70: 0 | T70: 0 | U70: 0 | V70: 0 | W70: 0 | X70: 0 | Y70: 0 | AH70: 21 | AI70: Offset | AJ70: =IF(AJ$58<10,AH66,IF(AJ$58<100,AH67,AH68)) -> 17
C71: Battery Manufacturing | D71: 0 | E71: 0 | F71: 0 | G71: 0 | H71: 0 | I71: 0 | J71: 0 | K71: 0 | L71: 0 | M71: 0.700021 | N71: 0 | O71: 0.291319 | P71: 0 | Q71: 0.00866 | R71: 0 | S71: 0 | T71: 0 | U71: 0 | V71: 0 | W71: 0 | X71: 0 | Y71: 0 | AH71: 22
C72: Energy Wire Manufacturing | D72: 0 | E72: 0 | F72: 0 | G72: 0 | H72: 0 | I72: 0 | J72: 0 | K72: 0 | L72: 0 | M72: 0 | N72: 0.877624 | O72: 0.113977 | P72: 0 | Q72: 0.008398 | R72: 0 | S72: 0 | T72: 0 | U72: 0 | V72: 0 | W72: 0 | X72: 0 | Y72: 0 | AH72: 23 | AI72: Sales Tax Rate | AJ72: =HLOOKUP(AJ$57,AJ$50:CR$68,AJ73) -> 0.056
C73: Wholesale Trade | D73: 0 | E73: 0 | F73: 0 | G73: 0 | H73: 0 | I73: 0 | J73: 0 | K73: 0 | L73: 0 | M73: 0 | N73: 0 | O73: 0.722331 | P73: 0 | Q73: 0.277669 | R73: 0 | S73: 0 | T73: 0 | U73: 0 | V73: 0 | W73: 0 | X73: 0 | Y73: 0 | AH73: 24 | AI73: Offset | AJ73: =IF(AJ58<10,AH64,AH65) -> 15
C74: Retail trade | D74: 0 | E74: 0 | F74: 0 | G74: 0 | H74: 0 | I74: 0 | J74: 0 | K74: 0 | L74: 0 | M74: 0 | N74: 0 | O74: 0 | P74: 1 | Q74: 0 | R74: 0 | S74: 0 | T74: 0 | U74: 0 | V74: 0 | W74: 0 | X74: 0 | Y74: 0 | AH74: 25 | AI74: Sales Tax Exemption - Res | AL74: 1 | AO74: 1 | AP74: 1 | AS74: 1 | AY74: 1 | BD74: 1 | BE74: 1 | BG74: 1 | BK74: ='User Add-in Location'!$B$6 -> 0 | BL74: ='User Add-in Location'!$B$6 -> 0 | BP74: 1 | BR74: 1 | CG74: 1 | CM74: 1 | CO74: 1 | CQ74: 1 | CR74: 1
C75: TCPU | D75: 0 | E75: 0 | F75: 0 | G75: 0 | H75: 0 | I75: 0 | J75: 0 | K75: 0 | L75: 0 | M75: 0 | N75: 0 | O75: 0 | P75: 0 | Q75: 1 | R75: 0 | S75: 0 | T75: 0 | U75: 0 | V75: 0 | W75: 0 | X75: 0 | Y75: 0 | AE75: Sales and Property Tax Rates updated 2010 | AH75: 26 | AI75: Comm | AL75: 1 | AO75: 1 | AP75: 1 | AS75: 1 | AV75: 1 | AY75: 1 | BA75: 1 | BD75: 1 | BG75: 1 | BK75: ='User Add-in Location'!$B$6 -> 0 | BL75: ='User Add-in Location'!$B$6 -> 0 | BP75: 1 | BR75: 1 | BU75: 1 | CG75: 1 | CL75: 1 | CM75: 1 | CO75: 1 | CQ75: 1 | CR75: 1
C76: Insurance and Real Estate | D76: 0 | E76: 0 | F76: 0 | G76: 0 | H76: 0 | I76: 0 | J76: 0 | K76: 0 | L76: 0 | M76: 0 | N76: 0 | O76: 0 | P76: 0 | Q76: 0 | R76: 1 | S76: 0 | T76: 0 | U76: 0 | V76: 0 | W76: 0 | X76: 0 | Y76: 0 | AH76: 27 | AI76: Indus | AL76: 1 | AO76: 1 | AP76: 1 | AS76: 1 | AY76: 1 | BD76: 1 | BG76: 1 | BK76: ='User Add-in Location'!$B$6 -> 0 | BL76: ='User Add-in Location'!$B$6 -> 0 | BU76: 1 | CG76: 1 | CL76: 1 | CM76: 1 | CO76: 1 | CQ76: 1 | CR76: 1
C77: Finance | D77: 0 | E77: 0 | F77: 0 | G77: 0 | H77: 0 | I77: 0 | J77: 0 | K77: 0 | L77: 0 | M77: 0 | N77: 0 | O77: 0 | P77: 0.000423 | Q77: 0 | R77: 0 | S77: 0.999577 | T77: 0 | U77: 0 | V77: 0 | W77: 0 | X77: 0 | Y77: 0 | AI77: Sales Tax Exemption | AJ77: =HLOOKUP(AJ$57,AJ$50:CR$76,AJ78) -> 1 | AK77: Tax Rate | AL77: =1-AJ77 -> 0
C78: Other Professional Services | D78: 0 | E78: 0 | F78: 0 | G78: 0 | H78: 0 | I78: 0 | J78: 0 | K78: 0 | L78: 0 | M78: 0 | N78: 0 | O78: 0 | P78: 0 | Q78: 0 | R78: 0 | S78: 0 | T78: 1 | U78: 0 | V78: 0 | W78: 0 | X78: 0 | Y78: 0 | AI78: Offset | AJ78: =IF(AJ$58<10,AH74,IF(AJ$58<100,AH75,AH76)) -> 25
C79: Office Services | D79: 0 | E79: 0 | F79: 0 | G79: 0 | H79: 0 | I79: 0 | J79: 0 | K79: 0 | L79: 0 | M79: 0 | N79: 0 | O79: 0 | P79: 0 | Q79: 0 | R79: 0 | S79: 0 | T79: 0 | U79: 1 | V79: 0 | W79: 0 | X79: 0 | Y79: 0
C80: Architectural and Engineering Services | D80: 0 | E80: 0 | F80: 0 | G80: 0 | H80: 0 | I80: 0 | J80: 0 | K80: 0 | L80: 0 | M80: 0 | N80: 0 | O80: 0 | P80: 0 | Q80: 0 | R80: 0 | S80: 0 | T80: 0 | U80: 0 | V80: 1 | W80: 0 | X80: 0 | Y80: 0
C81: Other services | D81: 0 | E81: 0 | F81: 0 | G81: 0 | H81: 0 | I81: 0 | J81: 0 | K81: 0 | L81: 0 | M81: 0 | N81: 0 | O81: 0.201746 | P81: 0.018611 | Q81: 0.025811 | R81: 0 | S81: 0 | T81: 0 | U81: 0 | V81: 0 | W81: 0.753832 | X81: 0 | Y81: 0
C82: Government | D82: 0 | E82: 0 | F82: 0 | G82: 0 | H82: 0 | I82: 0 | J82: 0 | K82: 0 | L82: 0 | M82: 0 | N82: 0 | O82: 0 | P82: 0.056099 | Q82: 0 | R82: 0 | S82: 0 | T82: 0 | U82: 0 | V82: 0 | W82: 0 | X82: 0.943901 | Y82: 0
C83: Semiconductor (solar cell/module) manufacturing | D83: 0 | E83: 0 | F83: 0 | G83: 0 | H83: 0 | I83: 0 | J83: 0 | K83: 0 | L83: 0 | M83: 0 | N83: 0 | O83: 0.105274 | P83: 0 | Q83: 0.010964 | R83: 0 | S83: 0 | T83: 0 | U83: 0 | V83: 0 | W83: 0 | X83: 0 | Y83: 0.883762

Sheet Calculations
C1: Economic Impact Analysis for | E1: =ProjectData!B12 -> ARIZONA | F1: =Project_Data -> Photovoltaic Project Data
I3: Manufactured | AB3: Detailed PV Project Data Costs | AC3: =IF(ProjectData!B$12="MyCounty",'User Add-in Location'!B$3,IF(ProjectData!B$12="MyRegion",'User Add-in Location'!B4,ProjectData!B$12)) -> ARIZONA | AD3: =ProjectData!_xlnm.Print_Area -> 2012
C4: Project Construction Costs | F4: Manufactured | I4: Locally | AE4: Manufactured
A5: Warning | C5: =DefaultData!C14 -> Installation Costs | D5: Cost | E5: Local Share | F5: Locally | G5: Local $ Spending | H5: Mfg Share | I5: To Wholesale | J5: To Mfg. | AB5: Construction Costs | AC5: Cost | AD5: Local Share | AE5: Locally
C6: =DefaultData!C15 -> Materials & Equipment | I6: N | J6: Y | AB6: =C6 -> Materials & Equipment
A7: This Worksheet contains Data and Formulas that are an integral part of the JEDI model. | C7: =DefaultData!C16 -> Mounting (rails, clamps, fittings, etc.) | D7: =IF(ProjectData!$B$26="y",DefaultData!D16,ProjectData!B33) -> 49153.65975 | E7: =IF(ProjectData!$B$26="y",ProjectData!T33,ProjectData!E33) -> 1 | F7: =IF(ProjectData!$B$26="y",DefaultData!AH17,ProjectData!F33) -> N | G7: =IF(F7="y",J7,I7) -> 9830.73195 | H7: =IF(ProjectData!B$15="Utility",0,0.8) -> 0.8 | I7: =IF(ProjectData!B$15="Utility",0,IF(F7="N",D7*E7*(1-H7),)) -> 9830.73195 | J7: =IF(F7="Y",D7*E7,) -> 0 | AB7: =C7 -> Mounting (rails, clamps, fittings, etc.) | AC7: =D7 -> 49153.65975 | AD7: 1 | AE7: N
C8: =DefaultData!C17 -> Modules | D8: =IF(ProjectData!$B$26="y",DefaultData!D17,ProjectData!B34) -> 156398.0083 | E8: =IF(ProjectData!$B$26="y",ProjectData!T34,ProjectData!E34) -> 1 | F8: =IF(ProjectData!$B$26="y",DefaultData!AH18,ProjectData!F34) -> N | G8: =IF(F8="y",J8,I8) -> 31279.60166 | H8: =IF(ProjectData!B$15="Utility",0,0.8) -> 0.8 | I8: =IF(ProjectData!B$15="Utility",0,IF(F8="N",D8*E8*(1-H8),)) -> 31279.60166 | J8: =IF(F8="Y",D8*E8,) -> 0 | AB8: Modules | AC8: 156398.0083 | AD8: 1 | AE8: N
A9: Although the data and formulas are available for review they must not be changed. | C9: =DefaultData!C18 -> Electrical (wire, connectors, breakers, etc.) | D9: =IF(ProjectData!$B$26="y",DefaultData!D18,ProjectData!B35) -> 107244.3485 | E9: =IF(ProjectData!$B$26="y",ProjectData!T35,ProjectData!E35) -> 1 | F9: =IF(ProjectData!$B$26="y",DefaultData!AH19,ProjectData!F35) -> N | G9: =IF(F9="y",J9,I9) -> 21448.86971 | H9: =IF(ProjectData!B$15="Utility",0,0.8) -> 0.8 | I9: =IF(ProjectData!B$15="Utility",0,IF(F9="N",D9*E9*(1-H9),)) -> 21448.86971 | J9: =IF(F9="Y",D9*E9,) -> 0 | AB9: Electrical (wire, connectors, breakers, etc.) | AC9: 107244.3485 | AD9: 1 | AE9: N
C10: =DefaultData!C19 -> Inverter | D10: =IF(ProjectData!$B$26="y",DefaultData!D19,ProjectData!B36) -> 84901.77594 | E10: =IF(ProjectData!$B$26="y",ProjectData!T36,ProjectData!E36) -> 1 | F10: =IF(ProjectData!$B$26="y",DefaultData!AH20,ProjectData!F36) -> N | G10: =IF(F10="y",J10,I10) -> 16980.35519 | H10: =IF(ProjectData!B$15="Utility",0,0.8) -> 0.8 | I10: =IF(ProjectData!B$15="Utility",0,IF(F10="N",D10*E10*(1-H10),)) -> 16980.35519 | J10: =IF(F10="Y",D10*E10,) -> 0 | AB10: Inverter | AC10: 84901.77594 | AD10: 1 | AE10: N
A11: Any changes to the data or formulas will impact the analysis and may invalidate the model results. | C11: =DefaultData!C20 -> Subtotal | D11: =SUM(D7:D10) -> 397697.7925 | G11: =SUM(G7:G10) -> 79539.55851 | I11: =SUM(I7:I10) -> 79539.55851 | J11: =SUM(J7:J10) -> 0 | AB11: Subtotal | AC11: =D11 -> 397697.7925
C12: =DefaultData!C21 -> Labor | AB12: Labor
C13: =DefaultData!C22 -> Installation | D13: =IF(ProjectData!$B$26="y",DefaultData!D22,ProjectData!B39) -> 134055.4357 | E13: =IF(ProjectData!$B$26="y",ProjectData!T39,ProjectData!E39) -> 1 | G13: =+E13*D13 -> 134055.4357 | AB13: Installation | AC13: =D13 -> 134055.4357 | AD13: 1
C14: =DefaultData!C23 -> Subtotal | D14: =IF(ProjectData!$B$26="y",DefaultData!D23,ProjectData!B40) -> 134055.4357 | G14: =G13 -> 134055.4357 | AB14: Subtotal | AC14: 134055.4357 | AD14: 0
C15: =DefaultData!C24 -> Total | D15: =IF(ProjectData!$B$26="y",DefaultData!D24,ProjectData!B41) -> 531753.2282 | G15: =G14+G11 -> 213594.9942 | AB15: Total | AC15: 531753.2282 | AD15: 0
C16: =DefaultData!C25 -> Other Costs | AB16: Other Costs
C17: =DefaultData!C26 -> Permitting, Fees, and Taxes | D17: =IF(ProjectData!$B$26="y",DefaultData!D26,ProjectData!B43) -> 178740.5809 | E17: =IF(ProjectData!$B$26="y",ProjectData!T43,ProjectData!E43) -> 1 | G17: =+E17*D17 -> 178740.5809 | AB17: Permitting, Fees, and Taxes | AC17: =D17 -> 178740.5809 | AD17: 1
A18: To view the data and formulas simply scroll over to the adjacent columns to the right. | C18: =DefaultData!C27 -> Other Costs | D18: =IF(ProjectData!$B$26="y",DefaultData!D27,ProjectData!B44) -> 339607.1037 | E18: =IF(ProjectData!$B$26="y",ProjectData!T44,ProjectData!E44) -> 1 | G18: =+E18*D18 -> 339607.1037 | AB18: =C18 -> Other Costs | AC18: 339607.1037 | AD18: 1
C19: =DefaultData!C28 -> Business Overhead | D19: =IF(ProjectData!$B$26="y",DefaultData!D28,ProjectData!B45) -> 294921.9585 | E19: =IF(ProjectData!$B$26="y",ProjectData!T45,ProjectData!E45) -> 1 | G19: =+E19*D19 -> 294921.9585 | AB19: =C19 -> Business Overhead | AC19: 294921.9585 | AD19: 1
C20: =DefaultData!C29 -> Subtotal | D20: =IF(ProjectData!$B$26="y",DefaultData!D29,ProjectData!B46) -> 813269.6432 | G20: =SUM(G17:G19) -> 813269.6432 | AB20: Subtotal | AC20: =D20 -> 813269.6432
C21: Subtotal | D21: =IF(ProjectData!$B$26="y",DefaultData!D30,ProjectData!B47) -> 1345022.871 | G21: =G20+G15+G11 -> 1106404.196 | J21: Payroll expense | L21: User Revised | AB21: =C21 -> Subtotal | AC21: =AC20+AC15 -> 1345022.871
C22: Sales Tax (Materials & Equipment Purchases) | D22: =IF(ProjectData!$B$26="y",DefaultData!$D31,ProjectData!B48) -> 0 | E22: =IF(ProjectData!$B$26="y",DefaultData!F58,ProjectData!D77) -> 1 | G22: =+E22*D22 -> 0 | J22: Govt | K22: 0.07118694551 | L22: =(K22/K$24)*ProjectData!D81 -> 0.07118694551 | AB22: =C22 -> Sales Tax (Materials & Equipment Purchases) | AC22: 0 | AD22: 1
C23: Total | D23: =D22+D21 -> 1345022.871 | G23: =G22+G21 -> 1106404.196 | J23: Health/Ins/Misc | K23: =0.4557-K22 -> 0.3845130545 | L23: =(K23/K$24)*ProjectData!D81 -> 0.3845130545 | N23: User | AB23: Total | AC23: =AC22+AC21 -> 1345022.871
D24: =D21/(DefaultData!F5) -> 2690.045743 | J24: Total | K24: =K23+K22 -> 0.4557 | L24: =L23+L22 -> 0.4557 | N24: Revised Data
C25: Payroll Parameters | D25: Payroll Cost | E25: wage/hour | F25: Payroll expense | G25: Payroll expense | H25: Default | I25: User Revised | N25: Payroll Cost | O25: wage/hour | P25: Payroll expense | Q25: Payroll expense | AB25: =C66 -> PV System Annual Operating and Maintenance Costs | AE25: =AE4 -> Manufactured
C26: Construction Labor | K26: Default | AC26: Cost | AD26: Local Share | AE26: =AE5 -> Locally
C27: Construction workers / Installers | D27: =(E27+F27) -> 29.91467578 | E27: =IF(DefaultData!AJ61=0,21.39,21.39*DefaultData!AJ61) -> 20.55002801 | F27: =+E27*G27 -> 9.364647766 | G27: =K$24 -> 0.4557 | H27: =(G13)/(D27*(52*40)) -> 2.154451854 | I27: =(ProjectData!B39*ProjectData!E39)/(N27*40*52) -> 2.154451854 | K27: =D27*52*40 -> 62222.52562 | L27: =IF(ProjectData!B$26="Y",Calculations!H27,Calculations!I27) -> 2.154451854 | N27: =(O27+P27) -> 29.91467578 | O27: =ProjectData!B81 -> 20.55002801 | P27: =+O27*Q27 -> 9.364647766 | Q27: =ProjectData!D81 -> 0.4557 | R27: =N27*52*40 -> 62222.52562 | AB27: =C67 -> Labor
C28: O&M Labor | AB28: Technicians | AC28: =D68 -> 8965.333333 | AD28: =E68 -> 1
C29: Technicians | D29: =(E29+F29) -> 29.91467578 | E29: =E27 -> 20.55002801 | F29: =+E29*G29 -> 9.364647766 | G29: =K$24 -> 0.4557 | H29: =(G69)/(D29*(52*40)) -> 0.1440850117 | I29: =(ProjectData!B55*ProjectData!E54)/(N29*40*52) -> 0.1440850117 | K29: =D29*52*40 -> 62222.52562 | L29: =IF(ProjectData!B$26="Y",Calculations!H29,Calculations!I29) -> 0.1440850117 | N29: =(O29+P29) -> 29.91467578 | O29: =ProjectData!B83 -> 20.55002801 | P29: =+O29*Q29 -> 9.364647766 | Q29: =ProjectData!D83 -> 0.4557 | R29: =N29*52*40 -> 62222.52562 | AB29: Subtotal | AC29: =D69 -> 8965.333333
AB30: Materials and Services
H31: Eng., Prof., & Misc. Svcs. | I31: =I55+I57+I56 -> 3.853340906 | L31: Eng. & Prof. Svcs. | M31: =(M55+M56+M57)*$G64 -> 0.1816739739 | P31: Eng. & Prof. Svcs. | Q31: =(Q55+Q56+Q57)*$G64 -> 0.4602827426 | T31: Eng. & Prof. Svcs. | U31: =(U55+U56+U57)*$G64 -> 0.2924754388 | AB31: Materials & Equipment | AC31: =D71 -> 7434.666667 | AD31: =E71 -> 1 | AE31: =F71 -> N
H32: Other Sectors (not Construction) | I32: =I61-I34-I33-I31 -> 3.477038156 | L32: Other Sectors (not Construction) | M32: =((M61-M34)*G64)-M33-M31 -> 0.1544518331 | P32: Other Sectors (not Construction) | Q32: =((Q61-Q34)*G64)-Q33-Q31 -> 0.4325764028 | T32: Other Sectors (not Construction) | U32: =((U61-U34)*K64)-U33-U31 -> -0.2924754388 | AB32: Services | AC32: =D72 -> 0 | AD32: =E72 -> 1
H33: Manufacturing Jobs | I33: =SUM(I44:I49)+I60 -> 0 | J33: =SUM(J44:J49)+J60 -> 0 | L33: Mfg W&S Earnings | M33: =(SUM(M44:M49)+M60)*$G64 -> 0 | N33: =(SUM(N44:N49)+N60)*$G64 -> 0 | P33: Mfg Output | Q33: =(SUM(Q44:Q49)+Q60)*$G64 -> 0 | R33: =(SUM(R44:R49)+R60)*$G64 -> 0 | T33: Mfg Output | U33: =(SUM(U44:U49)+U60)*$G64 -> 0 | V33: =(SUM(V44:V49)+V60)*$G64 -> 0 | AB33: Subtotal | AC33: =D73 -> 7434.666667
H34: Construction | I34: =I41+I42+I43 -> 2.154451854 | L34: Construction | M34: =M41+M42+M43 -> 0.1570191318 | P34: Construction | Q34: =Q41+Q42+Q43 -> 0.1570191318 | T34: Construction | U34: =U41+U42+U43 -> 0.1570191318 | AB34: =C74 -> Sales Tax (Materials & Equipment Purchases) | AC34: =D74 -> 0 | AD34: =E74 -> 1 | AG34: Local Economic Impacts - Summary Results
C35: Year | D35: =+ProjectData!B24 -> 2010 | F35: =CONCATENATE("Convert to ",Deflators!E4, " dollars") -> Convert to 2019 dollars | G35: =Deflators!F7 -> 1.1713 | AB35: =C75 -> Average Annual Payment (Interest and Principal) | AC35: =D75 -> 156022.6531 | AD35: =E75 -> 0 | AH35: Jobs | AI35: Earnings | AJ35: Output | AK35: Value Added
C36: Installation Costs Local Demand - margined | M36: =Deflators!E4 -> 2019 | N36: Dollars | AB36: =C76 -> Property Taxes | AC36: =D76 -> 0 | AD36: =E76 -> 1 | AG36: During construction and installation period
D37: Demand | F37: Total | G37: Adj Demand | I37: Jobs | J37: Jobs | K37: Jobs | L37: Jobs | M37: Earnings | Q37: Output | U37: Value Added | AB37: =C77 -> Total | AC37: =D77 -> 172422.6531 | AG37: Project Development and Onsite Labor Impacts
I38: Direct | J38: Indirect | K38: Induced | L38: Total | M38: Direct | N38: Indirect | O38: Induced | P38: Total | Q38: Direct | R38: Indirect | S38: Induced | T38: Total | U38: Direct | V38: Indirect | W38: Induced | X38: Total | AG38: Construction and Installation Labor | AH38: =I34 -> 2.154451854 | AI38: =M34*G64*1000 -> 134.0629347 | AJ38: =Q34*$G64*1000 -> 134.0629347 | AK38: =U34*$G64*1000 -> 134.0629347
C39: Ag, Forestry, Fish & Hunting | D39: =$E$147*DefaultData!D62+$E$148*DefaultData!D63+$E$149*DefaultData!D64+$E$150*DefaultData!D65+$E$151*DefaultData!D66+$E$152*DefaultData!D67+$E$153*DefaultData!D68+$E$154*DefaultData!D69+$E$155*DefaultData!D70+$E$156*DefaultData!D71+$E$157*DefaultData!D72+$E$158*DefaultData!D73+$E$159*DefaultData!D74+$E$160*DefaultData!D75+$E$161*DefaultData!D76+$E$162*DefaultData!D77+$E$163*DefaultData!D78+$E$164*DefaultData!D79+$E$165*DefaultData!D80+$E$166*DefaultData!D81+$E$167*DefaultData!D82+$E$168*DefaultData!D83 -> 0 | F39: =D39 -> 0 | G39: =F39*G$35/10^6 -> 0 | I39: =+G39*Multipliers!D308 -> 0 | J39: =+$G39*Multipliers!E308 -> 0 | K39: =+$G39*Multipliers!F308 -> 0 | L39: =+K39+J39+I39 -> 0 | M39: =+$G39*Multipliers!H308 -> 0 | N39: =+$G39*Multipliers!I308 -> 0 | O39: =+$G39*Multipliers!J308 -> 0 | P39: =+O39+N39+M39 -> 0 | Q39: =+$G39*Multipliers!L308 -> 0 | R39: =+$G39*Multipliers!M308 -> 0 | S39: =+$G39*Multipliers!N308 -> 0 | T39: =+S39+R39+Q39 -> 0 | U39: =+$G39*Multipliers!P308 -> 0 | V39: =+$G39*Multipliers!Q308 -> 0 | W39: =+$G39*Multipliers!R308 -> 0 | X39: =+W39+V39+U39 -> 0 | AB39: Other Parameters | AG39: Construction and Installation Related Services | AH39: =I31 -> 3.853340906 | AI39: =M31*1000 -> 181.6739739 | AJ39: =Q31*1000 -> 460.2827426 | AK39: =U31*1000 -> 292.4754388
C40: Mining | D40: =$E$147*DefaultData!E62+$E$148*DefaultData!E63+$E$149*DefaultData!E64+$E$150*DefaultData!E65+$E$151*DefaultData!E66+$E$152*DefaultData!E67+$E$153*DefaultData!E68+$E$154*DefaultData!E69+$E$155*DefaultData!E70+$E$156*DefaultData!E71+$E$157*DefaultData!E72+$E$158*DefaultData!E73+$E$159*DefaultData!E74+$E$160*DefaultData!E75+$E$161*DefaultData!E76+$E$162*DefaultData!E77+$E$163*DefaultData!E78+$E$164*DefaultData!E79+$E$165*DefaultData!E80+$E$166*DefaultData!E81+$E$167*DefaultData!E82+$E$168*DefaultData!E83 -> 0 | F40: =D40 -> 0 | G40: 0 | I40: =+G40*Multipliers!D309 -> 0 | J40: =+$G40*Multipliers!E309 -> 0 | K40: =+$G40*Multipliers!F309 -> 0 | L40: 0 | M40: =+$G40*Multipliers!H309 -> 0 | N40: =+$G40*Multipliers!I309 -> 0 | O40: =+$G40*Multipliers!J309 -> 0 | P40: 0 | Q40: =+$G40*Multipliers!L309 -> 0 | R40: =+$G40*Multipliers!M309 -> 0 | S40: =+$G40*Multipliers!N309 -> 0 | T40: 0 | U40: =+$G40*Multipliers!P309 -> 0 | V40: =+$G40*Multipliers!Q309 -> 0 | W40: =+$G40*Multipliers!R309 -> 0 | X40: 0 | AD40: Local Share | AG40: Subtotal | AH40: =AH38+AH39 -> 6.00779276 | AI40: =AI38+AI39 -> 315.7369086 | AJ40: =AJ38+AJ39 -> 594.3456774 | AK40: =AK38+AK39 -> 426.5383736
C41: Construction | D41: =$E$147*DefaultData!F62+$E$148*DefaultData!F63+$E$149*DefaultData!F64+$E$150*DefaultData!F65+$E$151*DefaultData!F66+$E$152*DefaultData!F67+$E$153*DefaultData!F68+$E$154*DefaultData!F69+$E$155*DefaultData!F70+$E$156*DefaultData!F71+$E$157*DefaultData!F72+$E$158*DefaultData!F73+$E$159*DefaultData!F74+$E$160*DefaultData!F75+$E$161*DefaultData!F76+$E$162*DefaultData!F77+$E$163*DefaultData!F78+$E$164*DefaultData!F79+$E$165*DefaultData!F80+$E$166*DefaultData!F81+$E$167*DefaultData!F82+$E$168*DefaultData!F83 -> 0 | F41: 0 | G41: 0 | H41: =G13*G35/10^6 -> 0.1570191318 | I41: =+G41*Multipliers!D310 -> 0 | J41: =+$G41*Multipliers!E310 -> 0 | K41: =+$G41*Multipliers!F310 -> 0 | L41: 0 | M41: =+$G41*Multipliers!H310 -> 0 | N41: =+$G41*Multipliers!I310 -> 0 | O41: =+$G41*Multipliers!J310 -> 0 | P41: 0 | Q41: =+$G41*Multipliers!L310 -> 0 | R41: =+$G41*Multipliers!M310 -> 0 | S41: =+$G41*Multipliers!N310 -> 0 | T41: 0 | U41: =+$G41*Multipliers!P310 -> 0 | V41: =+$G41*Multipliers!Q310 -> 0 | W41: =+$G41*Multipliers!R310 -> 0 | X41: 0 | AB41: Financial Parameters | AG41: Module and Supply Chain Impacts
C42: Construction/Installations - Non Residential | D42: =$E$147*DefaultData!G62+$E$148*DefaultData!G63+$E$149*DefaultData!G64+$E$150*DefaultData!G65+$E$151*DefaultData!G66+$E$152*DefaultData!G67+$E$153*DefaultData!G68+$E$154*DefaultData!G69+$E$155*DefaultData!G70+$E$156*DefaultData!G71+$E$157*DefaultData!G72+$E$158*DefaultData!G73+$E$159*DefaultData!G74+$E$160*DefaultData!G75+$E$161*DefaultData!G76+$E$162*DefaultData!G77+$E$163*DefaultData!G78+$E$164*DefaultData!G79+$E$165*DefaultData!G80+$E$166*DefaultData!G81+$E$167*DefaultData!G82+$E$168*DefaultData!G83 -> 134055.4357 | F42: 134055.4357 | G42: 0.1570191318 | H42: =G42-H$41 -> 0 | I42: =IF(F42>0,(H$42*Multipliers!D311)+L27,0) -> 2.154451854 | J42: =+$G42*Multipliers!E311 -> 0.3156646678 | K42: =+$G42*Multipliers!F311 -> 0.2950215196 | L42: 2.765138041 | M42: =IF(F42>0,H$41+($H42*Multipliers!H311),0) -> 0.1570191318 | N42: =+$G42*Multipliers!I311 -> 0.01553060531 | O42: =+$G42*Multipliers!J311 -> 0.01310654395 | P42: 0.1856562811 | Q42: =+$G42*Multipliers!L311 -> 0.1570191318 | R42: =+$G42*Multipliers!M311 -> 0.05378784572 | S42: =+$G42*Multipliers!N311 -> 0.04516749538 | T42: 0.2559744729 | U42: =IF(F42>0,H$41+($H42*Multipliers!P311),0) -> 0.1570191318 | V42: =+$G42*Multipliers!Q311 -> 0.02916379143 | W42: =+$G42*Multipliers!R311 -> 0.02555125226 | X42: 0.2117341755 | AB42: =DefaultData!C46 -> Debt Financing | AG42: Manufacturing | AH42: =I33+J33 -> 0 | AI42: =(M33+N33)*1000*G64 -> 0 | AJ42: =(Q33+R33)*1000 -> 0 | AK42: =(U33+V33)*1000 -> 0
C43: Construction/Installation Residential | D43: =$E$147*DefaultData!H62+$E$148*DefaultData!H63+$E$149*DefaultData!H64+$E$150*DefaultData!H65+$E$151*DefaultData!H66+$E$152*DefaultData!H67+$E$153*DefaultData!H68+$E$154*DefaultData!H69+$E$155*DefaultData!H70+$E$156*DefaultData!H71+$E$157*DefaultData!H72+$E$158*DefaultData!H73+$E$159*DefaultData!H74+$E$160*DefaultData!H75+$E$161*DefaultData!H76+$E$162*DefaultData!H77+$E$163*DefaultData!H78+$E$164*DefaultData!H79+$E$165*DefaultData!H80+$E$166*DefaultData!H81+$E$167*DefaultData!H82+$E$168*DefaultData!H83 -> 0 | F43: 0 | G43: 0 | H43: =G43-H$41 -> -0.1570191318 | I43: =IF(F43>0,(H$43*Multipliers!D312)+L27,0) -> 0 | J43: =+$G43*Multipliers!E312 -> 0 | K43: =+$G43*Multipliers!F312 -> 0 | L43: 0 | M43: =IF(F43>0,H$41+($H43*Multipliers!H312),0) -> 0 | N43: =+$G43*Multipliers!I312 -> 0 | O43: =+$G43*Multipliers!J312 -> 0 | P43: 0 | Q43: =+$G43*Multipliers!L312 -> 0 | R43: =+$G43*Multipliers!M312 -> 0 | S43: =+$G43*Multipliers!N312 -> 0 | T43: 0 | U43: =IF(F43>0,H$41+($H43*Multipliers!P312),0) -> 0 | V43: =+$G43*Multipliers!Q312 -> 0 | W43: =+$G43*Multipliers!R312 -> 0 | X43: 0 | AB43: =DefaultData!C47 -> Percentage financed | AC43: =IF(ProjectData!$B$26="y",DefaultData!D47,ProjectData!B67) -> 0.8 | AD43: =IF(ProjectData!$B$26="y",DefaultData!F47,ProjectData!D67) -> 0 | AG43: Trade (Wholesale and Retail) | AH43: =I50+I51+J50+J51 -> 0.9207047155 | AI43: =(M50+M51+N50+N51)*1000*G64 -> 52.00131343 | AJ43: =(Q50+R50+Q51+R51)*1000*$G64 -> 183.2392059 | AK43: =(U50+V50+U51+V51)*1000*$G64 -> 103.3382654
C44: Manufacturing | D44: =$E$147*DefaultData!I62+$E$148*DefaultData!I63+$E$149*DefaultData!I64+$E$150*DefaultData!I65+$E$151*DefaultData!I66+$E$152*DefaultData!I67+$E$153*DefaultData!I68+$E$154*DefaultData!I69+$E$155*DefaultData!I70+$E$156*DefaultData!I71+$E$157*DefaultData!I72+$E$158*DefaultData!I73+$E$159*DefaultData!I74+$E$160*DefaultData!I75+$E$161*DefaultData!I76+$E$162*DefaultData!I77+$E$163*DefaultData!I78+$E$164*DefaultData!I79+$E$165*DefaultData!I80+$E$166*DefaultData!I81+$E$167*DefaultData!I82+$E$168*DefaultData!I83 -> 0 | F44: 0 | G44: 0 | I44: =+G44*Multipliers!D313 -> 0 | J44: =+$G44*Multipliers!E313 -> 0 | K44: =+$G44*Multipliers!F313 -> 0 | L44: 0 | M44: =+$G44*Multipliers!H313 -> 0 | N44: =+$G44*Multipliers!I313 -> 0 | O44: =+$G44*Multipliers!J313 -> 0 | P44: 0 | Q44: =+$G44*Multipliers!L313 -> 0 | R44: =+$G44*Multipliers!M313 -> 0 | S44: =+$G44*Multipliers!N313 -> 0 | T44: 0 | U44: =+$G44*Multipliers!P313 -> 0 | V44: =+$G44*Multipliers!Q313 -> 0 | W44: =+$G44*Multipliers!R313 -> 0 | X44: 0 | AB44: =DefaultData!C48 -> Years financed (term) | AC44: =IF(ProjectData!$B$26="y",DefaultData!D48,ProjectData!B68) -> 10 | AG44: Finance, Insurance and Real Estate | AH44: =I53+I54+J53+J54 -> 0 | AI44: =(M53+M54+N53+N54)*1000*G64 -> 0 | AJ44: =(Q53+R53+Q54+R54)*1000*$G64 -> 0 | AK44: =(U53+V53+U54+V54)*1000*$G64 -> 0
C45: Fabricated Metals | D45: =$E$147*DefaultData!J62+$E$148*DefaultData!J63+$E$149*DefaultData!J64+$E$150*DefaultData!J65+$E$151*DefaultData!J66+$E$152*DefaultData!J67+$E$153*DefaultData!J68+$E$154*DefaultData!J69+$E$155*DefaultData!J70+$E$156*DefaultData!J71+$E$157*DefaultData!J72+$E$158*DefaultData!J73+$E$159*DefaultData!J74+$E$160*DefaultData!J75+$E$161*DefaultData!J76+$E$162*DefaultData!J77+$E$163*DefaultData!J78+$E$164*DefaultData!J79+$E$165*DefaultData!J80+$E$166*DefaultData!J81+$E$167*DefaultData!J82+$E$168*DefaultData!J83 -> 0 | F45: 0 | G45: 0 | I45: =+G45*Multipliers!D314 -> 0 | J45: =+$G45*Multipliers!E314 -> 0 | K45: =+$G45*Multipliers!F314 -> 0 | L45: =+K45+J45+I45 -> 0 | M45: =+$G45*Multipliers!H314 -> 0 | N45: =+$G45*Multipliers!I314 -> 0 | O45: =+$G45*Multipliers!J314 -> 0 | P45: =+O45+N45+M45 -> 0 | Q45: =+$G45*Multipliers!L314 -> 0 | R45: =+$G45*Multipliers!M314 -> 0 | S45: =+$G45*Multipliers!N314 -> 0 | T45: =+S45+R45+Q45 -> 0 | U45: =+$G45*Multipliers!P314 -> 0 | V45: =+$G45*Multipliers!Q314 -> 0 | W45: =+$G45*Multipliers!R314 -> 0 | X45: 0 | AB45: =DefaultData!C49 -> Interest rate | AC45: =IF(ProjectData!$B$26="y",DefaultData!D49,ProjectData!B69) -> 0.1 | AG45: Professional Services | AH45: =J55+J56+J57 -> 1.195475251 | AI45: =(N55+N56+N57)*1000*G64 -> 51.1547247 | AJ45: =(R55+R56+R57)*1000*$G64 -> 158.0018559 | AK45: =(V55+V56+V57)*1000*$G64 -> 89.84121216
C46: Machinery | D46: =$E$147*DefaultData!K62+$E$148*DefaultData!K63+$E$149*DefaultData!K64+$E$150*DefaultData!K65+$E$151*DefaultData!K66+$E$152*DefaultData!K67+$E$153*DefaultData!K68+$E$154*DefaultData!K69+$E$155*DefaultData!K70+$E$156*DefaultData!K71+$E$157*DefaultData!K72+$E$158*DefaultData!K73+$E$159*DefaultData!K74+$E$160*DefaultData!K75+$E$161*DefaultData!K76+$E$162*DefaultData!K77+$E$163*DefaultData!K78+$E$164*DefaultData!K79+$E$165*DefaultData!K80+$E$166*DefaultData!K81+$E$167*DefaultData!K82+$E$168*DefaultData!K83 -> 0 | F46: 0 | G46: 0 | I46: =+G46*Multipliers!D315 -> 0 | J46: =+$G46*Multipliers!E315 -> 0 | K46: =+$G46*Multipliers!F315 -> 0 | L46: 0 | M46: =+$G46*Multipliers!H315 -> 0 | N46: =+$G46*Multipliers!I315 -> 0 | O46: =+$G46*Multipliers!J315 -> 0 | P46: 0 | Q46: =+$G46*Multipliers!L315 -> 0 | R46: =+$G46*Multipliers!M315 -> 0 | S46: =+$G46*Multipliers!N315 -> 0 | T46: 0 | U46: =+$G46*Multipliers!P315 -> 0 | V46: =+$G46*Multipliers!Q315 -> 0 | W46: =+$G46*Multipliers!R315 -> 0 | X46: 0 | AB46: =DefaultData!C51 -> Tax Parameters | AG46: Other Services | AH46: =J58+K58 -> 1.467913322 | AI46: =(M58+N58)*1000*G64 -> 119.748538 | AJ46: =(Q58+R58)*1000*$G64 -> 328.4971894 | AK46: =(U58+V58)*1000*$G64 -> 188.1253292
C47: Electrical Equip | D47: =$E$147*DefaultData!L62+$E$148*DefaultData!L63+$E$149*DefaultData!L64+$E$150*DefaultData!L65+$E$151*DefaultData!L66+$E$152*DefaultData!L67+$E$153*DefaultData!L68+$E$154*DefaultData!L69+$E$155*DefaultData!L70+$E$156*DefaultData!L71+$E$157*DefaultData!L72+$E$158*DefaultData!L73+$E$159*DefaultData!L74+$E$160*DefaultData!L75+$E$161*DefaultData!L76+$E$162*DefaultData!L77+$E$163*DefaultData!L78+$E$164*DefaultData!L79+$E$165*DefaultData!L80+$E$166*DefaultData!L81+$E$167*DefaultData!L82+$E$168*DefaultData!L83 -> 0 | F47: 0 | G47: 0 | I47: =+G47*Multipliers!D316 -> 0 | J47: =+$G47*Multipliers!E316 -> 0 | K47: =+$G47*Multipliers!F316 -> 0 | L47: 0 | M47: =+$G47*Multipliers!H316 -> 0 | N47: =+$G47*Multipliers!I316 -> 0 | O47: =+$G47*Multipliers!J316 -> 0 | P47: 0 | Q47: =+$G47*Multipliers!L316 -> 0 | R47: =+$G47*Multipliers!M316 -> 0 | S47: =+$G47*Multipliers!N316 -> 0 | T47: 0 | U47: =+$G47*Multipliers!P316 -> 0 | V47: =+$G47*Multipliers!Q316 -> 0 | W47: =+$G47*Multipliers!R316 -> 0 | X47: 0 | AB47: =DefaultData!C52 -> Local Property Tax (percent of taxable value) | AC47: =IF(ProjectData!$B$26="y",DefaultData!D52,ProjectData!B71) -> 0 | AG47: Other Sectors | AH47: =(I61+J61)-(SUM(AH42:AH46)+AH40) -> 2.556318965 | AI47: =((M61+N61)*1000*G64)-(SUM(AI42:AI46)+AI40) -> 45.69226099 | AJ47: =((Q61+R61)*1000*$G64)-(SUM(AJ42:AJ46)+AJ40) -> 125.4414052 | AK47: =((U61+V61)*1000*$G64)-(SUM(AK42:AK46)+AK40) -> 79.00388131
C48: Battery Manufacturing | D48: =$E$147*DefaultData!M62+$E$148*DefaultData!M63+$E$149*DefaultData!M64+$E$150*DefaultData!M65+$E$151*DefaultData!M66+$E$152*DefaultData!M67+$E$153*DefaultData!M68+$E$154*DefaultData!M69+$E$155*DefaultData!M70+$E$156*DefaultData!M71+$E$157*DefaultData!M72+$E$158*DefaultData!M73+$E$159*DefaultData!M74+$E$160*DefaultData!M75+$E$161*DefaultData!M76+$E$162*DefaultData!M77+$E$163*DefaultData!M78+$E$164*DefaultData!M79+$E$165*DefaultData!M80+$E$166*DefaultData!M81+$E$167*DefaultData!M82+$E$168*DefaultData!M83 -> 0 | F48: 0 | G48: 0 | I48: =+G48*Multipliers!D317 -> 0 | J48: =+$G48*Multipliers!E317 -> 0 | K48: =+$G48*Multipliers!F317 -> 0 | L48: 0 | M48: =+$G48*Multipliers!H317 -> 0 | N48: =+$G48*Multipliers!I317 -> 0 | O48: =+$G48*Multipliers!J317 -> 0 | P48: 0 | Q48: =+$G48*Multipliers!L317 -> 0 | R48: =+$G48*Multipliers!M317 -> 0 | S48: =+$G48*Multipliers!N317 -> 0 | T48: 0 | U48: =+$G48*Multipliers!P317 -> 0 | V48: =+$G48*Multipliers!Q317 -> 0 | W48: =+$G48*Multipliers!R317 -> 0 | X48: 0 | AB48: =DefaultData!C53 -> Assessed Value (percent of construction cost) | AC48: =IF(ProjectData!$B$26="y",DefaultData!D53,ProjectData!B72) -> 0 | AG48: Subtotal | AH48: =SUM(AH42:AH47) -> 6.140412254 | AI48: =SUM(AI42:AI47) -> 268.5968372 | AJ48: =SUM(AJ42:AJ47) -> 795.1796564 | AK48: =SUM(AK42:AK47) -> 460.3086881
C49: Energy Wire Manufacturing | D49: =$E$147*DefaultData!N62+$E$148*DefaultData!N63+$E$149*DefaultData!N64+$E$150*DefaultData!N65+$E$151*DefaultData!N66+$E$152*DefaultData!N67+$E$153*DefaultData!N68+$E$154*DefaultData!N69+$E$155*DefaultData!N70+$E$156*DefaultData!N71+$E$157*DefaultData!N72+$E$158*DefaultData!N73+$E$159*DefaultData!N74+$E$160*DefaultData!N75+$E$161*DefaultData!N76+$E$162*DefaultData!N77+$E$163*DefaultData!N78+$E$164*DefaultData!N79+$E$165*DefaultData!N80+$E$166*DefaultData!N81+$E$167*DefaultData!N82+$E$168*DefaultData!N83 -> 0 | F49: 0 | G49: 0 | I49: =+G49*Multipliers!D318 -> 0 | J49: =+$G49*Multipliers!E318 -> 0 | K49: =+$G49*Multipliers!F318 -> 0 | L49: 0 | M49: =+$G49*Multipliers!H318 -> 0 | N49: =+$G49*Multipliers!I318 -> 0 | O49: =+$G49*Multipliers!J318 -> 0 | P49: 0 | Q49: =+$G49*Multipliers!L318 -> 0 | R49: =+$G49*Multipliers!M318 -> 0 | S49: =+$G49*Multipliers!N318 -> 0 | T49: 0 | U49: =+$G49*Multipliers!P318 -> 0 | V49: =+$G49*Multipliers!Q318 -> 0 | W49: =+$G49*Multipliers!R318 -> 0 | X49: 0 | AB49: =DefaultData!C54 -> Taxable Value (percent of assessed value) | AC49: =IF(ProjectData!$B$26="y",DefaultData!D54,ProjectData!B73) -> 0 | AG49: Induced Impacts | AH49: =K61 -> 3.266665569 | AI49: =O64*1000 -> 123.8992887 | AJ49: =S64*1000 -> 427.0435686 | AK49: =W64*1000 -> 241.5820524
C50: Wholesale Trade | D50: =$E$147*DefaultData!O62+$E$148*DefaultData!O63+$E$149*DefaultData!O64+$E$150*DefaultData!O65+$E$151*DefaultData!O66+$E$152*DefaultData!O67+$E$153*DefaultData!O68+$E$154*DefaultData!O69+$E$155*DefaultData!O70+$E$156*DefaultData!O71+$E$157*DefaultData!O72+$E$158*DefaultData!O73+$E$159*DefaultData!O74+$E$160*DefaultData!O75+$E$161*DefaultData!O76+$E$162*DefaultData!O77+$E$163*DefaultData!O78+$E$164*DefaultData!O79+$E$165*DefaultData!O80+$E$166*DefaultData!O81+$E$167*DefaultData!O82+$E$168*DefaultData!O83 -> 121460.7389 | F50: 121460.7389 | G50: 0.1422669635 | I50: =+G50*Multipliers!D319 -> 0.432973285 | J50: =+$G50*Multipliers!E319 -> 0.3753863213 | K50: =+$G50*Multipliers!F319 -> 0.3184983151 | L50: 1.126857921 | M50: =+$G50*Multipliers!H319 -> 0.03739700536 | N50: =+$G50*Multipliers!I319 -> 0.01945330006 | O50: =+$G50*Multipliers!J319 -> 0.01414802272 | P50: 0.07099832814 | Q50: =+$G50*Multipliers!L319 -> 0.1422669635 | R50: =+$G50*Multipliers!M319 -> 0.05969834776 | S50: =+$G50*Multipliers!N319 -> 0.04876982643 | T50: 0.2507351377 | U50: =+$G50*Multipliers!P319 -> 0.07929291891 | V50: =+$G50*Multipliers!Q319 -> 0.03412059719 | W50: =+$G50*Multipliers!R319 -> 0.02758983223 | X50: 0.1410033483 | AB50: =DefaultData!C55 -> Taxable Value | AC50: =IF(ProjectData!$B$26="y",DefaultData!D55,ProjectData!B74) -> 0 | AG50: Total Impacts (Direct, Indirect, Induced) | AH50: =AH49+AH48+AH40 -> 15.41487058 | AI50: =AI49+AI48+AI40 -> 708.2330345 | AJ50: =AJ49+AJ48+AJ40 -> 1816.568902 | AK50: =AK49+AK48+AK40 -> 1128.429114
C51: Retail trade | D51: =$E$147*DefaultData!P62+$E$148*DefaultData!P63+$E$149*DefaultData!P64+$E$150*DefaultData!P65+$E$151*DefaultData!P66+$E$152*DefaultData!P67+$E$153*DefaultData!P68+$E$154*DefaultData!P69+$E$155*DefaultData!P70+$E$156*DefaultData!P71+$E$157*DefaultData!P72+$E$158*DefaultData!P73+$E$159*DefaultData!P74+$E$160*DefaultData!P75+$E$161*DefaultData!P76+$E$162*DefaultData!P77+$E$163*DefaultData!P78+$E$164*DefaultData!P79+$E$165*DefaultData!P80+$E$166*DefaultData!P81+$E$167*DefaultData!P82+$E$168*DefaultData!P83 -> 7910.043759 | F51: 7910.043759 | G51: 0.009265034254 | I51: =+G51*Multipliers!D320 -> 0.09156300739 | J51: =+$G51*Multipliers!E320 -> 0.02078210185 | K51: =+$G51*Multipliers!F320 -> 0.02289733697 | L51: 0.1352424462 | M51: =+$G51*Multipliers!H320 -> 0.003042266648 | N51: =+$G51*Multipliers!I320 -> 0.001013159291 | O51: =+$G51*Multipliers!J320 -> 0.001017124725 | P51: 0.005072550664 | Q51: =+$G51*Multipliers!L320 -> 0.009265034254 | R51: =+$G51*Multipliers!M320 -> 0.003385730733 | S51: =+$G51*Multipliers!N320 -> 0.003506074263 | T51: 0.01615683925 | U51: =+$G51*Multipliers!P320 -> 0.005703814508 | V51: =+$G51*Multipliers!Q320 -> 0.001916009084 | W51: =+$G51*Multipliers!R320 -> 0.001983430738 | X51: 0.00960325433 | AB51: =DefaultData!C56 -> Property Tax Exemption (percent of local taxes) | AC51: =IF(ProjectData!$B$26="y",DefaultData!D56,ProjectData!B75) -> 1
C52: TCPU | D52: =$E$147*DefaultData!Q62+$E$148*DefaultData!Q63+$E$149*DefaultData!Q64+$E$150*DefaultData!Q65+$E$151*DefaultData!Q66+$E$152*DefaultData!Q67+$E$153*DefaultData!Q68+$E$154*DefaultData!Q69+$E$155*DefaultData!Q70+$E$156*DefaultData!Q71+$E$157*DefaultData!Q72+$E$158*DefaultData!Q73+$E$159*DefaultData!Q74+$E$160*DefaultData!Q75+$E$161*DefaultData!Q76+$E$162*DefaultData!Q77+$E$163*DefaultData!Q78+$E$164*DefaultData!Q79+$E$165*DefaultData!Q80+$E$166*DefaultData!Q81+$E$167*DefaultData!Q82+$E$168*DefaultData!Q83 -> 30274.58448 | F52: 30274.58448 | G52: 0.03546062081 | I52: =+G52*Multipliers!D321 -> 0.07988494188 | J52: =+$G52*Multipliers!E321 -> 0.07274604516 | K52: =+$G52*Multipliers!F321 -> 0.06171257938 | L52: 0.2143435664 | M52: =+$G52*Multipliers!H321 -> 0.006881629916 | N52: =+$G52*Multipliers!I321 -> 0.004025383292 | O52: =+$G52*Multipliers!J321 -> 0.002741354213 | P52: 0.01364836742 | Q52: =+$G52*Multipliers!L321 -> 0.03546062081 | R52: =+$G52*Multipliers!M321 -> 0.01426754532 | S52: =+$G52*Multipliers!N321 -> 0.009449510772 | T52: 0.0591776769 | U52: =+$G52*Multipliers!P321 -> 0.01849824561 | V52: =+$G52*Multipliers!Q321 -> 0.007805981919 | W52: =+$G52*Multipliers!R321 -> 0.005345724047 | X52: 0.03164995157 | AB52: =DefaultData!C57 -> Local Property Taxes | AC52: =IF(ProjectData!$B$26="y",DefaultData!D57,ProjectData!B76) -> 0 | AD52: =IF(ProjectData!$B$26="y",DefaultData!F57,ProjectData!D76) -> 1 | AG52: During operating years (annual)
C53: Insurance and Real Estate | D53: =$E$147*DefaultData!R62+$E$148*DefaultData!R63+$E$149*DefaultData!R64+$E$150*DefaultData!R65+$E$151*DefaultData!R66+$E$152*DefaultData!R67+$E$153*DefaultData!R68+$E$154*DefaultData!R69+$E$155*DefaultData!R70+$E$156*DefaultData!R71+$E$157*DefaultData!R72+$E$158*DefaultData!R73+$E$159*DefaultData!R74+$E$160*DefaultData!R75+$E$161*DefaultData!R76+$E$162*DefaultData!R77+$E$163*DefaultData!R78+$E$164*DefaultData!R79+$E$165*DefaultData!R80+$E$166*DefaultData!R81+$E$167*DefaultData!R82+$E$168*DefaultData!R83 -> 0 | F53: 0 | G53: 0 | I53: =+G53*Multipliers!D322 -> 0 | J53: =+$G53*Multipliers!E322 -> 0 | K53: =+$G53*Multipliers!F322 -> 0 | L53: 0 | M53: =+$G53*Multipliers!H322 -> 0 | N53: =+$G53*Multipliers!I322 -> 0 | O53: =+$G53*Multipliers!J322 -> 0 | P53: 0 | Q53: =+$G53*Multipliers!L322 -> 0 | R53: =+$G53*Multipliers!M322 -> 0 | S53: =+$G53*Multipliers!N322 -> 0 | T53: 0 | U53: =+$G53*Multipliers!P322 -> 0 | V53: =+$G53*Multipliers!Q322 -> 0 | W53: =+$G53*Multipliers!R322 -> 0 | X53: 0 | AB53: =DefaultData!C58 -> Local Sales Tax Rate | AC53: =IF(ProjectData!$B$26="y",DefaultData!D58,ProjectData!B77) -> 0.056 | AD53: =IF(ProjectData!$B$26="y",DefaultData!F58,ProjectData!D77) -> 1 | AG53: Onsite Labor Impacts
C54: Finance | D54: =$E$147*DefaultData!S62+$E$148*DefaultData!S63+$E$149*DefaultData!S64+$E$150*DefaultData!S65+$E$151*DefaultData!S66+$E$152*DefaultData!S67+$E$153*DefaultData!S68+$E$154*DefaultData!S69+$E$155*DefaultData!S70+$E$156*DefaultData!S71+$E$157*DefaultData!S72+$E$158*DefaultData!S73+$E$159*DefaultData!S74+$E$160*DefaultData!S75+$E$161*DefaultData!S76+$E$162*DefaultData!S77+$E$163*DefaultData!S78+$E$164*DefaultData!S79+$E$165*DefaultData!S80+$E$166*DefaultData!S81+$E$167*DefaultData!S82+$E$168*DefaultData!S83 -> 0 | F54: 0 | G54: 0 | I54: =+G54*Multipliers!D323 -> 0 | J54: =+$G54*Multipliers!E323 -> 0 | K54: =+$G54*Multipliers!F323 -> 0 | L54: 0 | M54: =+$G54*Multipliers!H323 -> 0 | N54: =+$G54*Multipliers!I323 -> 0 | O54: =+$G54*Multipliers!J323 -> 0 | P54: 0 | Q54: =+$G54*Multipliers!L323 -> 0 | R54: =+$G54*Multipliers!M323 -> 0 | S54: =+$G54*Multipliers!N323 -> 0 | T54: 0 | U54: =+$G54*Multipliers!P323 -> 0 | V54: =+$G54*Multipliers!Q323 -> 0 | W54: =+$G54*Multipliers!R323 -> 0 | X54: 0 | AB54: Sales Tax Exemption (percent of local taxes) | AC54: =IF(ProjectData!$B$26="y",DefaultData!D59,ProjectData!B78) -> 1 | AG54: PV Project Labor Only | AH54: =L143 -> 0.1440850117 | AI54: =P145*1000 -> 8.327584457 | AJ54: =T145*1000 -> 8.327584457 | AK54: =X145*1000 -> 8.327584457
C55: Other Professional Services | D55: =$E$147*DefaultData!T62+$E$148*DefaultData!T63+$E$149*DefaultData!T64+$E$150*DefaultData!T65+$E$151*DefaultData!T66+$E$152*DefaultData!T67+$E$153*DefaultData!T68+$E$154*DefaultData!T69+$E$155*DefaultData!T70+$E$156*DefaultData!T71+$E$157*DefaultData!T72+$E$158*DefaultData!T73+$E$159*DefaultData!T74+$E$160*DefaultData!T75+$E$161*DefaultData!T76+$E$162*DefaultData!T77+$E$163*DefaultData!T78+$E$164*DefaultData!T79+$E$165*DefaultData!T80+$E$166*DefaultData!T81+$E$167*DefaultData!T82+$E$168*DefaultData!T83 -> 0 | F55: 0 | G55: 0 | I55: =+G55*Multipliers!D324 -> 0 | J55: =+$G55*Multipliers!E324 -> 0 | K55: =+$G55*Multipliers!F324 -> 0 | L55: 0 | M55: =+$G55*Multipliers!H324 -> 0 | N55: =+$G55*Multipliers!I324 -> 0 | O55: =+$G55*Multipliers!J324 -> 0 | P55: 0 | Q55: =+$G55*Multipliers!L324 -> 0 | R55: =+$G55*Multipliers!M324 -> 0 | S55: =+$G55*Multipliers!N324 -> 0 | T55: 0 | U55: =+$G55*Multipliers!P324 -> 0 | V55: =+$G55*Multipliers!Q324 -> 0 | W55: =+$G55*Multipliers!R324 -> 0 | X55: 0 | AG55: Local Revenue and Supply Chain Impacts | AH55: =(L173-AH54)+M173 -> 0.05468541675 | AI55: =((P174+Q174)*1000)-AI54 -> 2.835556673 | AJ55: =((T174+U174)*1000)-AJ54 -> 10.26629276 | AK55: =((X174+Y174)*1000)-AK54 -> 5.717336214
C56: Office Services | D56: =$E$147*DefaultData!U62+$E$148*DefaultData!U63+$E$149*DefaultData!U64+$E$150*DefaultData!U65+$E$151*DefaultData!U66+$E$152*DefaultData!U67+$E$153*DefaultData!U68+$E$154*DefaultData!U69+$E$155*DefaultData!U70+$E$156*DefaultData!U71+$E$157*DefaultData!U72+$E$158*DefaultData!U73+$E$159*DefaultData!U74+$E$160*DefaultData!U75+$E$161*DefaultData!U76+$E$162*DefaultData!U77+$E$163*DefaultData!U78+$E$164*DefaultData!U79+$E$165*DefaultData!U80+$E$166*DefaultData!U81+$E$167*DefaultData!U82+$E$168*DefaultData!U83 -> 317264.5311 | F56: 317264.5311 | G56: 0.3716119453 | I56: =+G56*Multipliers!D325 -> 2.780453715 | J56: =+$G56*Multipliers!E325 -> 0.7884535237 | K56: =+$G56*Multipliers!F325 -> 1.086078274 | L56: 4.654985513 | M56: =+$G56*Multipliers!H325 -> 0.1436830154 | N56: =+$G56*Multipliers!I325 -> 0.03875838267 | O56: =+$G56*Multipliers!J325 -> 0.04824786531 | P56: 0.2306892634 | Q56: =+$G56*Multipliers!L325 -> 0.3716119453 | R56: =+$G56*Multipliers!M325 -> 0.1212525184 | S56: =+$G56*Multipliers!N325 -> 0.1662870552 | T56: 0.6591515189 | U56: =+$G56*Multipliers!P325 -> 0.2471141398 | V56: =+$G56*Multipliers!Q325 -> 0.06928407431 | W56: =+$G56*Multipliers!R325 -> 0.09406947622 | X56: 0.4104676903 | AG56: Induced Impacts | AH56: =N173 -> 0.03238158023 | AI56: =R174*1000 -> 1.228154601 | AJ56: =V174*1000 -> 4.233328871 | AK56: =Z174*1000 -> 2.394843159
C57: Architectural and Engineering Services | D57: =$E$147*DefaultData!V62+$E$148*DefaultData!V63+$E$149*DefaultData!V64+$E$150*DefaultData!V65+$E$151*DefaultData!V66+$E$152*DefaultData!V67+$E$153*DefaultData!V68+$E$154*DefaultData!V69+$E$155*DefaultData!V70+$E$156*DefaultData!V71+$E$157*DefaultData!V72+$E$158*DefaultData!V73+$E$159*DefaultData!V74+$E$160*DefaultData!V75+$E$161*DefaultData!V76+$E$162*DefaultData!V77+$E$163*DefaultData!V78+$E$164*DefaultData!V79+$E$165*DefaultData!V80+$E$166*DefaultData!V81+$E$167*DefaultData!V82+$E$168*DefaultData!V83 -> 142992.4647 | F57: 142992.4647 | G57: 0.1674870739 | I57: =+G57*Multipliers!D326 -> 1.072887191 | J57: =+$G57*Multipliers!E326 -> 0.4070217275 | K57: =+$G57*Multipliers!F326 -> 0.5393785552 | L57: 2.019287474 | M57: =+$G57*Multipliers!H326 -> 0.06909980712 | N57: =+$G57*Multipliers!I326 -> 0.02115579477 | O57: =+$G57*Multipliers!J326 -> 0.02396137075 | P57: 0.1142169726 | Q57: =+$G57*Multipliers!L326 -> 0.1674870739 | R57: =+$G57*Multipliers!M326 -> 0.06380470328 | S57: =+$G57*Multipliers!N326 -> 0.08258251657 | T57: 0.3138742938 | U57: =+$G57*Multipliers!P326 -> 0.09544317903 | V57: =+$G57*Multipliers!Q326 -> 0.0359410512 | W57: =+$G57*Multipliers!R326 -> 0.04671733702 | X57: 0.1781015673 | AG57: Total Impacts (Direct, Indirect, Induced) | AH57: =SUM(AH54:AH56) -> 0.2311520087 | AI57: =SUM(AI54:AI56) -> 12.39129573 | AJ57: =SUM(AJ54:AJ56) -> 22.82720609 | AK57: =SUM(AK54:AK56) -> 16.43976383
C58: Other services | D58: =$E$147*DefaultData!W62+$E$148*DefaultData!W63+$E$149*DefaultData!W64+$E$150*DefaultData!W65+$E$151*DefaultData!W66+$E$152*DefaultData!W67+$E$153*DefaultData!W68+$E$154*DefaultData!W69+$E$155*DefaultData!W70+$E$156*DefaultData!W71+$E$157*DefaultData!W72+$E$158*DefaultData!W73+$E$159*DefaultData!W74+$E$160*DefaultData!W75+$E$161*DefaultData!W76+$E$162*DefaultData!W77+$E$163*DefaultData!W78+$E$164*DefaultData!W79+$E$165*DefaultData!W80+$E$166*DefaultData!W81+$E$167*DefaultData!W82+$E$168*DefaultData!W83 -> 239164.156 | F58: 239164.156 | G58: 0.280132976 | I58: =+G58*Multipliers!D327 -> 2.532245228 | J58: =+$G58*Multipliers!E327 -> 0.6621402305 | K58: =+$G58*Multipliers!F327 -> 0.8057730914 | L58: 4.00015855 | M58: =+$G58*Multipliers!H327 -> 0.1075901118 | N58: =+$G58*Multipliers!I327 -> 0.032663505 | O58: =+$G58*Multipliers!J327 -> 0.03579427114 | P58: 0.1760478879 | Q58: =+$G58*Multipliers!L327 -> 0.280132976 | R58: =+$G58*Multipliers!M327 -> 0.1046142592 | S58: =+$G58*Multipliers!N327 -> 0.1233775659 | T58: 0.5081248011 | U58: =+$G58*Multipliers!P327 -> 0.1614857355 | V58: =+$G58*Multipliers!Q327 -> 0.05885313692 | W58: =+$G58*Multipliers!R327 -> 0.06979597136 | X58: 0.2901348437
C59: Government | D59: =$E$147*DefaultData!X62+$E$148*DefaultData!X63+$E$149*DefaultData!X64+$E$150*DefaultData!X65+$E$151*DefaultData!X66+$E$152*DefaultData!X67+$E$153*DefaultData!X68+$E$154*DefaultData!X69+$E$155*DefaultData!X70+$E$156*DefaultData!X71+$E$157*DefaultData!X72+$E$158*DefaultData!X73+$E$159*DefaultData!X74+$E$160*DefaultData!X75+$E$161*DefaultData!X76+$E$162*DefaultData!X77+$E$163*DefaultData!X78+$E$164*DefaultData!X79+$E$165*DefaultData!X80+$E$166*DefaultData!X81+$E$167*DefaultData!X82+$E$168*DefaultData!X83 -> 33742.68261 | F59: 33742.68261 | G59: 0.03952280415 | I59: =+G59*Multipliers!D328 -> 0.3403716936 | J59: =+$G59*Multipliers!E328 -> 0.02117948029 | K59: =+$G59*Multipliers!F328 -> 0.1373058972 | L59: 0.4988570711 | M59: =+$G59*Multipliers!H328 -> 0.02598829891 | N59: =+$G59*Multipliers!I328 -> 0.001090434166 | O59: =+$G59*Multipliers!J328 -> 0.006098566294 | P59: 0.03317729937 | Q59: =+$G59*Multipliers!L328 -> 0.03952280415 | R59: =+$G59*Multipliers!M328 -> 0.003882483142 | S59: =+$G59*Multipliers!N328 -> 0.02102810795 | T59: 0.06443339523 | U59: =+$G59*Multipliers!P328 -> 0.03500752139 | V59: =+$G59*Multipliers!Q328 -> 0.002056529591 | W59: =+$G59*Multipliers!R328 -> 0.01189620596 | X59: 0.04896025693
C60: Semiconductor (solar cell/module) manufacturing | D60: =$E$147*DefaultData!Y62+$E$148*DefaultData!Y63+$E$149*DefaultData!Y64+$E$150*DefaultData!Y65+$E$151*DefaultData!Y66+$E$152*DefaultData!Y67+$E$153*DefaultData!Y68+$E$154*DefaultData!Y69+$E$155*DefaultData!Y70+$E$156*DefaultData!Y71+$E$157*DefaultData!Y72+$E$158*DefaultData!Y73+$E$159*DefaultData!Y74+$E$160*DefaultData!Y75+$E$161*DefaultData!Y76+$E$162*DefaultData!Y77+$E$163*DefaultData!Y78+$E$164*DefaultData!Y79+$E$165*DefaultData!Y80+$E$166*DefaultData!Y81+$E$167*DefaultData!Y82+$E$168*DefaultData!Y83 -> 0 | F60: 0 | G60: 0 | I60: =+G60*Multipliers!D329 -> 0 | J60: =+$G60*Multipliers!E329 -> 0 | K60: =+$G60*Multipliers!F329 -> 0 | L60: 0 | M60: =+$G60*Multipliers!H329 -> 0 | N60: =+$G60*Multipliers!I329 -> 0 | O60: =+$G60*Multipliers!J329 -> 0 | P60: 0 | Q60: =+$G60*Multipliers!L329 -> 0 | R60: =+$G60*Multipliers!M329 -> 0 | S60: =+$G60*Multipliers!N329 -> 0 | T60: 0 | U60: =+$G60*Multipliers!P329 -> 0 | V60: =+$G60*Multipliers!Q329 -> 0 | W60: =+$G60*Multipliers!R329 -> 0 | X60: 0
C61: Total | D61: =SUM(D39:D60) -> 1026864.637 | F61: =SUM(F39:F60) -> 1026864.637 | G61: =SUM(G39:G60) -> 1.20276655 | I61: =SUM(I39:I60) -> 9.484830916 | J61: =SUM(J39:J60) -> 2.663374098 | K61: =SUM(K39:K60) -> 3.266665569 | L61: =SUM(L39:L60) -> 15.41487058 | M61: =SUM(M39:M60) -> 0.550701267 | N61: =SUM(N39:N60) -> 0.1336905646 | O61: 0.1451151191 | P61: 0.8295069507 | Q61: 1.20276655 | R61: 0.4246934336 | S61: 0.5001681525 | T61: 2.127628136 | U61: =SUM(U39:U60) -> 0.7995646865 | V61: 0.2391411716 | W61: 0.2829492298 | X61: 1.321655088
F63: Inflator to | G63: =D35 -> 2010 | H63: Dollars
G64: =Deflators!F8 -> 0.8538 | I64: Manufactured | M64: =M61*$G64 -> 0.4701887418 | N64: 0.114145004 | O64: 0.1238992887 | P64: 0.7082330345 | Q64: 1.02692208 | R64: 0.3626032536 | S64: 0.4270435686 | T64: 1.816568902 | U64: =U61*$G64 -> 0.6826683293 | V64: 0.2041787323 | W64: 0.2415820524 | X64: 1.128429114
I65: Locally
C66: =DefaultData!C33 -> PV System Annual Operating and Maintenance Costs | I66: To Wholesale | J66: To Mfg.
C67: =DefaultData!C34 -> Labor | D67: Cost | E67: Local Share | F67: Manufactured | G67: Local $ Spending | H67: Wholesale Share | I67: N | J67: Y
C68: =DefaultData!C35 -> Technicians | D68: =IF(ProjectData!$B$26="y",DefaultData!D35,ProjectData!B54) -> 8965.333333 | E68: =IF(ProjectData!$B$26="y",ProjectData!T54,ProjectData!E54) -> 1 | F68: Locally | G68: =D68*E68 -> 8965.333333
C69: =DefaultData!C36 -> Subtotal | D69: =D68 -> 8965.333333 | G69: =G68 -> 8965.333333
C70: =DefaultData!C37 -> Materials and Services
C71: =DefaultData!C38 -> Materials & Equipment | D71: =IF(ProjectData!$B$26="y",DefaultData!D38,ProjectData!B58) -> 7434.666667 | E71: =IF(ProjectData!$B$26="y",ProjectData!T58,ProjectData!E58) -> 1 | F71: =IF(ProjectData!$B$26="y",DefaultData!AH38,ProjectData!F58) -> N | G71: =IF(F71="y",J71,I71) -> 5947.733333 | H71: 0.2 | I71: =IF(F71="N",D71*E71*(1-H71),) -> 5947.733333 | J71: =IF(F71="Y",D71*E71,) -> 0
C72: =DefaultData!C39 -> Services | D72: =IF(ProjectData!$B$26="y",DefaultData!D39,ProjectData!B59) -> 0 | E72: =IF(ProjectData!$B$26="y",ProjectData!T59,ProjectData!E59) -> 1 | G72: =D72*E72 -> 0
C73: =DefaultData!C40 -> Subtotal | D73: =SUM(D71:D72) -> 7434.666667 | G73: =SUM(G71:G72) -> 5947.733333
C74: =DefaultData!C41 -> Sales Tax (Materials & Equipment Purchases) | D74: =IF(ProjectData!$B$26="y",DefaultData!D41,ProjectData!B61) -> 0 | E74: =IF(ProjectData!$B$26="y",ProjectData!T61,ProjectData!D77) -> 1 | G74: =D74*E74 -> 0
C75: Average Annual Payment (Interest and Principal) | D75: =IF(ProjectData!$B$26="y",F211,Calculations!F247) -> 156022.6531 | E75: =IF(ProjectData!$B$26="y",DefaultData!F47,ProjectData!D67) -> 0 | G75: =D75*E75 -> 0 | H75: =IF(ProjectData!$B$26="y",Calculations!D211,D247)*E75 -> 0 | I75: Debt Pmt - Local share Avg Ann Interest
C76: Property Taxes | D76: =IF(ProjectData!$B$26="y",DefaultData!D57,ProjectData!B76) -> 0 | E76: =IF(ProjectData!$B$26="y",DefaultData!F57,ProjectData!D76) -> 1 | G76: =D76*E76 -> 0
C77: Total | D77: =D69+SUM(D73:D76) -> 172422.6531 | G77: =G69+SUM(G73:G76) -> 14913.06667
C78: Total (without debt, equity,taxes, lease pmts) | D78: =D73+D69 -> 16400 | E78: =D77-D78 -> 156022.6531 | G78: =G73+G69 -> 14913.06667 | H78: =G77-G78 -> 0
C79: Total cost per KW | D79: =D78/(ProjectData!B18*1000) -> 3.28
D84: Local Share | E84: 1 | F84: 0.5 | L84: Without Plant Employees
C85: Annual Operations and Maintenance Costs Local Demand - margined | O85: =M36 -> 2019 | P85: =N36 -> Dollars
D86: Demand | G86: Total | H86: Adj Demand - Million | L86: Jobs | P86: Earnings | T86: Output | X86: Value Added
H87: =M36 -> 2019 | I87: Dollars | L87: Direct | M87: Indirect | N87: Induced | O87: Total | P87: Direct | Q87: Indirect | R87: Induced | S87: Total | T87: Direct | U87: Indirect | V87: Induced | W87: Total | X87: Direct | Y87: Indirect | Z87: Induced | AA87: Total
C88: Ag, Forestry, Fish & Hunting | D88: =$D$147*DefaultData!D62+$D$148*DefaultData!D63+$D$149*DefaultData!D64+$D$150*DefaultData!D65+$D$151*DefaultData!D66+$D$152*DefaultData!D67+$D$153*DefaultData!D68+$D$154*DefaultData!D69+$D$155*DefaultData!D70+$D$156*DefaultData!D71+$D$157*DefaultData!D72+$D$158*DefaultData!D73+$D$159*DefaultData!D74+$D$160*DefaultData!D75+$D$161*DefaultData!D76+$D$162*DefaultData!D77+$D$163*DefaultData!D78+$D$164*DefaultData!D79+$D$165*DefaultData!D80+$D$166*DefaultData!D81+$D$167*DefaultData!D82+$D$168*DefaultData!D83 -> 0 | G88: =D88 -> 0 | H88: =G88*G$35/10^6 -> 0 | L88: =$H88*Multipliers!D308 -> 0 | M88: =$H88*Multipliers!E308 -> 0 | N88: =$H88*Multipliers!F308 -> 0 | O88: =+N88+M88+L88 -> 0 | P88: =$H88*Multipliers!H308 -> 0 | Q88: =$H88*Multipliers!I308 -> 0 | R88: =$H88*Multipliers!J308 -> 0 | S88: =+R88+Q88+P88 -> 0 | T88: =$H88*Multipliers!L308 -> 0 | U88: =$H88*Multipliers!M308 -> 0 | V88: =$H88*Multipliers!N308 -> 0 | W88: =+V88+U88+T88 -> 0 | X88: =$H88*Multipliers!P308 -> 0 | Y88: =$H88*Multipliers!Q308 -> 0 | Z88: =$H88*Multipliers!R308 -> 0 | AA88: =+Z88+Y88+X88 -> 0
C89: Mining | D89: =$D$147*DefaultData!E62+$D$148*DefaultData!E63+$D$149*DefaultData!E64+$D$150*DefaultData!E65+$D$151*DefaultData!E66+$D$152*DefaultData!E67+$D$153*DefaultData!E68+$D$154*DefaultData!E69+$D$155*DefaultData!E70+$D$156*DefaultData!E71+$D$157*DefaultData!E72+$D$158*DefaultData!E73+$D$159*DefaultData!E74+$D$160*DefaultData!E75+$D$161*DefaultData!E76+$D$162*DefaultData!E77+$D$163*DefaultData!E78+$D$164*DefaultData!E79+$D$165*DefaultData!E80+$D$166*DefaultData!E81+$D$167*DefaultData!E82+$D$168*DefaultData!E83 -> 0 | G89: =D89 -> 0 | H89: 0 | L89: =$H89*Multipliers!D309 -> 0 | M89: =$H89*Multipliers!E309 -> 0 | N89: =$H89*Multipliers!F309 -> 0 | O89: =+N89+M89+L89 -> 0 | P89: =$H89*Multipliers!H309 -> 0 | Q89: =$H89*Multipliers!I309 -> 0 | R89: =$H89*Multipliers!J309 -> 0 | S89: =+R89+Q89+P89 -> 0 | T89: =$H89*Multipliers!L309 -> 0 | U89: =$H89*Multipliers!M309 -> 0 | V89: =$H89*Multipliers!N309 -> 0 | W89: =+V89+U89+T89 -> 0 | X89: =$H89*Multipliers!P309 -> 0 | Y89: =$H89*Multipliers!Q309 -> 0 | Z89: =$H89*Multipliers!R309 -> 0 | AA89: =+Z89+Y89+X89 -> 0
C90: Construction | D90: =$D$147*DefaultData!F62+$D$148*DefaultData!F63+$D$149*DefaultData!F64+$D$150*DefaultData!F65+$D$151*DefaultData!F66+$D$152*DefaultData!F67+$D$153*DefaultData!F68+$D$154*DefaultData!F69+$D$155*DefaultData!F70+$D$156*DefaultData!F71+$D$157*DefaultData!F72+$D$158*DefaultData!F73+$D$159*DefaultData!F74+$D$160*DefaultData!F75+$D$161*DefaultData!F76+$D$162*DefaultData!F77+$D$163*DefaultData!F78+$D$164*DefaultData!F79+$D$165*DefaultData!F80+$D$166*DefaultData!F81+$D$167*DefaultData!F82+$D$168*DefaultData!F83 -> 0 | G90: 0 | H90: 0 | L90: =$H90*Multipliers!D310 -> 0 | M90: =$H90*Multipliers!E310 -> 0 | N90: =$H90*Multipliers!F310 -> 0 | O90: 0 | P90: =$H90*Multipliers!H310 -> 0 | Q90: =$H90*Multipliers!I310 -> 0 | R90: =$H90*Multipliers!J310 -> 0 | S90: 0 | T90: =$H90*Multipliers!L310 -> 0 | U90: =$H90*Multipliers!M310 -> 0 | V90: =$H90*Multipliers!N310 -> 0 | W90: 0 | X90: =$H90*Multipliers!P310 -> 0 | Y90: =$H90*Multipliers!Q310 -> 0 | Z90: =$H90*Multipliers!R310 -> 0 | AA90: 0
C91: Construction/Installations - Non Residential | D91: =$D$147*DefaultData!G62+$D$148*DefaultData!G63+$D$149*DefaultData!G64+$D$150*DefaultData!G65+$D$151*DefaultData!G66+$D$152*DefaultData!G67+$D$153*DefaultData!G68+$D$154*DefaultData!G69+$D$155*DefaultData!G70+$D$156*DefaultData!G71+$D$157*DefaultData!G72+$D$158*DefaultData!G73+$D$159*DefaultData!G74+$D$160*DefaultData!G75+$D$161*DefaultData!G76+$D$162*DefaultData!G77+$D$163*DefaultData!G78+$D$164*DefaultData!G79+$D$165*DefaultData!G80+$D$166*DefaultData!G81+$D$167*DefaultData!G82+$D$168*DefaultData!G83 -> 0 | G91: 0 | H91: 0 | L91: =$H91*Multipliers!D311 -> 0 | M91: =$H91*Multipliers!E311 -> 0 | N91: =$H91*Multipliers!F311 -> 0 | O91: 0 | P91: =$H91*Multipliers!H311 -> 0 | Q91: =$H91*Multipliers!I311 -> 0 | R91: =$H91*Multipliers!J311 -> 0 | S91: 0 | T91: =$H91*Multipliers!L311 -> 0 | U91: =$H91*Multipliers!M311 -> 0 | V91: =$H91*Multipliers!N311 -> 0 | W91: 0 | X91: =$H91*Multipliers!P311 -> 0 | Y91: =$H91*Multipliers!Q311 -> 0 | Z91: =$H91*Multipliers!R311 -> 0 | AA91: 0
C92: Construction/Installation Residential | D92: =$D$147*DefaultData!H62+$D$148*DefaultData!H63+$D$149*DefaultData!H64+$D$150*DefaultData!H65+$D$151*DefaultData!H66+$D$152*DefaultData!H67+$D$153*DefaultData!H68+$D$154*DefaultData!H69+$D$155*DefaultData!H70+$D$156*DefaultData!H71+$D$157*DefaultData!H72+$D$158*DefaultData!H73+$D$159*DefaultData!H74+$D$160*DefaultData!H75+$D$161*DefaultData!H76+$D$162*DefaultData!H77+$D$163*DefaultData!H78+$D$164*DefaultData!H79+$D$165*DefaultData!H80+$D$166*DefaultData!H81+$D$167*DefaultData!H82+$D$168*DefaultData!H83 -> 0 | G92: 0 | H92: 0 | L92: =$H92*Multipliers!D312 -> 0 | M92: =$H92*Multipliers!E312 -> 0 | N92: =$H92*Multipliers!F312 -> 0 | O92: 0 | P92: =$H92*Multipliers!H312 -> 0 | Q92: =$H92*Multipliers!I312 -> 0 | R92: =$H92*Multipliers!J312 -> 0 | S92: 0 | T92: =$H92*Multipliers!L312 -> 0 | U92: =$H92*Multipliers!M312 -> 0 | V92: =$H92*Multipliers!N312 -> 0 | W92: 0 | X92: =$H92*Multipliers!P312 -> 0 | Y92: =$H92*Multipliers!Q312 -> 0 | Z92: =$H92*Multipliers!R312 -> 0 | AA92: 0
C93: Manufacturing | D93: =$D$147*DefaultData!I62+$D$148*DefaultData!I63+$D$149*DefaultData!I64+$D$150*DefaultData!I65+$D$151*DefaultData!I66+$D$152*DefaultData!I67+$D$153*DefaultData!I68+$D$154*DefaultData!I69+$D$155*DefaultData!I70+$D$156*DefaultData!I71+$D$157*DefaultData!I72+$D$158*DefaultData!I73+$D$159*DefaultData!I74+$D$160*DefaultData!I75+$D$161*DefaultData!I76+$D$162*DefaultData!I77+$D$163*DefaultData!I78+$D$164*DefaultData!I79+$D$165*DefaultData!I80+$D$166*DefaultData!I81+$D$167*DefaultData!I82+$D$168*DefaultData!I83 -> 0 | G93: 0 | H93: 0 | L93: =$H93*Multipliers!D313 -> 0 | M93: =$H93*Multipliers!E313 -> 0 | N93: =$H93*Multipliers!F313 -> 0 | O93: 0 | P93: =$H93*Multipliers!H313 -> 0 | Q93: =$H93*Multipliers!I313 -> 0 | R93: =$H93*Multipliers!J313 -> 0 | S93: 0 | T93: =$H93*Multipliers!L313 -> 0 | U93: =$H93*Multipliers!M313 -> 0 | V93: =$H93*Multipliers!N313 -> 0 | W93: 0 | X93: =$H93*Multipliers!P313 -> 0 | Y93: =$H93*Multipliers!Q313 -> 0 | Z93: =$H93*Multipliers!R313 -> 0 | AA93: 0
C94: Fabricated Metals | D94: =$D$147*DefaultData!J62+$D$148*DefaultData!J63+$D$149*DefaultData!J64+$D$150*DefaultData!J65+$D$151*DefaultData!J66+$D$152*DefaultData!J67+$D$153*DefaultData!J68+$D$154*DefaultData!J69+$D$155*DefaultData!J70+$D$156*DefaultData!J71+$D$157*DefaultData!J72+$D$158*DefaultData!J73+$D$159*DefaultData!J74+$D$160*DefaultData!J75+$D$161*DefaultData!J76+$D$162*DefaultData!J77+$D$163*DefaultData!J78+$D$164*DefaultData!J79+$D$165*DefaultData!J80+$D$166*DefaultData!J81+$D$167*DefaultData!J82+$D$168*DefaultData!J83 -> 0 | G94: 0 | H94: 0 | L94: =$H94*Multipliers!D314 -> 0 | M94: =$H94*Multipliers!E314 -> 0 | N94: =$H94*Multipliers!F314 -> 0 | O94: 0 | P94: =$H94*Multipliers!H314 -> 0 | Q94: =$H94*Multipliers!I314 -> 0 | R94: =$H94*Multipliers!J314 -> 0 | S94: 0 | T94: =$H94*Multipliers!L314 -> 0 | U94: =$H94*Multipliers!M314 -> 0 | V94: =$H94*Multipliers!N314 -> 0 | W94: 0 | X94: =$H94*Multipliers!P314 -> 0 | Y94: =$H94*Multipliers!Q314 -> 0 | Z94: =$H94*Multipliers!R314 -> 0 | AA94: 0
C95: Machinery | D95: =$D$147*DefaultData!K62+$D$148*DefaultData!K63+$D$149*DefaultData!K64+$D$150*DefaultData!K65+$D$151*DefaultData!K66+$D$152*DefaultData!K67+$D$153*DefaultData!K68+$D$154*DefaultData!K69+$D$155*DefaultData!K70+$D$156*DefaultData!K71+$D$157*DefaultData!K72+$D$158*DefaultData!K73+$D$159*DefaultData!K74+$D$160*DefaultData!K75+$D$161*DefaultData!K76+$D$162*DefaultData!K77+$D$163*DefaultData!K78+$D$164*DefaultData!K79+$D$165*DefaultData!K80+$D$166*DefaultData!K81+$D$167*DefaultData!K82+$D$168*DefaultData!K83 -> 0 | G95: 0 | H95: 0 | L95: =$H95*Multipliers!D315 -> 0 | M95: =$H95*Multipliers!E315 -> 0 | N95: =$H95*Multipliers!F315 -> 0 | O95: 0 | P95: =$H95*Multipliers!H315 -> 0 | Q95: =$H95*Multipliers!I315 -> 0 | R95: =$H95*Multipliers!J315 -> 0 | S95: 0 | T95: =$H95*Multipliers!L315 -> 0 | U95: =$H95*Multipliers!M315 -> 0 | V95: =$H95*Multipliers!N315 -> 0 | W95: 0 | X95: =$H95*Multipliers!P315 -> 0 | Y95: =$H95*Multipliers!Q315 -> 0 | Z95: =$H95*Multipliers!R315 -> 0 | AA95: 0
C96: Electrical Equip | D96: =$D$147*DefaultData!L62+$D$148*DefaultData!L63+$D$149*DefaultData!L64+$D$150*DefaultData!L65+$D$151*DefaultData!L66+$D$152*DefaultData!L67+$D$153*DefaultData!L68+$D$154*DefaultData!L69+$D$155*DefaultData!L70+$D$156*DefaultData!L71+$D$157*DefaultData!L72+$D$158*DefaultData!L73+$D$159*DefaultData!L74+$D$160*DefaultData!L75+$D$161*DefaultData!L76+$D$162*DefaultData!L77+$D$163*DefaultData!L78+$D$164*DefaultData!L79+$D$165*DefaultData!L80+$D$166*DefaultData!L81+$D$167*DefaultData!L82+$D$168*DefaultData!L83 -> 0 | G96: 0 | H96: 0 | L96: =$H96*Multipliers!D316 -> 0 | M96: =$H96*Multipliers!E316 -> 0 | N96: =$H96*Multipliers!F316 -> 0 | O96: 0 | P96: =$H96*Multipliers!H316 -> 0 | Q96: =$H96*Multipliers!I316 -> 0 | R96: =$H96*Multipliers!J316 -> 0 | S96: 0 | T96: =$H96*Multipliers!L316 -> 0 | U96: =$H96*Multipliers!M316 -> 0 | V96: =$H96*Multipliers!N316 -> 0 | W96: 0 | X96: =$H96*Multipliers!P316 -> 0 | Y96: =$H96*Multipliers!Q316 -> 0 | Z96: =$H96*Multipliers!R316 -> 0 | AA96: 0
C97: Battery Manufacturing | D97: =$D$147*DefaultData!M62+$D$148*DefaultData!M63+$D$149*DefaultData!M64+$D$150*DefaultData!M65+$D$151*DefaultData!M66+$D$152*DefaultData!M67+$D$153*DefaultData!M68+$D$154*DefaultData!M69+$D$155*DefaultData!M70+$D$156*DefaultData!M71+$D$157*DefaultData!M72+$D$158*DefaultData!M73+$D$159*DefaultData!M74+$D$160*DefaultData!M75+$D$161*DefaultData!M76+$D$162*DefaultData!M77+$D$163*DefaultData!M78+$D$164*DefaultData!M79+$D$165*DefaultData!M80+$D$166*DefaultData!M81+$D$167*DefaultData!M82+$D$168*DefaultData!M83 -> 0 | G97: 0 | H97: 0 | L97: =$H97*Multipliers!D317 -> 0 | M97: =$H97*Multipliers!E317 -> 0 | N97: =$H97*Multipliers!F317 -> 0 | O97: 0 | P97: =$H97*Multipliers!H317 -> 0 | Q97: =$H97*Multipliers!I317 -> 0 | R97: =$H97*Multipliers!J317 -> 0 | S97: 0 | T97: =$H97*Multipliers!L317 -> 0 | U97: =$H97*Multipliers!M317 -> 0 | V97: =$H97*Multipliers!N317 -> 0 | W97: 0 | X97: =$H97*Multipliers!P317 -> 0 | Y97: =$H97*Multipliers!Q317 -> 0 | Z97: =$H97*Multipliers!R317 -> 0 | AA97: 0
C98: Energy Wire Manufacturing | D98: =$D$147*DefaultData!N62+$D$148*DefaultData!N63+$D$149*DefaultData!N64+$D$150*DefaultData!N65+$D$151*DefaultData!N66+$D$152*DefaultData!N67+$D$153*DefaultData!N68+$D$154*DefaultData!N69+$D$155*DefaultData!N70+$D$156*DefaultData!N71+$D$157*DefaultData!N72+$D$158*DefaultData!N73+$D$159*DefaultData!N74+$D$160*DefaultData!N75+$D$161*DefaultData!N76+$D$162*DefaultData!N77+$D$163*DefaultData!N78+$D$164*DefaultData!N79+$D$165*DefaultData!N80+$D$166*DefaultData!N81+$D$167*DefaultData!N82+$D$168*DefaultData!N83 -> 0 | G98: 0 | H98: 0 | L98: =$H98*Multipliers!D318 -> 0 | M98: =$H98*Multipliers!E318 -> 0 | N98: =$H98*Multipliers!F318 -> 0 | O98: 0 | P98: =$H98*Multipliers!H318 -> 0 | Q98: =$H98*Multipliers!I318 -> 0 | R98: =$H98*Multipliers!J318 -> 0 | S98: 0 | T98: =$H98*Multipliers!L318 -> 0 | U98: =$H98*Multipliers!M318 -> 0 | V98: =$H98*Multipliers!N318 -> 0 | W98: 0 | X98: =$H98*Multipliers!P318 -> 0 | Y98: =$H98*Multipliers!Q318 -> 0 | Z98: =$H98*Multipliers!R318 -> 0 | AA98: 0
C99: Wholesale Trade | D99: =$D$147*DefaultData!O62+$D$148*DefaultData!O63+$D$149*DefaultData!O64+$D$150*DefaultData!O65+$D$151*DefaultData!O66+$D$152*DefaultData!O67+$D$153*DefaultData!O68+$D$154*DefaultData!O69+$D$155*DefaultData!O70+$D$156*DefaultData!O71+$D$157*DefaultData!O72+$D$158*DefaultData!O73+$D$159*DefaultData!O74+$D$160*DefaultData!O75+$D$161*DefaultData!O76+$D$162*DefaultData!O77+$D$163*DefaultData!O78+$D$164*DefaultData!O79+$D$165*DefaultData!O80+$D$166*DefaultData!O81+$D$167*DefaultData!O82+$D$168*DefaultData!O83 -> 4296.232166 | G99: 4296.232166 | H99: 0.005032176737 | L99: =$H99*Multipliers!D319 -> 0.01531485623 | M99: =$H99*Multipliers!E319 -> 0.0132779267 | N99: =$H99*Multipliers!F319 -> 0.01126572025 | O99: 0.03985850318 | P99: =$H99*Multipliers!H319 -> 0.001322783138 | Q99: =$H99*Multipliers!I319 -> 0.0006880897826 | R99: =$H99*Multipliers!J319 -> 0.0005004348799 | S99: 0.0025113078 | T99: =$H99*Multipliers!L319 -> 0.005032176737 | U99: =$H99*Multipliers!M319 -> 0.002111612067 | V99: =$H99*Multipliers!N319 -> 0.001725055346 | W99: 0.008868844149 | X99: =$H99*Multipliers!P319 -> 0.002804698801 | Y99: =$H99*Multipliers!Q319 -> 0.001206892108 | Z99: =$H99*Multipliers!R319 -> 0.0009758900345 | AA99: 0.004987480943
C100: Retail trade | D100: =$D$147*DefaultData!P62+$D$148*DefaultData!P63+$D$149*DefaultData!P64+$D$150*DefaultData!P65+$D$151*DefaultData!P66+$D$152*DefaultData!P67+$D$153*DefaultData!P68+$D$154*DefaultData!P69+$D$155*DefaultData!P70+$D$156*DefaultData!P71+$D$157*DefaultData!P72+$D$158*DefaultData!P73+$D$159*DefaultData!P74+$D$160*DefaultData!P75+$D$161*DefaultData!P76+$D$162*DefaultData!P77+$D$163*DefaultData!P78+$D$164*DefaultData!P79+$D$165*DefaultData!P80+$D$166*DefaultData!P81+$D$167*DefaultData!P82+$D$168*DefaultData!P83 -> 0 | G100: 0 | H100: 0 | L100: =$H100*Multipliers!D320 -> 0 | M100: =$H100*Multipliers!E320 -> 0 | N100: =$H100*Multipliers!F320 -> 0 | O100: 0 | P100: =$H100*Multipliers!H320 -> 0 | Q100: =$H100*Multipliers!I320 -> 0 | R100: =$H100*Multipliers!J320 -> 0 | S100: 0 | T100: =$H100*Multipliers!L320 -> 0 | U100: =$H100*Multipliers!M320 -> 0 | V100: =$H100*Multipliers!N320 -> 0 | W100: 0 | X100: =$H100*Multipliers!P320 -> 0 | Y100: =$H100*Multipliers!Q320 -> 0 | Z100: =$H100*Multipliers!R320 -> 0 | AA100: 0
C101: TCPU | D101: =$D$147*DefaultData!Q62+$D$148*DefaultData!Q63+$D$149*DefaultData!Q64+$D$150*DefaultData!Q65+$D$151*DefaultData!Q66+$D$152*DefaultData!Q67+$D$153*DefaultData!Q68+$D$154*DefaultData!Q69+$D$155*DefaultData!Q70+$D$156*DefaultData!Q71+$D$157*DefaultData!Q72+$D$158*DefaultData!Q73+$D$159*DefaultData!Q74+$D$160*DefaultData!Q75+$D$161*DefaultData!Q76+$D$162*DefaultData!Q77+$D$163*DefaultData!Q78+$D$164*DefaultData!Q79+$D$165*DefaultData!Q80+$D$166*DefaultData!Q81+$D$167*DefaultData!Q82+$D$168*DefaultData!Q83 -> 1651.501167 | G101: 1651.501167 | H101: 0.001934403317 | L101: 0 | M101: =$H101*Multipliers!E321 -> 0.003968351028 | N101: =$H101*Multipliers!F321 -> 0.00336646724 | O101: 0.007334818268 | P101: 0 | Q101: =$H101*Multipliers!I321 -> 0.0002195876613 | R101: =$H101*Multipliers!J321 -> 0.0001495429172 | S101: 0.0003691305785 | T101: 0 | U101: =$H101*Multipliers!M321 -> 0.0007783052401 | V101: =$H101*Multipliers!N321 -> 0.0005154778615 | W101: 0.001293783102 | X101: 0 | Y101: =$H101*Multipliers!Q321 -> 0.0004258221365 | Z101: =$H101*Multipliers!R321 -> 0.0002916132344 | AA101: 0.000717435371
C102: Insurance and Real Estate | D102: =$D$147*DefaultData!R62+$D$148*DefaultData!R63+$D$149*DefaultData!R64+$D$150*DefaultData!R65+$D$151*DefaultData!R66+$D$152*DefaultData!R67+$D$153*DefaultData!R68+$D$154*DefaultData!R69+$D$155*DefaultData!R70+$D$156*DefaultData!R71+$D$157*DefaultData!R72+$D$158*DefaultData!R73+$D$159*DefaultData!R74+$D$160*DefaultData!R75+$D$161*DefaultData!R76+$D$162*DefaultData!R77+$D$163*DefaultData!R78+$D$164*DefaultData!R79+$D$165*DefaultData!R80+$D$166*DefaultData!R81+$D$167*DefaultData!R82+$D$168*DefaultData!R83 -> 0 | G102: 0 | H102: 0 | L102: 0 | M102: =$H102*Multipliers!E322 -> 0 | N102: =$H102*Multipliers!F322 -> 0 | O102: =+N102+M102+L102 -> 0 | P102: 0 | Q102: =$H102*Multipliers!I322 -> 0 | R102: =$H102*Multipliers!J322 -> 0 | S102: =+R102+Q102+P102 -> 0 | T102: 0 | U102: =$H102*Multipliers!M322 -> 0 | V102: =$H102*Multipliers!N322 -> 0 | W102: =+V102+U102+T102 -> 0 | X102: 0 | Y102: =$H102*Multipliers!Q322 -> 0 | Z102: =$H102*Multipliers!R322 -> 0 | AA102: 0
C103: Finance | D103: =$D$147*DefaultData!S62+$D$148*DefaultData!S63+$D$149*DefaultData!S64+$D$150*DefaultData!S65+$D$151*DefaultData!S66+$D$152*DefaultData!S67+$D$153*DefaultData!S68+$D$154*DefaultData!S69+$D$155*DefaultData!S70+$D$156*DefaultData!S71+$D$157*DefaultData!S72+$D$158*DefaultData!S73+$D$159*DefaultData!S74+$D$160*DefaultData!S75+$D$161*DefaultData!S76+$D$162*DefaultData!S77+$D$163*DefaultData!S78+$D$164*DefaultData!S79+$D$165*DefaultData!S80+$D$166*DefaultData!S81+$D$167*DefaultData!S82+$D$168*DefaultData!S83 -> 0 | G103: 0 | H103: 0 | L103: 0 | M103: =$H103*Multipliers!E323 -> 0 | N103: =$H103*Multipliers!F323 -> 0 | O103: 0 | P103: 0 | Q103: =$H103*Multipliers!I323 -> 0 | R103: =$H103*Multipliers!J323 -> 0 | S103: 0 | T103: 0 | U103: =$H103*Multipliers!M323 -> 0 | V103: =$H103*Multipliers!N323 -> 0 | W103: 0 | X103: 0 | Y103: =$H103*Multipliers!Q323 -> 0 | Z103: =$H103*Multipliers!R323 -> 0 | AA103: 0
C104: Other Professional Services | D104: =$D$147*DefaultData!T62+$D$148*DefaultData!T63+$D$149*DefaultData!T64+$D$150*DefaultData!T65+$D$151*DefaultData!T66+$D$152*DefaultData!T67+$D$153*DefaultData!T68+$D$154*DefaultData!T69+$D$155*DefaultData!T70+$D$156*DefaultData!T71+$D$157*DefaultData!T72+$D$158*DefaultData!T73+$D$159*DefaultData!T74+$D$160*DefaultData!T75+$D$161*DefaultData!T76+$D$162*DefaultData!T77+$D$163*DefaultData!T78+$D$164*DefaultData!T79+$D$165*DefaultData!T80+$D$166*DefaultData!T81+$D$167*DefaultData!T82+$D$168*DefaultData!T83 -> 0 | G104: 0 | H104: 0 | L104: 0 | M104: =$H104*Multipliers!E324 -> 0 | N104: =$H104*Multipliers!F324 -> 0 | O104: 0 | P104: 0 | Q104: =$H104*Multipliers!I324 -> 0 | R104: =$H104*Multipliers!J324 -> 0 | S104: 0 | T104: 0 | U104: =$H104*Multipliers!M324 -> 0 | V104: =$H104*Multipliers!N324 -> 0 | W104: 0 | X104: 0 | Y104: =$H104*Multipliers!Q324 -> 0 | Z104: =$H104*Multipliers!R324 -> 0 | AA104: 0
C105: Office Services | D105: =$D$147*DefaultData!U62+$D$148*DefaultData!U63+$D$149*DefaultData!U64+$D$150*DefaultData!U65+$D$151*DefaultData!U66+$D$152*DefaultData!U67+$D$153*DefaultData!U68+$D$154*DefaultData!U69+$D$155*DefaultData!U70+$D$156*DefaultData!U71+$D$157*DefaultData!U72+$D$158*DefaultData!U73+$D$159*DefaultData!U74+$D$160*DefaultData!U75+$D$161*DefaultData!U76+$D$162*DefaultData!U77+$D$163*DefaultData!U78+$D$164*DefaultData!U79+$D$165*DefaultData!U80+$D$166*DefaultData!U81+$D$167*DefaultData!U82+$D$168*DefaultData!U83 -> 0 | G105: 0 | H105: 0 | L105: 0 | M105: =$H105*Multipliers!E325 -> 0 | N105: =$H105*Multipliers!F325 -> 0 | O105: 0 | P105: 0 | Q105: =$H105*Multipliers!I325 -> 0 | R105: =$H105*Multipliers!J325 -> 0 | S105: 0 | T105: 0 | U105: =$H105*Multipliers!M325 -> 0 | V105: =$H105*Multipliers!N325 -> 0 | W105: 0 | X105: 0 | Y105: =$H105*Multipliers!Q325 -> 0 | Z105: =$H105*Multipliers!R325 -> 0 | AA105: 0
C106: Architectural and Engineering Services | D106: =$D$147*DefaultData!V62+$D$148*DefaultData!V63+$D$149*DefaultData!V64+$D$150*DefaultData!V65+$D$151*DefaultData!V66+$D$152*DefaultData!V67+$D$153*DefaultData!V68+$D$154*DefaultData!V69+$D$155*DefaultData!V70+$D$156*DefaultData!V71+$D$157*DefaultData!V72+$D$158*DefaultData!V73+$D$159*DefaultData!V74+$D$160*DefaultData!V75+$D$161*DefaultData!V76+$D$162*DefaultData!V77+$D$163*DefaultData!V78+$D$164*DefaultData!V79+$D$165*DefaultData!V80+$D$166*DefaultData!V81+$D$167*DefaultData!V82+$D$168*DefaultData!V83 -> 0 | G106: 0 | H106: 0 | L106: 0 | M106: =$H106*Multipliers!E326 -> 0 | N106: =$H106*Multipliers!F326 -> 0 | O106: 0 | P106: 0 | Q106: =$H106*Multipliers!I326 -> 0 | R106: =$H106*Multipliers!J326 -> 0 | S106: 0 | T106: 0 | U106: =$H106*Multipliers!M326 -> 0 | V106: =$H106*Multipliers!N326 -> 0 | W106: 0 | X106: 0 | Y106: =$H106*Multipliers!Q326 -> 0 | Z106: =$H106*Multipliers!R326 -> 0 | AA106: 0
C107: Other services | D107: =$D$147*DefaultData!W62+$D$148*DefaultData!W63+$D$149*DefaultData!W64+$D$150*DefaultData!W65+$D$151*DefaultData!W66+$D$152*DefaultData!W67+$D$153*DefaultData!W68+$D$154*DefaultData!W69+$D$155*DefaultData!W70+$D$156*DefaultData!W71+$D$157*DefaultData!W72+$D$158*DefaultData!W73+$D$159*DefaultData!W74+$D$160*DefaultData!W75+$D$161*DefaultData!W76+$D$162*DefaultData!W77+$D$163*DefaultData!W78+$D$164*DefaultData!W79+$D$165*DefaultData!W80+$D$166*DefaultData!W81+$D$167*DefaultData!W82+$D$168*DefaultData!W83 -> 0 | G107: 0 | H107: 0 | L107: 0 | M107: =$H107*Multipliers!E327 -> 0 | N107: =$H107*Multipliers!F327 -> 0 | O107: 0 | P107: 0 | Q107: =$H107*Multipliers!I327 -> 0 | R107: =$H107*Multipliers!J327 -> 0 | S107: 0 | T107: 0 | U107: =$H107*Multipliers!M327 -> 0 | V107: =$H107*Multipliers!N327 -> 0 | W107: 0 | X107: 0 | Y107: =$H107*Multipliers!Q327 -> 0 | Z107: =$H107*Multipliers!R327 -> 0 | AA107: 0
C108: Government | D108: =$D$147*DefaultData!X62+$D$148*DefaultData!X63+$D$149*DefaultData!X64+$D$150*DefaultData!X65+$D$151*DefaultData!X66+$D$152*DefaultData!X67+$D$153*DefaultData!X68+$D$154*DefaultData!X69+$D$155*DefaultData!X70+$D$156*DefaultData!X71+$D$157*DefaultData!X72+$D$158*DefaultData!X73+$D$159*DefaultData!X74+$D$160*DefaultData!X75+$D$161*DefaultData!X76+$D$162*DefaultData!X77+$D$163*DefaultData!X78+$D$164*DefaultData!X79+$D$165*DefaultData!X80+$D$166*DefaultData!X81+$D$167*DefaultData!X82+$D$168*DefaultData!X83 -> 0 | G108: 0 | H108: 0 | L108: 0 | M108: =$H108*Multipliers!E328 -> 0 | N108: =$H108*Multipliers!F328 -> 0 | O108: 0 | P108: 0 | Q108: =$H108*Multipliers!I328 -> 0 | R108: =$H108*Multipliers!J328 -> 0 | S108: 0 | T108: 0 | U108: =$H108*Multipliers!M328 -> 0 | V108: =$H108*Multipliers!N328 -> 0 | W108: 0 | X108: 0 | Y108: =$H108*Multipliers!Q328 -> 0 | Z108: =$H108*Multipliers!R328 -> 0 | AA108: 0
C109: Semiconductor (solar cell/module) manufacturing | D109: =$D$147*DefaultData!Y62+$D$148*DefaultData!Y63+$D$149*DefaultData!Y64+$D$150*DefaultData!Y65+$D$151*DefaultData!Y66+$D$152*DefaultData!Y67+$D$153*DefaultData!Y68+$D$154*DefaultData!Y69+$D$155*DefaultData!Y70+$D$156*DefaultData!Y71+$D$157*DefaultData!Y72+$D$158*DefaultData!Y73+$D$159*DefaultData!Y74+$D$160*DefaultData!Y75+$D$161*DefaultData!Y76+$D$162*DefaultData!Y77+$D$163*DefaultData!Y78+$D$164*DefaultData!Y79+$D$165*DefaultData!Y80+$D$166*DefaultData!Y81+$D$167*DefaultData!Y82+$D$168*DefaultData!Y83 -> 0 | G109: 0 | H109: 0 | L109: 0 | M109: =$H109*Multipliers!E329 -> 0 | N109: =$H109*Multipliers!F329 -> 0 | O109: 0 | P109: 0 | Q109: =$H109*Multipliers!I329 -> 0 | R109: =$H109*Multipliers!J329 -> 0 | S109: 0 | T109: 0 | U109: =$H109*Multipliers!M329 -> 0 | V109: =$H109*Multipliers!N329 -> 0 | W109: 0 | X109: 0 | Y109: =$H109*Multipliers!Q329 -> 0 | Z109: =$H109*Multipliers!R329 -> 0 | AA109: 0
C110: Total | D110: =SUM(D88:D109) -> 5947.733333 | G110: =SUM(G88:G109) -> 5947.733333 | H110: =SUM(H88:H109) -> 0.006966580053 | K110: Total | L110: =SUM(L88:L109) -> 0.01531485623 | M110: =SUM(M88:M109) -> 0.01724627773 | N110: =SUM(N88:N109) -> 0.01463218749 | O110: =SUM(O88:O109) -> 0.04719332145 | P110: =SUM(P88:P109) -> 0.001322783138 | Q110: =SUM(Q88:Q109) -> 0.0009076774439 | R110: 0.0006499777971 | S110: 0.002880438379 | T110: 0.005032176737 | U110: 0.002889917307 | V110: 0.002240533208 | W110: 0.01016262725 | X110: =SUM(X88:X109) -> 0.002804698801 | Y110: 0.001632714244 | Z110: 0.001267503269 | AA110: 0.005704916314
C112: Plant Employees | E112: Earnings - Gross | G112: =G68 -> 8965.333333 | H112: =G112*G35/10^6 -> 0.01050109493
C113: Plant Employees | E113: Employee - (SSI, Med, Inc Tax) | F113: =IF(ProjectData!B$26="y",Calculations!K22,Calculations!L22) -> 0.07118694551 | G113: =G$112*F113 -> 638.2146955 | H113: 0 | O113: Inflate to | P113: =D35 -> 2010 | Q113: Dollars | T113: =P113 -> 2010 | U113: Dollars | X113: =T113 -> 2010 | Y113: Dollars
C114: Technicians | D114: =IF(ProjectData!B26="y",Calculations!H29,I29) -> 0.1440850117 | E114: Other benefits | F114: =IF(ProjectData!B$26="y",Calculations!K23,Calculations!L23) -> 0.3845130545 | G114: =G$112*F114 -> 3447.287704 | H114: =IF(ProjectData!B12="MyCounty",0,IF(ProjectData!B12="MyRegion",0,1)) -> 1 | J114: Without Plant Employees | L114: =L110 -> 0.01531485623 | M114: =M110 -> 0.01724627773 | N114: =N110 -> 0.01463218749 | O114: =O110 -> 0.04719332145 | P114: =P110*$G64 -> 0.001129392243 | Q114: =Q110*$G64 -> 0.0007749750016 | R114: =R110*$G64 -> 0.0005549510432 | S114: =+R114+Q114+P114 -> 0.002459318288 | T114: =T110*$G64 -> 0.004296472498 | U114: =U110*$G64 -> 0.002467411396 | V114: =V110*$G64 -> 0.001912967253 | W114: =+V114+U114+T114 -> 0.008676851147 | X114: =X110*$G64 -> 0.002394651836 | Y114: =Y110*$G64 -> 0.001394011422 | Z114: =Z110*$G64 -> 0.001082194291 | AA114: =+Z114+Y114+X114 -> 0.004870857549
E115: Earnings (minus taxes, benefits, etc) | G115: =G112-G113-G114 -> 4879.830933 | J115: With Plant Employees | L115: =L114+L143 -> 0.1593998679 | M115: =M114+M143 -> 0.03937056052 | N115: =N114+N143 -> 0.03238158023 | O115: =O114+O143 -> 0.08706699699 | P115: =(P110+P143)*$G64 -> 0.0094569767 | Q115: =(Q110+Q143)*$G64 -> 0.00170616443 | R115: =(R110+R143)*$G64 -> 0.001228154601 | S115: =+R115+Q115+P115 -> 0.01239129573 | T115: =(T110+T143)*$G64 -> 0.01262405695 | U115: =(U110+U143)*$G64 -> 0.005969820266 | V115: =(V110+V143)*$G64 -> 0.004233328871 | W115: =+V115+U115+T115 -> 0.02282720609 | X115: =(X110+X143)*$G64 -> 0.01072223629 | Y115: =(Y110+Y143)*$G64 -> 0.003322684378 | Z115: =(Z110+Z143)*$G64 -> 0.002394843159 | AA115: =+Z115+Y115+X115 -> 0.01643976383
C117: Total | D117: =SUM(D114:D116) -> 0.1440850117
L118: Plant Employees Only
C119: Plant Employee Spending | F119: PCE | H119: Adj Demand - Million | L119: Jobs | P119: Earnings | T119: Output | X119: Value Added
F120: Plant Emp | H120: =H87 -> 2019 | I120: Dollars | L120: Direct | M120: Indirect | N120: Induced | O120: Total | P120: Direct | Q120: Indirect | R120: Induced | S120: Total | T120: Direct | U120: Indirect | V120: Induced | W120: Total | X120: Direct | Y120: Indirect | Z120: Induced | AA120: Total
C121: Ag, Forestry, Fish & Hunting | F121: =G$115*Multipliers!U308 -> 19.67103101 | H121: =F121*G$35/10^6 -> 2.304067862e-05 | M121: =$H121*Multipliers!E308 -> 3.758904695e-05 | N121: =$H121*Multipliers!F308 -> 4.977325734e-05 | O121: =N121+M121 -> 8.736230429e-05 | Q121: =$H121*Multipliers!I308 -> 1.672960634e-06 | R121: =$H121*Multipliers!J308 -> 2.211628659e-06 | S121: =R121+Q121 -> 3.884589293e-06 | T121: =$H121*Multipliers!L308 -> 2.304067862e-05 | U121: =$H121*Multipliers!M308 -> 7.376196772e-06 | V121: =$H121*Multipliers!N308 -> 7.618031735e-06 | W121: =V121+U121 -> 1.499422851e-05 | Y121: =$H121*Multipliers!Q308 -> 3.89636308e-06 | Z121: =$H121*Multipliers!R308 -> 4.309344204e-06 | AA121: =Z121+Y121 -> 8.205707284e-06
C122: Mining | F122: =G$115*Multipliers!U309 -> 1.190753923 | H122: 1.39473007e-06 | M122: =$H122*Multipliers!E309 -> 3.467894505e-06 | N122: =$H122*Multipliers!F309 -> 2.378006402e-06 | O122: =N122+M122 -> 5.845900906e-06 | Q122: =$H122*Multipliers!I309 -> 1.884838217e-07 | R122: =$H122*Multipliers!J309 -> 1.056466186e-07 | S122: =R122+Q122 -> 2.941304403e-07 | T122: =$H122*Multipliers!L309 -> 1.39473007e-06 | U122: =$H122*Multipliers!M309 -> 6.221639792e-07 | V122: =$H122*Multipliers!N309 -> 3.640580219e-07 | W122: =V122+U122 -> 9.862220011e-07 | Y122: =$H122*Multipliers!Q309 -> 3.363935509e-07 | Z122: =$H122*Multipliers!R309 -> 2.059472369e-07 | AA122: =Z122+Y122 -> 5.423407879e-07
C123: Construction | F123: =G$115*Multipliers!U310 -> 0 | H123: 0 | M123: =$H123*Multipliers!E310 -> 0 | N123: =$H123*Multipliers!F310 -> 0 | O123: 0 | Q123: =$H123*Multipliers!I310 -> 0 | R123: =$H123*Multipliers!J310 -> 0 | S123: 0 | T123: =$H123*Multipliers!L310 -> 0 | U123: =$H123*Multipliers!M310 -> 0 | V123: =$H123*Multipliers!N310 -> 0 | W123: 0 | Y123: =$H123*Multipliers!Q310 -> 0 | Z123: =$H123*Multipliers!R310 -> 0 | AA123: 0
C124: Construction/Installations - Non Residential | F124: =G$115*Multipliers!U311 -> 0 | H124: 0 | M124: =$H124*Multipliers!E311 -> 0 | N124: =$H124*Multipliers!F311 -> 0 | O124: 0 | Q124: =$H124*Multipliers!I311 -> 0 | R124: =$H124*Multipliers!J311 -> 0 | S124: 0 | T124: =$H124*Multipliers!L311 -> 0 | U124: =$H124*Multipliers!M311 -> 0 | V124: =$H124*Multipliers!N311 -> 0 | W124: 0 | Y124: =$H124*Multipliers!Q311 -> 0 | Z124: =$H124*Multipliers!R311 -> 0 | AA124: 0
C125: Construction/Installation Residential | F125: =G$115*Multipliers!U312 -> 0 | H125: 0 | M125: =$H125*Multipliers!E312 -> 0 | N125: =$H125*Multipliers!F312 -> 0 | O125: 0 | Q125: =$H125*Multipliers!I312 -> 0 | R125: =$H125*Multipliers!J312 -> 0 | S125: 0 | T125: =$H125*Multipliers!L312 -> 0 | U125: =$H125*Multipliers!M312 -> 0 | V125: =$H125*Multipliers!N312 -> 0 | W125: 0 | Y125: =$H125*Multipliers!Q312 -> 0 | Z125: =$H125*Multipliers!R312 -> 0 | AA125: 0
C126: Manufacturing | F126: =G$115*Multipliers!U313 -> 137.0235428 | H126: 0.0001604956757 | M126: =$H126*Multipliers!E313 -> 0.000286784908 | N126: =$H126*Multipliers!F313 -> 0.0002496012699 | O126: 0.0005363861779 | Q126: =$H126*Multipliers!I313 -> 1.646220195e-05 | R126: =$H126*Multipliers!J313 -> 1.108704128e-05 | S126: 2.754924323e-05 | T126: =$H126*Multipliers!L313 -> 0.0001604956757 | U126: =$H126*Multipliers!M313 -> 6.202483784e-05 | V126: =$H126*Multipliers!N313 -> 3.822236616e-05 | W126: 0.000100247204 | Y126: =$H126*Multipliers!Q313 -> 3.173914334e-05 | Z126: =$H126*Multipliers!R313 -> 2.16232614e-05 | AA126: 5.336240473e-05
C127: Fabricated Metals | F127: =G$115*Multipliers!U314 -> 0.08394242377 | H127: 9.832176096e-08 | M127: =$H127*Multipliers!E314 -> 1.757791526e-07 | N127: =$H127*Multipliers!F314 -> 1.5756308e-07 | O127: 3.333422326e-07 | Q127: =$H127*Multipliers!I314 -> 9.861181015e-09 | R127: =$H127*Multipliers!J314 -> 6.998542945e-09 | S127: 1.685972396e-08 | T127: =$H127*Multipliers!L314 -> 9.832176096e-08 | U127: =$H127*Multipliers!M314 -> 3.37482562e-08 | V127: =$H127*Multipliers!N314 -> 2.412934e-08 | W127: 5.78775962e-08 | Y127: =$H127*Multipliers!Q314 -> 1.75869117e-08 | Z127: =$H127*Multipliers!R314 -> 1.36506e-08 | AA127: 3.123751171e-08
C128: Machinery | F128: =G$115*Multipliers!U315 -> 0.01311520243 | H128: 1.536183661e-08 | M128: =$H128*Multipliers!E315 -> 3.116213075e-08 | N128: =$H128*Multipliers!F315 -> 3.06860828e-08 | O128: 6.184821355e-08 | Q128: =$H128*Multipliers!I315 -> 1.862177195e-09 | R128: =$H128*Multipliers!J315 -> 1.3630404e-09 | S128: 3.225217596e-09 | T128: =$H128*Multipliers!L315 -> 1.536183661e-08 | U128: =$H128*Multipliers!M315 -> 6.191834034e-09 | V128: =$H128*Multipliers!N315 -> 4.699093647e-09 | W128: 1.089092768e-08 | Y128: =$H128*Multipliers!Q315 -> 3.273161888e-09 | Z128: =$H128*Multipliers!R315 -> 2.658365825e-09 | AA128: 5.931527713e-09
C129: Electrical Equip | F129: =G$115*Multipliers!U316 -> 0.109829665 | H129: 1.286434866e-07 | M129: =$H129*Multipliers!E316 -> 1.800698782e-07 | N129: =$H129*Multipliers!F316 -> 2.544880769e-07 | O129: 4.345579551e-07 | Q129: =$H129*Multipliers!I316 -> 1.185514051e-08 | R129: =$H129*Multipliers!J316 -> 1.130480367e-08 | S129: 2.315994418e-08 | T129: =$H129*Multipliers!L316 -> 1.286434866e-07 | U129: =$H129*Multipliers!M316 -> 4.232023372e-08 | V129: =$H129*Multipliers!N316 -> 3.896675532e-08 | W129: 8.128698904e-08 | Y129: =$H129*Multipliers!Q316 -> 2.182861274e-08 | Z129: =$H129*Multipliers!R316 -> 2.204396194e-08 | AA129: 4.387257468e-08
C130: Battery Manufacturing | F130: =G$115*Multipliers!U317 -> 0.4155757691 | H130: 4.867638984e-07 | M130: =$H130*Multipliers!E317 -> 6.447674598e-07 | N130: =$H130*Multipliers!F317 -> 7.909129659e-07 | O130: 1.435680426e-06 | Q130: =$H130*Multipliers!I317 -> 3.896106919e-08 | R130: =$H130*Multipliers!J317 -> 3.513315789e-08 | S130: 7.409422709e-08 | T130: =$H130*Multipliers!L317 -> 4.867638984e-07 | U130: =$H130*Multipliers!M317 -> 1.445679043e-07 | V130: =$H130*Multipliers!N317 -> 1.211058844e-07 | W130: 2.656737887e-07 | Y130: =$H130*Multipliers!Q317 -> 7.348285163e-08 | Z130: =$H130*Multipliers!R317 -> 6.851104517e-08 | AA130: 1.419938968e-07
C131: Energy Wire Manufacturing | F131: =(G$115*Multipliers!U318) -> 0.008341121656 | H131: 9.769955796e-09 | M131: =$H131*Multipliers!E318 -> 1.035764795e-08 | N131: =$H131*Multipliers!F318 -> 1.259976487e-08 | O131: 2.295741282e-08 | Q131: =$H131*Multipliers!I318 -> 6.854796385e-10 | R131: =$H131*Multipliers!J318 -> 5.597207675e-10 | S131: 1.245200406e-09 | T131: =$H131*Multipliers!L318 -> 9.769955796e-09 | U131: =$H131*Multipliers!M318 -> 2.689385502e-09 | V131: =$H131*Multipliers!N318 -> 1.929175471e-09 | W131: 4.618560973e-09 | Y131: =$H131*Multipliers!Q318 -> 1.307308015e-09 | Z131: =$H131*Multipliers!R318 -> 1.091352912e-09 | AA131: 2.398660927e-09
C132: Wholesale Trade | F132: =G$115*Multipliers!U319 -> 255.4326501 | H132: 0.0002991882631 | M132: =$H132*Multipliers!E319 -> 0.0007894396469 | N132: =$H132*Multipliers!F319 -> 0.0006698038345 | O132: 0.001459243481 | Q132: =$H132*Multipliers!I319 -> 4.091040472e-05 | R132: =$H132*Multipliers!J319 -> 2.97533752e-05 | S132: 7.066377992e-05 | T132: =$H132*Multipliers!L319 -> 0.0002991882631 | U132: =$H132*Multipliers!M319 -> 0.0001255459773 | V132: =$H132*Multipliers!N319 -> 0.0001025632325 | W132: 0.0002281092099 | Y132: =$H132*Multipliers!Q319 -> 7.175581708e-05 | Z132: =$H132*Multipliers!R319 -> 5.802157986e-05 | AA132: 0.0001297773969
C133: Retail trade | F133: =G$115*Multipliers!U320 -> 696.8857957 | H133: 0.0008162623325 | M133: =$H133*Multipliers!E320 -> 0.001830931918 | N133: =$H133*Multipliers!F320 -> 0.002017287057 | O133: 0.003848218975 | Q133: =$H133*Multipliers!I320 -> 8.926073485e-05 | R133: =$H133*Multipliers!J320 -> 8.961009513e-05 | S133: 0.00017887083 | T133: =$H133*Multipliers!L320 -> 0.0008162623325 | U133: =$H133*Multipliers!M320 -> 0.0002982875604 | V133: =$H133*Multipliers!N320 -> 0.0003088899919 | W133: 0.0006071775523 | Y133: =$H133*Multipliers!Q320 -> 0.0001688030504 | Z133: =$H133*Multipliers!R320 -> 0.0001747429914 | AA133: 0.0003435460417
C134: TCPU | F134: =(G$115*Multipliers!U321) -> 151.170007 | H134: 0.0001770654292 | M134: =$H134*Multipliers!E321 -> 0.0003632426454 | N134: =$H134*Multipliers!F321 -> 0.0003081492683 | O134: 0.0006713919137 | Q134: =$H134*Multipliers!I321 -> 2.009993633e-05 | R134: =$H134*Multipliers!J321 -> 1.368839713e-05 | S134: 3.378833346e-05 | T134: =$H134*Multipliers!L321 -> 0.0001770654292 | U134: =$H134*Multipliers!M321 -> 7.124209837e-05 | V134: =$H134*Multipliers!N321 -> 4.718421851e-05 | W134: 0.0001184263169 | Y134: =$H134*Multipliers!Q321 -> 3.897758999e-05 | Z134: =$H134*Multipliers!R321 -> 2.669279052e-05 | AA134: 6.567038051e-05
C135: Insurance and Real Estate | F135: =G$115*Multipliers!U322+(G114*H114) -> 4577.5329 | H135: =F135*G$35/10^6 -> 0.005361664286 | M135: =$H135*Multipliers!E322 -> 0.01193227663 | N135: =$H135*Multipliers!F322 -> 0.006041946889 | O135: =N135+M135 -> 0.01797422352 | Q135: =$H135*Multipliers!I322 -> 0.0005799336941 | R135: =$H135*Multipliers!J322 -> 0.0002684156375 | S135: =R135+Q135 -> 0.0008483493316 | T135: =$H135*Multipliers!L322 -> 0.005361664286 | U135: =$H135*Multipliers!M322 -> 0.002446082395 | V135: =$H135*Multipliers!N322 -> 0.0009250425775 | W135: =V135+U135 -> 0.003371124973 | Y135: =$H135*Multipliers!Q322 -> 0.001330218186 | Z135: =$H135*Multipliers!R322 -> 0.0005232984343 | AA135: 0.00185351662
C136: Finance | F136: =G$115*Multipliers!U323 -> 161.0767764 | H136: 0.0001886692282 | M136: =$H136*Multipliers!E323 -> 0.000589560585 | N136: =$H136*Multipliers!F323 -> 0.0005087952505 | O136: 0.001098355835 | Q136: =$H136*Multipliers!I323 -> 3.124305818e-05 | R136: =$H136*Multipliers!J323 -> 2.259993217e-05 | S136: 5.384299035e-05 | T136: =$H136*Multipliers!L323 -> 0.0001886692282 | U136: =$H136*Multipliers!M323 -> 9.520871863e-05 | V136: =$H136*Multipliers!N323 -> 7.791454249e-05 | W136: 0.0001731232611 | Y136: =$H136*Multipliers!Q323 -> 5.322566463e-05 | Z136: =$H136*Multipliers!R323 -> 4.407784843e-05 | AA136: 9.730351307e-05
C137: Other Professional Services | F137: =G$115*Multipliers!U324 -> 44.49389835 | H137: 5.211570313e-05 | M137: =$H137*Multipliers!E324 -> 0.0001311200864 | N137: =$H137*Multipliers!F324 -> 0.0001600009935 | O137: 0.0002911210798 | Q137: =$H137*Multipliers!I324 -> 6.864680417e-06 | R137: =$H137*Multipliers!J324 -> 7.10733113e-06 | S137: 1.397201155e-05 | T137: =$H137*Multipliers!L324 -> 5.211570313e-05 | U137: =$H137*Multipliers!M324 -> 2.134372564e-05 | V137: =$H137*Multipliers!N324 -> 2.450021743e-05 | W137: 4.584394307e-05 | Y137: =$H137*Multipliers!Q324 -> 1.20678601e-05 | Z137: =$H137*Multipliers!R324 -> 1.386011913e-05 | AA137: 2.592797923e-05
C138: Office Services | F138: =G$115*Multipliers!U325 -> 7.718119995 | H138: 9.04023395e-06 | M138: =$H138*Multipliers!E325 -> 1.918077286e-05 | N138: =$H138*Multipliers!F325 -> 2.642111431e-05 | O138: 4.560188716e-05 | Q138: =$H138*Multipliers!I325 -> 9.428783206e-07 | R138: =$H138*Multipliers!J325 -> 1.173729735e-06 | S138: 2.116608055e-06 | T138: =$H138*Multipliers!L325 -> 9.04023395e-06 | U138: =$H138*Multipliers!M325 -> 2.949719855e-06 | V138: =$H138*Multipliers!N325 -> 4.045278687e-06 | W138: 6.994998542e-06 | Y138: =$H138*Multipliers!Q325 -> 1.685479298e-06 | Z138: =$H138*Multipliers!R325 -> 2.288435782e-06 | AA138: 3.97391508e-06
C139: Architectural and Engineering Services | F139: =G$115*Multipliers!U326 -> 1.549490549 | H139: 1.81491828e-06 | M139: =$H139*Multipliers!E326 -> 4.410556327e-06 | N139: =$H139*Multipliers!F326 -> 5.844797313e-06 | O139: 1.025535364e-05 | Q139: =$H139*Multipliers!I326 -> 2.292477727e-07 | R139: =$H139*Multipliers!J326 -> 2.596494688e-07 | S139: 4.888972415e-07 | T139: =$H139*Multipliers!L326 -> 1.81491828e-06 | U139: =$H139*Multipliers!M326 -> 6.913985636e-07 | V139: =$H139*Multipliers!N326 -> 8.948781265e-07 | W139: 1.58627669e-06 | Y139: =$H139*Multipliers!Q326 -> 3.894633137e-07 | Z139: =$H139*Multipliers!R326 -> 5.062369708e-07 | AA139: 8.957002845e-07
C140: Other services | F140: =G$115*Multipliers!U327 -> 2198.964894 | H140: 0.00257564758 | M140: =$H140*Multipliers!E327 -> 0.006087965463 | N140: =$H140*Multipliers!F327 -> 0.007408579822 | O140: 0.01349654528 | Q140: =$H140*Multipliers!I327 -> 0.0003003205079 | R140: =$H140*Multipliers!J327 -> 0.0003291059452 | S140: 0.0006294264531 | T140: =$H140*Multipliers!L327 -> 0.00257564758 | U140: =$H140*Multipliers!M327 -> 0.0009618627107 | V140: =$H140*Multipliers!N327 -> 0.001134379586 | W140: 0.002096242296 | Y140: =$H140*Multipliers!Q327 -> 0.0005411178002 | Z140: =$H140*Multipliers!R327 -> 0.0006417303216 | AA140: 0.001182848122
C141: Government | F141: =G$115*Multipliers!U328+(G113*H113) -> 73.33355285 | H141: 8.589559045e-05 | M141: =$H141*Multipliers!E328 -> 4.602972901e-05 | N141: =$H141*Multipliers!F328 -> 0.0002984092695 | O141: 0.0003444389985 | Q141: =$H141*Multipliers!I328 -> 2.369859341e-06 | R141: =$H141*Multipliers!J328 -> 1.325411909e-05 | S141: 1.562397843e-05 | T141: =$H141*Multipliers!L328 -> 8.589559045e-05 | U141: =$H141*Multipliers!M328 -> 8.437867433e-06 | V141: =$H141*Multipliers!N328 -> 4.57007489e-05 | W141: 5.413861633e-05 | Y141: =$H141*Multipliers!Q328 -> 4.469491154e-06 | Z141: =$H141*Multipliers!R328 -> 2.585422914e-05 | AA141: 3.03237203e-05
C142: Semiconductor (solar cell/module) manufacturing | F142: =G$115*Multipliers!U329 -> 0.4444208964 | H142: 5.205501959e-07 | M142: =$H142*Multipliers!E329 -> 1.240775639e-06 | N142: =$H142*Multipliers!F329 -> 1.1556636e-06 | O142: 2.396439238e-06 | Q142: =$H142*Multipliers!I329 -> 7.929384969e-08 | R142: =$H142*Multipliers!J329 -> 5.133197537e-08 | S142: 1.306258251e-07 | T142: =$H142*Multipliers!L329 -> 5.205501959e-07 | U142: =$H142*Multipliers!M329 -> 2.371460117e-07 | V142: =$H142*Multipliers!N329 -> 1.769787378e-07 | W142: 4.141247495e-07 | Y142: =$H142*Multipliers!Q329 -> 1.284879254e-07 | Z142: =$H142*Multipliers!R329 -> 1.00121063e-07 | AA142: 2.286089884e-07
C143: Total | F143: =SUM(F121:F142) -> 8327.118638 | H143: =SUM(H121:H142) -> 0.00975355406 | L143: =IF(L145=0,0,D117) -> 0.1440850117 | M143: =SUM(M121:M142) -> 0.0221242828 | N143: =SUM(N121:N142) -> 0.01774939274 | O143: =SUM(O121:O142) -> 0.03987367554 | P143: =H143 -> 0.00975355406 | Q143: =SUM(Q121:Q142) -> 0.001090641167 | R143: =SUM(R121:R142) -> 0.0007884792196 | S143: 0.001879120387 | T143: 0.00975355406 | U143: 0.004102142035 | V143: 0.002717687537 | W143: 0.006819829571 | X143: =H143 -> 0.00975355406 | Y143: =SUM(Y121:Y142) -> 0.002258928269 | Z143: 0.001537419616 | AA143: 0.003796347885
O144: Inflate to | P144: =P113 -> 2010 | Q144: Dollars
C145: Annual O&M Costs Local Demand | E145: Construction Costs Local Demand | L145: =SUM(M150:M171) -> 0.03937056052 | P145: =P143*$G64 -> 0.008327584457 | Q145: 0.0009311894286 | R145: 0.0006732035577 | S145: 0.001604392986 | T145: 0.008327584457 | U145: 0.003502408869 | V145: 0.002320361619 | W145: 0.005822770488 | X145: =X143*$G64 -> 0.008327584457 | Y145: 0.001928672956 | Z145: 0.001312648868 | AA145: 0.003241321824
D146: Demand | E146: Demand
C147: Ag, Forestry, Fish & Hunting | D147: 0 | E147: 0 | L147: With Plant Employees
C148: Mining | D148: 0 | E148: 0 | L148: Jobs | P148: Earnings | T148: Output | X148: Value Added
C149: Construction | D149: 0 | E149: 0 | L149: Direct | M149: Indirect | N149: Induced | O149: Total | P149: Direct | Q149: Indirect | R149: Induced | S149: Total | T149: Direct | U149: Indirect | V149: Induced | W149: Total | X149: Direct | Y149: Indirect | Z149: Induced | AA149: Total
C150: Construction/Installations - Non Residential | D150: 0 | E150: =IF(DefaultData!F$2=2,Calculations!G$13,0) -> 134055.4357 | J150: Ag, Forestry, Fish & Hunting | L150: =L88+L121 -> 0 | M150: =M88+M121 -> 3.758904695e-05 | N150: 4.977325734e-05 | O150: =N150+M150+L150 -> 8.736230429e-05 | P150: 0 | Q150: 1.672960634e-06 | R150: 2.211628659e-06 | S150: =R150+Q150+P150 -> 3.884589293e-06 | T150: 2.304067862e-05 | U150: 7.376196772e-06 | V150: 7.618031735e-06 | W150: =V150+U150+T150 -> 3.803490713e-05 | X150: =X88+X121 -> 0 | Y150: 3.89636308e-06 | Z150: 4.309344204e-06 | AA150: =Z150+Y150+X150 -> 8.205707284e-06
C151: Construction/Installation Residential | D151: 0 | E151: =IF(DefaultData!F$2=1,Calculations!G$13,0) -> 0 | J151: Mining | L151: =L89+L122 -> 0 | M151: 3.467894505e-06 | N151: 2.378006402e-06 | O151: =N151+M151+L151 -> 5.845900906e-06 | P151: 0 | Q151: 1.884838217e-07 | R151: 1.056466186e-07 | S151: =R151+Q151+P151 -> 2.941304403e-07 | T151: 1.39473007e-06 | U151: 6.221639792e-07 | V151: 3.640580219e-07 | W151: =V151+U151+T151 -> 2.380952071e-06 | X151: =X89+X122 -> 0 | Y151: 3.363935509e-07 | Z151: 2.059472369e-07 | AA151: =Z151+Y151+X151 -> 5.423407879e-07
C152: Manufacturing | D152: 0 | E152: 0 | J152: Construction | L152: =L90+L123 -> 0 | M152: 0 | N152: 0 | O152: 0 | P152: 0 | Q152: 0 | R152: 0 | S152: 0 | T152: 0 | U152: 0 | V152: 0 | W152: 0 | X152: =X90+X123 -> 0 | Y152: 0 | Z152: 0 | AA152: 0
C153: Fabricated Metals | D153: 0 | E153: =J7 -> 0 | J153: Construction/Installations - Non Residential | L153: =L91+L124 -> 0 | M153: 0 | N153: 0 | O153: 0 | P153: 0 | Q153: 0 | R153: 0 | S153: 0 | T153: 0 | U153: 0 | V153: 0 | W153: 0 | X153: =X91+X124 -> 0 | Y153: 0 | Z153: 0 | AA153: 0
C154: Machinery | D154: 0 | E154: 0 | J154: Construction/Installation Residential | L154: =L92+L125 -> 0 | M154: 0 | N154: 0 | O154: 0 | P154: 0 | Q154: 0 | R154: 0 | S154: 0 | T154: 0 | U154: 0 | V154: 0 | W154: 0 | X154: =X92+X125 -> 0 | Y154: 0 | Z154: 0 | AA154: 0
C155: Electrical Equip | D155: =J71 -> 0 | E155: =J10 -> 0 | J155: Manufacturing | L155: =L93+L126 -> 0 | M155: 0.000286784908 | N155: 0.0002496012699 | O155: 0.0005363861779 | P155: 0 | Q155: 1.646220195e-05 | R155: 1.108704128e-05 | S155: 2.754924323e-05 | T155: 0.0001604956757 | U155: 6.202483784e-05 | V155: 3.822236616e-05 | W155: 0.0002607428797 | X155: =X93+X126 -> 0 | Y155: 3.173914334e-05 | Z155: 2.16232614e-05 | AA155: 5.336240473e-05
C156: Battery Manufacturing | D156: 0 | E156: 0 | J156: Fabricated Metals | L156: =L94+L127 -> 0 | M156: 1.757791526e-07 | N156: 1.5756308e-07 | O156: 3.333422326e-07 | P156: 0 | Q156: 9.861181015e-09 | R156: 6.998542945e-09 | S156: 1.685972396e-08 | T156: 9.832176096e-08 | U156: 3.37482562e-08 | V156: 2.412934e-08 | W156: 1.561993572e-07 | X156: =X94+X127 -> 0 | Y156: 1.75869117e-08 | Z156: 1.36506e-08 | AA156: 3.123751171e-08
C157: Energy Wire Manufacturing | D157: 0 | E157: =J9 -> 0 | J157: Machinery | L157: =L95+L128 -> 0 | M157: 3.116213075e-08 | N157: 3.06860828e-08 | O157: 6.184821355e-08 | P157: 0 | Q157: 1.862177195e-09 | R157: 1.3630404e-09 | S157: 3.225217596e-09 | T157: 1.536183661e-08 | U157: 6.191834034e-09 | V157: 4.699093647e-09 | W157: 2.625276429e-08 | X157: =X95+X128 -> 0 | Y157: 3.273161888e-09 | Z157: 2.658365825e-09 | AA157: 5.931527713e-09
C158: Wholesale Trade | D158: =I71 -> 5947.733333 | E158: =I7+I8+I9+I10 -> 79539.55851 | J158: Electrical Equip | L158: =L96+L129 -> 0 | M158: 1.800698782e-07 | N158: 2.544880769e-07 | O158: 4.345579551e-07 | P158: 0 | Q158: 1.185514051e-08 | R158: 1.130480367e-08 | S158: 2.315994418e-08 | T158: 1.286434866e-07 | U158: 4.232023372e-08 | V158: 3.896675532e-08 | W158: 2.099304757e-07 | X158: =X96+X129 -> 0 | Y158: 2.182861274e-08 | Z158: 2.204396194e-08 | AA158: 4.387257468e-08
C159: Retail trade | D159: 0 | E159: 0 | J159: Battery Manufacturing | L159: =L97+L130 -> 0 | M159: 6.447674598e-07 | N159: 7.909129659e-07 | O159: 1.435680426e-06 | P159: 0 | Q159: 3.896106919e-08 | R159: 3.513315789e-08 | S159: 7.409422709e-08 | T159: 4.867638984e-07 | U159: 1.445679043e-07 | V159: 1.211058844e-07 | W159: 7.524376871e-07 | X159: =X97+X130 -> 0 | Y159: 7.348285163e-08 | Z159: 6.851104517e-08 | AA159: 1.419938968e-07
C160: TCPU | D160: 0 | E160: 0 | J160: Energy Wire Manufacturing | L160: =L98+L131 -> 0 | M160: 1.035764795e-08 | N160: 1.259976487e-08 | O160: 2.295741282e-08 | P160: 0 | Q160: 6.854796385e-10 | R160: 5.597207675e-10 | S160: 1.245200406e-09 | T160: 9.769955796e-09 | U160: 2.689385502e-09 | V160: 1.929175471e-09 | W160: 1.438851677e-08 | X160: =X98+X131 -> 0 | Y160: 1.307308015e-09 | Z160: 1.091352912e-09 | AA160: 2.398660927e-09
C161: Insurance and Real Estate | D161: 0 | E161: 0 | J161: Wholesale Trade | L161: =L99+L132 -> 0.01531485623 | M161: 0.01406736634 | N161: 0.01193552409 | O161: =N161+M161+L161 -> 0.04131774666 | P161: =P99+P132 -> 0.001322783138 | Q161: 0.0007290001873 | R161: 0.0005301882551 | S161: =R161+Q161+P161 -> 0.00258197158 | T161: =T99+T132 -> 0.005331365 | U161: 0.002237158044 | V161: 0.001827618579 | W161: =V161+U161+T161 -> 0.009396141622 | X161: =X99+X132 -> 0.002804698801 | Y161: 0.001278647925 | Z161: 0.001033911614 | AA161: 0.00511725834
C162: Finance | D162: =H75 -> 0 | E162: 0 | J162: Retail trade | L162: 0 | M162: 0.001830931918 | N162: 0.002017287057 | O162: 0.003848218975 | P162: 0 | Q162: 8.926073485e-05 | R162: 8.961009513e-05 | S162: 0.00017887083 | T162: 0.0008162623325 | U162: 0.0002982875604 | V162: 0.0003088899919 | W162: 0.001423439885 | X162: =X100+X133 -> 0 | Y162: 0.0001688030504 | Z162: 0.0001747429914 | AA162: 0.0003435460417
C163: Other Professional Services | D163: 0 | E163: 0 | J163: TCPU | L163: 0 | M163: 0.004331593674 | N163: 0.003674616508 | O163: 0.008006210182 | P163: 0 | Q163: 0.0002396875976 | R163: 0.0001632313143 | S163: 0.000402918912 | T163: 0.0001770654292 | U163: 0.0008495473385 | V163: 0.00056266208 | W163: 0.001589274848 | X163: =X101+X134 -> 0 | Y163: 0.0004647997265 | Z163: 0.0003183060249 | AA163: 0.0007831057515
C164: Office Services | D164: =G72 -> 0 | E164: =(G18+G19)*0.5 -> 317264.5311 | J164: Insurance and Real Estate | L164: 0 | M164: 0.01193227663 | N164: 0.006041946889 | O164: 0.01797422352 | P164: 0 | Q164: 0.0005799336941 | R164: 0.0002684156375 | S164: 0.0008483493316 | T164: 0.005361664286 | U164: 0.002446082395 | V164: 0.0009250425775 | W164: 0.008732789259 | X164: =X102+X135 -> 0 | Y164: 0.001330218186 | Z164: 0.0005232984343 | AA164: 0.00185351662
C165: Architectural and Engineering Services | D165: 0 | E165: =G17*0.8 -> 142992.4647 | J165: Finance | L165: 0 | M165: 0.000589560585 | N165: 0.0005087952505 | O165: 0.001098355835 | P165: 0 | Q165: 3.124305818e-05 | R165: 2.259993217e-05 | S165: 5.384299035e-05 | T165: 0.0001886692282 | U165: 9.520871863e-05 | V165: 7.791454249e-05 | W165: 0.0003617924893 | X165: =X103+X136 -> 0 | Y165: 5.322566463e-05 | Z165: 4.407784843e-05 | AA165: 9.730351307e-05
C166: Other services | D166: 0 | E166: =(G18+G19)-E164 -> 317264.5311 | J166: Other Professional Services | L166: 0 | M166: 0.0001311200864 | N166: 0.0001600009935 | O166: 0.0002911210798 | P166: 0 | Q166: 6.864680417e-06 | R166: 7.10733113e-06 | S166: 1.397201155e-05 | T166: 5.211570313e-05 | U166: 2.134372564e-05 | V166: 2.450021743e-05 | W166: 9.79596462e-05 | X166: =X104+X137 -> 0 | Y166: 1.20678601e-05 | Z166: 1.386011913e-05 | AA166: 2.592797923e-05
C167: Government | D167: =G76+G74 -> 0 | E167: =(G17-E165)+G22 -> 35748.11618 | J167: Office Services | L167: 0 | M167: 1.918077286e-05 | N167: 2.642111431e-05 | O167: 4.560188716e-05 | P167: 0 | Q167: 9.428783206e-07 | R167: 1.173729735e-06 | S167: 2.116608055e-06 | T167: 9.04023395e-06 | U167: 2.949719855e-06 | V167: 4.045278687e-06 | W167: 1.603523249e-05 | X167: =X105+X138 -> 0 | Y167: 1.685479298e-06 | Z167: 2.288435782e-06 | AA167: 3.97391508e-06
C168: Semiconductor (solar cell/module) manufacturing | D168: 0 | E168: =J8 -> 0 | J168: Architectural and Engineering Services | L168: 0 | M168: 4.410556327e-06 | N168: 5.844797313e-06 | O168: 1.025535364e-05 | P168: 0 | Q168: 2.292477727e-07 | R168: 2.596494688e-07 | S168: 4.888972415e-07 | T168: 1.81491828e-06 | U168: 6.913985636e-07 | V168: 8.948781265e-07 | W168: 3.40119497e-06 | X168: =X106+X139 -> 0 | Y168: 3.894633137e-07 | Z168: 5.062369708e-07 | AA168: 8.957002845e-07
C169: Total | D169: =SUM(D147:D168) -> 5947.733333 | E169: =SUM(E147:E168) -> 1026864.637 | J169: Other services | L169: 0 | M169: 0.006087965463 | N169: 0.007408579822 | O169: 0.01349654528 | P169: 0 | Q169: 0.0003003205079 | R169: 0.0003291059452 | S169: 0.0006294264531 | T169: 0.00257564758 | U169: 0.0009618627107 | V169: 0.001134379586 | W169: 0.004671889877 | X169: =X107+X140 -> 0 | Y169: 0.0005411178002 | Z169: 0.0006417303216 | AA169: 0.001182848122
J170: Government | L170: 0 | M170: 4.602972901e-05 | N170: 0.0002984092695 | O170: 0.0003444389985 | P170: 0 | Q170: 2.369859341e-06 | R170: 1.325411909e-05 | S170: 1.562397843e-05 | T170: 8.589559045e-05 | U170: 8.437867433e-06 | V170: 4.57007489e-05 | W170: 0.0001400342068 | X170: =X108+X141 -> 0 | Y170: 4.469491154e-06 | Z170: 2.585422914e-05 | AA170: 3.03237203e-05
J171: Semiconductor (solar cell/module) manufacturing | L171: 0 | M171: 1.240775639e-06 | N171: 1.1556636e-06 | O171: 2.396439238e-06 | P171: 0 | Q171: 7.929384969e-08 | R171: 5.133197537e-08 | S171: 1.306258251e-07 | T171: 5.205501959e-07 | U171: 2.371460117e-07 | V171: 1.769787378e-07 | W171: 9.346749454e-07 | X171: =X109+X142 -> 0 | Y171: 1.284879254e-07 | Z171: 1.00121063e-07 | AA171: 2.286089884e-07
J172: Plant Employees | L172: =L143 -> 0.1440850117 | O172: 0.1440850117 | P172: =P143 -> 0.00975355406 | S172: 0.00975355406 | W172: 0 | X172: =X143 -> 0.00975355406 | AA172: 0.00975355406
J173: Total | L173: =SUM(L150:L172) -> 0.1593998679 | M173: =SUM(M150:M172) -> 0.03937056052 | N173: 0.03238158023 | O173: 0.2311520087 | P173: 0.0110763372 | Q173: 0.001998318611 | R173: 0.001438457017 | S173: 0.01451311283 | T173: 0.0147857308 | U173: 0.006992059341 | V173: 0.004958220744 | W173: 0.02673601088 | X173: =SUM(X150:X172) -> 0.01255825286 | Y173: 0.003891642513 | Z173: 0.002804922885 | AA173: 0.01925481826
J174: Inflate to | K174: =P144 -> 2010 | L174: Dollars | P174: =P173*$G64 -> 0.0094569767 | Q174: 0.00170616443 | R174: 0.001228154601 | S174: 0.01239129573 | T174: 0.01262405695 | U174: 0.005969820266 | V174: 0.004233328871 | W174: 0.02282720609 | X174: =X173*$G64 -> 0.01072223629 | Y174: 0.003322684378 | Z174: 0.002394843159 | AA174: 0.01643976383
C176: Default
C177: From DefaultData
C178: Debt - Loan Repayment Schedule
C179: Year | D179: Interest Pmt | E179: Principal Pmt | F179: Total Pmt
C180: 1 | D180: =IF(C180<=DefaultData!D$48,-ISPMT(DefaultData!D$49,C180,DefaultData!D$48,DefaultData!D$30*DefaultData!D$47),0) -> 96841.64674 | E180: =IF(C180<=DefaultData!D$48,-PPMT(DefaultData!D$49,C180,DefaultData!D$48,DefaultData!D$47*DefaultData!D$30),0) -> 67515.19295 | F180: =E180+D180 -> 164356.8397
C181: 2 | D181: =IF(C181<=DefaultData!D$48,-ISPMT(DefaultData!D$49,C181,DefaultData!D$48,DefaultData!D$30*DefaultData!D$47),0) -> 86081.46377 | E181: =IF(C181<=DefaultData!D$48,-PPMT(DefaultData!D$49,C181,DefaultData!D$48,DefaultData!D$47*DefaultData!D$30),0) -> 74266.71225 | F181: 160348.176
C182: 3 | D182: =IF(C182<=DefaultData!D$48,-ISPMT(DefaultData!D$49,C182,DefaultData!D$48,DefaultData!D$30*DefaultData!D$47),0) -> 75321.2808 | E182: =IF(C182<=DefaultData!D$48,-PPMT(DefaultData!D$49,C182,DefaultData!D$48,DefaultData!D$47*DefaultData!D$30),0) -> 81693.38347 | F182: 157014.6643
C183: 4 | D183: =IF(C183<=DefaultData!D$48,-ISPMT(DefaultData!D$49,C183,DefaultData!D$48,DefaultData!D$30*DefaultData!D$47),0) -> 64561.09783 | E183: =IF(C183<=DefaultData!D$48,-PPMT(DefaultData!D$49,C183,DefaultData!D$48,DefaultData!D$47*DefaultData!D$30),0) -> 89862.72182 | F183: 154423.8196
C184: 5 | D184: =IF(C184<=DefaultData!D$48,-ISPMT(DefaultData!D$49,C184,DefaultData!D$48,DefaultData!D$30*DefaultData!D$47),0) -> 53800.91486 | E184: =IF(C184<=DefaultData!D$48,-PPMT(DefaultData!D$49,C184,DefaultData!D$48,DefaultData!D$47*DefaultData!D$30),0) -> 98848.994 | F184: 152649.9089
C185: 6 | D185: =IF(C185<=DefaultData!D$48,-ISPMT(DefaultData!D$49,C185,DefaultData!D$48,DefaultData!D$30*DefaultData!D$47),0) -> 43040.73188 | E185: =IF(C185<=DefaultData!D$48,-PPMT(DefaultData!D$49,C185,DefaultData!D$48,DefaultData!D$47*DefaultData!D$30),0) -> 108733.8934 | F185: 151774.6253
C186: 7 | D186: =IF(C186<=DefaultData!D$48,-ISPMT(DefaultData!D$49,C186,DefaultData!D$48,DefaultData!D$30*DefaultData!D$47),0) -> 32280.54891 | E186: =IF(C186<=DefaultData!D$48,-PPMT(DefaultData!D$49,C186,DefaultData!D$48,DefaultData!D$47*DefaultData!D$30),0) -> 119607.2827 | F186: 151887.8317
C187: 8 | D187: =IF(C187<=DefaultData!D$48,-ISPMT(DefaultData!D$49,C187,DefaultData!D$48,DefaultData!D$30*DefaultData!D$47),0) -> 21520.36594 | E187: =IF(C187<=DefaultData!D$48,-PPMT(DefaultData!D$49,C187,DefaultData!D$48,DefaultData!D$47*DefaultData!D$30),0) -> 131568.011 | F187: 153088.377
C188: 9 | D188: =IF(C188<=DefaultData!D$48,-ISPMT(DefaultData!D$49,C188,DefaultData!D$48,DefaultData!D$30*DefaultData!D$47),0) -> 10760.18297 | E188: =IF(C188<=DefaultData!D$48,-PPMT(DefaultData!D$49,C188,DefaultData!D$48,DefaultData!D$47*DefaultData!D$30),0) -> 144724.8121 | F188: 155484.9951
C189: 10 | D189: =IF(C189<=DefaultData!D$48,-ISPMT(DefaultData!D$49,C189,DefaultData!D$48,DefaultData!D$30*DefaultData!D$47),0) -> 0 | E189: =IF(C189<=DefaultData!D$48,-PPMT(DefaultData!D$49,C189,DefaultData!D$48,DefaultData!D$47*DefaultData!D$30),0) -> 159197.2933 | F189: 159197.2933
C190: 11 | D190: =IF(C190<=DefaultData!D$48,-ISPMT(DefaultData!D$49,C190,DefaultData!D$48,DefaultData!D$30*DefaultData!D$47),0) -> 0 | E190: =IF(C190<=DefaultData!D$48,-PPMT(DefaultData!D$49,C190,DefaultData!D$48,DefaultData!D$47*DefaultData!D$30),0) -> 0 | F190: 0
C191: 12 | D191: =IF(C191<=DefaultData!D$48,-ISPMT(DefaultData!D$49,C191,DefaultData!D$48,DefaultData!D$30*DefaultData!D$47),0) -> 0 | E191: =IF(C191<=DefaultData!D$48,-PPMT(DefaultData!D$49,C191,DefaultData!D$48,DefaultData!D$47*DefaultData!D$30),0) -> 0 | F191: 0
C192: 13 | D192: =IF(C192<=DefaultData!D$48,-ISPMT(DefaultData!D$49,C192,DefaultData!D$48,DefaultData!D$30*DefaultData!D$47),0) -> 0 | E192: =IF(C192<=DefaultData!D$48,-PPMT(DefaultData!D$49,C192,DefaultData!D$48,DefaultData!D$47*DefaultData!D$30),0) -> 0 | F192: 0
C193: 14 | D193: =IF(C193<=DefaultData!D$48,-ISPMT(DefaultData!D$49,C193,DefaultData!D$48,DefaultData!D$30*DefaultData!D$47),0) -> 0 | E193: =IF(C193<=DefaultData!D$48,-PPMT(DefaultData!D$49,C193,DefaultData!D$48,DefaultData!D$47*DefaultData!D$30),0) -> 0 | F193: 0
C194: 15 | D194: =IF(C194<=DefaultData!D$48,-ISPMT(DefaultData!D$49,C194,DefaultData!D$48,DefaultData!D$30*DefaultData!D$47),0) -> 0 | E194: =IF(C194<=DefaultData!D$48,-PPMT(DefaultData!D$49,C194,DefaultData!D$48,DefaultData!D$47*DefaultData!D$30),0) -> 0 | F194: 0
C195: 16 | D195: =IF(C195<=DefaultData!D$48,-ISPMT(DefaultData!D$49,C195,DefaultData!D$48,DefaultData!D$30*DefaultData!D$47),0) -> 0 | E195: =IF(C195<=DefaultData!D$48,-PPMT(DefaultData!D$49,C195,DefaultData!D$48,DefaultData!D$47*DefaultData!D$30),0) -> 0 | F195: 0
C196: 17 | D196: =IF(C196<=DefaultData!D$48,-ISPMT(DefaultData!D$49,C196,DefaultData!D$48,DefaultData!D$30*DefaultData!D$47),0) -> 0 | E196: =IF(C196<=DefaultData!D$48,-PPMT(DefaultData!D$49,C196,DefaultData!D$48,DefaultData!D$47*DefaultData!D$30),0) -> 0 | F196: 0
C197: 18 | D197: =IF(C197<=DefaultData!D$48,-ISPMT(DefaultData!D$49,C197,DefaultData!D$48,DefaultData!D$30*DefaultData!D$47),0) -> 0 | E197: =IF(C197<=DefaultData!D$48,-PPMT(DefaultData!D$49,C197,DefaultData!D$48,DefaultData!D$47*DefaultData!D$30),0) -> 0 | F197: 0
C198: 19 | D198: =IF(C198<=DefaultData!D$48,-ISPMT(DefaultData!D$49,C198,DefaultData!D$48,DefaultData!D$30*DefaultData!D$47),0) -> 0 | E198: =IF(C198<=DefaultData!D$48,-PPMT(DefaultData!D$49,C198,DefaultData!D$48,DefaultData!D$47*DefaultData!D$30),0) -> 0 | F198: 0
C199: 20 | D199: =IF(C199<=DefaultData!D$48,-ISPMT(DefaultData!D$49,C199,DefaultData!D$48,DefaultData!D$30*DefaultData!D$47),0) -> 0 | E199: =IF(C199<=DefaultData!D$48,-PPMT(DefaultData!D$49,C199,DefaultData!D$48,DefaultData!D$47*DefaultData!D$30),0) -> 0 | F199: 0
C200: 21 | D200: =IF(C200<=DefaultData!D$48,-ISPMT(DefaultData!D$49,C200,DefaultData!D$48,DefaultData!D$30*DefaultData!D$47),0) -> 0 | E200: =IF(C200<=DefaultData!D$48,-PPMT(DefaultData!D$49,C200,DefaultData!D$48,DefaultData!D$47*DefaultData!D$30),0) -> 0 | F200: 0
C201: 22 | D201: =IF(C201<=DefaultData!D$48,-ISPMT(DefaultData!D$49,C201,DefaultData!D$48,DefaultData!D$30*DefaultData!D$47),0) -> 0 | E201: =IF(C201<=DefaultData!D$48,-PPMT(DefaultData!D$49,C201,DefaultData!D$48,DefaultData!D$47*DefaultData!D$30),0) -> 0 | F201: 0
C202: 23 | D202: =IF(C202<=DefaultData!D$48,-ISPMT(DefaultData!D$49,C202,DefaultData!D$48,DefaultData!D$30*DefaultData!D$47),0) -> 0 | E202: =IF(C202<=DefaultData!D$48,-PPMT(DefaultData!D$49,C202,DefaultData!D$48,DefaultData!D$47*DefaultData!D$30),0) -> 0 | F202: 0
C203: 24 | D203: =IF(C203<=DefaultData!D$48,-ISPMT(DefaultData!D$49,C203,DefaultData!D$48,DefaultData!D$30*DefaultData!D$47),0) -> 0 | E203: =IF(C203<=DefaultData!D$48,-PPMT(DefaultData!D$49,C203,DefaultData!D$48,DefaultData!D$47*DefaultData!D$30),0) -> 0 | F203: 0
C204: 25 | D204: =IF(C204<=DefaultData!D$48,-ISPMT(DefaultData!D$49,C204,DefaultData!D$48,DefaultData!D$30*DefaultData!D$47),0) -> 0 | E204: =IF(C204<=DefaultData!D$48,-PPMT(DefaultData!D$49,C204,DefaultData!D$48,DefaultData!D$47*DefaultData!D$30),0) -> 0 | F204: 0
C205: 26 | D205: =IF(C205<=DefaultData!D$48,-ISPMT(DefaultData!D$49,C205,DefaultData!D$48,DefaultData!D$30*DefaultData!D$47),0) -> 0 | E205: =IF(C205<=DefaultData!D$48,-PPMT(DefaultData!D$49,C205,DefaultData!D$48,DefaultData!D$47*DefaultData!D$30),0) -> 0 | F205: 0
C206: 27 | D206: =IF(C206<=DefaultData!D$48,-ISPMT(DefaultData!D$49,C206,DefaultData!D$48,DefaultData!D$30*DefaultData!D$47),0) -> 0 | E206: =IF(C206<=DefaultData!D$48,-PPMT(DefaultData!D$49,C206,DefaultData!D$48,DefaultData!D$47*DefaultData!D$30),0) -> 0 | F206: 0
C207: 28 | D207: =IF(C207<=DefaultData!D$48,-ISPMT(DefaultData!D$49,C207,DefaultData!D$48,DefaultData!D$30*DefaultData!D$47),0) -> 0 | E207: =IF(C207<=DefaultData!D$48,-PPMT(DefaultData!D$49,C207,DefaultData!D$48,DefaultData!D$47*DefaultData!D$30),0) -> 0 | F207: 0
C208: 29 | D208: =IF(C208<=DefaultData!D$48,-ISPMT(DefaultData!D$49,C208,DefaultData!D$48,DefaultData!D$30*DefaultData!D$47),0) -> 0 | E208: =IF(C208<=DefaultData!D$48,-PPMT(DefaultData!D$49,C208,DefaultData!D$48,DefaultData!D$47*DefaultData!D$30),0) -> 0 | F208: 0
C209: 30 | D209: =IF(C209<=DefaultData!D$48,-ISPMT(DefaultData!D$49,C209,DefaultData!D$48,DefaultData!D$30*DefaultData!D$47),0) -> 0 | E209: =IF(C209<=DefaultData!D$48,-PPMT(DefaultData!D$49,C209,DefaultData!D$48,DefaultData!D$47*DefaultData!D$30),0) -> 0 | F209: 0
... 37 more rows

Sheet Deflators
C2: =CONCATENATE("Conversion to Year ",E4," dollars and back for consistency with multiplier data.") -> Conversion to Year 2019 dollars and back for consistency with multiplier data.
C4: Year of Multiplier Data | E4: =IF(ProjectData!B12="MYCOUNTY",'User Add-in Location'!D3,IF(ProjectData!B12="MYREGION",'User Add-in Location'!D4,Multipliers!D2)) -> 2019 | F4: =IF(E4=0,"ERROR","") ->  | G4: Region of Analysis | I4: =ProjectData!B12 -> ARIZONA
A5: Warning | C5: Year of Construction $s | E5: =+ProjectData!B24 -> 2010
A7: This Worksheet contains Data and Formulas that are an integral part of the JEDI model. | D7: Deflator | F7: =HLOOKUP($E$5,$D$11:$AK$53,$D$51) -> 1.1713
D8: Inflator | F8: =HLOOKUP($E$5,$D$11:$AK$53,$D$52) -> 0.8538
A9: Although the data and formulas are available for review they must not be changed.
A11: Any changes to the data or formulas will impact the analysis and may invalidate the model results. | D11: 2007 | E11: 2008 | F11: 2009 | G11: 2010 | H11: 2011 | I11: 2012 | J11: 2013 | K11: 2014 | L11: 2015 | M11: 2016 | N11: 2017 | O11: 2018 | P11: 2019 | Q11: 2020 | R11: 2021 | S11: 2022 | T11: 2023 | U11: 2024 | V11: 2025 | W11: 2026 | X11: 2027 | Y11: 2028 | Z11: 2029 | AA11: 2030 | AB11: 2031 | AC11: 2032 | AD11: 2033 | AE11: 2034 | AF11: 2035 | AG11: 2036 | AH11: 2037 | AI11: 2038 | AJ11: 2039 | AK11: 2040
C12: 2007$ | D12: 1 | E12: 1.0208 | F12: 1.0326 | G12: 1.0417 | H12: 1.0629 | I12: 1.0823 | J12: 1.1009 | K12: 1.1197 | L12: 1.1349 | M12: 1.1528 | N12: 1.1735 | O12: 1.1962 | P12: 1.2202 | Q12: 1.2446 | R12: 1.2666 | S12: 1.2891 | T12: 1.3119 | U12: 1.3351 | V12: 1.3587 | W12: 1.3827 | X12: 1.4072 | Y12: 1.4321 | Z12: 1.4574 | AA12: 1.4832 | AB12: 1.5094 | AC12: 1.5361 | AD12: 1.5633 | AE12: 1.5909 | AF12: 1.6191 | AG12: 1.6477 | AH12: 1.6768 | AI12: 1.7065 | AJ12: 1.7367 | AK12: 1.7674
D13: 1 | E13: 0.9797 | F13: 0.9684 | G13: 0.96 | H13: 0.9408 | I13: 0.924 | J13: 0.9084 | K13: 0.8931 | L13: 0.8812 | M13: 0.8674 | N13: 0.8522 | O13: 0.836 | P13: 0.8196 | Q13: 0.8035 | R13: 0.7895 | S13: 0.7758 | T13: 0.7623 | U13: 0.749 | V13: 0.736 | W13: 0.7232 | X13: 0.7106 | Y13: 0.6983 | Z13: 0.6862 | AA13: 0.6742 | AB13: 0.6625 | AC13: 0.651 | AD13: 0.6397 | AE13: 0.6286 | AF13: 0.6176 | AG13: 0.6069 | AH13: 0.5964 | AI13: 0.586 | AJ13: 0.5758 | AK13: 0.5658
C14: 2008$ | D14: 0.9797 | E14: 1 | F14: 1.0116 | G14: 1.0205 | H14: 1.0413 | I14: 1.0603 | J14: 1.0785 | K14: 1.0969 | L14: 1.1118 | M14: 1.1294 | N14: 1.1496 | O14: 1.1719 | P14: 1.1953 | Q14: 1.2193 | R14: 1.2409 | S14: 1.2628 | T14: 1.2852 | U14: 1.3079 | V14: 1.331 | W14: 1.3546 | X14: 1.3786 | Y14: 1.4029 | Z14: 1.4278 | AA14: 1.453 | AB14: 1.4787 | AC14: 1.5049 | AD14: 1.5315 | AE14: 1.5586 | AF14: 1.5861 | AG14: 1.6142 | AH14: 1.6428 | AI14: 1.6718 | AJ14: 1.7014 | AK14: 1.7315
D15: 1.0208 | E15: 1 | F15: 0.9885 | G15: 0.9799 | H15: 0.9604 | I15: 0.9431 | J15: 0.9272 | K15: 0.9116 | L15: 0.8995 | M15: 0.8854 | N15: 0.8699 | O15: 0.8533 | P15: 0.8366 | Q15: 0.8201 | R15: 0.8059 | S15: 0.7919 | T15: 0.7781 | U15: 0.7646 | V15: 0.7513 | W15: 0.7382 | X15: 0.7254 | Y15: 0.7128 | Z15: 0.7004 | AA15: 0.6882 | AB15: 0.6763 | AC15: 0.6645 | AD15: 0.653 | AE15: 0.6416 | AF15: 0.6305 | AG15: 0.6195 | AH15: 0.6087 | AI15: 0.5982 | AJ15: 0.5878 | AK15: 0.5775
C16: 2009$ | D16: 0.9684 | E16: 0.9885 | F16: 1 | G16: 1.0088 | H16: 1.0293 | I16: 1.0481 | J16: 1.0661 | K16: 1.0843 | L16: 1.099 | M16: 1.1164 | N16: 1.1364 | O16: 1.1584 | P16: 1.1816 | Q16: 1.2053 | R16: 1.2266 | S16: 1.2483 | T16: 1.2704 | U16: 1.2929 | V16: 1.3157 | W16: 1.339 | X16: 1.3627 | Y16: 1.3868 | Z16: 1.4113 | AA16: 1.4363 | AB16: 1.4617 | AC16: 1.4876 | AD16: 1.5139 | AE16: 1.5407 | AF16: 1.5679 | AG16: 1.5956 | AH16: 1.6239 | AI16: 1.6526 | AJ16: 1.6818 | AK16: 1.7116
D17: 1.0326 | E17: 1.0116 | F17: 1 | G17: 0.9913 | H17: 0.9715 | I17: 0.9541 | J17: 0.938 | K17: 0.9223 | L17: 0.9099 | M17: 0.8957 | N17: 0.88 | O17: 0.8633 | P17: 0.8463 | Q17: 0.8297 | R17: 0.8152 | S17: 0.8011 | T17: 0.7872 | U17: 0.7735 | V17: 0.76 | W17: 0.7468 | X17: 0.7338 | Y17: 0.7211 | Z17: 0.7085 | AA17: 0.6962 | AB17: 0.6841 | AC17: 0.6722 | AD17: 0.6606 | AE17: 0.6491 | AF17: 0.6378 | AG17: 0.6267 | AH17: 0.6158 | AI17: 0.6051 | AJ17: 0.5946 | AK17: 0.5843
A18: To view the data and formulas simply scroll over to the adjacent columns to the right. | C18: 2010$ | D18: 0.96 | E18: 0.9799 | F18: 0.9913 | G18: 1 | H18: 1.0203 | I18: 1.039 | J18: 1.0568 | K18: 1.0748 | L18: 1.0894 | M18: 1.1067 | N18: 1.1265 | O18: 1.1483 | P18: 1.1713 | Q18: 1.1948 | R18: 1.2159 | S18: 1.2374 | T18: 1.2593 | U18: 1.2816 | V18: 1.3043 | W18: 1.3273 | X18: 1.3508 | Y18: 1.3747 | Z18: 1.399 | AA18: 1.4238 | AB18: 1.449 | AC18: 1.4746 | AD18: 1.5007 | AE18: 1.5272 | AF18: 1.5542 | AG18: 1.5817 | AH18: 1.6097 | AI18: 1.6382 | AJ18: 1.6671 | AK18: 1.6966
D19: 1.0417 | E19: 1.0205 | F19: 1.0088 | G19: 1 | H19: 0.9801 | I19: 0.9625 | J19: 0.9463 | K19: 0.9304 | L19: 0.9179 | M19: 0.9036 | N19: 0.8877 | O19: 0.8709 | P19: 0.8538 | Q19: 0.837 | R19: 0.8224 | S19: 0.8081 | T19: 0.7941 | U19: 0.7803 | V19: 0.7667 | W19: 0.7534 | X19: 0.7403 | Y19: 0.7274 | Z19: 0.7148 | AA19: 0.7024 | AB19: 0.6902 | AC19: 0.6782 | AD19: 0.6664 | AE19: 0.6548 | AF19: 0.6434 | AG19: 0.6322 | AH19: 0.6212 | AI19: 0.6104 | AJ19: 0.5998 | AK19: 0.5894
C20: 2011$ | D20: 0.9408 | E20: 0.9604 | F20: 0.9715 | G20: 0.9801 | H20: 1 | I20: 1.0183 | J20: 1.0358 | K20: 1.0534 | L20: 1.0677 | M20: 1.0846 | N20: 1.1041 | O20: 1.1254 | P20: 1.148 | Q20: 1.171 | R20: 1.1917 | S20: 1.2128 | T20: 1.2342 | U20: 1.2561 | V20: 1.2783 | W20: 1.3009 | X20: 1.3239 | Y20: 1.3473 | Z20: 1.3712 | AA20: 1.3954 | AB20: 1.4201 | AC20: 1.4452 | AD20: 1.4708 | AE20: 1.4968 | AF20: 1.5233 | AG20: 1.5502 | AH20: 1.5776 | AI20: 1.6055 | AJ20: 1.6339 | AK20: 1.6628
D21: 1.0629 | E21: 1.0413 | F21: 1.0293 | G21: 1.0203 | H21: 1 | I21: 0.9821 | J21: 0.9655 | K21: 0.9493 | L21: 0.9366 | M21: 0.922 | N21: 0.9058 | O21: 0.8886 | P21: 0.8711 | Q21: 0.854 | R21: 0.8391 | S21: 0.8245 | T21: 0.8102 | U21: 0.7961 | V21: 0.7823 | W21: 0.7687 | X21: 0.7553 | Y21: 0.7422 | Z21: 0.7293 | AA21: 0.7166 | AB21: 0.7042 | AC21: 0.6919 | AD21: 0.6799 | AE21: 0.6681 | AF21: 0.6565 | AG21: 0.6451 | AH21: 0.6339 | AI21: 0.6228 | AJ21: 0.612 | AK21: 0.6014
C22: 2012$ | D22: 0.924 | E22: 0.9431 | F22: 0.9541 | G22: 0.9625 | H22: 0.9821 | I22: 1 | J22: 1.0172 | K22: 1.0345 | L22: 1.0486 | M22: 1.0652 | N22: 1.0842 | O22: 1.1052 | P22: 1.1274 | Q22: 1.15 | R22: 1.1703 | S22: 1.191 | T22: 1.2121 | U22: 1.2335 | V22: 1.2554 | W22: 1.2776 | X22: 1.3002 | Y22: 1.3232 | Z22: 1.3466 | AA22: 1.3704 | AB22: 1.3946 | AC22: 1.4193 | AD22: 1.4444 | AE22: 1.4699 | AF22: 1.4959 | AG22: 1.5224 | AH22: 1.5493 | AI22: 1.5767 | AJ22: 1.6046 | AK22: 1.633
D23: 1.0823 | E23: 1.0603 | F23: 1.0481 | G23: 1.039 | H23: 1.0183 | I23: 1 | J23: 0.9831 | K23: 0.9666 | L23: 0.9537 | M23: 0.9388 | N23: 0.9223 | O23: 0.9048 | P23: 0.887 | Q23: 0.8696 | R23: 0.8545 | S23: 0.8396 | T23: 0.825 | U23: 0.8107 | V23: 0.7966 | W23: 0.7827 | X23: 0.7691 | Y23: 0.7558 | Z23: 0.7426 | AA23: 0.7297 | AB23: 0.717 | AC23: 0.7046 | AD23: 0.6923 | AE23: 0.6803 | AF23: 0.6685 | AG23: 0.6569 | AH23: 0.6454 | AI23: 0.6342 | AJ23: 0.6232 | AK23: 0.6124
C24: 2013$ | D24: 0.9084 | E24: 0.9272 | F24: 0.938 | G24: 0.9463 | H24: 0.9655 | I24: 0.9831 | J24: 1 | K24: 1.0171 | L24: 1.0309 | M24: 1.0472 | N24: 1.0659 | O24: 1.0866 | P24: 1.1083 | Q24: 1.1306 | R24: 1.1506 | S24: 1.1709 | T24: 1.1916 | U24: 1.2127 | V24: 1.2342 | W24: 1.256 | X24: 1.2782 | Y24: 1.3008 | Z24: 1.3238 | AA24: 1.3472 | AB24: 1.3711 | AC24: 1.3953 | AD24: 1.42 | AE24: 1.4451 | AF24: 1.4707 | AG24: 1.4967 | AH24: 1.5232 | AI24: 1.5501 | AJ24: 1.5775 | AK24: 1.6054
D25: 1.1009 | E25: 1.0785 | F25: 1.0661 | G25: 1.0568 | H25: 1.0358 | I25: 1.0172 | J25: 1 | K25: 0.9832 | L25: 0.9701 | M25: 0.9549 | N25: 0.9381 | O25: 0.9203 | P25: 0.9023 | Q25: 0.8845 | R25: 0.8691 | S25: 0.854 | T25: 0.8392 | U25: 0.8246 | V25: 0.8103 | W25: 0.7962 | X25: 0.7823 | Y25: 0.7687 | Z25: 0.7554 | AA25: 0.7423 | AB25: 0.7294 | AC25: 0.7167 | AD25: 0.7042 | AE25: 0.692 | AF25: 0.68 | AG25: 0.6681 | AH25: 0.6565 | AI25: 0.6451 | AJ25: 0.6339 | AK25: 0.6229
C26: 2014$ | D26: 0.8931 | E26: 0.9116 | F26: 0.9223 | G26: 0.9304 | H26: 0.9493 | I26: 0.9666 | J26: 0.9832 | K26: 1 | L26: 1.0136 | M26: 1.0296 | N26: 1.048 | O26: 1.0683 | P26: 1.0897 | Q26: 1.1116 | R26: 1.1313 | S26: 1.1513 | T26: 1.1716 | U26: 1.1924 | V26: 1.2134 | W26: 1.2349 | X26: 1.2568 | Y26: 1.279 | Z26: 1.3016 | AA26: 1.3246 | AB26: 1.3481 | AC26: 1.3719 | AD26: 1.3962 | AE26: 1.4209 | AF26: 1.446 | AG26: 1.4716 | AH26: 1.4976 | AI26: 1.5241 | AJ26: 1.5511 | AK26: 1.5785
D27: 1.1197 | E27: 1.0969 | F27: 1.0843 | G27: 1.0748 | H27: 1.0534 | I27: 1.0345 | J27: 1.0171 | K27: 1 | L27: 0.9866 | M27: 0.9712 | N27: 0.9542 | O27: 0.936 | P27: 0.9177 | Q27: 0.8996 | R27: 0.884 | S27: 0.8686 | T27: 0.8535 | U27: 0.8387 | V27: 0.8241 | W27: 0.8098 | X27: 0.7957 | Y27: 0.7819 | Z27: 0.7683 | AA27: 0.7549 | AB27: 0.7418 | AC27: 0.7289 | AD27: 0.7162 | AE27: 0.7038 | AF27: 0.6916 | AG27: 0.6795 | AH27: 0.6677 | AI27: 0.6561 | AJ27: 0.6447 | AK27: 0.6335
C28: 2015$ | D28: 0.8812 | E28: 0.8995 | F28: 0.9099 | G28: 0.9179 | H28: 0.9366 | I28: 0.9537 | J28: 0.9701 | K28: 0.9866 | L28: 1 | M28: 1.0158 | N28: 1.034 | O28: 1.054 | P28: 1.0752 | Q28: 1.0967 | R28: 1.1161 | S28: 1.1359 | T28: 1.156 | U28: 1.1764 | V28: 1.1972 | W28: 1.2184 | X28: 1.2399 | Y28: 1.2619 | Z28: 1.2842 | AA28: 1.3069 | AB28: 1.33 | AC28: 1.3536 | AD28: 1.3775 | AE28: 1.4019 | AF28: 1.4267 | AG28: 1.4519 | AH28: 1.4776 | AI28: 1.5037 | AJ28: 1.5303 | AK28: 1.5574
D29: 1.1349 | E29: 1.1118 | F29: 1.099 | G29: 1.0894 | H29: 1.0677 | I29: 1.0486 | J29: 1.0309 | K29: 1.0136 | L29: 1 | M29: 0.9844 | N29: 0.9671 | O29: 0.9487 | P29: 0.9301 | Q29: 0.9118 | R29: 0.896 | S29: 0.8804 | T29: 0.8651 | U29: 0.85 | V29: 0.8353 | W29: 0.8208 | X29: 0.8065 | Y29: 0.7925 | Z29: 0.7787 | AA29: 0.7652 | AB29: 0.7519 | AC29: 0.7388 | AD29: 0.726 | AE29: 0.7133 | AF29: 0.7009 | AG29: 0.6888 | AH29: 0.6768 | AI29: 0.665 | AJ29: 0.6535 | AK29: 0.6421
C30: 2016$ | D30: 0.8674 | E30: 0.8854 | F30: 0.8957 | G30: 0.9036 | H30: 0.922 | I30: 0.9388 | J30: 0.9549 | K30: 0.9712 | L30: 0.9844 | M30: 1 | N30: 1.0179 | O30: 1.0376 | P30: 1.0584 | Q30: 1.0796 | R30: 1.0987 | S30: 1.1182 | T30: 1.1379 | U30: 1.1581 | V30: 1.1786 | W30: 1.1994 | X30: 1.2206 | Y30: 1.2422 | Z30: 1.2642 | AA30: 1.2865 | AB30: 1.3093 | AC30: 1.3325 | AD30: 1.356 | AE30: 1.38 | AF30: 1.4044 | AG30: 1.4293 | AH30: 1.4546 | AI30: 1.4803 | AJ30: 1.5065 | AK30: 1.5331
D31: 1.1528 | E31: 1.1294 | F31: 1.1164 | G31: 1.1067 | H31: 1.0846 | I31: 1.0652 | J31: 1.0472 | K31: 1.0296 | L31: 1.0158 | M31: 1 | N31: 0.9824 | O31: 0.9637 | P31: 0.9448 | Q31: 0.9262 | R31: 0.9101 | S31: 0.8943 | T31: 0.8788 | U31: 0.8635 | V31: 0.8485 | W31: 0.8337 | X31: 0.8193 | Y31: 0.805 | Z31: 0.791 | AA31: 0.7773 | AB31: 0.7638 | AC31: 0.7505 | AD31: 0.7374 | AE31: 0.7246 | AF31: 0.712 | AG31: 0.6997 | AH31: 0.6875 | AI31: 0.6755 | AJ31: 0.6638 | AK31: 0.6523
C32: 2017$ | D32: 0.8522 | E32: 0.8699 | F32: 0.88 | G32: 0.8877 | H32: 0.9058 | I32: 0.9223 | J32: 0.9381 | K32: 0.9542 | L32: 0.9671 | M32: 0.9824 | N32: 1 | O32: 1.0194 | P32: 1.0398 | Q32: 1.0606 | R32: 1.0794 | S32: 1.0985 | T32: 1.1179 | U32: 1.1377 | V32: 1.1578 | W32: 1.1783 | X32: 1.1991 | Y32: 1.2203 | Z32: 1.2419 | AA32: 1.2639 | AB32: 1.2863 | AC32: 1.309 | AD32: 1.3322 | AE32: 1.3557 | AF32: 1.3797 | AG32: 1.4041 | AH32: 1.429 | AI32: 1.4542 | AJ32: 1.48 | AK32: 1.5061
D33: 1.1735 | E33: 1.1496 | F33: 1.1364 | G33: 1.1265 | H33: 1.1041 | I33: 1.0842 | J33: 1.0659 | K33: 1.048 | L33: 1.034 | M33: 1.0179 | N33: 1 | O33: 0.981 | P33: 0.9617 | Q33: 0.9428 | R33: 0.9264 | S33: 0.9103 | T33: 0.8945 | U33: 0.879 | V33: 0.8637 | W33: 0.8487 | X33: 0.8339 | Y33: 0.8194 | Z33: 0.8052 | AA33: 0.7912 | AB33: 0.7774 | AC33: 0.7639 | AD33: 0.7507 | AE33: 0.7376 | AF33: 0.7248 | AG33: 0.7122 | AH33: 0.6998 | AI33: 0.6876 | AJ33: 0.6757 | AK33: 0.664
C34: 2018$ | D34: 0.836 | E34: 0.8533 | F34: 0.8633 | G34: 0.8709 | H34: 0.8886 | I34: 0.9048 | J34: 0.9203 | K34: 0.936 | L34: 0.9487 | M34: 0.9637 | N34: 0.981 | O34: 1 | P34: 1.02 | Q34: 1.0405 | R34: 1.0589 | S34: 1.0776 | T34: 1.0967 | U34: 1.1161 | V34: 1.1358 | W34: 1.1559 | X34: 1.1764 | Y34: 1.1972 | Z34: 1.2183 | AA34: 1.2399 | AB34: 1.2618 | AC34: 1.2842 | AD34: 1.3069 | AE34: 1.33 | AF34: 1.3535 | AG34: 1.3774 | AH34: 1.4018 | AI34: 1.4266 | AJ34: 1.4518 | AK34: 1.4775
D35: 1.1962 | E35: 1.1719 | F35: 1.1584 | G35: 1.1483 | H35: 1.1254 | I35: 1.1052 | J35: 1.0866 | K35: 1.0683 | L35: 1.054 | M35: 1.0376 | N35: 1.0194 | O35: 1 | P35: 0.9804 | Q35: 0.9611 | R35: 0.9444 | S35: 0.928 | T35: 0.9118 | U35: 0.896 | V35: 0.8804 | W35: 0.8651 | X35: 0.8501 | Y35: 0.8353 | Z35: 0.8208 | AA35: 0.8065 | AB35: 0.7925 | AC35: 0.7787 | AD35: 0.7652 | AE35: 0.7519 | AF35: 0.7388 | AG35: 0.726 | AH35: 0.7134 | AI35: 0.701 | AJ35: 0.6888 | AK35: 0.6768
C36: 2019$ | D36: 0.8196 | E36: 0.8366 | F36: 0.8463 | G36: 0.8538 | H36: 0.8711 | I36: 0.887 | J36: 0.9023 | K36: 0.9177 | L36: 0.9301 | M36: 0.9448 | N36: 0.9617 | O36: 0.9804 | P36: 1 | Q36: 1.0201 | R36: 1.0381 | S36: 1.0565 | T36: 1.0752 | U36: 1.0942 | V36: 1.1135 | W36: 1.1332 | X36: 1.1533 | Y36: 1.1737 | Z36: 1.1944 | AA36: 1.2156 | AB36: 1.2371 | AC36: 1.2589 | AD36: 1.2812 | AE36: 1.3039 | AF36: 1.3269 | AG36: 1.3504 | AH36: 1.3743 | AI36: 1.3986 | AJ36: 1.4233 | AK36: 1.4485
D37: 1.2202 | E37: 1.1953 | F37: 1.1816 | G37: 1.1713 | H37: 1.148 | I37: 1.1274 | J37: 1.1083 | K37: 1.0897 | L37: 1.0752 | M37: 1.0584 | N37: 1.0398 | O37: 1.02 | P37: 1 | Q37: 0.9803 | R37: 0.9633 | S37: 0.9466 | T37: 0.9301 | U37: 0.9139 | V37: 0.8981 | W37: 0.8824 | X37: 0.8671 | Y37: 0.852 | Z37: 0.8372 | AA37: 0.8227 | AB37: 0.8084 | AC37: 0.7943 | AD37: 0.7805 | AE37: 0.7669 | AF37: 0.7536 | AG37: 0.7405 | AH37: 0.7276 | AI37: 0.715 | AJ37: 0.7026 | AK37: 0.6904
C38: 2020$ | D38: 0.8035 | E38: 0.8201 | F38: 0.8297 | G38: 0.837 | H38: 0.854 | I38: 0.8696 | J38: 0.8845 | K38: 0.8996 | L38: 0.9118 | M38: 0.9262 | N38: 0.9428 | O38: 0.9611 | P38: 0.9803 | Q38: 1 | R38: 1.0177 | S38: 1.0357 | T38: 1.054 | U38: 1.0727 | V38: 1.0916 | W38: 1.1109 | X38: 1.1306 | Y38: 1.1506 | Z38: 1.1709 | AA38: 1.1917 | AB38: 1.2127 | AC38: 1.2342 | AD38: 1.256 | AE38: 1.2782 | AF38: 1.3008 | AG38: 1.3239 | AH38: 1.3473 | AI38: 1.3711 | AJ38: 1.3954 | AK38: 1.42
D39: 1.2446 | E39: 1.2193 | F39: 1.2053 | G39: 1.1948 | H39: 1.171 | I39: 1.15 | J39: 1.1306 | K39: 1.1116 | L39: 1.0967 | M39: 1.0796 | N39: 1.0606 | O39: 1.0405 | P39: 1.0201 | Q39: 1 | R39: 0.9826 | S39: 0.9655 | T39: 0.9488 | U39: 0.9323 | V39: 0.9161 | W39: 0.9001 | X39: 0.8845 | Y39: 0.8691 | Z39: 0.854 | AA39: 0.8392 | AB39: 0.8246 | AC39: 0.8103 | AD39: 0.7962 | AE39: 0.7823 | AF39: 0.7687 | AG39: 0.7554 | AH39: 0.7422 | AI39: 0.7293 | AJ39: 0.7167 | AK39: 0.7042
C43: Source: Deflators and Inflators derived from data contained in the Budget of the United States Government: Table 10.1 - Gross Domestic Product and Deflators Used in the Historical Tables 1940-2020.
C44: https://www.whitehouse.gov/omb/budget/Historicals
C45: Updated November 2016. Deflators for 2021-2040 assume average annual inflation rate derived from 2014-2020 GDP values.
D51: =HLOOKUP($E$4,E$51:R$53,3) -> 27 | E51: 2007 | F51: 2008 | G51: 2009 | H51: 2010 | I51: 2011 | J51: 2012 | K51: 2013 | L51: 2014 | M51: 2015 | N51: 2016 | O51: 2017 | P51: 2018 | Q51: 2019 | R51: 2020
D52: =HLOOKUP($E$4,E$51:R$53,2) -> 26 | E52: 2 | F52: 4 | G52: 6 | H52: 8 | I52: 10 | J52: 12 | K52: 14 | L52: 16 | M52: 18 | N52: 20 | O52: 22 | P52: 24 | Q52: 26 | R52: 28
E53: 3 | F53: 5 | G53: 7 | H53: 9 | I53: 11 | J53: 13 | K53: 15 | L53: 17 | M53: 19 | N53: 21 | O53: 23 | P53: 25 | Q53: 27 | R53: 29
C55: =C53*100 -> 0

Sheet Household Exp (hidden)
C1: Personal Consumption Expenditures
C2: Year of Data | D2: 2019
D3: Alabama | E3: Alaska | F3: Arizona | G3: Arkansas | H3: California | I3: Colorado | J3: Connecticut | K3: Delaware | L3: District of Columbia | M3: Florida | N3: Georgia | O3: Hawaii | P3: Idaho | Q3: Illinois | R3: Indiana | S3: Iowa | T3: Kansas | U3: Kentucky | V3: Louisiana | W3: Maine | X3: Maryland | Y3: Massachusetts | Z3: Michigan | AA3: Minnesota | AB3: Mississippi | AC3: Missouri | AD3: Montana | AE3: ='User Add-in Location'!E10 -> MyCounty | AF3: ='User Add-in Location'!F10 -> MyRegion | AG3: Nebraska | AH3: Nevada | AI3: New Hampshire | AJ3: New Jersey | AK3: New Mexico | AL3: New York | AM3: North Carolina | AN3: North Dakota | AO3: Ohio | AP3: Oklahoma | AQ3: Oregon | AR3: Pennsylvania | AS3: REGION1 | AT3: REGION2 | AU3: REGION3 | AV3: REGION4 | AW3: REGION5 | AX3: REGION6 | AY3: REGION7 | AZ3: REGION8 | BA3: Rhode Island | BB3: South Carolina | BC3: South Dakota | BD3: Tennessee | BE3: Texas | BF3: United States | BG3: Utah | BH3: Vermont | BI3: Virginia | BJ3: Washington | BK3: West Virginia | BL3: Wisconsin | BM3: Wyoming
C4: Ag, Forestry, Fish & Hunting | D4: 0.006020685208 | E4: 0.001192608592 | F4: 0.004031088633 | G4: 0.006660589896 | H4: 0.002695024508 | I4: 0.005167272277 | J4: 0.001038963147 | K4: 0.00371515833 | L4: 1.965315297e-05 | M4: 0.002295004171 | N4: 0.004733228433 | O4: 0.002043215825 | P4: 0.007978246288 | Q4: 0.001017683882 | R4: 0.00287235809 | S4: 0.006099994271 | T4: 0.006025648966 | U4: 0.005347465509 | V4: 0.002835065208 | W4: 0.003623290664 | X4: 0.00183056321 | Y4: 0.0001824542692 | Z4: 0.002939106096 | AA4: 0.003736752029 | AB4: 0.006545603755 | AC4: 0.004351485482 | AD4: 0.00683539955 | AE4: ='User Add-in Location'!E11 -> 0 | AF4: ='User Add-in Location'!F11 -> 0 | AG4: 0.005806132281 | AH4: 0.002116322574 | AI4: 0.001604739835 | AJ4: 0.000528135752 | AK4: 0.00722608317 | AL4: 0.002051487222 | AM4: 0.005309975642 | AN4: 0.003046724372 | AO4: 0.002696080893 | AP4: 0.006394791188 | AQ4: 0.005680713467 | AR4: 0.002911955523 | AS4: 0 | AT4: 0 | AU4: 0 | AV4: 0 | AW4: 0 | AX4: 0 | AY4: 0 | AZ4: 0 | BA4: 0.0001341199669 | BB4: 0.003309040136 | BC4: 0.005732487587 | BD4: 0.002711166112 | BE4: 0.003539795359 | BF4: 0.004584099237 | BG4: 0.003635835283 | BH4: 0.007793734542 | BI4: 0.003358704207 | BJ4: 0.00354593058 | BK4: 0.002289294842 | BL4: 0.006023360817 | BM4: 0.003331083543
A5: Warning | C5: Mining | D5: 0.0002198738616 | E5: 0.00570647882 | F5: 0.0002440154054 | G5: 0.0004370687404 | H5: 0.0001769633796 | I5: 0.001711351296 | J5: 6.56067441e-05 | K5: 3.69844523e-05 | L5: 1.19182181e-05 | M5: 0.000176072011 | N5: 0.0001068845469 | O5: 8.262561183e-05 | P5: 0.0002935239189 | Q5: 0.0001620095066 | R5: 0.0001037470847 | S5: 9.659655768e-05 | T5: 0.001123013179 | U5: 0.0002978009081 | V5: 0.001362790879 | W5: 5.400293461e-05 | X5: 8.384184295e-05 | Y5: 4.343368984e-05 | Z5: 0.0001090804971 | AA5: 0.000211662429 | AB5: 0.0004925640718 | AC5: 0.000144975672 | AD5: 0.001913311218 | AE5: ='User Add-in Location'!E12 -> 0 | AF5: ='User Add-in Location'!F12 -> 0 | AG5: 0.0001416550456 | AH5: 0.001359052483 | AI5: 8.537007736e-05 | AJ5: 4.860561884e-05 | AK5: 0.004246269625 | AL5: 7.569314156e-05 | AM5: 9.375105475e-05 | AN5: 0.004392219287 | AO5: 0.0003073831164 | AP5: 0.005150142062 | AQ5: 0.0001027426651 | AR5: 0.0006244452613 | AS5: 0 | AT5: 0 | AU5: 0 | AV5: 0 | AW5: 0 | AX5: 0 | AY5: 0 | AZ5: 0 | BA5: 3.411027734e-05 | BB5: 8.370765011e-05 | BC5: 0.0002451877743 | BD5: 8.114013275e-05 | BE5: 0.003024573095 | BF5: 0.0005556127847 | BG5: 0.0006562607919 | BH5: 0.0001761464248 | BI5: 0.0001997863004 | BJ5: 2.734947975e-05 | BK5: 0.0004953261496 | BL5: 2.869917932e-05 | BM5: 0.001309453008
C6: Construction | D6: 0 | E6: 0 | F6: 0 | G6: 0 | H6: 0 | I6: 0 | J6: 0 | K6: 0 | L6: 0 | M6: 0 | N6: 0 | O6: 0 | P6: 0 | Q6: 0 | R6: 0 | S6: 0 | T6: 0 | U6: 0 | V6: 0 | W6: 0 | X6: 0 | Y6: 0 | Z6: 0 | AA6: 0 | AB6: 0 | AC6: 0 | AD6: 0 | AE6: ='User Add-in Location'!E13 -> 0 | AF6: ='User Add-in Location'!F13 -> 0 | AG6: 0 | AH6: 0 | AI6: 0 | AJ6: 0 | AK6: 0 | AL6: 0 | AM6: 0 | AN6: 0 | AO6: 0 | AP6: 0 | AQ6: 0 | AR6: 0 | AS6: 0 | AT6: 0 | AU6: 0 | AV6: 0 | AW6: 0 | AX6: 0 | AY6: 0 | AZ6: 0 | BA6: 0 | BB6: 0 | BC6: 0 | BD6: 0 | BE6: 0 | BF6: 0 | BG6: 0 | BH6: 0 | BI6: 0 | BJ6: 0 | BK6: 0 | BL6: 0 | BM6: 0
A7: This Worksheet contains Data and Formulas that are an integral part of the JEDI model. | C7: Construction/Installations - Non Residential | D7: 0 | E7: 0 | F7: 0 | G7: 0 | H7: 0 | I7: 0 | J7: 0 | K7: 0 | L7: 0 | M7: 0 | N7: 0 | O7: 0 | P7: 0 | Q7: 0 | R7: 0 | S7: 0 | T7: 0 | U7: 0 | V7: 0 | W7: 0 | X7: 0 | Y7: 0 | Z7: 0 | AA7: 0 | AB7: 0 | AC7: 0 | AD7: 0 | AE7: ='User Add-in Location'!E14 -> 0 | AF7: ='User Add-in Location'!F14 -> 0 | AG7: 0 | AH7: 0 | AI7: 0 | AJ7: 0 | AK7: 0 | AL7: 0 | AM7: 0 | AN7: 0 | AO7: 0 | AP7: 0 | AQ7: 0 | AR7: 0 | AS7: 0 | AT7: 0 | AU7: 0 | AV7: 0 | AW7: 0 | AX7: 0 | AY7: 0 | AZ7: 0 | BA7: 0 | BB7: 0 | BC7: 0 | BD7: 0 | BE7: 0 | BF7: 0 | BG7: 0 | BH7: 0 | BI7: 0 | BJ7: 0 | BK7: 0 | BL7: 0 | BM7: 0
C8: Construction/Installation Residential | D8: 0 | E8: 0 | F8: 0 | G8: 0 | H8: 0 | I8: 0 | J8: 0 | K8: 0 | L8: 0 | M8: 0 | N8: 0 | O8: 0 | P8: 0 | Q8: 0 | R8: 0 | S8: 0 | T8: 0 | U8: 0 | V8: 0 | W8: 0 | X8: 0 | Y8: 0 | Z8: 0 | AA8: 0 | AB8: 0 | AC8: 0 | AD8: 0 | AE8: ='User Add-in Location'!E15 -> 0 | AF8: ='User Add-in Location'!F15 -> 0 | AG8: 0 | AH8: 0 | AI8: 0 | AJ8: 0 | AK8: 0 | AL8: 0 | AM8: 0 | AN8: 0 | AO8: 0 | AP8: 0 | AQ8: 0 | AR8: 0 | AS8: 0 | AT8: 0 | AU8: 0 | AV8: 0 | AW8: 0 | AX8: 0 | AY8: 0 | AZ8: 0 | BA8: 0 | BB8: 0 | BC8: 0 | BD8: 0 | BE8: 0 | BF8: 0 | BG8: 0 | BH8: 0 | BI8: 0 | BJ8: 0 | BK8: 0 | BL8: 0 | BM8: 0
A9: Although the data and formulas are available for review they must not be changed. | C9: Manufacturing | D9: 0.1131307437 | E9: 0.06636981633 | F9: 0.02807956765 | G9: 0.1236670707 | H9: 0.1052948321 | I9: 0.07914979415 | J9: 0.096922675 | K9: 0.1171789704 | L9: 0.00156740029 | M9: 0.06601406278 | N9: 0.09783067929 | O9: 0.04101380937 | P9: 0.1166515812 | Q9: 0.1091441383 | R9: 0.1405416793 | S9: 0.1477022358 | T9: 0.1496891829 | U9: 0.1253783121 | V9: 0.1662001302 | W9: 0.08185161621 | X9: 0.06330102191 | Y9: 0.09006466641 | Z9: 0.1028298305 | AA9: 0.1193951519 | AB9: 0.1657847349 | AC9: 0.1140041064 | AD9: 0.1114198132 | AE9: ='User Add-in Location'!E16 -> 0 | AF9: ='User Add-in Location'!F16 -> 0 | AG9: 0.1372060687 | AH9: 0.05649662914 | AI9: 0.1104245231 | AJ9: 0.09735879309 | AK9: 0.07706633724 | AL9: 0.06594810923 | AM9: 0.1607004739 | AN9: 0.1216142455 | AO9: 0.1055299192 | AP9: 0.1270571781 | AQ9: 0.09068172656 | AR9: 0.1049257319 | AS9: 0 | AT9: 0 | AU9: 0 | AV9: 0 | AW9: 0 | AX9: 0 | AY9: 0 | AZ9: 0 | BA9: 0.07104259567 | BB9: 0.1117318185 | BC9: 0.1120265841 | BD9: 0.08657979884 | BE9: 0.1408340183 | BF9: 0.1019416313 | BG9: 0.1289375685 | BH9: 0.0904093513 | BI9: 0.0947728233 | BJ9: 0.03763504338 | BK9: 0.01880671619 | BL9: 0.03916029396 | BM9: 0.02448203866
C10: Fabricated Metals | D10: 8.599782341e-05 | E10: 2.898830902e-05 | F10: 1.72019123e-05 | G10: 6.924092337e-05 | H10: 2.167295391e-05 | I10: 4.052108186e-05 | J10: 2.597455039e-05 | K10: 5.333508866e-05 | L10: 0 | M10: 3.135787048e-05 | N10: 2.143295843e-05 | O10: 1.014806112e-05 | P10: 5.743392341e-05 | Q10: 3.239862403e-05 | R10: 4.936859347e-05 | S10: 6.538841937e-05 | T10: 5.444947818e-05 | U10: 2.605983443e-05 | V10: 4.833570905e-05 | W10: 6.105228678e-05 | X10: 1.550889891e-05 | Y10: 1.525483289e-05 | Z10: 3.20170836e-05 | AA10: 2.853439702e-05 | AB10: 6.18443776e-05 | AC10: 3.156628445e-05 | AD10: 9.741372617e-05 | AE10: ='User Add-in Location'!E17 -> 0 | AF10: ='User Add-in Location'!F17 -> 0 | AG10: 0.0001182027244 | AH10: 5.084752893e-05 | AI10: 4.405777064e-05 | AJ10: 1.659583731e-05 | AK10: 2.430161977e-05 | AL10: 2.091029043e-05 | AM10: 6.789543039e-05 | AN10: 6.935531899e-05 | AO10: 3.762416014e-05 | AP10: 0.0001024465047 | AQ10: 4.575924223e-05 | AR10: 4.90594037e-05 | AS10: 0 | AT10: 0 | AU10: 0 | AV10: 0 | AW10: 0 | AX10: 0 | AY10: 0 | AZ10: 0 | BA10: 1.081926324e-05 | BB10: 4.372779457e-05 | BC10: 3.03266368e-05 | BD10: 3.344801448e-05 | BE10: 7.870099525e-05 | BF10: 4.653568963e-05 | BG10: 0.000132518021 | BH10: 2.603610006e-05 | BI10: 7.671054969e-05 | BJ10: 1.477637033e-05 | BK10: 1.537361323e-05 | BL10: 2.198986852e-05 | BM10: 1.285020957e-05
A11: Any changes to the data or formulas will impact the analysis and may invalidate the model results. | C11: Machinery | D11: 8.077704088e-06 | E11: 3.453423323e-06 | F11: 2.687634594e-06 | G11: 1.847866107e-05 | H11: 2.542967355e-05 | I11: 7.604627071e-05 | J11: 3.557107257e-05 | K11: 1.26585398e-05 | L11: 0 | M11: 1.930259851e-05 | N11: 1.119049619e-05 | O11: 0 | P11: 1.363643711e-05 | Q11: 3.808355364e-05 | R11: 1.960335432e-05 | S11: 6.449920229e-05 | T11: 2.873697095e-05 | U11: 1.739290189e-05 | V11: 3.784472837e-06 | W11: 3.407392469e-05 | X11: 4.055171684e-06 | Y11: 2.941580883e-05 | Z11: 3.543946282e-05 | AA11: 2.311803948e-05 | AB11: 1.12087826e-05 | AC11: 1.295982482e-05 | AD11: 3.178086163e-06 | AE11: ='User Add-in Location'!E18 -> 0 | AF11: ='User Add-in Location'!F18 -> 0 | AG11: 1.220598934e-05 | AH11: 4.590868419e-06 | AI11: 3.595523001e-05 | AJ11: 2.157529459e-05 | AK11: 1.622234336e-06 | AL11: 3.331151666e-05 | AM11: 4.165026289e-05 | AN11: 1.524620173e-05 | AO11: 3.633301389e-05 | AP11: 2.180411172e-05 | AQ11: 1.790770059e-05 | AR11: 2.811336959e-05 | AS11: 0 | AT11: 0 | AU11: 0 | AV11: 0 | AW11: 0 | AX11: 0 | AY11: 0 | AZ11: 0 | BA11: 1.544403647e-05 | BB11: 5.360923895e-05 | BC11: 7.300194631e-05 | BD11: 9.701978841e-06 | BE11: 2.114643509e-05 | BF11: 2.392722506e-05 | BG11: 2.70194878e-05 | BH11: 5.123973338e-05 | BI11: 1.415441555e-05 | BJ11: 4.386846315e-06 | BK11: 9.811363778e-07 | BL11: 1.703211822e-05 | BM11: 1.341140871e-06
C12: Electrical Equip | D12: 2.834955349e-05 | E12: 7.30453003e-06 | F12: 2.250685864e-05 | G12: 3.225804324e-05 | H12: 5.425830702e-05 | I12: 2.277547829e-05 | J12: 9.48537052e-05 | K12: 6.276287977e-05 | L12: 4.501286411e-07 | M12: 4.59183543e-05 | N12: 5.033760571e-05 | O12: 0 | P12: 8.672583667e-05 | Q12: 8.085558159e-05 | R12: 2.708198273e-05 | S12: 3.943191232e-05 | T12: 3.628343459e-05 | U12: 2.345024748e-05 | V12: 1.925361437e-05 | W12: 2.405738952e-05 | X12: 2.425729156e-05 | Y12: 7.824109042e-05 | Z12: 2.869348254e-05 | AA12: 5.866515863e-05 | AB12: 0.0001741586019 | AC12: 7.826191715e-05 | AD12: 1.831666347e-05 | AE12: ='User Add-in Location'!E19 -> 0 | AF12: ='User Add-in Location'!F19 -> 0 | AG12: 5.706044861e-05 | AH12: 9.859304884e-05 | AI12: 7.64029192e-05 | AJ12: 5.049680909e-05 | AK12: 2.465107934e-05 | AL12: 4.808914742e-05 | AM12: 0.0001262653947 | AN12: 7.567171629e-06 | AO12: 4.995740245e-05 | AP12: 2.163435843e-05 | AQ12: 4.407394592e-05 | AR12: 8.554072329e-05 | AS12: 0 | AT12: 0 | AU12: 0 | AV12: 0 | AW12: 0 | AX12: 0 | AY12: 0 | AZ12: 0 | BA12: 4.525810427e-05 | BB12: 9.493894124e-05 | BC12: 4.09129231e-05 | BD12: 4.971130538e-05 | BE12: 3.772112965e-05 | BF12: 5.947959471e-05 | BG12: 2.089415469e-05 | BH12: 4.098343648e-05 | BI12: 6.578584334e-05 | BJ12: 1.217858016e-05 | BK12: 1.772809803e-06 | BL12: 3.874677781e-05 | BM12: 3.347694486e-06
C13: Battery Manufacturing | D13: 0.0001490769364 | E13: 0 | F13: 8.51619195e-05 | G13: 0.0001933924246 | H13: 0.0001266891405 | I13: 2.501613925e-05 | J13: 6.4715367e-05 | K13: 0.0002088402762 | L13: 0 | M13: 0.0001410912618 | N13: 0.0002084182204 | O13: 0 | P13: 0 | Q13: 0.0001229901031 | R13: 0.0001359461003 | S13: 0.0002193365872 | T13: 0.0001938904402 | U13: 0.0002170798101 | V13: 5.775899023e-06 | W13: 0 | X13: 9.660458465e-05 | Y13: 3.392459139e-05 | Z13: 0.0001684488431 | AA13: 6.345246089e-06 | AB13: 5.853897051e-05 | AC13: 0.0001974424448 | AD13: 0 | AE13: ='User Add-in Location'!E20 -> 0 | AF13: ='User Add-in Location'!F20 -> 0 | AG13: 0 | AH13: 0.0002130355674 | AI13: 0 | AJ13: 2.126337276e-05 | AK13: 0 | AL13: 1.887788134e-06 | AM13: 0.0001347729682 | AN13: 0 | AO13: 0.0001864293797 | AP13: 3.584084657e-05 | AQ13: 0.000160395178 | AR13: 6.470477834e-05 | AS13: 0 | AT13: 0 | AU13: 0 | AV13: 0 | AW13: 0 | AX13: 0 | AY13: 0 | AZ13: 0 | BA13: 6.495532708e-05 | BB13: 0.0002365021039 | BC13: 0 | BD13: 0.0002221197038 | BE13: 1.877450686e-05 | BF13: 0.0001410507193 | BG13: 6.991203006e-05 | BH13: 0 | BI13: 3.247896328e-06 | BJ13: 1.107731939e-06 | BK13: 2.587134164e-06 | BL13: 1.927100855e-05 | BM13: 0
C14: Energy Wire Manufacturing | D14: 2.944107799e-06 | E14: 0 | F14: 1.70930546e-06 | G14: 1.418651254e-05 | H14: 5.24171434e-06 | I14: 3.759157718e-06 | J14: 4.722278404e-05 | K14: 0 | L14: 1.792985855e-07 | M14: 1.758073495e-05 | N14: 1.48802214e-05 | O14: 0 | P14: 9.493557281e-06 | Q14: 1.022093956e-05 | R14: 7.891707546e-06 | S14: 0 | T14: 2.81310699e-06 | U14: 1.817569713e-06 | V14: 2.163411583e-07 | W14: 4.282383483e-06 | X14: 4.685954063e-06 | Y14: 3.569464718e-05 | Z14: 2.495776899e-07 | AA14: 7.617410554e-06 | AB14: 2.543722592e-06 | AC14: 0 | AD14: 8.963694289e-06 | AE14: ='User Add-in Location'!E21 -> 0 | AF14: ='User Add-in Location'!F21 -> 0 | AG14: 1.572269492e-05 | AH14: 0.0003949149317 | AI14: 0.0002504021894 | AJ14: 7.543939408e-06 | AK14: 3.233787553e-06 | AL14: 5.204645124e-06 | AM14: 2.497811282e-05 | AN14: 1.213430868e-05 | AO14: 4.610363252e-06 | AP14: 0 | AQ14: 0 | AR14: 1.332983162e-05 | AS14: 0 | AT14: 0 | AU14: 0 | AV14: 0 | AW14: 0 | AX14: 0 | AY14: 0 | AZ14: 0 | BA14: 2.680603451e-06 | BB14: 2.041000127e-05 | BC14: 0 | BD14: 1.177380444e-06 | BE14: 9.98099333e-06 | BF14: 1.089409229e-05 | BG14: 4.127766199e-06 | BH14: 7.343600608e-05 | BI14: 5.265130046e-06 | BJ14: 3.818991792e-07 | BK14: 7.304797807e-07 | BL14: 3.738961667e-06 | BM14: 5.028607058e-06
C15: Wholesale Trade | D15: 0.04778077512 | E15: 0.02483474419 | F15: 0.05234456964 | G15: 0.04517261972 | H15: 0.05068710203 | I15: 0.05426307584 | J15: 0.04767012666 | K15: 0.02574086379 | L15: 0.01861135321 | M15: 0.05342115167 | N15: 0.06060210266 | O15: 0.04323860155 | P15: 0.04729703452 | Q15: 0.04848364746 | R15: 0.03900117297 | S15: 0.04652576954 | T15: 0.04588815306 | U15: 0.04923672711 | V15: 0.03660222261 | W15: 0.03834783896 | X15: 0.03736679187 | Y15: 0.05001956259 | Z15: 0.03553011058 | AA15: 0.05020009863 | AB15: 0.03880623766 | AC15: 0.05382260145 | AD15: 0.03403469445 | AE15: ='User Add-in Location'!E22 -> 0 | AF15: ='User Add-in Location'!F22 -> 0 | AG15: 0.04713106181 | AH15: 0.03865257548 | AI15: 0.03474398696 | AJ15: 0.04871198983 | AK15: 0.03675052064 | AL15: 0.05128048762 | AM15: 0.05346851742 | AN15: 0.03942623944 | AO15: 0.004820778605 | AP15: 0.04238728899 | AQ15: 0.05441737401 | AR15: 0.04305408776 | AS15: 0 | AT15: 0 | AU15: 0 | AV15: 0 | AW15: 0 | AX15: 0 | AY15: 0 | AZ15: 0 | BA15: 0.02892446521 | BB15: 0.04198944441 | BC15: 0.05037515191 | BD15: 0.06037705948 | BE15: 0.05572669196 | BF15: 0.04368986337 | BG15: 0.05526773897 | BH15: 0.02784889223 | BI15: 0.03261537491 | BJ15: 0.04312165987 | BK15: 0.04552912216 | BL15: 0.04681991249 | BM15: 0.03589992709
C16: Retail trade | D16: 0.15332477 | E16: 0.1051277813 | F16: 0.1428094139 | G16: 0.1535936058 | H16: 0.1198332657 | I16: 0.1290508833 | J16: 0.1221940697 | K16: 0.1237353693 | L16: 0.08008029518 | M16: 0.1420068285 | N16: 0.1458936243 | O16: 0.1351189359 | P16: 0.1519306387 | Q16: 0.1158060474 | R16: 0.1328531981 | S16: 0.1430246822 | T16: 0.1349062166 | U16: 0.1489747388 | V16: 0.1382611871 | W16: 0.1496074166 | X16: 0.1203626924 | Y16: 0.11477586 | Z16: 0.1293113726 | AA16: 0.1173975956 | AB16: 0.1510151018 | AC16: 0.1294721388 | AD16: 0.1289568921 | AE16: ='User Add-in Location'!E23 -> 0 | AF16: ='User Add-in Location'!F23 -> 0 | AG16: 0.1341421287 | AH16: 0.1400198171 | AI16: 0.1232641327 | AJ16: 0.1204384006 | AK16: 0.1307923942 | AL16: 0.1221503321 | AM16: 0.1519497675 | AN16: 0.1424174917 | AO16: 0.1261485579 | AP16: 0.1425078981 | AQ16: 0.1300838961 | AR16: 0.1173120515 | AS16: 0 | AT16: 0 | AU16: 0 | AV16: 0 | AW16: 0 | AX16: 0 | AY16: 0 | AZ16: 0 | BA16: 0.1031842541 | BB16: 0.1702317216 | BC16: 0.1224246276 | BD16: 0.1494628873 | BE16: 0.133052447 | BF16: 0.1083730688 | BG16: 0.1490898591 | BH16: 0.1275502848 | BI16: 0.1235604058 | BJ16: 0.1202278768 | BK16: 0.1472604271 | BL16: 0.12901389 | BM16: 0.1492439566
C17: TCPU | D17: 0.02685445214 | E17: 0.03766796909 | F17: 0.0309785337 | G17: 0.03024941273 | H17: 0.02889344646 | I17: 0.03655429727 | J17: 0.02821994084 | K17: 0.03684950454 | L17: 0.01575718588 | M17: 0.0271290003 | N17: 0.03352214754 | O17: 0.01905257275 | P17: 0.0256416635 | Q17: 0.02845393797 | R17: 0.02778315433 | S17: 0.02489008746 | T17: 0.0282455947 | U17: 0.02466527245 | V17: 0.02694957572 | W17: 0.03001028157 | X17: 0.02834324081 | Y17: 0.0250539641 | Z17: 0.02552329492 | AA17: 0.02541513004 | AB17: 0.02712579089 | AC17: 0.02865445214 | AD17: 0.0325246619 | AE17: ='User Add-in Location'!E24 -> 0 | AF17: ='User Add-in Location'!F24 -> 0 | AG17: 0.02980279098 | AH17: 0.02924484369 | AI17: 0.02347905573 | AJ17: 0.0300455618 | AK17: 0.03014565479 | AL17: 0.03430197158 | AM17: 0.02890013137 | AN17: 0.02900588547 | AO17: 0.02710908466 | AP17: 0.03023860578 | AQ17: 0.02615550731 | AR17: 0.03004945574 | AS17: 0 | AT17: 0 | AU17: 0 | AV17: 0 | AW17: 0 | AX17: 0 | AY17: 0 | AZ17: 0 | BA17: 0.02311375985 | BB17: 0.02262874683 | BC17: 0.02686610478 | BD17: 0.02360257712 | BE17: 0.02873152555 | BF17: 0.03288699462 | BG17: 0.02584853118 | BH17: 0.03134403738 | BI17: 0.02942669062 | BJ17: 0.03073455067 | BK17: 0.02969663469 | BL17: 0.02855301933 | BM17: 0.04619463633
C18: Insurance and Real Estate | D18: 0.217990328 | E18: 0.217192543 | F18: 0.2316156463 | G18: 0.1977705583 | H18: 0.243208853 | I18: 0.2224821866 | J18: 0.2346818669 | K18: 0.1832842452 | L18: 0.2499345514 | M18: 0.228364467 | N18: 0.2121229084 | O18: 0.2480291332 | P18: 0.2121796786 | Q18: 0.1975536205 | R18: 0.1716928009 | S18: 0.1872613563 | T18: 0.2027142542 | U18: 0.1841535589 | V18: 0.1862535475 | W18: 0.1949420636 | X18: 0.2497371654 | Y18: 0.2124323806 | Z18: 0.1894896726 | AA18: 0.1874114855 | AB18: 0.2082710953 | AC18: 0.1888887943 | AD18: 0.1850887421 | AE18: ='User Add-in Location'!E25 -> 0 | AF18: ='User Add-in Location'!F25 -> 0 | AG18: 0.1924590172 | AH18: 0.2627002503 | AI18: 0.2264235419 | AJ18: 0.2216866807 | AK18: 0.2085915126 | AL18: 0.2106663034 | AM18: 0.1988739521 | AN18: 0.163750722 | AO18: 0.1956829206 | AP18: 0.1960865948 | AQ18: 0.2144580391 | AR18: 0.1911284738 | AS18: 0 | AT18: 0 | AU18: 0 | AV18: 0 | AW18: 0 | AX18: 0 | AY18: 0 | AZ18: 0 | BA18: 0.2563025891 | BB18: 0.2197457669 | BC18: 0.1846094389 | BD18: 0.2079663865 | BE18: 0.2003556869 | BF18: 0.2128118531 | BG18: 0.2060240363 | BH18: 0.1958231273 | BI18: 0.2482244091 | BJ18: 0.2448971381 | BK18: 0.2197878291 | BL18: 0.2361235552 | BM18: 0.3061447527
C19: Finance | D19: 0.04324180312 | E19: 0.02606478708 | F19: 0.03300867972 | G19: 0.04215392884 | H19: 0.03829422606 | I19: 0.03448653008 | J19: 0.0338932783 | K19: 0.03148459651 | L19: 0.05662789298 | M19: 0.0451565314 | N19: 0.03849201564 | O19: 0.03052940766 | P19: 0.04254723152 | Q19: 0.04015813226 | R19: 0.02446552183 | S19: 0.0390337461 | T19: 0.04382226648 | U19: 0.03092856794 | V19: 0.02884379196 | W19: 0.02302504363 | X19: 0.02443552382 | Y19: 0.03453661066 | Z19: 0.02900829406 | AA19: 0.0339502004 | AB19: 0.03475675712 | AC19: 0.04179453812 | AD19: 0.03572998138 | AE19: ='User Add-in Location'!E26 -> 0 | AF19: ='User Add-in Location'!F26 -> 0 | AG19: 0.04865573356 | AH19: 0.07207238816 | AI19: 0.02699103296 | AJ19: 0.02381552654 | AK19: 0.02857887896 | AL19: 0.04538209208 | AM19: 0.03242266867 | AN19: 0.04645663274 | AO19: 0.04722736996 | AP19: 0.04184845916 | AQ19: 0.02730450861 | AR19: 0.03654525283 | AS19: 0 | AT19: 0 | AU19: 0 | AV19: 0 | AW19: 0 | AX19: 0 | AY19: 0 | AZ19: 0 | BA19: 0.03989193993 | BB19: 0.02849669319 | BC19: 0.0588769709 | BD19: 0.03700254537 | BE19: 0.04583365309 | BF19: 0.04714485705 | BG19: 0.04924668468 | BH19: 0.02103552551 | BI19: 0.04500507805 | BJ19: 0.03378276841 | BK19: 0.0297615612 | BL19: 0.04337095052 | BM19: 0.05892840722
C20: Other Professional Services | D20: 0.007107912588 | E20: 0.007649395858 | F20: 0.009117918008 | G20: 0.006510974386 | H20: 0.01272931929 | I20: 0.01167212076 | J20: 0.01521426863 | K20: 0.008594250379 | L20: 0.01359487081 | M20: 0.008250710795 | N20: 0.01002002457 | O20: 0.009280526383 | P20: 0.005512547545 | Q20: 0.01610438167 | R20: 0.00844814309 | S20: 0.009836127136 | T20: 0.009085829062 | U20: 0.007959596616 | V20: 0.006702725675 | W20: 0.008633089872 | X20: 0.01425411841 | Y20: 0.01610001129 | Z20: 0.01413306692 | AA20: 0.01318215709 | AB20: 0.005592669824 | AC20: 0.01166383865 | AD20: 0.00642710735 | AE20: ='User Add-in Location'!E27 -> 0 | AF20: ='User Add-in Location'!F27 -> 0 | AG20: 0.009995434485 | AH20: 0.008433525068 | AI20: 0.01127021113 | AJ20: 0.01900383859 | AK20: 0.01182250686 | AL20: 0.01733452965 | AM20: 0.00522166139 | AN20: 0.006017797171 | AO20: 0.01300355536 | AP20: 0.005822271026 | AQ20: 0.01095749831 | AR20: 0.01516946557 | AS20: 0 | AT20: 0 | AU20: 0 | AV20: 0 | AW20: 0 | AX20: 0 | AY20: 0 | AZ20: 0 | BA20: 0.007545586434 | BB20: 0.006175832727 | BC20: 0.005716186003 | BD20: 0.007422617358 | BE20: 0.01023174592 | BF20: 0.0122507503 | BG20: 0.008594258008 | BH20: 0.01276115889 | BI20: 0.01287293104 | BJ20: 0.01316658228 | BK20: 0.01189395583 | BL20: 0.01402629037 | BM20: 0.004783041918
C21: Office Services | D21: 0.0009455520372 | E21: 0.0008696745735 | F21: 0.001581636762 | G21: 0.0008322603322 | H21: 0.001734270934 | I21: 0.001839414067 | J21: 0.00182918889 | K21: 0.001144759827 | L21: 0.005093740722 | M21: 0.001623607278 | N21: 0.001951337138 | O21: 0.00122554854 | P21: 0.0008034412576 | Q21: 0.001897590519 | R21: 0.0008107291915 | S21: 0.0009481325782 | T21: 0.001090129868 | U21: 0.0009730957911 | V21: 0.000828041117 | W21: 0.001170316253 | X21: 0.001936904734 | Y21: 0.002052425036 | Z21: 0.001136305452 | AA21: 0.001345351061 | AB21: 0.0007120648885 | AC21: 0.001472368334 | AD21: 0.001036992975 | AE21: ='User Add-in Location'!E28 -> 0 | AF21: ='User Add-in Location'!F28 -> 0 | AG21: 0.001122409136 | AH21: 0.001158163311 | AI21: 0.001251277431 | AJ21: 0.002117167224 | AK21: 0.0006786514069 | AL21: 0.002319333017 | AM21: 0.001103986212 | AN21: 0.0006878824548 | AO21: 0.001228368431 | AP21: 0.001289037957 | AQ21: 0.00116524534 | AR21: 0.001721087745 | AS21: 0 | AT21: 0 | AU21: 0 | AV21: 0 | AW21: 0 | AX21: 0 | AY21: 0 | AZ21: 0 | BA21: 0.001321751357 | BB21: 0.001156387065 | BC21: 0.0006497028525 | BD21: 0.0009688594677 | BE21: 0.001506973263 | BF21: 0.001486380338 | BG21: 0.001110123946 | BH21: 0.001098915052 | BI21: 0.00197486909 | BJ21: 0.001553032211 | BK21: 0.0007926033259 | BL21: 0.001044792221 | BM21: 0.0008840517016
C22: Architectural and Engineering Services | D22: 0.0002368788738 | E22: 0.0003913224962 | F22: 0.0003175295559 | G22: 0.0001450459268 | H22: 0.0003651904636 | I22: 0.0003946379898 | J22: 0.0003532728941 | K22: 0.0002421285904 | L22: 0.001028575959 | M22: 0.0003124503213 | N22: 0.000410592154 | O22: 0.0003142040382 | P22: 0.000187449127 | Q22: 0.0003664522949 | R22: 0.0001740682145 | S22: 0.0001835207821 | T22: 0.0002346614536 | U22: 0.0001720379841 | V22: 0.0002482874024 | W22: 0.0002470667281 | X22: 0.0004159022308 | Y22: 0.0004365737667 | Z22: 0.0002618785273 | AA22: 0.0002879426813 | AB22: 0.0001320388461 | AC22: 0.0002877547116 | AD22: 0.0002194443487 | AE22: ='User Add-in Location'!E29 -> 0 | AF22: ='User Add-in Location'!F29 -> 0 | AG22: 0.000230489326 | AH22: 0.0002608152376 | AI22: 0.0002681192213 | AJ22: 0.0004459720888 | AK22: 0.000191366192 | AL22: 0.0004831163797 | AM22: 0.0002328955849 | AN22: 0.0001849113274 | AO22: 0.0002608558875 | AP22: 0.0001632224916 | AQ22: 0.0002478864561 | AR22: 0.0003900509644 | AS22: 0 | AT22: 0 | AU22: 0 | AV22: 0 | AW22: 0 | AX22: 0 | AY22: 0 | AZ22: 0 | BA22: 0.0002679603461 | BB22: 0.0002811695513 | BC22: 0.0001425314877 | BD22: 0.0002062194488 | BE22: 0.0003313522025 | BF22: 0.0002977163466 | BG22: 0.0002382681029 | BH22: 0.0002366869929 | BI22: 0.0004233728506 | BJ22: 0.0003507923255 | BK22: 0.0001794678791 | BL22: 0.0002597136501 | BM22: 0.0001845136975
C23: Other services | D23: 0.3666012464 | E23: 0.4859937256 | F23: 0.450623172 | G23: 0.3805544292 | H23: 0.3811792882 | I23: 0.4077080293 | J23: 0.4027854062 | K23: 0.4542496494 | L23: 0.5172669967 | M23: 0.4135695297 | N23: 0.3821765073 | O23: 0.451875646 | P23: 0.3750334882 | Q23: 0.4294410993 | R23: 0.4394763102 | S23: 0.3816207893 | T23: 0.363833307 | U23: 0.4082927116 | V23: 0.3928327799 | W23: 0.4542898066 | X23: 0.4373323571 | Y23: 0.4402476239 | Z23: 0.4566168752 | AA23: 0.4346518694 | AB23: 0.3480746669 | AC23: 0.413032321 | AD23: 0.4426052843 | AE23: ='User Add-in Location'!E30 -> 0 | AF23: ='User Add-in Location'!F30 -> 0 | AG23: 0.3822739829 | AH23: 0.3745964832 | AI23: 0.4259676082 | AJ23: 0.4223561404 | AK23: 0.439673258 | AL23: 0.4331721901 | AM23: 0.3473677543 | AN23: 0.4291771684 | AO23: 0.4627282353 | AP23: 0.3847254531 | AQ23: 0.4233697043 | AR23: 0.443636884 | AS23: 0 | AT23: 0 | AU23: 0 | AV23: 0 | AW23: 0 | AX23: 0 | AY23: 0 | AZ23: 0 | BA23: 0.4519601234 | BB23: 0.3790222379 | BC23: 0.4194436987 | BD23: 0.4120881427 | BE23: 0.3644789621 | BF23: 0.42125346 | BG23: 0.3572872111 | BH23: 0.4705708435 | BI23: 0.3895515174 | BJ23: 0.4551569459 | BK23: 0.4781007454 | BL23: 0.4426440301 | BM23: 0.3492413313
C24: Government | D24: 0.01627034629 | E24: 0.02089925942 | F24: 0.01502788803 | G24: 0.01192246429 | H24: 0.0145774831 | I24: 0.01532859634 | J24: 0.01485899718 | K24: 0.01340566942 | L24: 0.04040437301 | M24: 0.01138529311 | N24: 0.01183072079 | O24: 0.01818553294 | P24: 0.01337152302 | Q24: 0.01112571651 | R24: 0.0115369345 | S24: 0.01238574863 | T24: 0.01302489057 | U24: 0.01333290571 | V24: 0.01200236395 | W24: 0.01403499196 | X24: 0.0204524984 | Y24: 0.0137825565 | Z24: 0.01284497291 | AA24: 0.01267128909 | AB24: 0.01238008014 | AC24: 0.01208216341 | AD24: 0.01307946049 | AE24: ='User Add-in Location'!E31 -> 0 | AF24: ='User Add-in Location'!F31 -> 0 | AG24: 0.01082374596 | AH24: 0.01212444493 | AI24: 0.01379192889 | AJ24: 0.01331038358 | AK24: 0.02406423621 | AL24: 0.01470094453 | AM24: 0.01391087003 | AN24: 0.01370007592 | AO24: 0.01293456527 | AP24: 0.01614476094 | AQ24: 0.01458243694 | AR24: 0.01227916208 | AS24: 0 | AT24: 0 | AU24: 0 | AV24: 0 | AW24: 0 | AX24: 0 | AY24: 0 | AZ24: 0 | BA24: 0.01613153381 | BB24: 0.01469797479 | BC24: 0.01271268342 | BD24: 0.0112143923 | BE24: 0.01210362435 | BF24: 0.01240473086 | BG24: 0.01375899208 | BH24: 0.01295432006 | BI24: 0.017832627 | BJ24: 0.01576048255 | BK24: 0.01538470486 | BL24: 0.01283063673 | BM24: 0.01935023865
C25: Semiconductor (solar cell/module) manufacturing | D25: 1.865764267e-07 | E25: 1.474096533e-07 | F25: 9.107301102e-05 | G25: 2.414602172e-06 | H25: 9.744298159e-05 | I25: 2.36925771e-05 | J25: 4.001394929e-06 | K25: 2.530374233e-07 | L25: 5.631271065e-07 | M25: 4.004019122e-05 | N25: 9.678003151e-07 | O25: 9.218639283e-08 | P25: 0.0004046628316 | Q25: 9.936688225e-07 | R25: 2.904732128e-07 | S25: 2.557284819e-06 | T25: 6.78480378e-07 | U25: 1.408256709e-06 | V25: 1.247557766e-07 | W25: 3.970844455e-05 | X25: 2.265952966e-06 | Y25: 7.934626939e-05 | Z25: 1.290738888e-06 | AA25: 1.903383997e-05 | AB25: 2.299346721e-06 | AC25: 8.230951502e-06 | AD25: 3.425103577e-07 | AE25: ='User Add-in Location'!E32 -> 0 | AF25: ='User Add-in Location'!F32 -> 0 | AG25: 6.158032711e-06 | AH25: 2.70736708e-06 | AI25: 2.765380551e-05 | AJ25: 1.5329004e-05 | AK25: 0.0001185213654 | AL25: 2.400654586e-05 | AM25: 4.803276607e-05 | AN25: 1.770129531e-05 | AO25: 7.370439859e-06 | AP25: 2.570433014e-06 | AQ25: 0.0005245847468 | AR25: 1.114714883e-05 | AS25: 0 | AT25: 0 | AU25: 0 | AV25: 0 | AW25: 0 | AX25: 0 | AY25: 0 | AZ25: 0 | BA25: 6.053168573e-06 | BB25: 2.706848698e-07 | BC25: 3.440250612e-05 | BD25: 4.951803937e-08 | BE25: 8.26269214e-05 | BF25: 3.709458737e-05 | BG25: 5.01604666e-05 | BH25: 0.0002052808008 | BI25: 1.624657036e-05 | BJ25: 7.015915564e-06 | BK25: 1.66115462e-07 | BL25: 7.661971311e-08 | BM25: 0
A26: To view the data and formulas simply scroll over to the adjacent columns to the right. | C26: Total | D26: =SUM(D4:D25) -> 1 | E26: =SUM(E4:E25) -> 1 | F26: 1 | G26: 1 | H26: 1 | I26: 1 | J26: 1 | K26: 1 | L26: 1 | M26: 1 | N26: 1 | O26: 1 | P26: 1 | Q26: 1 | R26: 1 | S26: 1 | T26: 1 | U26: 1 | V26: 1 | W26: 1 | X26: 1 | Y26: 1 | Z26: 1 | AA26: 1 | AB26: 1 | AC26: 1 | AD26: 1 | AE26: 0 | AF26: 0 | AG26: 1 | AH26: 1 | AI26: 1 | AJ26: 1 | AK26: 1 | AL26: 1 | AM26: 1 | AN26: 1 | AO26: 1 | AP26: 1 | AQ26: 1 | AR26: 1 | AS26: =SUM(AS4:AS25) -> 0 | AT26: 0 | AU26: 0 | AV26: 0 | AW26: 0 | AX26: 0 | AY26: 0 | AZ26: 0 | BA26: 1 | BB26: 1 | BC26: 1 | BD26: 1 | BE26: 1 | BG26: 1 | BH26: 1 | BI26: 1 | BJ26: 1 | BK26: 1 | BL26: 1 | BM26: 1
C28: =CONCATENATE("Source: All values are averages for all income classes and are derived from IMPLAN™ using ", D2," state data.") -> Source: All values are averages for all income classes and are derived from IMPLAN™ using 2019 state data.

Sheet Multipliers (hidden)
C1: Multipliers For Economic Input-Output Analysis
C2: Year of Data | D2: 2019
C3: Jobs Per Million Dollars Change in Final Demand
C4: Jobs Direct Multipliers | D4: Alabama | E4: Alaska | F4: Arizona | G4: Arkansas | H4: California | I4: Colorado | J4: Connecticut | K4: Delaware | L4: District of Columbia | M4: Florida | N4: Georgia | O4: Hawaii | P4: Idaho | Q4: Illinois | R4: Indiana | S4: Iowa | T4: Kansas | U4: Kentucky | V4: Louisiana | W4: Maine | X4: Maryland | Y4: Massachusetts | Z4: Michigan | AA4: Minnesota | AB4: Mississippi | AC4: Missouri | AD4: Montana | AE4: MyCounty | AF4: MyRegion | AG4: Nebraska | AH4: Nevada | AI4: New Hampshire | AJ4: New Jersey | AK4: New Mexico | AL4: New York | AM4: North Carolina | AN4: North Dakota | AO4: Ohio | AP4: Oklahoma | AQ4: Oregon | AR4: Pennsylvania | AS4: REGION1 | AT4: REGION2 | AU4: REGION3 | AV4: REGION4 | AW4: REGION5 | AX4: REGION6 | AY4: REGION7 | AZ4: REGION8 | BA4: Rhode Island | BB4: South Carolina | BC4: South Dakota | BD4: Tennessee | BE4: Texas | BF4: United States | BG4: Utah | BH4: Vermont | BI4: Virginia | BJ4: Washington | BK4: West Virginia | BL4: Wisconsin | BM4: Wyoming
A5: Warning | C5: Ag, Forestry, Fish & Hunting | D5: 8.821078 | E5: 8.608593 | F5: 8.916231 | G5: 6.82969 | H5: 8.706411 | I5: 7.907727 | J5: 16.786893 | K5: 3.225151 | L5: 15.368733 | M5: 12.434183 | N5: 7.320283 | O5: 21.194478 | P5: 5.993459 | Q5: 5.354964 | R5: 6.873182 | S5: 3.514337 | T5: 4.352329 | U5: 15.942577 | V5: 12.198096 | W5: 16.745704 | X5: 9.456128 | Y5: 16.362326 | Z5: 10.223515 | AA5: 5.051625 | AB5: 8.433155 | AC5: 10.73072 | AD5: 9.255347 | AE5: ='User Add-in Location'!B11 -> 0 | AF5: ='User Add-in Location'!C11 -> 0 | AG5: 3.029554 | AH5: 7.697922 | AI5: 21.562519 | AJ5: 15.501672 | AK5: 10.73458 | AL5: 11.215171 | AM5: 6.706924 | AN5: 4.444352 | AO5: 11.382931 | AP5: 11.813653 | AQ5: 14.582007 | AR5: 10.757238 | AS5: 0 | AT5: 0 | AU5: 0 | AV5: 0 | AW5: 0 | AX5: 0 | AY5: 0 | AZ5: 0 | BA5: 19.552421 | BB5: 12.439281 | BC5: 4.212747 | BD5: 19.489229 | BE5: 14.238986 | BF5: 8.542213 | BG5: 12.022949 | BH5: 13.639289 | BI5: 15.165254 | BJ5: 11.31777 | BK5: 32.134907 | BL5: 8.052378 | BM5: 11.450299
C6: Mining | D6: 2.285876 | E6: 1.639046 | F6: 2.246777 | G6: 2.914077 | H6: 2.356549 | I6: 2.22592 | J6: 2.638638 | K6: 3.159682 | L6: 2.205001 | M6: 2.998706 | N6: 2.580006 | O6: 2.832705 | P6: 3.639961 | Q6: 2.976283 | R6: 2.892207 | S6: 2.982903 | T6: 3.287677 | U6: 2.900004 | V6: 2.551877 | W6: 4.332505 | X6: 2.872327 | Y6: 3.161091 | Z6: 2.773362 | AA6: 2.385519 | AB6: 3.215869 | AC6: 2.806442 | AD6: 2.537016 | AE6: ='User Add-in Location'!B12 -> 0 | AF6: ='User Add-in Location'!C12 -> 0 | AG6: 3.258184 | AH6: 2.408763 | AI6: 3.612996 | AJ6: 3.01388 | AK6: 2.024263 | AL6: 3.396253 | AM6: 3.181646 | AN6: 2.421543 | AO6: 1.607668 | AP6: 2.32248 | AQ6: 3.635466 | AR6: 1.811655 | AS6: 0 | AT6: 0 | AU6: 0 | AV6: 0 | AW6: 0 | AX6: 0 | AY6: 0 | AZ6: 0 | BA6: 2.960952 | BB6: 2.867989 | BC6: 3.516436 | BD6: 2.980924 | BE6: 1.830277 | BF6: 2.157781 | BG6: 2.588998 | BH6: 2.888247 | BI6: 2.721407 | BJ6: 3.374875 | BK6: 2.18891 | BL6: 2.138645 | BM6: 2.236875
A7: This Worksheet contains Data and Formulas that are an integral part of the JEDI model. | C7: Construction | D7: 8.276781 | E7: 6.538195 | F7: 7.05112 | G7: 8.468992 | H7: 6.254301 | I7: 6.823847 | J7: 7.139156 | K7: 6.594076 | L7: 6.319867 | M7: 7.255572 | N7: 7.202582 | O7: 5.831367 | P7: 7.593643 | Q7: 6.656205 | R7: 7.495457 | S7: 7.654482 | T7: 7.543089 | U7: 7.593016 | V7: 7.78263 | W7: 9.17011 | X7: 7.027898 | Y7: 6.682115 | Z7: 7.046194 | AA7: 6.803488 | AB7: 8.748142 | AC7: 7.901437 | AD7: 7.924046 | AE7: ='User Add-in Location'!B13 -> 0 | AF7: ='User Add-in Location'!C13 -> 0 | AG7: 8.977842 | AH7: 6.774401 | AI7: 8.539362 | AJ7: 6.317591 | AK7: 7.941067 | AL7: 6.336272 | AM7: 7.918735 | AN7: 6.538886 | AO7: 7.280001 | AP7: 8.333232 | AQ7: 6.882603 | AR7: 6.73029 | AS7: 0 | AT7: 0 | AU7: 0 | AV7: 0 | AW7: 0 | AX7: 0 | AY7: 0 | AZ7: 0 | BA7: 7.02581 | BB7: 7.17579 | BC7: 8.125738 | BD7: 7.653718 | BE7: 7.07556 | BF7: 7.016548 | BG7: 6.80363 | BH7: 9.520484 | BI7: 7.237192 | BJ7: 6.163109 | BK7: 6.781496 | BL7: 7.066791 | BM7: 6.94764
C8: Construction/Installations - Non Residential | D8: 5.446182 | E8: 4.720022 | F8: 4.478715 | G8: 5.39365 | H8: 4.158813 | I8: 4.445599 | J8: 5.161719 | K8: 4.258219 | L8: 4.207491 | M8: 4.523186 | N8: 4.565672 | O8: 3.848971 | P8: 4.716498 | Q8: 4.365448 | R8: 4.888268 | S8: 5.07144 | T8: 4.856102 | U8: 4.849037 | V8: 5.143242 | W8: 6.247254 | X8: 4.66264 | Y8: 4.710421 | Z8: 4.542682 | AA8: 4.562338 | AB8: 5.541329 | AC8: 5.248276 | AD8: 5.219172 | AE8: ='User Add-in Location'!B14 -> 0 | AF8: ='User Add-in Location'!C14 -> 0 | AG8: 6.122573 | AH8: 4.434916 | AI8: 6.579554 | AJ8: 4.25809 | AK8: 5.176876 | AL8: 4.244384 | AM8: 5.168448 | AN8: 4.332084 | AO8: 4.783732 | AP8: 5.498497 | AQ8: 4.593569 | AR8: 4.462141 | AS8: 0 | AT8: 0 | AU8: 0 | AV8: 0 | AW8: 0 | AX8: 0 | AY8: 0 | AZ8: 0 | BA8: 4.645354 | BB8: 4.470769 | BC8: 5.354246 | BD8: 5.234221 | BE8: 4.706293 | BF8: 4.617357 | BG8: 4.304699 | BH8: 6.771682 | BI8: 4.688499 | BJ8: 4.062649 | BK8: 4.49161 | BL8: 4.672419 | BM8: 4.747915
A9: Although the data and formulas are available for review they must not be changed. | C9: Construction/Installation Residential | D9: 5.82713 | E9: 5.100264 | F9: 4.917071 | G9: 5.830597 | H9: 4.544374 | I9: 4.875111 | J9: 5.395028 | K9: 4.755817 | L9: 4.558694 | M9: 4.982551 | N9: 5.030498 | O9: 4.267251 | P9: 5.198603 | Q9: 4.800569 | R9: 5.338348 | S9: 5.513991 | T9: 5.30155 | U9: 5.33663 | V9: 5.501995 | W9: 6.448623 | X9: 5.050094 | Y9: 5.044888 | Z9: 5.019982 | AA9: 4.999602 | AB9: 5.943934 | AC9: 5.651304 | AD9: 5.681082 | AE9: ='User Add-in Location'!B15 -> 0 | AF9: ='User Add-in Location'!C15 -> 0 | AG9: 6.412824 | AH9: 4.841611 | AI9: 6.548386 | AJ9: 4.632403 | AK9: 5.607836 | AL9: 4.624478 | AM9: 5.588954 | AN9: 4.797529 | AO9: 5.204453 | AP9: 5.902746 | AQ9: 5.051273 | AR9: 4.903407 | AS9: 0 | AT9: 0 | AU9: 0 | AV9: 0 | AW9: 0 | AX9: 0 | AY9: 0 | AZ9: 0 | BA9: 5.059433 | BB9: 4.960104 | BC9: 5.740685 | BD9: 5.5683 | BE9: 5.105803 | BF9: 5.027889 | BG9: 4.78016 | BH9: 6.841409 | BI9: 5.132504 | BJ9: 4.27786 | BK9: 4.985772 | BL9: 5.139581 | BM9: 5.209742
C10: Manufacturing | D10: 1.936247 | E10: 2.216315 | F10: 2.376304 | G10: 2.248873 | H10: 1.836914 | I10: 2.205949 | J10: 2.241992 | K10: 1.700415 | L10: 2.654177 | M10: 2.556293 | N10: 2.248786 | O10: 2.664737 | P10: 2.374 | Q10: 1.870089 | R10: 1.776599 | S10: 1.913314 | T10: 1.724697 | U10: 1.692543 | V10: 0.822144 | W10: 2.763781 | X10: 2.143447 | Y10: 2.178246 | Z10: 1.918221 | AA10: 2.238136 | AB10: 1.869324 | AC10: 1.95381 | AD10: 1.545707 | AE10: ='User Add-in Location'!B16 -> 0 | AF10: ='User Add-in Location'!C16 -> 0 | AG10: 1.926784 | AH10: 2.748483 | AI10: 2.750442 | AJ10: 1.891732 | AK10: 1.717899 | AL10: 2.354927 | AM10: 2.001078 | AN10: 1.478334 | AO10: 1.949238 | AP10: 1.895618 | AQ10: 2.683045 | AR10: 2.127725 | AS10: 0 | AT10: 0 | AU10: 0 | AV10: 0 | AW10: 0 | AX10: 0 | AY10: 0 | AZ10: 0 | BA10: 2.730206 | BB10: 1.882657 | BC10: 2.343984 | BD10: 1.956973 | BE10: 1.280905 | BF10: 1.902825 | BG10: 2.118809 | BH10: 2.503375 | BI10: 2.176579 | BJ10: 1.64518 | BK10: 1.605946 | BL10: 2.299789 | BM10: 0.978865
A11: Any changes to the data or formulas will impact the analysis and may invalidate the model results. | C11: Fabricated Metals | D11: 2.988424 | E11: 3.880997 | F11: 3.261746 | G11: 2.750478 | H11: 2.993553 | I11: 2.957646 | J11: 3.078433 | K11: 3.392319 | L11: 0 | M11: 3.279312 | N11: 2.992211 | O11: 3.42484 | P11: 3.278938 | Q11: 3.301128 | R11: 3.039551 | S11: 3.213038 | T11: 3.162024 | U11: 3.428813 | V11: 3.309118 | W11: 3.067905 | X11: 3.178342 | Y11: 2.939546 | Z11: 3.400123 | AA11: 3.468342 | AB11: 3.524368 | AC11: 3.328325 | AD11: 3.460424 | AE11: ='User Add-in Location'!B17 -> 0 | AF11: ='User Add-in Location'!C17 -> 0 | AG11: 3.088042 | AH11: 2.774077 | AI11: 2.827713 | AJ11: 3.031791 | AK11: 3.471333 | AL11: 3.037097 | AM11: 3.286415 | AN11: 3.798779 | AO11: 3.400498 | AP11: 3.188902 | AQ11: 3.029643 | AR11: 3.380673 | AS11: 0 | AT11: 0 | AU11: 0 | AV11: 0 | AW11: 0 | AX11: 0 | AY11: 0 | AZ11: 0 | BA11: 3.541171 | BB11: 3.119109 | BC11: 3.840847 | BD11: 3.112587 | BE11: 3.254556 | BF11: 3.199295 | BG11: 3.072864 | BH11: 3.793342 | BI11: 3.050486 | BJ11: 3.047078 | BK11: 3.318646 | BL11: 3.482859 | BM11: 3.082451
C12: Machinery | D12: 3.098704 | E12: 3.723058 | F12: 3.570835 | G12: 3.192073 | H12: 2.605387 | I12: 2.558327 | J12: 3.025725 | K12: 3.037196 | L12: 0 | M12: 3.042931 | N12: 3.11225 | O12: 0 | P12: 3.345395 | Q12: 2.933663 | R12: 3.549792 | S12: 2.871939 | T12: 3.526368 | U12: 3.585667 | V12: 3.544748 | W12: 2.676799 | X12: 3.029285 | Y12: 3.211807 | Z12: 3.428055 | AA12: 3.256562 | AB12: 3.834053 | AC12: 3.413857 | AD12: 3.826413 | AE12: ='User Add-in Location'!B18 -> 0 | AF12: ='User Add-in Location'!C18 -> 0 | AG12: 3.666187 | AH12: 3.541439 | AI12: 3.016162 | AJ12: 3.27013 | AK12: 3.897614 | AL12: 2.726016 | AM12: 3.098721 | AN12: 2.456114 | AO12: 3.488226 | AP12: 3.510241 | AQ12: 3.370764 | AR12: 3.344286 | AS12: 0 | AT12: 0 | AU12: 0 | AV12: 0 | AW12: 0 | AX12: 0 | AY12: 0 | AZ12: 0 | BA12: 3.331071 | BB12: 2.463078 | BC12: 2.616968 | BD12: 3.532185 | BE12: 3.271991 | BF12: 3.09476 | BG12: 3.446257 | BH12: 3.194376 | BI12: 3.567157 | BJ12: 3.569457 | BK12: 4.021289 | BL12: 3.279601 | BM12: 3.137593
C13: Electrical Equip | D13: 2.673552 | E13: 3.735718 | F13: 2.612319 | G13: 2.937404 | H13: 2.539838 | I13: 2.390928 | J13: 2.612706 | K13: 2.298401 | L13: 3.763637 | M13: 2.850196 | N13: 2.24021 | O13: 0 | P13: 2.780206 | Q13: 2.368371 | R13: 2.993349 | S13: 2.604515 | T13: 2.690621 | U13: 2.702748 | V13: 2.621432 | W13: 2.916843 | X13: 2.820197 | Y13: 2.258592 | Z13: 2.744829 | AA13: 2.529615 | AB13: 2.765206 | AC13: 2.426731 | AD13: 3.259802 | AE13: ='User Add-in Location'!B19 -> 0 | AF13: ='User Add-in Location'!C19 -> 0 | AG13: 2.186913 | AH13: 2.774609 | AI13: 2.183861 | AJ13: 2.488008 | AK13: 3.097555 | AL13: 2.796552 | AM13: 2.395307 | AN13: 2.962889 | AO13: 2.554196 | AP13: 2.741251 | AQ13: 2.555164 | AR13: 2.495715 | AS13: 0 | AT13: 0 | AU13: 0 | AV13: 0 | AW13: 0 | AX13: 0 | AY13: 0 | AZ13: 0 | BA13: 2.321357 | BB13: 2.288685 | BC13: 2.757721 | BD13: 2.261896 | BE13: 2.588018 | BF13: 2.530383 | BG13: 2.825079 | BH13: 3.136053 | BI13: 2.659185 | BJ13: 2.894834 | BK13: 2.877036 | BL13: 2.391151 | BM13: 2.866441
C14: Battery Manufacturing | D14: 3.403139 | E14: 0 | F14: 2.996768 | G14: 3.186053 | H14: 2.938313 | I14: 2.566582 | J14: 3.046972 | K14: 2.927819 | L14: 0 | M14: 3.03124 | N14: 2.767982 | O14: 0 | P14: 0 | Q14: 2.742325 | R14: 3.044819 | S14: 3.108509 | T14: 2.873822 | U14: 3.285783 | V14: 2.938622 | W14: 0 | X14: 3.067441 | Y14: 2.912187 | Z14: 2.823411 | AA14: 3.350954 | AB14: 3.251737 | AC14: 2.936216 | AD14: 0 | AE14: ='User Add-in Location'!B20 -> 0 | AF14: ='User Add-in Location'!C20 -> 0 | AG14: 0 | AH14: 3.178384 | AI14: 0 | AJ14: 2.820681 | AK14: 0 | AL14: 3.093044 | AM14: 2.59918 | AN14: 0 | AO14: 2.831744 | AP14: 3.27024 | AQ14: 2.729785 | AR14: 2.971605 | AS14: 0 | AT14: 0 | AU14: 0 | AV14: 0 | AW14: 0 | AX14: 0 | AY14: 0 | AZ14: 0 | BA14: 2.802133 | BB14: 2.567771 | BC14: 0 | BD14: 2.468054 | BE14: 3.100371 | BF14: 2.942261 | BG14: 3.019821 | BH14: 0 | BI14: 3.055702 | BJ14: 3.677987 | BK14: 3.170266 | BL14: 2.802534 | BM14: 0
C15: Energy Wire Manufacturing | D15: 2.262022 | E15: 0 | F15: 1.983036 | G15: 2.117763 | H15: 2.100016 | I15: 1.849677 | J15: 2.061596 | K15: 0 | L15: 3.466372 | M15: 2.150838 | N15: 2.038814 | O15: 0 | P15: 2.140818 | Q15: 1.892006 | R15: 2.132666 | S15: 0 | T15: 2.148005 | U15: 2.236417 | V15: 2.037851 | W15: 2.264725 | X15: 2.04641 | Y15: 1.943198 | Z15: 2.228268 | AA15: 2.011962 | AB15: 2.140258 | AC15: 0 | AD15: 2.256109 | AE15: ='User Add-in Location'!B21 -> 0 | AF15: ='User Add-in Location'!C21 -> 0 | AG15: 1.713804 | AH15: 2.119953 | AI15: 1.871008 | AJ15: 1.926364 | AK15: 1.958445 | AL15: 2.161011 | AM15: 1.85413 | AN15: 2.332101 | AO15: 2.020632 | AP15: 0 | AQ15: 0 | AR15: 2.153376 | AS15: 0 | AT15: 0 | AU15: 0 | AV15: 0 | AW15: 0 | AX15: 0 | AY15: 0 | AZ15: 0 | BA15: 2.083308 | BB15: 1.845547 | BC15: 0 | BD15: 2.10659 | BE15: 2.053708 | BF15: 2.040417 | BG15: 2.171618 | BH15: 2.072579 | BI15: 2.117431 | BJ15: 2.228984 | BK15: 2.11816 | BL15: 2.113575 | BM15: 2.371191
C16: Wholesale Trade | D16: 3.655558 | E16: 3.057551 | F16: 3.043386 | G16: 3.075207 | H16: 2.78121 | I16: 3.095543 | J16: 2.878511 | K16: 3.348235 | L16: 2.62208 | M16: 3.003092 | N16: 3.118975 | O16: 3.799886 | P16: 3.433457 | Q16: 2.857868 | R16: 3.332608 | S16: 3.336715 | T16: 3.159893 | U16: 3.025243 | V16: 3.24753 | W16: 3.238727 | X16: 3.061679 | Y16: 2.882437 | Z16: 3.065193 | AA16: 2.98168 | AB16: 3.450661 | AC16: 3.307085 | AD16: 3.627515 | AE16: ='User Add-in Location'!B22 -> 0 | AF16: ='User Add-in Location'!C22 -> 0 | AG16: 3.058822 | AH16: 3.141647 | AI16: 3.447715 | AJ16: 2.631399 | AK16: 3.651357 | AL16: 2.865293 | AM16: 3.291485 | AN16: 3.099141 | AO16: 3.250695 | AP16: 3.500671 | AQ16: 3.424743 | AR16: 3.173196 | AS16: 0 | AT16: 0 | AU16: 0 | AV16: 0 | AW16: 0 | AX16: 0 | AY16: 0 | AZ16: 0 | BA16: 3.193817 | BB16: 3.299524 | BC16: 3.339763 | BD16: 2.999307 | BE16: 2.908603 | BF16: 3.028024 | BG16: 3.250969 | BH16: 3.247877 | BI16: 3.117171 | BJ16: 2.888358 | BK16: 3.206302 | BL16: 3.460117 | BM16: 3.325099
C17: Retail trade | D17: 11.557158 | E17: 11.225195 | F17: 9.882641 | G17: 11.518194 | H17: 9.008166 | I17: 10.519102 | J17: 9.590615 | K17: 12.047313 | L17: 9.335026 | M17: 10.653781 | N17: 11.061841 | O17: 9.714667 | P17: 10.686256 | Q17: 10.060744 | R17: 11.089955 | S17: 12.193633 | T17: 10.908196 | U17: 11.977724 | V17: 10.668539 | W17: 10.96066 | X17: 10.4709 | Y17: 10.515649 | Z17: 11.053228 | AA17: 10.587896 | AB17: 11.495644 | AC17: 11.419583 | AD17: 12.311312 | AE17: ='User Add-in Location'!B23 -> 0 | AF17: ='User Add-in Location'!C23 -> 0 | AG17: 11.519967 | AH17: 9.563278 | AI17: 11.145075 | AJ17: 9.51599 | AK17: 11.674623 | AL17: 9.402199 | AM17: 11.710721 | AN17: 11.453548 | AO17: 10.535723 | AP17: 11.793393 | AQ17: 11.688219 | AR17: 11.041405 | AS17: 0 | AT17: 0 | AU17: 0 | AV17: 0 | AW17: 0 | AX17: 0 | AY17: 0 | AZ17: 0 | BA17: 10.472917 | BB17: 11.524325 | BC17: 11.124045 | BD17: 10.552165 | BE17: 10.694635 | BF17: 10.302335 | BG17: 9.767895 | BH17: 10.753696 | BI17: 10.971331 | BJ17: 6.445395 | BK17: 11.415113 | BL17: 11.075813 | BM17: 11.06872
A18: To view the data and formulas simply scroll over to the adjacent columns to the right. | C18: TCPU | D18: 2.313667 | E18: 1.366342 | F18: 2.252779 | G18: 3.193869 | H18: 2.527818 | I18: 2.215387 | J18: 1.710358 | K18: 2.219329 | L18: 1.351624 | M18: 2.465099 | N18: 2.665661 | O18: 1.666492 | P18: 3.129798 | Q18: 2.7106 | R18: 2.886826 | S18: 3.130767 | T18: 2.480012 | U18: 2.648105 | V18: 2.286546 | W18: 2.645068 | X18: 1.963582 | Y18: 1.885253 | Z18: 2.528862 | AA18: 2.527398 | AB18: 2.866365 | AC18: 2.907701 | AD18: 2.282902 | AE18: ='User Add-in Location'!B24 -> 0 | AF18: ='User Add-in Location'!C24 -> 0 | AG18: 2.33649 | AH18: 2.280668 | AI18: 2.012608 | AJ18: 2.470925 | AK18: 2.479044 | AL18: 1.764132 | AM18: 2.842846 | AN18: 2.495287 | AO18: 2.9224 | AP18: 1.791597 | AQ18: 2.565412 | AR18: 2.350694 | AS18: 0 | AT18: 0 | AU18: 0 | AV18: 0 | AW18: 0 | AX18: 0 | AY18: 0 | AZ18: 0 | BA18: 2.051605 | BB18: 2.452105 | BC18: 2.858802 | BD18: 3.116562 | BE18: 2.720246 | BF18: 2.491022 | BG18: 2.937002 | BH18: 2.140521 | BI18: 2.451647 | BJ18: 2.342326 | BK18: 2.12425 | BL18: 3.01239 | BM18: 1.495049
C19: Insurance and Real Estate | D19: 2.742584 | E19: 2.021978 | F19: 2.676976 | G19: 2.621722 | H19: 2.011081 | I19: 2.680149 | J19: 2.097172 | K19: 1.96497 | L19: 2.065533 | M19: 2.809052 | N19: 2.637666 | O19: 1.997095 | P19: 2.841931 | Q19: 2.03057 | R19: 2.235979 | S19: 2.268514 | T19: 2.600467 | U19: 2.495582 | V19: 2.685175 | W19: 2.524223 | X19: 2.030669 | Y19: 2.060257 | Z19: 2.483276 | AA19: 2.295171 | AB19: 2.647006 | AC19: 2.722299 | AD19: 3.09835 | AE19: ='User Add-in Location'!B25 -> 0 | AF19: ='User Add-in Location'!C25 -> 0 | AG19: 2.264196 | AH19: 2.719716 | AI19: 2.129777 | AJ19: 2.42354 | AK19: 2.24407 | AL19: 2.260868 | AM19: 2.678314 | AN19: 2.811969 | AO19: 2.37903 | AP19: 2.733745 | AQ19: 2.267769 | AR19: 2.32343 | AS19: 0 | AT19: 0 | AU19: 0 | AV19: 0 | AW19: 0 | AX19: 0 | AY19: 0 | AZ19: 0 | BA19: 2.17884 | BB19: 2.741593 | BC19: 3.022834 | BD19: 2.506827 | BE19: 2.629908 | BF19: 2.373886 | BG19: 2.973675 | BH19: 2.250467 | BI19: 2.224302 | BJ19: 2.0929 | BK19: 2.242815 | BL19: 2.246662 | BM19: 3.064553
C20: Finance | D20: 4.154526 | E20: 3.896691 | F20: 4.757892 | G20: 4.503683 | H20: 3.632416 | I20: 4.854703 | J20: 3.483453 | K20: 2.484726 | L20: 3.131353 | M20: 5.503382 | N20: 3.089816 | O20: 4.884155 | P20: 4.887153 | Q20: 3.89592 | R20: 5.089632 | S20: 4.170916 | T20: 5.137482 | U20: 4.615226 | V20: 4.997133 | W20: 4.458467 | X20: 4.463465 | Y20: 3.148673 | Z20: 5.087803 | AA20: 3.849686 | AB20: 4.690952 | AC20: 4.008627 | AD20: 4.35393 | AE20: ='User Add-in Location'!B26 -> 0 | AF20: ='User Add-in Location'!C26 -> 0 | AG20: 4.924642 | AH20: 4.898905 | AI20: 4.465013 | AJ20: 4.813769 | AK20: 4.874042 | AL20: 1.981977 | AM20: 2.940356 | AN20: 4.586765 | AO20: 3.37943 | AP20: 5.155976 | AQ20: 4.52504 | AR20: 4.469666 | AS20: 0 | AT20: 0 | AU20: 0 | AV20: 0 | AW20: 0 | AX20: 0 | AY20: 0 | AZ20: 0 | BA20: 4.089693 | BB20: 5.00554 | BC20: 2.3294 | BD20: 4.616996 | BE20: 4.956621 | BF20: 3.741062 | BG20: 4.291678 | BH20: 4.577834 | BI20: 4.022673 | BJ20: 4.007179 | BK20: 4.50783 | BL20: 4.449631 | BM20: 6.185534
C21: Other Professional Services | D21: 5.214938 | E21: 5.714815 | F21: 5.455011 | G21: 4.845702 | H21: 4.08797 | I21: 4.723235 | J21: 4.206107 | K21: 4.064691 | L21: 3.298736 | M21: 5.629719 | N21: 4.851422 | O21: 5.379652 | P21: 5.56135 | Q21: 4.2966 | R21: 4.750399 | S21: 5.429897 | T21: 5.186408 | U21: 5.65648 | V21: 5.762888 | W21: 5.504926 | X21: 4.642859 | Y21: 3.91401 | Z21: 4.746748 | AA21: 4.504215 | AB21: 6.014507 | AC21: 4.732561 | AD21: 6.607302 | AE21: ='User Add-in Location'!B27 -> 0 | AF21: ='User Add-in Location'!C27 -> 0 | AG21: 5.075362 | AH21: 5.123929 | AI21: 4.86017 | AJ21: 4.038951 | AK21: 5.186088 | AL21: 3.964942 | AM21: 4.682134 | AN21: 5.603841 | AO21: 4.767117 | AP21: 5.90922 | AQ21: 4.601463 | AR21: 4.31273 | AS21: 0 | AT21: 0 | AU21: 0 | AV21: 0 | AW21: 0 | AX21: 0 | AY21: 0 | AZ21: 0 | BA21: 4.981895 | BB21: 5.664763 | BC21: 5.524046 | BD21: 5.269692 | BE21: 4.922651 | BF21: 4.568315 | BG21: 5.853729 | BH21: 5.858052 | BI21: 4.612501 | BJ21: 4.009754 | BK21: 5.047685 | BL21: 4.867631 | BM21: 6.752311
C22: Office Services | D22: 7.53669 | E22: 8.085882 | F22: 7.482143 | G22: 8.817666 | H22: 5.365228 | I22: 6.450663 | J22: 5.482673 | K22: 6.550327 | L22: 4.060787 | M22: 6.9679 | N22: 6.689744 | O22: 8.00549 | P22: 8.787455 | Q22: 6.301711 | R22: 6.838143 | S22: 7.69079 | T22: 7.417866 | U22: 7.938134 | V22: 8.646294 | W22: 7.413762 | X22: 5.489986 | Y22: 4.437087 | Z22: 7.309683 | AA22: 6.533191 | AB22: 9.288246 | AC22: 6.819987 | AD22: 8.847493 | AE22: ='User Add-in Location'!B28 -> 0 | AF22: ='User Add-in Location'!C28 -> 0 | AG22: 7.972636 | AH22: 7.569644 | AI22: 5.812734 | AJ22: 5.266002 | AK22: 7.251809 | AL22: 5.599413 | AM22: 6.469329 | AN22: 8.030123 | AO22: 7.096025 | AP22: 7.83504 | AQ22: 7.569128 | AR22: 6.642983 | AS22: 0 | AT22: 0 | AU22: 0 | AV22: 0 | AW22: 0 | AX22: 0 | AY22: 0 | AZ22: 0 | BA22: 6.941045 | BB22: 7.741655 | BC22: 8.366341 | BD22: 6.196485 | BE22: 6.592471 | BF22: 6.280721 | BG22: 8.553113 | BH22: 6.655713 | BI22: 5.256513 | BJ22: 5.948867 | BK22: 9.737701 | BL22: 7.380214 | BM22: 8.569244
C23: Architectural and Engineering Services | D23: 5.972037 | E23: 6.356278 | F23: 6.405791 | G23: 7.252351 | H23: 5.209692 | I23: 5.763574 | J23: 5.630867 | K23: 5.767687 | L23: 4.307583 | M23: 6.528996 | N23: 6.153663 | O23: 6.475589 | P23: 7.030884 | Q23: 5.810359 | R23: 6.162681 | S23: 6.474776 | T23: 6.152245 | U23: 6.654139 | V23: 6.425376 | W23: 6.478588 | X23: 5.447509 | Y23: 4.782697 | Z23: 5.730551 | AA23: 5.919288 | AB23: 7.454237 | AC23: 5.827662 | AD23: 7.061674 | AE23: ='User Add-in Location'!B29 -> 0 | AF23: ='User Add-in Location'!C29 -> 0 | AG23: 6.602212 | AH23: 6.458117 | AI23: 5.726366 | AJ23: 5.50583 | AK23: 6.085409 | AL23: 5.26106 | AM23: 6.115532 | AN23: 6.192447 | AO23: 6.262362 | AP23: 6.970186 | AQ23: 6.439539 | AR23: 5.969749 | AS23: 0 | AT23: 0 | AU23: 0 | AV23: 0 | AW23: 0 | AX23: 0 | AY23: 0 | AZ23: 0 | BA23: 6.351964 | BB23: 6.308975 | BC23: 6.941508 | BD23: 6.249795 | BE23: 5.653123 | BF23: 5.790259 | BG23: 6.850133 | BH23: 6.544148 | BI23: 5.194103 | BJ23: 5.575266 | BK23: 6.703154 | BL23: 6.350353 | BM23: 6.996882
C24: Other services | D24: 10.609197 | E24: 8.374269 | F24: 9.03944 | G24: 10.53892 | H24: 7.213426 | I24: 8.351915 | J24: 7.712914 | K24: 8.436084 | L24: 6.171957 | M24: 9.480923 | N24: 8.509351 | O24: 8.593845 | P24: 10.18489 | Q24: 8.544068 | R24: 9.658505 | S24: 10.20229 | T24: 8.502665 | U24: 9.816516 | V24: 9.968497 | W24: 9.927709 | X24: 8.444937 | Y24: 7.860602 | Z24: 9.468791 | AA24: 9.145582 | AB24: 10.976077 | AC24: 9.174959 | AD24: 10.236515 | AE24: ='User Add-in Location'!B30 -> 0 | AF24: ='User Add-in Location'!C30 -> 0 | AG24: 9.265221 | AH24: 8.904029 | AI24: 8.514378 | AJ24: 8.289124 | AK24: 9.799725 | AL24: 7.121069 | AM24: 9.50945 | AN24: 9.115848 | AO24: 9.507391 | AP24: 9.80613 | AQ24: 9.203592 | AR24: 8.647172 | AS24: 0 | AT24: 0 | AU24: 0 | AV24: 0 | AW24: 0 | AX24: 0 | AY24: 0 | AZ24: 0 | BA24: 9.706701 | BB24: 10.042697 | BC24: 9.440409 | BD24: 8.957338 | BE24: 9.135015 | BF24: 8.512517 | BG24: 8.726454 | BH24: 9.922356 | BI24: 8.475078 | BJ24: 6.275058 | BK24: 9.813906 | BL24: 9.500138 | BM24: 10.122887
C25: Government | D25: 8.491226 | E25: 8.147851 | F25: 8.612033 | G25: 12.050145 | H25: 7.254031 | I25: 10.049896 | J25: 6.675486 | K25: 9.518627 | L25: 4.635974 | M25: 9.567303 | N25: 10.542149 | O25: 8.205162 | P25: 11.236253 | Q25: 9.951849 | R25: 11.308228 | S25: 10.981945 | T25: 11.515988 | U25: 10.493182 | V25: 10.888607 | W25: 10.933884 | X25: 5.699869 | Y25: 6.305199 | Z25: 10.193486 | AA25: 10.23496 | AB25: 12.94468 | AC25: 11.379294 | AD25: 11.589885 | AE25: ='User Add-in Location'!B31 -> 0 | AF25: ='User Add-in Location'!C31 -> 0 | AG25: 11.227635 | AH25: 9.085898 | AI25: 8.368618 | AJ25: 8.446408 | AK25: 6.401447 | AL25: 7.520348 | AM25: 10.121862 | AN25: 10.728098 | AO25: 9.728874 | AP25: 9.033189 | AQ25: 8.552159 | AR25: 8.801891 | AS25: 0 | AT25: 0 | AU25: 0 | AV25: 0 | AW25: 0 | AX25: 0 | AY25: 0 | AZ25: 0 | BA25: 7.532654 | BB25: 10.6047 | BC25: 11.522961 | BD25: 10.965327 | BE25: 9.945867 | BF25: 8.831247 | BG25: 10.176797 | BH25: 11.592281 | BI25: 8.132746 | BJ25: 7.998884 | BK25: 11.09417 | BL25: 10.959149 | BM25: 10.242491
C26: Semiconductor (solar cell/module) manufacturing | D26: 1.790641 | E26: 1.60104 | F26: 1.50314 | G26: 1.605457 | H26: 1.167326 | I26: 1.819681 | J26: 1.67004 | K26: 2.131732 | L26: 1.403466 | M26: 1.664797 | N26: 1.352235 | O26: 2.315962 | P26: 1.563949 | Q26: 1.636078 | R26: 1.503872 | S26: 1.669216 | T26: 1.881579 | U26: 1.749263 | V26: 2.334352 | W26: 1.527686 | X26: 1.71738 | Y26: 1.518865 | Z26: 1.895037 | AA26: 1.714718 | AB26: 2.434316 | AC26: 1.560488 | AD26: 1.693656 | AE26: ='User Add-in Location'!B32 -> 0 | AF26: ='User Add-in Location'!C32 -> 0 | AG26: 1.658821 | AH26: 1.862794 | AI26: 1.674449 | AJ26: 1.795463 | AK26: 1.677154 | AL26: 1.7816 | AM26: 1.373319 | AN26: 1.832226 | AO26: 1.952641 | AP26: 1.593433 | AQ26: 1.228145 | AR26: 1.453352 | AS26: 0 | AT26: 0 | AU26: 0 | AV26: 0 | AW26: 0 | AX26: 0 | AY26: 0 | AZ26: 0 | BA26: 1.583108 | BB26: 1.311314 | BC26: 2.211805 | BD26: 1.83493 | BE26: 1.295836 | BF26: 1.379462 | BG26: 1.803576 | BH26: 1.948207 | BI26: 1.715723 | BJ26: 1.799282 | BK26: 2.162012 | BL26: 1.542758 | BM26: 0
C28: Jobs Per Million Dollars Change in Final Demand
C29: Jobs Indirect Multipliers | D29: Alabama | E29: Alaska | F29: Arizona | G29: Arkansas | H29: California | I29: Colorado | J29: Connecticut | K29: Delaware | L29: District of Columbia | M29: Florida | N29: Georgia | O29: Hawaii | P29: Idaho | Q29: Illinois | R29: Indiana | S29: Iowa | T29: Kansas | U29: Kentucky | V29: Louisiana | W29: Maine | X29: Maryland | Y29: Massachusetts | Z29: Michigan | AA29: Minnesota | AB29: Mississippi | AC29: Missouri | AD29: Montana | AE29: MyCounty | AF29: MyRegion | AG29: Nebraska | AH29: Nevada | AI29: New Hampshire | AJ29: New Jersey | AK29: New Mexico | AL29: New York | AM29: North Carolina | AN29: North Dakota | AO29: Ohio | AP29: Oklahoma | AQ29: Oregon | AR29: Pennsylvania | AS29: REGION1 | AT29: REGION2 | AU29: REGION3 | AV29: REGION4 | AW29: REGION5 | AX29: REGION6 | AY29: REGION7 | AZ29: REGION8 | BA29: Rhode Island | BB29: South Carolina | BC29: South Dakota | BD29: Tennessee | BE29: Texas | BF29: United States | BG29: Utah | BH29: Vermont | BI29: Virginia | BJ29: Washington | BK29: West Virginia | BL29: Wisconsin | BM29: Wyoming
C30: Ag, Forestry, Fish & Hunting | D30: 3.154458 | E30: 1.066711 | F30: 1.631421 | G30: 4.015494 | H30: 1.338683 | I30: 3.075901 | J30: 1.170251 | K30: 1.686607 | L30: 0.229776 | M30: 1.555867 | N30: 2.851859 | O30: 1.576085 | P30: 2.806582 | Q30: 2.04213 | R30: 2.525333 | S30: 2.758857 | T30: 3.429319 | U30: 2.812952 | V30: 2.555716 | W30: 1.474219 | X30: 1.69455 | Y30: 0.523661 | Z30: 2.284956 | AA30: 3.035888 | AB30: 3.622526 | AC30: 3.917263 | AD30: 2.713864 | AE30: ='User Add-in Location'!B36 -> 0 | AF30: ='User Add-in Location'!C36 -> 0 | AG30: 3.002177 | AH30: 1.550132 | AI30: 1.743297 | AJ30: 1.013992 | AK30: 3.209376 | AL30: 1.600406 | AM30: 3.003021 | AN30: 1.834318 | AO30: 2.119569 | AP30: 4.486941 | AQ30: 2.610334 | AR30: 2.641958 | AS30: 0 | AT30: 0 | AU30: 0 | AV30: 0 | AW30: 0 | AX30: 0 | AY30: 0 | AZ30: 0 | BA30: 0.399514 | BB30: 2.321503 | BC30: 2.933748 | BD30: 3.079697 | BE30: 3.457248 | BF30: 3.967563 | BG30: 2.64468 | BH30: 3.609258 | BI30: 2.637064 | BJ30: 1.266936 | BK30: 2.06184 | BL30: 2.845815 | BM30: 1.434945
C31: Mining | D31: 2.172872 | E31: 1.185233 | F31: 2.486427 | G31: 3.800396 | H31: 2.233763 | I31: 2.581532 | J31: 2.42457 | K31: 3.082128 | L31: 1.461072 | M31: 4.244728 | N31: 2.518903 | O31: 2.561544 | P31: 4.230298 | Q31: 3.639997 | R31: 3.248413 | S31: 3.170037 | T31: 4.827187 | U31: 3.211644 | V31: 3.031801 | W31: 3.853124 | X31: 2.997596 | Y31: 2.844221 | Z31: 3.335644 | AA31: 2.619348 | AB31: 4.265916 | AC31: 3.633357 | AD31: 2.99423 | AE31: ='User Add-in Location'!B37 -> 0 | AF31: ='User Add-in Location'!C37 -> 0 | AG31: 4.015444 | AH31: 2.501128 | AI31: 3.1635 | AJ31: 2.95254 | AK31: 2.026203 | AL31: 2.689688 | AM31: 3.196791 | AN31: 2.066006 | AO31: 1.798464 | AP31: 3.210327 | AQ31: 3.897022 | AR31: 1.998771 | AS31: 0 | AT31: 0 | AU31: 0 | AV31: 0 | AW31: 0 | AX31: 0 | AY31: 0 | AZ31: 0 | BA31: 2.342527 | BB31: 2.690776 | BC31: 4.137899 | BD31: 3.252463 | BE31: 2.367421 | BF31: 3.549297 | BG31: 2.834272 | BH31: 2.789777 | BI31: 2.68867 | BJ31: 2.866906 | BK31: 1.798468 | BL31: 1.972636 | BM31: 1.498328
C32: Construction | D32: 2.135178 | E32: 1.378316 | F32: 1.58349 | G32: 2.528833 | H32: 1.579708 | I32: 1.937657 | J32: 1.7749 | K32: 1.548642 | L32: 0.744454 | M32: 2.07193 | N32: 2.037008 | O32: 1.249372 | P32: 2.412117 | Q32: 1.972483 | R32: 2.27395 | S32: 2.406693 | T32: 2.464835 | U32: 2.147023 | V32: 2.419296 | W32: 2.379701 | X32: 1.669126 | Y32: 1.645192 | Z32: 1.981951 | AA32: 2.24199 | AB32: 2.902933 | AC32: 2.656767 | AD32: 2.277278 | AE32: ='User Add-in Location'!B38 -> 0 | AF32: ='User Add-in Location'!C38 -> 0 | AG32: 2.911799 | AH32: 1.617883 | AI32: 2.435432 | AJ32: 1.638005 | AK32: 2.173985 | AL32: 1.441435 | AM32: 2.302317 | AN32: 1.734827 | AO32: 1.84869 | AP32: 2.816625 | AQ32: 2.14069 | AR32: 2.120975 | AS32: 0 | AT32: 0 | AU32: 0 | AV32: 0 | AW32: 0 | AX32: 0 | AY32: 0 | AZ32: 0 | BA32: 1.3811 | BB32: 1.740901 | BC32: 2.639496 | BD32: 2.03507 | BE32: 2.326948 | BF32: 2.847668 | BG32: 2.148529 | BH32: 2.691916 | BI32: 1.914547 | BJ32: 1.095724 | BK32: 1.248766 | BL32: 1.758023 | BM32: 1.238192
C33: Construction/Installations - Non Residential | D33: 2.873936 | E33: 2.016401 | F33: 2.010358 | G33: 3.338422 | H33: 2.118738 | I33: 2.557116 | J33: 2.611672 | K33: 2.09615 | L33: 0.997664 | M33: 2.581885 | N33: 2.615291 | O33: 1.667568 | P33: 3.031866 | Q33: 2.618767 | R33: 3.066718 | S33: 3.304448 | T33: 3.275241 | U33: 2.83614 | V33: 3.238181 | W33: 3.318246 | X33: 2.236579 | Y33: 2.356202 | Z33: 2.605978 | AA33: 3.044626 | AB33: 3.79299 | AC33: 3.582496 | AD33: 3.041094 | AE33: ='User Add-in Location'!B39 -> 0 | AF33: ='User Add-in Location'!C39 -> 0 | AG33: 4.060166 | AH33: 2.134588 | AI33: 3.870718 | AJ33: 2.224467 | AK33: 2.910956 | AL33: 1.955283 | AM33: 3.100955 | AN33: 2.390837 | AO33: 2.491074 | AP33: 3.844833 | AQ33: 2.893837 | AR33: 2.858914 | AS33: 0 | AT33: 0 | AU33: 0 | AV33: 0 | AW33: 0 | AX33: 0 | AY33: 0 | AZ33: 0 | BA33: 1.850373 | BB33: 2.243151 | BC33: 3.570979 | BD33: 2.835731 | BE33: 3.134559 | BF33: 3.735391 | BG33: 2.750161 | BH33: 3.882703 | BI33: 2.54595 | BJ33: 1.394741 | BK33: 1.704735 | BL33: 2.334762 | BM33: 1.775752
C34: Construction/Installation Residential | D34: 3.358167 | E34: 2.436411 | F34: 2.402648 | G34: 3.859003 | H34: 2.470034 | I34: 3.017263 | J34: 2.952828 | K34: 2.610045 | L34: 1.264858 | M34: 3.0746 | N34: 3.158645 | O34: 2.056345 | P34: 3.540077 | Q34: 3.036806 | R34: 3.576814 | S34: 3.888711 | T34: 3.733918 | U34: 3.417557 | V34: 3.641653 | W34: 3.785814 | X34: 2.689055 | Y34: 2.747906 | Z34: 3.139321 | AA34: 3.51777 | AB34: 4.274638 | AC34: 4.121449 | AD34: 3.511109 | AE34: ='User Add-in Location'!B40 -> 0 | AF34: ='User Add-in Location'!C40 -> 0 | AG34: 4.564264 | AH34: 2.50965 | AI34: 4.201841 | AJ34: 2.597464 | AK34: 3.438682 | AL34: 2.342865 | AM34: 3.63899 | AN34: 2.857788 | AO34: 2.989748 | AP34: 4.397428 | AQ34: 3.439127 | AR34: 3.355183 | AS34: 0 | AT34: 0 | AU34: 0 | AV34: 0 | AW34: 0 | AX34: 0 | AY34: 0 | AZ34: 0 | BA34: 2.166279 | BB34: 2.83194 | BC34: 4.010819 | BD34: 3.290972 | BE34: 3.572166 | BF34: 4.116172 | BG34: 3.193625 | BH34: 4.257662 | BI34: 3.073218 | BJ34: 1.558706 | BK34: 2.161151 | BL34: 2.86093 | BM34: 2.274177
C35: Manufacturing | D35: 2.416622 | E35: 1.621946 | F35: 1.78687 | G35: 3.046398 | H35: 2.049778 | I35: 2.543927 | J35: 1.857497 | K35: 1.906865 | L35: 0.584949 | M35: 2.260626 | N35: 2.384702 | O35: 1.797789 | P35: 3.223696 | Q35: 2.464999 | R35: 2.6155 | S35: 2.828516 | T35: 3.414561 | U35: 2.881628 | V35: 2.948724 | W35: 2.25197 | X35: 1.549095 | Y35: 1.589288 | Z35: 2.365076 | AA35: 2.838036 | AB35: 3.647151 | AC35: 3.371127 | AD35: 3.120315 | AE35: ='User Add-in Location'!B41 -> 0 | AF35: ='User Add-in Location'!C41 -> 0 | AG35: 3.104277 | AH35: 1.887048 | AI35: 2.384347 | AJ35: 1.90936 | AK35: 3.09961 | AL35: 1.825147 | AM35: 2.38053 | AN35: 2.528668 | AO35: 2.153284 | AP35: 3.823884 | AQ35: 3.043016 | AR35: 2.863137 | AS35: 0 | AT35: 0 | AU35: 0 | AV35: 0 | AW35: 0 | AX35: 0 | AY35: 0 | AZ35: 0 | BA35: 1.424414 | BB35: 1.948394 | BC35: 3.318536 | BD35: 2.376297 | BE35: 3.2819 | BF35: 3.99361 | BG35: 3.211651 | BH35: 3.25705 | BI35: 2.179328 | BJ35: 1.475917 | BK35: 1.637727 | BL35: 2.058149 | BM35: 1.530649
C36: Fabricated Metals | D36: 2.155737 | E36: 1.800238 | F36: 1.787795 | G36: 2.377898 | H36: 2.133054 | I36: 2.32007 | J36: 1.998909 | K36: 2.138457 | L36: 0 | M36: 2.382102 | N36: 2.30033 | O36: 1.774865 | P36: 2.984659 | Q36: 2.554222 | R36: 2.585415 | S36: 2.899412 | T36: 2.946968 | U36: 2.437534 | V36: 2.869857 | W36: 2.07635 | X36: 1.935514 | Y36: 1.750314 | Z36: 2.379039 | AA36: 3.014224 | AB36: 3.273861 | AC36: 3.021873 | AD36: 2.731407 | AE36: ='User Add-in Location'!B42 -> 0 | AF36: ='User Add-in Location'!C42 -> 0 | AG36: 2.878806 | AH36: 1.78299 | AI36: 2.455509 | AJ36: 2.18405 | AK36: 2.555931 | AL36: 1.752866 | AM36: 2.59824 | AN36: 2.344559 | AO36: 2.19719 | AP36: 2.982024 | AQ36: 2.566035 | AR36: 2.757879 | AS36: 0 | AT36: 0 | AU36: 0 | AV36: 0 | AW36: 0 | AX36: 0 | AY36: 0 | AZ36: 0 | BA36: 1.969227 | BB36: 1.822137 | BC36: 2.959735 | BD36: 2.116559 | BE36: 2.924274 | BF36: 4.000133 | BG36: 2.853542 | BH36: 2.614486 | BI36: 1.89735 | BJ36: 1.517973 | BK36: 1.419589 | BL36: 1.964969 | BM36: 1.203287
C37: Machinery | D37: 2.428241 | E37: 1.63947 | F37: 2.028542 | G37: 2.708543 | H37: 2.131209 | I37: 2.907502 | J37: 2.164559 | K37: 1.729801 | L37: 0 | M37: 2.94076 | N37: 2.311325 | O37: 0 | P37: 3.244083 | Q37: 2.497467 | R37: 2.764714 | S37: 2.977771 | T37: 2.939713 | U37: 2.471863 | V37: 2.749287 | W37: 2.590593 | X37: 1.939551 | Y37: 2.058382 | Z37: 2.332003 | AA37: 2.817905 | AB37: 3.130903 | AC37: 3.222161 | AD37: 2.849819 | AE37: ='User Add-in Location'!B43 -> 0 | AF37: ='User Add-in Location'!C43 -> 0 | AG37: 2.989888 | AH37: 1.947596 | AI37: 2.273944 | AJ37: 2.173705 | AK37: 2.722184 | AL37: 1.888837 | AM37: 2.600361 | AN37: 2.527784 | AO37: 2.088766 | AP37: 2.844589 | AQ37: 2.677566 | AR37: 2.75444 | AS37: 0 | AT37: 0 | AU37: 0 | AV37: 0 | AW37: 0 | AX37: 0 | AY37: 0 | AZ37: 0 | BA37: 1.612743 | BB37: 1.871916 | BC37: 3.602638 | BD37: 2.311388 | BE37: 2.873228 | BF37: 3.74893 | BG37: 2.747662 | BH37: 2.418875 | BI37: 2.284108 | BJ37: 1.604349 | BK37: 1.56233 | BL37: 1.942409 | BM37: 1.360708
C38: Electrical Equip | D38: 1.857622 | E38: 1.748483 | F38: 1.399759 | G38: 2.374552 | H38: 1.90317 | I38: 1.994893 | J38: 1.812521 | K38: 1.369814 | L38: 0.674839 | M38: 2.245042 | N38: 1.788419 | O38: 0 | P38: 2.68159 | Q38: 2.080456 | R38: 2.564027 | S38: 2.498054 | T38: 2.641278 | U38: 2.096293 | V38: 2.38434 | W38: 2.023169 | X38: 1.771348 | Y38: 1.571604 | Z38: 2.03555 | AA38: 2.492889 | AB38: 2.867214 | AC38: 2.399071 | AD38: 2.21442 | AE38: ='User Add-in Location'!B44 -> 0 | AF38: ='User Add-in Location'!C44 -> 0 | AG38: 2.103569 | AH38: 1.557663 | AI38: 1.703525 | AJ38: 1.784457 | AK38: 2.047915 | AL38: 1.72738 | AM38: 1.973365 | AN38: 2.094082 | AO38: 1.486948 | AP38: 2.567614 | AQ38: 2.230539 | AR38: 2.19741 | AS38: 0 | AT38: 0 | AU38: 0 | AV38: 0 | AW38: 0 | AX38: 0 | AY38: 0 | AZ38: 0 | BA38: 1.151465 | BB38: 1.375776 | BC38: 2.801785 | BD38: 1.740775 | BE38: 2.653451 | BF38: 3.245754 | BG38: 2.595491 | BH38: 2.224041 | BI38: 1.92999 | BJ38: 1.248361 | BK38: 1.100045 | BL38: 1.425256 | BM38: 0.995044
C39: Battery Manufacturing | D39: 2.185598 | E39: 0 | F39: 1.3246 | G39: 2.593612 | H39: 2.05756 | I39: 1.830531 | J39: 2.01693 | K39: 1.806729 | L39: 0 | M39: 2.021659 | N39: 1.98689 | O39: 0 | P39: 0 | Q39: 2.258894 | R39: 2.605181 | S39: 2.712215 | T39: 2.75985 | U39: 2.392711 | V39: 2.462618 | W39: 0 | X39: 1.635668 | Y39: 1.826556 | Z39: 1.982406 | AA39: 3.214619 | AB39: 3.177203 | AC39: 2.741206 | AD39: 0 | AE39: ='User Add-in Location'!B45 -> 0 | AF39: ='User Add-in Location'!C45 -> 0 | AG39: 0 | AH39: 1.70094 | AI39: 0 | AJ39: 1.921429 | AK39: 0 | AL39: 1.746369 | AM39: 2.150754 | AN39: 0 | AO39: 1.808756 | AP39: 3.071307 | AQ39: 2.238379 | AR39: 2.549085 | AS39: 0 | AT39: 0 | AU39: 0 | AV39: 0 | AW39: 0 | AX39: 0 | AY39: 0 | AZ39: 0 | BA39: 1.343357 | BB39: 1.429821 | BC39: 0 | BD39: 1.608562 | BE39: 2.894636 | BF39: 3.412245 | BG39: 2.746718 | BH39: 0 | BI39: 2.066421 | BJ39: 1.45355 | BK39: 1.049331 | BL39: 1.463069 | BM39: 0
C40: Energy Wire Manufacturing | D40: 1.957176 | E40: 0 | F40: 1.060153 | G40: 2.443805 | H40: 2.141591 | I40: 1.826693 | J40: 1.999561 | K40: 0 | L40: 0.57394 | M40: 1.950789 | N40: 2.083065 | O40: 0 | P40: 2.583351 | Q40: 2.272021 | R40: 2.601651 | S40: 0 | T40: 3.021711 | U40: 2.203466 | V40: 2.355151 | W40: 1.871021 | X40: 1.419667 | Y40: 1.754572 | Z40: 2.095617 | AA40: 2.848328 | AB40: 2.978051 | AC40: 0 | AD40: 2.21954 | AE40: ='User Add-in Location'!B46 -> 0 | AF40: ='User Add-in Location'!C46 -> 0 | AG40: 2.283195 | AH40: 1.52083 | AI40: 2.18197 | AJ40: 1.859823 | AK40: 1.707763 | AL40: 1.692705 | AM40: 2.239216 | AN40: 2.236389 | AO40: 1.683984 | AP40: 0 | AQ40: 0 | AR40: 2.703065 | AS40: 0 | AT40: 0 | AU40: 0 | AV40: 0 | AW40: 0 | AX40: 0 | AY40: 0 | AZ40: 0 | BA40: 1.272115 | BB40: 1.400645 | BC40: 0 | BD40: 1.838805 | BE40: 2.788366 | BF40: 3.423615 | BG40: 2.856193 | BH40: 2.17436 | BI40: 1.970812 | BJ40: 1.074432 | BK40: 0.735583 | BL40: 1.324944 | BM40: 0.734779
C41: Wholesale Trade | D41: 2.320925 | E41: 1.688143 | F41: 2.638605 | G41: 2.450805 | H41: 1.822693 | I41: 2.541875 | J41: 1.849968 | K41: 1.972835 | L41: 1.055301 | M41: 2.88911 | N41: 2.153759 | O41: 2.546604 | P41: 3.045525 | Q41: 2.21601 | R41: 2.721467 | S41: 2.732 | T41: 2.456251 | U41: 2.437244 | V41: 2.658332 | W41: 2.673548 | X41: 2.166929 | Y41: 1.958548 | Z41: 2.643664 | AA41: 2.625512 | AB41: 2.850447 | AC41: 2.974166 | AD41: 3.079054 | AE41: ='User Add-in Location'!B47 -> 0 | AF41: ='User Add-in Location'!C47 -> 0 | AG41: 2.587115 | AH41: 2.412099 | AI41: 1.978182 | AJ41: 2.103147 | AK41: 3.095035 | AL41: 1.826872 | AM41: 2.268937 | AN41: 2.384747 | AO41: 2.533629 | AP41: 2.939661 | AQ41: 2.735021 | AR41: 2.341998 | AS41: 0 | AT41: 0 | AU41: 0 | AV41: 0 | AW41: 0 | AX41: 0 | AY41: 0 | AZ41: 0 | BA41: 1.878606 | BB41: 1.95635 | BC41: 2.898587 | BD41: 2.581751 | BE41: 2.523716 | BF41: 3.313122 | BG41: 2.80493 | BH41: 2.991535 | BI41: 2.050154 | BJ41: 1.688243 | BK41: 2.063374 | BL41: 2.893043 | BM41: 1.980633
C42: Retail trade | D42: 2.418878 | E42: 1.835672 | F42: 2.243068 | G42: 2.63882 | H42: 1.5496 | I42: 2.264354 | J42: 1.729066 | K42: 2.039362 | L42: 1.079792 | M42: 2.671565 | N42: 2.327441 | O42: 1.87219 | P42: 2.846153 | Q42: 2.154337 | R42: 2.580274 | S42: 2.803723 | T42: 2.354994 | U42: 2.589257 | V42: 2.523982 | W42: 2.499852 | X42: 2.116894 | Y42: 1.926658 | Z42: 2.537387 | AA42: 2.609065 | AB42: 2.649401 | AC42: 2.921297 | AD42: 3.137181 | AE42: ='User Add-in Location'!B48 -> 0 | AF42: ='User Add-in Location'!C48 -> 0 | AG42: 2.734088 | AH42: 2.067041 | AI42: 2.24478 | AJ42: 1.885476 | AK42: 2.642399 | AL42: 1.55354 | AM42: 2.331528 | AN42: 2.561758 | AO42: 2.375659 | AP42: 2.960502 | AQ42: 2.67673 | AR42: 2.507235 | AS42: 0 | AT42: 0 | AU42: 0 | AV42: 0 | AW42: 0 | AX42: 0 | AY42: 0 | AZ42: 0 | BA42: 1.899501 | BB42: 2.165856 | BC42: 2.762353 | BD42: 2.34803 | BE42: 2.545956 | BF42: 3.160658 | BG42: 2.499413 | BH42: 2.67243 | BI42: 2.239102 | BJ42: 1.282177 | BK42: 2.134169 | BL42: 2.766238 | BM42: 1.978003
C43: TCPU | D43: 2.547525 | E43: 1.183874 | F43: 2.05146 | G43: 3.078663 | H43: 1.660627 | I43: 2.053034 | J43: 1.565445 | K43: 2.402835 | L43: 1.22227 | M43: 2.480189 | N43: 2.268403 | O43: 1.650448 | P43: 2.915186 | Q43: 2.315205 | R43: 2.765149 | S43: 2.56078 | T43: 2.492166 | U43: 2.676933 | V43: 3.101477 | W43: 2.611038 | X43: 1.962377 | Y43: 1.809761 | Z43: 2.512276 | AA43: 2.565369 | AB43: 3.243318 | AC43: 2.920288 | AD43: 2.957805 | AE43: ='User Add-in Location'!B49 -> 0 | AF43: ='User Add-in Location'!C49 -> 0 | AG43: 1.580027 | AH43: 1.949091 | AI43: 2.04693 | AJ43: 1.817345 | AK43: 2.69376 | AL43: 1.776668 | AM43: 2.388793 | AN43: 2.439017 | AO43: 2.34191 | AP43: 2.083728 | AQ43: 2.392716 | AR43: 2.203601 | AS43: 0 | AT43: 0 | AU43: 0 | AV43: 0 | AW43: 0 | AX43: 0 | AY43: 0 | AZ43: 0 | BA43: 1.813409 | BB43: 2.132832 | BC43: 3.09006 | BD43: 2.57882 | BE43: 2.578072 | BF43: 3.453625 | BG43: 2.401167 | BH43: 3.053048 | BI43: 2.049498 | BJ43: 1.691524 | BK43: 2.295799 | BL43: 2.45229 | BM43: 1.344564
C44: Insurance and Real Estate | D44: 2.180022 | E44: 1.2954 | F44: 2.22548 | G44: 2.283507 | H44: 1.37807 | I44: 2.263136 | J44: 1.236805 | K44: 1.071496 | L44: 1.077493 | M44: 2.707855 | N44: 2.061197 | O44: 1.459316 | P44: 2.67061 | Q44: 1.727767 | R44: 1.871476 | S44: 1.776456 | T44: 2.330499 | U44: 2.164049 | V44: 2.350748 | W44: 1.927065 | X44: 1.53432 | Y44: 1.417145 | Z44: 2.126887 | AA44: 2.055312 | AB44: 2.298283 | AC44: 2.507408 | AD44: 2.666277 | AE44: ='User Add-in Location'!B50 -> 0 | AF44: ='User Add-in Location'!C50 -> 0 | AG44: 2.064379 | AH44: 2.009097 | AI44: 1.617247 | AJ44: 1.711269 | AK44: 1.976218 | AL44: 1.232435 | AM44: 1.947385 | AN44: 2.268027 | AO44: 1.939504 | AP44: 2.608186 | AQ44: 1.907163 | AR44: 2.052176 | AS44: 0 | AT44: 0 | AU44: 0 | AV44: 0 | AW44: 0 | AX44: 0 | AY44: 0 | AZ44: 0 | BA44: 1.690181 | BB44: 2.038582 | BC44: 2.21502 | BD44: 2.143051 | BE44: 2.424338 | BF44: 2.782597 | BG44: 2.430243 | BH44: 1.931966 | BI44: 1.757861 | BJ44: 1.477966 | BK44: 1.674564 | BL44: 2.153064 | BM44: 2.197877
C45: Finance | D45: 2.852356 | E45: 2.159523 | F45: 3.124837 | G45: 3.228058 | H45: 1.929315 | I45: 3.213666 | J45: 1.848537 | K45: 0.973029 | L45: 1.32295 | M45: 4.236219 | N45: 1.894078 | O45: 2.891533 | P45: 3.990573 | Q45: 2.492657 | R45: 3.450484 | S45: 3.041398 | T45: 3.68911 | U45: 3.169005 | V45: 3.572766 | W45: 3.032189 | X45: 2.776804 | Y45: 1.779679 | Z45: 3.580441 | AA45: 2.842301 | AB45: 3.474511 | AC45: 3.014563 | AD45: 3.419513 | AE45: ='User Add-in Location'!B51 -> 0 | AF45: ='User Add-in Location'!C51 -> 0 | AG45: 3.423914 | AH45: 2.855786 | AI45: 2.323704 | AJ45: 2.609839 | AK45: 3.569651 | AL45: 0.859775 | AM45: 1.75506 | AN45: 3.217876 | AO45: 2.194676 | AP45: 4.263182 | AQ45: 3.251052 | AR45: 3.303495 | AS45: 0 | AT45: 0 | AU45: 0 | AV45: 0 | AW45: 0 | AX45: 0 | AY45: 0 | AZ45: 0 | BA45: 2.434675 | BB45: 2.898671 | BC45: 1.471434 | BD45: 3.130345 | BE45: 3.581412 | BF45: 3.484785 | BG45: 2.754903 | BH45: 3.512654 | BI45: 2.352583 | BJ45: 2.326423 | BK45: 2.909459 | BL45: 3.544854 | BM45: 3.25587
C46: Other Professional Services | D46: 2.350853 | E46: 1.854605 | F46: 2.515942 | G46: 2.283864 | H46: 1.542033 | I46: 2.159228 | J46: 1.653364 | K46: 1.30097 | L46: 0.749073 | M46: 2.851898 | N46: 2.088639 | O46: 2.135728 | P46: 3.211341 | Q46: 1.83473 | R46: 2.170947 | S46: 2.584757 | T46: 2.32282 | U46: 2.521554 | V46: 2.70652 | W46: 2.516593 | X46: 2.098157 | Y46: 1.633909 | Z46: 2.429667 | AA46: 2.232057 | AB46: 2.862103 | AC46: 2.556843 | AD46: 3.114121 | AE46: ='User Add-in Location'!B52 -> 0 | AF46: ='User Add-in Location'!C52 -> 0 | AG46: 2.535775 | AH46: 2.23598 | AI46: 2.037454 | AJ46: 1.738506 | AK46: 3.086479 | AL46: 1.361395 | AM46: 1.87764 | AN46: 2.378744 | AO46: 2.297124 | AP46: 2.892498 | AQ46: 2.213317 | AR46: 2.109134 | AS46: 0 | AT46: 0 | AU46: 0 | AV46: 0 | AW46: 0 | AX46: 0 | AY46: 0 | AZ46: 0 | BA46: 1.86719 | BB46: 2.081295 | BC46: 2.606784 | BD46: 2.403434 | BE46: 2.331483 | BF46: 2.942782 | BG46: 2.92201 | BH46: 2.817263 | BI46: 1.894135 | BJ46: 1.601515 | BK46: 1.928229 | BL46: 2.567474 | BM46: 2.101042
C47: Office Services | D47: 2.013906 | E47: 1.668884 | F47: 2.121712 | G47: 2.552379 | H47: 1.138869 | I47: 1.729482 | J47: 1.227603 | K47: 1.350102 | L47: 0.669251 | M47: 2.266012 | N47: 1.745582 | O47: 1.959216 | P47: 2.762226 | Q47: 1.69672 | R47: 1.905362 | S47: 2.12341 | T47: 1.937416 | U47: 2.179486 | V47: 2.633776 | W47: 2.056294 | X47: 1.416322 | Y47: 0.992372 | Z47: 2.156212 | AA47: 1.906769 | AB47: 2.707324 | AC47: 2.109618 | AD47: 2.794117 | AE47: ='User Add-in Location'!B53 -> 0 | AF47: ='User Add-in Location'!C53 -> 0 | AG47: 2.266789 | AH47: 2.014636 | AI47: 1.406517 | AJ47: 1.312069 | AK47: 2.087808 | AL47: 1.14983 | AM47: 1.546253 | AN47: 2.113877 | AO47: 1.982238 | AP47: 2.435653 | AQ47: 2.144734 | AR47: 1.845933 | AS47: 0 | AT47: 0 | AU47: 0 | AV47: 0 | AW47: 0 | AX47: 0 | AY47: 0 | AZ47: 0 | BA47: 1.633177 | BB47: 1.85321 | BC47: 2.352924 | BD47: 1.710532 | BE47: 1.934163 | BF47: 2.366404 | BG47: 2.38157 | BH47: 1.980527 | BI47: 1.316508 | BJ47: 1.334144 | BK47: 2.301509 | BL47: 2.18169 | BM47: 1.853634
C48: Architectural and Engineering Services | D48: 2.164269 | E48: 1.85736 | F48: 2.430168 | G48: 2.786662 | H48: 1.602471 | I48: 2.160935 | J48: 1.815556 | K48: 1.636397 | L48: 0.893957 | M48: 2.888178 | N48: 2.267579 | O48: 2.135481 | P48: 3.049162 | Q48: 2.203637 | R48: 2.331751 | S48: 2.467001 | T48: 2.256865 | U48: 2.46348 | V48: 2.744881 | W48: 2.40433 | X48: 1.969161 | Y48: 1.537601 | Z48: 2.300711 | AA48: 2.458823 | AB48: 2.976628 | AC48: 2.525258 | AD48: 2.980142 | AE48: ='User Add-in Location'!B54 -> 0 | AF48: ='User Add-in Location'!C54 -> 0 | AG48: 2.626995 | AH48: 2.350711 | AI48: 1.974031 | AJ48: 1.943904 | AK48: 2.438608 | AL48: 1.541104 | AM48: 2.04459 | AN48: 2.157329 | AO48: 2.351712 | AP48: 2.919497 | AQ48: 2.558806 | AR48: 2.372766 | AS48: 0 | AT48: 0 | AU48: 0 | AV48: 0 | AW48: 0 | AX48: 0 | AY48: 0 | AZ48: 0 | BA48: 1.931345 | BB48: 2.01791 | BC48: 2.732309 | BD48: 2.336178 | BE48: 2.354567 | BF48: 3.072701 | BG48: 2.713838 | BH48: 2.655047 | BI48: 1.819989 | BJ48: 1.706947 | BK48: 2.043721 | BL48: 2.500806 | BM48: 1.870346
C49: Other services | D49: 2.513975 | E49: 1.773097 | F49: 2.363664 | G49: 2.779291 | H49: 1.632379 | I49: 2.238367 | J49: 1.692298 | K49: 1.585977 | L49: 1.05312 | M49: 2.770249 | N49: 2.228605 | O49: 1.858225 | P49: 3.006136 | Q49: 2.248307 | R49: 2.598762 | S49: 2.625722 | T49: 2.272734 | U49: 2.554951 | V49: 2.767345 | W49: 2.411354 | X49: 1.967943 | Y49: 1.715121 | Z49: 2.586198 | AA49: 2.51451 | AB49: 3.031491 | AC49: 2.848866 | AD49: 2.960412 | AE49: ='User Add-in Location'!B55 -> 0 | AF49: ='User Add-in Location'!C55 -> 0 | AG49: 2.635942 | AH49: 2.013828 | AI49: 1.938913 | AJ49: 1.894598 | AK49: 2.746053 | AL49: 1.469944 | AM49: 2.220918 | AN49: 2.300609 | AO49: 2.422429 | AP49: 2.942964 | AQ49: 2.376003 | AR49: 2.18576 | AS49: 0 | AT49: 0 | AU49: 0 | AV49: 0 | AW49: 0 | AX49: 0 | AY49: 0 | AZ49: 0 | BA49: 1.891767 | BB49: 2.143932 | BC49: 2.694042 | BD49: 2.326304 | BE49: 2.577987 | BF49: 3.138472 | BG49: 2.509937 | BH49: 2.626053 | BI49: 2.076867 | BJ49: 1.602371 | BK49: 2.095892 | BL49: 2.479066 | BM49: 1.858365
C50: Government | D50: 0.392687 | E50: 0.071638 | F50: 0.53588 | G50: 0.553115 | H50: 0.37574 | I50: 0.290371 | J50: 0.40466 | K50: 0.120728 | L50: 0.065872 | M50: 0.411816 | N50: 0.129222 | O50: 0.218997 | P50: 0.674059 | Q50: 0.184873 | R50: 0.344105 | S50: 0.267289 | T50: 0.401466 | U50: 0.441309 | V50: 0.482689 | W50: 0.415982 | X50: 0.089187 | Y50: 0.111824 | Z50: 0.315945 | AA50: 0.551647 | AB50: 0.36871 | AC50: 0.41455 | AD50: 0.441299 | AE50: ='User Add-in Location'!B56 -> 0 | AF50: ='User Add-in Location'!C56 -> 0 | AG50: 0.263442 | AH50: 0.215217 | AI50: 0.225372 | AJ50: 0.268509 | AK50: 0.426402 | AL50: 0.280506 | AM50: 0.176575 | AN50: 0.765884 | AO50: 0.253375 | AP50: 0.981329 | AQ50: 0.524759 | AR50: 0.479101 | AS50: 0 | AT50: 0 | AU50: 0 | AV50: 0 | AW50: 0 | AX50: 0 | AY50: 0 | AZ50: 0 | BA50: 0.155224 | BB50: 0.213361 | BC50: 0.928893 | BD50: 0.429222 | BE50: 0.400532 | BF50: 0.504399 | BG50: 0.355252 | BH50: 0.203562 | BI50: 0.393522 | BJ50: 0.442182 | BK50: 0.308661 | BL50: 0.357011 | BM50: 0.316071
C51: Semiconductor (solar cell/module) manufacturing | D51: 2.528583 | E51: 1.594963 | F51: 2.383585 | G51: 2.427539 | H51: 1.716087 | I51: 3.086406 | J51: 2.365863 | K51: 2.381335 | L51: 0.863383 | M51: 3.319362 | N51: 2.107933 | O51: 2.762299 | P51: 3.036367 | Q51: 2.677203 | R51: 2.336184 | S51: 2.747751 | T51: 3.037375 | U51: 2.624186 | V51: 3.912157 | W51: 2.312089 | X51: 2.537659 | Y51: 2.264329 | Z51: 3.070593 | AA51: 3.225476 | AB51: 4.041659 | AC51: 2.974921 | AD51: 2.640832 | AE51: ='User Add-in Location'!B57 -> 0 | AF51: ='User Add-in Location'!C57 -> 0 | AG51: 2.852306 | AH51: 2.594409 | AI51: 2.625997 | AJ51: 2.74546 | AK51: 3.166628 | AL51: 2.48481 | AM51: 2.060159 | AN51: 2.487399 | AO51: 2.929485 | AP51: 2.756145 | AQ51: 2.211434 | AR51: 2.481811 | AS51: 0 | AT51: 0 | AU51: 0 | AV51: 0 | AW51: 0 | AX51: 0 | AY51: 0 | AZ51: 0 | BA51: 1.698344 | BB51: 1.542044 | BC51: 3.936727 | BD51: 2.8098 | BE51: 2.490825 | BF51: 3.422181 | BG51: 3.540313 | BH51: 3.616365 | BI51: 2.622845 | BJ51: 2.19254 | BK51: 2.427295 | BL51: 2.433713 | BM51: 0
C53: Jobs Per Million Dollars Change in Final Demand
C54: Jobs Induced Multipliers | D54: Alabama | E54: Alaska | F54: Arizona | G54: Arkansas | H54: California | I54: Colorado | J54: Connecticut | K54: Delaware | L54: District of Columbia | M54: Florida | N54: Georgia | O54: Hawaii | P54: Idaho | Q54: Illinois | R54: Indiana | S54: Iowa | T54: Kansas | U54: Kentucky | V54: Louisiana | W54: Maine | X54: Maryland | Y54: Massachusetts | Z54: Michigan | AA54: Minnesota | AB54: Mississippi | AC54: Missouri | AD54: Montana | AE54: MyCounty | AF54: MyRegion | AG54: Nebraska | AH54: Nevada | AI54: New Hampshire | AJ54: New Jersey | AK54: New Mexico | AL54: New York | AM54: North Carolina | AN54: North Dakota | AO54: Ohio | AP54: Oklahoma | AQ54: Oregon | AR54: Pennsylvania | AS54: REGION1 | AT54: REGION2 | AU54: REGION3 | AV54: REGION4 | AW54: REGION5 | AX54: REGION6 | AY54: REGION7 | AZ54: REGION8 | BA54: Rhode Island | BB54: South Carolina | BC54: South Dakota | BD54: Tennessee | BE54: Texas | BF54: United States | BG54: Utah | BH54: Vermont | BI54: Virginia | BJ54: Washington | BK54: West Virginia | BL54: Wisconsin | BM54: Wyoming
C55: Ag, Forestry, Fish & Hunting | D55: 2.238505 | E55: 1.617346 | F55: 2.160234 | G55: 2.372534 | H55: 2.108221 | I55: 1.691426 | J55: 2.061705 | K55: 2.591217 | L55: 1.665865 | M55: 2.874897 | N55: 2.269794 | O55: 2.515405 | P55: 2.283492 | Q55: 2.340015 | R55: 2.538311 | S55: 2.018431 | T55: 1.6297 | U55: 2.517281 | V55: 2.510129 | W55: 3.817516 | X55: 1.655243 | Y55: 3.007885 | Z55: 2.131253 | AA55: 2.312497 | AB55: 2.938615 | AC55: 1.722164 | AD55: 2.003783 | AE55: ='User Add-in Location'!B61 -> 0 | AF55: ='User Add-in Location'!C61 -> 0 | AG55: 1.85556 | AH55: 1.198842 | AI55: 3.392956 | AJ55: 2.463853 | AK55: 2.390067 | AL55: 1.371584 | AM55: 2.111875 | AN55: 1.704295 | AO55: 2.037803 | AP55: 1.879204 | AQ55: 2.917238 | AR55: 2.464509 | AS55: 0 | AT55: 0 | AU55: 0 | AV55: 0 | AW55: 0 | AX55: 0 | AY55: 0 | AZ55: 0 | BA55: 3.281037 | BB55: 1.28627 | BC55: 2.499901 | BD55: 0.85066 | BE55: 1.923571 | BF55: 4.164017 | BG55: 1.598253 | BH55: 2.754793 | BI55: 1.467813 | BJ55: 2.120824 | BK55: 1.06976 | BL55: 1.643958 | BM55: 0.842271
C56: Mining | D56: 1.520434 | E56: 1.461794 | F56: 1.704994 | G56: 1.845581 | H56: 1.400119 | I56: 3.723555 | J56: 1.638162 | K56: 1.398888 | L56: 1.15399 | M56: 1.937582 | N56: 1.973715 | O56: 1.364345 | P56: 2.735271 | Q56: 2.380674 | R56: 2.209824 | S56: 1.879546 | T56: 2.156922 | U56: 1.704918 | V56: 2.730232 | W56: 1.898238 | X56: 1.478859 | Y56: 1.853139 | Z56: 2.086381 | AA56: 2.379958 | AB56: 2.103471 | AC56: 2.277457 | AD56: 2.641919 | AE56: ='User Add-in Location'!B62 -> 0 | AF56: ='User Add-in Location'!C62 -> 0 | AG56: 2.28412 | AH56: 1.793399 | AI56: 2.45612 | AJ56: 4.486653 | AK56: 1.669735 | AL56: 4.038652 | AM56: 1.617649 | AN56: 1.971106 | AO56: 1.332978 | AP56: 2.204991 | AQ56: 2.064059 | AR56: 2.009831 | AS56: 0 | AT56: 0 | AU56: 0 | AV56: 0 | AW56: 0 | AX56: 0 | AY56: 0 | AZ56: 0 | BA56: 1.531319 | BB56: 1.223267 | BC56: 2.694452 | BD56: 1.692768 | BE56: 2.788314 | BF56: 4.38711 | BG56: 1.730772 | BH56: 1.924174 | BI56: 1.698075 | BJ56: 1.619483 | BK56: 1.296759 | BL56: 1.381985 | BM56: 0.995849
C57: Construction | D57: 2.763427 | E57: 2.9495 | F57: 2.53435 | G57: 2.907464 | H57: 2.290759 | I57: 2.844929 | J57: 2.921702 | K57: 2.319961 | L57: 0.651415 | M57: 3.074066 | N57: 2.649739 | O57: 2.754533 | P57: 3.022851 | Q57: 3.343607 | R57: 3.519456 | S57: 3.326099 | T57: 2.840607 | U57: 2.929615 | V57: 3.520973 | W57: 3.751149 | X57: 2.733447 | Y57: 2.966629 | Z57: 3.567341 | AA57: 4.062646 | AB57: 3.063274 | AC57: 4.132707 | AD57: 3.383583 | AE57: ='User Add-in Location'!B63 -> 0 | AF57: ='User Add-in Location'!C63 -> 0 | AG57: 3.526957 | AH57: 2.557925 | AI57: 4.452528 | AJ57: 3.202207 | AK57: 3.048214 | AL57: 2.169038 | AM57: 2.780845 | AN57: 2.90683 | AO57: 3.272831 | AP57: 3.484165 | AQ57: 3.472245 | AR57: 3.750389 | AS57: 0 | AT57: 0 | AU57: 0 | AV57: 0 | AW57: 0 | AX57: 0 | AY57: 0 | AZ57: 0 | BA57: 2.42519 | BB57: 2.219964 | BC57: 3.6723 | BD57: 3.284158 | BE57: 3.512322 | BF57: 5.4431 | BG57: 2.850986 | BH57: 4.438361 | BI57: 2.667445 | BJ57: 2.057778 | BK57: 2.316299 | BL57: 3.396952 | BM57: 1.486935
C58: Construction/Installations - Non Residential | D58: 2.171003 | E58: 2.40173 | F58: 1.878889 | G58: 2.286806 | H58: 1.818239 | I58: 2.264415 | J58: 2.534107 | K58: 1.762972 | L58: 0.479495 | M58: 2.322246 | N58: 2.038269 | O58: 2.045648 | P58: 2.321551 | Q58: 2.677373 | R58: 2.820637 | S58: 2.698709 | T58: 2.293835 | U58: 2.264972 | V58: 2.834354 | W58: 3.052141 | X58: 2.122652 | Y58: 2.473302 | Z58: 2.768229 | AA58: 3.35772 | AB58: 2.431718 | AC58: 3.405527 | AD58: 2.672833 | AE58: ='User Add-in Location'!B64 -> 0 | AF58: ='User Add-in Location'!C64 -> 0 | AG58: 3.017302 | AH58: 1.939541 | AI58: 4.16465 | AJ58: 2.585977 | AK58: 2.350319 | AL58: 1.703006 | AM58: 2.228739 | AN58: 2.258396 | AO58: 2.533624 | AP58: 2.869044 | AQ58: 2.777937 | AR58: 3.044635 | AS58: 0 | AT58: 0 | AU58: 0 | AV58: 0 | AW58: 0 | AX58: 0 | AY58: 0 | AZ58: 0 | BA58: 1.831846 | BB58: 1.631985 | BC58: 3.009758 | BD58: 2.67654 | BE58: 2.895122 | BF58: 4.576979 | BG58: 2.217702 | BH58: 3.798762 | BI58: 2.07364 | BJ58: 1.548138 | BK58: 1.702453 | BL58: 2.610893 | BM58: 1.100506
C59: Construction/Installation Residential | D59: 2.240828 | E59: 2.425864 | F59: 1.99422 | G59: 2.372049 | H59: 1.904894 | I59: 2.358659 | J59: 2.535046 | K59: 1.883713 | L59: 0.512948 | M59: 2.493293 | N59: 2.173529 | O59: 2.161291 | P59: 2.488956 | Q59: 2.771325 | R59: 2.920845 | S59: 2.784238 | T59: 2.343162 | U59: 2.387259 | V59: 2.909574 | W59: 3.068877 | X59: 2.226523 | Y59: 2.541078 | Z59: 2.913199 | AA59: 3.453257 | AB59: 2.514629 | AC59: 3.469332 | AD59: 2.804719 | AE59: ='User Add-in Location'!B65 -> 0 | AF59: ='User Add-in Location'!C65 -> 0 | AG59: 3.015625 | AH59: 2.03501 | AI59: 3.961184 | AJ59: 2.697451 | AK59: 2.462812 | AL59: 1.789478 | AM59: 2.319336 | AN59: 2.36468 | AO59: 2.628006 | AP59: 2.926877 | AQ59: 2.918063 | AR59: 3.167953 | AS59: 0 | AT59: 0 | AU59: 0 | AV59: 0 | AW59: 0 | AX59: 0 | AY59: 0 | AZ59: 0 | BA59: 1.918273 | BB59: 1.762994 | BC59: 3.064889 | BD59: 2.732184 | BE59: 2.998852 | BF59: 4.691733 | BG59: 2.359553 | BH59: 3.74876 | BI59: 2.178261 | BJ59: 1.654662 | BK59: 1.782517 | BL59: 2.712539 | BM59: 1.160781
C60: Manufacturing | D60: 1.406726 | E60: 1.145682 | F60: 1.55519 | G60: 1.668763 | H60: 1.430731 | I60: 1.861188 | J60: 1.817778 | K60: 1.2083 | L60: 0.279293 | M60: 1.966949 | N60: 1.578032 | O60: 1.192657 | P60: 2.019814 | Q60: 2.06271 | R60: 1.905774 | S60: 1.867613 | T60: 1.70972 | U60: 1.564843 | V60: 1.553317 | W60: 1.933874 | X60: 1.430615 | Y60: 1.639558 | Z60: 2.057088 | AA60: 2.570425 | AB60: 1.755376 | AC60: 2.35925 | AD60: 1.561722 | AE60: ='User Add-in Location'!B66 -> 0 | AF60: ='User Add-in Location'!C66 -> 0 | AG60: 1.884449 | AH60: 1.458725 | AI60: 2.326314 | AJ60: 1.99142 | AK60: 1.401437 | AL60: 1.280837 | AM60: 1.444312 | AN60: 1.377291 | AO60: 1.687898 | AP60: 2.132145 | AQ60: 2.072206 | AR60: 2.363535 | AS60: 0 | AT60: 0 | AU60: 0 | AV60: 0 | AW60: 0 | AX60: 0 | AY60: 0 | AZ60: 0 | BA60: 1.297702 | BB60: 1.16482 | BC60: 2.187571 | BD60: 1.508714 | BE60: 1.996505 | BF60: 3.764435 | BG60: 1.822759 | BH60: 2.198094 | BI60: 1.437896 | BJ60: 1.010555 | BK60: 0.976857 | BL60: 1.746943 | BM60: 0.540492
